{"text_format":"1","workbook":"xlsx","n_sheets":7,"sheets":["Calculation Window","Printout","ReadMe","Metadata","Municipality Codes","Soil Codes","New Soil-Old Soil"],"not_rendered":{"charts":15,"images":5,"macros":1,"external_links":0,"defined_names":69,"comments":1,"pivot_tables":0},"unopened":[],"bounds":{"document_bytes":16777216,"sheet_cells":100000,"rows_first":2000,"rows_last":500,"rows_between":2000,"halvings":0,"cell_chars":16384,"cell_head_chars":4096},"cells_cut":0,"cells_raw":0,"read":"whole","date_system":"1900"}

{"sheet":"Calculation Window","index":0,"n_rows":569,"n_cols":86,"rows_kept":569,"cut":false,"hidden":false,"merged":[[0,1,0,4],[2,1,2,4],[4,1,4,2],[9,2,9,4],[3,1,3,2],[5,1,5,2],[6,1,6,2],[46,1,46,4],[15,1,17,2],[15,3,17,3],[15,4,17,4],[45,1,45,4],[1,53,1,54],[7,16,7,18],[0,26,2,28],[0,16,0,20],[5,16,5,18],[2,16,3,20],[3,26,4,26],[3,27,3,28],[6,16,6,18],[6,44,6,48],[7,46,8,46],[6,58,7,61],[9,16,9,18],[7,1,7,2],[3,44,4,48],[8,1,8,4],[5,69,5,71],[34,17,34,20],[19,3,20,3],[19,4,20,4],[21,16,21,18],[12,1,12,4],[10,2,10,4],[19,1,20,2],[6,71,7,71],[6,69,7,69],[6,70,7,70],[23,1,23,4],[20,58,20,61],[7,47,7,48],[7,44,8,44],[7,45,8,45]]}
[null," A Recharge-Based Nitrate-Dilution Model for New Jersey V7.0 for Excel 2010",null,null,null,null,"EXPLANATION",null,null,null,null,null,null,null,null,null,"Solve for A (acres/system)",null,null,null,null,null,null,null,null,null,"Lot size & impervious cover relation from TR-55"]
[null,null,null,null,null,null,null,null,null,null,null,null,null,null,null,null,null,"solve for A:",null,null,null,null,null,null,null,null,null,null,null,null,null,null,null,null,null,null,null,null,null,null,null,null,null,null,null,null,null,null,null,null,null,null,null,"Basin Factor",null,1]
[null,"Adjusted Trela-Douglas Model Input Parameters",null,null,null,null,"Change only those variables in yellow boxes to the left.",null,null,null,null,null,null,null,null,null,"(4.4186HM)/(CqA(1-0.179A^-0.5708)) = Rmax ",null,null,null,null,null,null,null,null,null,null,null,null,null,null,null,null,null,null,null,null,null,null,null,null,null,null,null,null,null,null,null,null,null,null,null,null,null,null,null,null,null,null,null,null,null,null,null,null,null,null,null,null,null,null,null,null,null,null,null,null,null,"Abbottstown",1,null,null,"Absecon City (Atlantic Co.)",null,"Aberdeen Twp. (Monmouth Co.)",323]
[null,"parameter",null,"value","units",null,"Use drop-down pick lists for soil and municipality.",null,null,null,null,null,null,null,null,null,null,null,null,null,null,null,null,null,null,null,"Lot Size","Impervious Cover",null,null,null,null,null,null,null,null,null,null,null,null,null,null,null,null,"Adjust dilution model to account for impervious surface on lots",null,null,null,null,null,null,null,null,null,null,null,null,null,{"$f":"+C10","v":"Wellsboro"},null,null,null,null,null,null,null,null,null,null,null,null,null,null,null,null,null,null,null,"Adelphia",2,null,null,"Atlantic City (Atlantic Co.)",null,"Absecon City (Atlantic Co.)",1]
[null,"population density:",null,3,"people/home",null,"After entering all parameters, click the 'SOLVE' button and ",null,null,null,null,null,null,null,null,null,null,"where:",null,null,null,null,null,null,null,null,null,"TR-55","curve",null,null,null,null,null,null,null,null,null,null,null,null,null,null,null,null,null,null,null,null,null,null,null,null,null,null,null,null,null,{"$f":"+C11","v":"Lambertville City (Hunterdon Co.)"},null,null,null,null,null,null,null,null,null,null,null,null,null,null,null,null,null,null,null,"Adelphia Variant",3,null,null,"Brigantine City (Atlantic Co.)",null,"Alexandria Twp. (Hunterdon Co.)",259]
[null,"human nitrate loading rate",null,10,"pounds/person/year",null,"     then check \"OK\" in order to calculate the minimum lot size",null,null,null,null,null,null,null,null,null,"H = population density = ",null,null,{"$f":"+H","v":3},"people/home",null,null,null,null,null,{"$f":"1/8","v":0.125},0.65,{"$f":"0.179*AA6^-0.5708","v":0.58659289120676483},null,null,null,null,null,null,null,null,null,null,null,null,null,null,null,null,null,null,null,null,null,null,null,null,null,null,null,null,null,null,null,null,null,null,null,null,null,null,null,null,"Graphing Values",null,null,null,null,null,null,null,null,"Adrian",4,null,null,"Buena Boro. (Atlantic Co.)",null,"Allamuchy Twp. (Warren Co.)",545]
[null,"NO3 target:",null,2," mg/l",null,"     needed to dilute nitrate in the effluent to the specified target.",null,null,null,null,null,null,null,null,null,"M = human nitrate loading rate",null,null,{"$f":"+M","v":10},"pounds/person/year",null,null,null,null,null,0.25,0.38,0.39491976874468593,null,null,null,null,null,null,null,null,null,null,null,null,null,null,null,"Trela-Douglas",null,null,null,null,null,null,null,null,null,null,null,null,null,"GSR-32 Analysis",null,null,null,null,null,null,null,null,null,null,"lot size","from GSR-32","TD w/ adj",null,null,null,null,null,null,"Albia",5,null,null,"Buena Vista Twp. (Atlantic Co.)",null,"Allendale Boro. (Bergen Co.)",24]
[null,null,null,null,null,null,"Click the 'Print Results' button to print a summary sheet of results.",null,null,null,null,null,null,null,null,null,"Cq = NO3 target = ",null,null,{"$f":"+Cq","v":2}," mg/l",null,null,null,null,null,{"$f":"1/3","v":0.33333333333333331},0.3,0.33511498113761168,null,null,null,null,null,null,null,null,null,null,null,null,null,null,null,"Lot Size","% imp. ","modified lot","necessary recharge",null,null,null,null,null,null,3,5.2,10,null,null,null,null,null,null,null,null,null,null,null,null,null,null,null,null,null,null,null,null,null,"Alden",6,null,null,"Corbin City (Atlantic Co.)",null,"Allenhurst Boro. (Monmouth Co.)",324]
[null,"Ground-Water Recharge Methodology Input Parameters",null,null,null,null,"Click the 'Read Me!' button for some more explanation",null,null,null,null,null,null,null,null,null,null,null,null,null,null,null,null,null,null,null,0.5,0.25,0.26587711184925034,null,null,null,null,null,null,null,null,null,null,null,null,null,null,null,null,null,null,"w/o impervious adj","w/ impervious adj",null,null,null,null,"acres","in/yr","in/yr","in/yr",null,{"$f":"VLOOKUP(+C10,CA3:CB331,2)","v":314},{"$f":"VLOOKUP(+C11,CG3:CH569,2)","v":275},null,null,null,null,null,null,null,null,null,0,{"$f":"+S","v":11.5477515},null,null,null,null,null,null,null,"Alloway",7,null,null,"Egg Harbor City (Atlantic Co.)",null,"Allentown Boro. (Monmouth Co.)",325]
[null,"Soil","Wellsboro",null,null,null,"Detailed explanations are in the Metadata worksheet.",null,null,null,null,null,null,null,null,null,"Rmax = max ground water recharge = ",null,null,{"$f":"+S","v":11.5477515},"inches/year",null,null,null,null,null,1,0.2,0.17899999999999999,null,null,null,null,null,null,null,null,null,null,null,null,null,null,null,40,{"$f":"0.179*AS10^-0.5708","v":2.1797023274547023E-2},{"$f":"+AS10*(1-AT10)","v":39.128119069018119},{"$f":"4.4186*H*M/(Cq*AS10)","v":1.6569749999999999},{"$f":"4.4186*H*M/(Cq*AU10)","v":1.6938969103802413},null,null,null,null,20,2.2832219193375773,1.3172434150024486,0.68496657580127329,null,null,"CF =",{"$f":"+VLOOKUP(+BH9,'Municipality Codes'!A5:G571,5+BM14)","v":1.3939299999999999},null,null,null,null,null,null,null,null,{"$f":"MAX(1+A,40)","v":40},{"$f":"+S","v":11.5477515},null,null,null,null,null,null,null,"Alluvial Land",8,null,null,"Egg Harbor Twp. (Atlantic Co.)",null,"Alloway Twp. (Salem Co.)",464]
[null,"Municipality","Lambertville City (Hunterdon Co.)",null,null,null,null,null,null,null,null,null,null,null,null,null,null,null,null,null,null,null,null,null,null,null,2,0.12,0.12051056135349826,null,null,null,null,null,null,null,null,null,null,null,null,null,null,null,35,2.352334029619324E-2,34.176683089633237,1.8936857142857142,1.9393046372046652,null,null,null,null,19,2.4057831172922195,1.3879517984378189,0.72173493518766596,null,null,"RF","RC",null,null,false,{"$f":"IF(BL11,0,0)","v":0},null,null,null,null,{"$f":"+AS10","v":40},null,{"$f":"+AW10","v":1.6938969103802413},null,null,null,null,null,null,"Alluvial Land-Wet",9,null,null,"Estell Manor City (Atlantic Co.)",null,"Alpha Boro. (Warren Co.)",546]
[null,null,null,null,null,null,null,null,null,null,null,null,null,null,null,null,null,null,null,null,null,null,null,null,null,null,null,null,null,null,null,null,null,null,null,null,null,null,null,null,null,null,null,null,30,2.5686930980181471E-2,29.229392070594557,2.2092999999999998,2.2675463054422607,null,null,null,null,18,2.5421856916195038,1.4666455913189445,0.76265570748585121,null,null,{"$f":"VLOOKUP(+BG9,'Soil Codes'!$A$5:$H$333,4)","v":13.55},{"$f":"VLOOKUP(+BG9,'Soil Codes'!$A$5:$W$333,19)","v":7.34},null,null,true,{"$f":"IF(BL12,1,0)","v":1},null,null,null,null,{"$f":"+AS11","v":35},null,{"$f":"+AW11","v":1.9393046372046652},null,null,null,null,null,null,"Amwell",10,null,null,"Folsom Boro. (Atlantic Co.)",null,"Alpine Boro. (Bergen Co.)",25]
[null,"Notes",null,null,null,null,null,null,null,null,null,null,null,null,null,null,null,null,null,null,null,null,null,null,null,null,null,null,null,null,null,null,null,null,null,null,null,null,null,null,null,null,null,null,25,2.8504201144956377E-2,24.287394971376091,2.65116,2.7289464381879207,null,null,null,null,17,2.694908396078219,1.5547548438912802,0.80847251882346582,null,null,{"$f":"VLOOKUP(+BG9,'Soil Codes'!$A$5:$H$333,8)","v":11.25},{"$f":"VLOOKUP(+BG9,'Soil Codes'!$A$5:$W$333,23)","v":6.09},null,null,false,{"$f":"IF(BL13,2,0)","v":0},null,null,null,null,30,null,2.2675463054422607,null,null,null,null,null,null,"Annandale",11,null,null,"Galloway Twp. (Atlantic Co.)",null,"Andover Boro. (Sussex Co.)",500]
[null,null,null,null,null,null,null,null,null,null,null,null,null,null,null,null,null,null,null,null,null,null,null,null,null,null,null,null,null,null,null,null,null,null,null,null,null,null,null,null,null,null,null,null,20,3.2376142989650566E-2,19.35247714020699,3.3139499999999997,3.4248328790063662,null,null,null,null,16,2.8670583174299225,1.6540721062095702,0.86011749522897651,null,null,{"$f":"VLOOKUP(+BG9,'Soil Codes'!$A$5:$H$333,7)","v":10.44},{"$f":"VLOOKUP(+BG9,'Soil Codes'!$A$5:$W$333,22)","v":5.65},null,null,null,{"$f":"SUM(BM11:BM13)","v":1},null,null,null,null,25,null,2.7289464381879207,null,null,null,null,null,null,"Appoquinimink-Broadkill",12,null,null,"Hamilton Twp. (Atlantic Co.)",null,"Andover Twp. (Sussex Co.)",501]
[null,{"$f":"IF(hydric_soil=0,\"Hydric or urban soil. Can't use this method.\",\" \")","v":" "},null,null,null,null,null,null,null,null,null,null,null,null,null,null,null,null,null,null,null,null,null,null,null,null,null,null,null,null,null,null,null,null,null,null,null,null,null,null,null,null,null,null,18,3.4382977659685759E-2,17.381106402125656,3.6821666666666664,3.8132785374292557,null,null,null,null,15,3.0625831482449928,1.7668748932182647,0.91877494447349761,null,null,{"$f":"VLOOKUP(+BG9,'Soil Codes'!$A$5:$H$333,6)","v":9.08},{"$f":"VLOOKUP(+BG9,'Soil Codes'!$A$5:$W$333,21)","v":4.92},null,null,null,null,null,null,null,null,20,null,3.4248328790063662,null,null,null,null,null,null,"Appoquinimink-Transquaking-Mispillion",13,null,null,"Hammonton Town (Atlantic Co.)",null,"Asbury Park City (Monmouth Co.)",326]
[null,{"$f":"IF(BM14=2,+B51,+B50)","v":"Under average conditions, recharge on the pervious portions of this lot is approximately "},null,{"$f":"IF(hydric_soil=1,+S,\"N.A.\")","v":11.5477515},"inches/year",null,"See Division of Watershed Management guidelines for",null,null,null,null,null,null,null,null,null,null,null,null,null,null,null,null,null,null,null,null,null,null,null,null,null,null,null,null,null,null,null,null,null,null,null,null,null,16,3.6774040063626688E-2,15.411615358981972,4.1424374999999998,4.3005874761448828,null,null,null,null,14,3.28657564621308,1.8961013343537003,0.98597269386392405,null,null,{"$f":"VLOOKUP(+BG9,'Soil Codes'!$A$5:$J$256,5)","v":3.44},{"$f":"VLOOKUP(+BG9,'Soil Codes'!$A$5:$Z$333,20)","v":2.57},null,null,null,null,null,null,null,null,18,null,3.8132785374292557,null,null,null,null,null,null,"Aquents",14,null,null,"Linwood City (Atlantic Co.)",null,"Atlantic City (Atlantic Co.)",2]
[null,null,null,null,null,null,"how to apply this model in support of permit applications.",null,null,null,null,null,null,null,null,null,null,null,null,null,null,null,null,null,null,null,null,null,null,null,null,null,null,null,null,null,null,null,null,null,null,null,null,null,14,3.9686531852845937E-2,13.444388554060156,4.7342142857142857,4.9298634693196206,null,null,null,null,13,3.5457205817579602,2.0456080279372846,1.063716174527388,null,null,{"$f":"VLOOKUP(+BG9,'Soil Codes'!$A$5:$J$256,9)","v":1.47},{"$f":"VLOOKUP(+BG9,'Soil Codes'!$A$5:$Z$333,24)","v":1.1000000000000001},null,null,null,null,null,null,null,null,16,null,4.3005874761448828,null,null,null,null,null,null,"Arendtsville",15,null,null,"Longport Boro. (Atlantic Co.)",null,"Atlantic Highlands Boro. (Monmouth Co.)",327]
[null,null,null,null,null,null,null,null,null,null,null,null,null,null,null,null,null,null,null,null,null,null,null,null,null,null,null,null,null,null,null,null,null,null,null,null,null,null,null,null,null,null,null,null,12,4.333675369699936E-2,11.479958955636008,5.52325,5.7734526975343208,null,null,null,null,12,3.8489684650228808,2.2205587298208926,1.1546905395068643,null,null,{"$f":"VLOOKUP(+BG9,'Soil Codes'!$A$5:$J$256,10)","v":0},{"$f":"VLOOKUP(+BG9,'Soil Codes'!$A$5:$Z$333,25)","v":0},null,null,null,null,null,null,null,null,14,null,4.9298634693196206,null,null,null,null,null,null,"Arnot-Lordstown",16,null,null,"Margate City (Atlantic Co.)",null,"Audubon Boro. (Camden Co.)",134]
[null,null,null,null,null,null,null,null,null,null,null,null,null,null,null,null,null,null,null,null,null,null,null,null,null,null,null,null,null,null,null,null,null,null,null,null,null,null,null,null,null,null,null,null,10,4.8089806653109753E-2,9.5191019334689013,6.6278999999999995,6.9627366597435891,null,null,null,null,11,4.2085825296033361,2.428028382463463,1.2625747588810008,null,null,null,null,null,null,null,null,null,null,null,null,12,null,5.7734526975343208,null,null,null,null,null,null,"Arnot-Lordstown rock outcrop",17,null,null,"Mullica Twp. (Atlantic Co.)",null,"Audubon Park Boro. (Camden Co.)",135]
[null,{"$f":"IF(BM14=2,+B47,+B46)","v":"Net average recharge (adjusted for impervious cover)"},null,{"$f":"+D16*(1-ISC)","v":10.81341449852631},"inches/year",null,null,null,null,null,null,null,null,null,null,null,null,null,null,{"$f":"0.179*A^-0.5708","v":6.3591340831476217E-2},null,null,null,null,null,null,null,null,null,null,null,null,null,null,null,null,null,null,null,null,null,null,null,null,9,5.1070652496841021E-2,8.5403641275284308,7.3643333333333327,7.7606761269535056,null,null,null,null,10,4.6418244398290591,2.6779756383629185,1.3925473319487178,null,null,null,null,null,null,null,null,null,null,null,null,10,null,6.9627366597435891,null,null,null,null,null,null,"Atherton",18,null,null,"Northfield City (Atlantic Co.)",null,"Avalon Boro. (Cape May Co.)",171]
[null,null,null,null,null,null,null,null,null,null,null,null,null,null,null,null,null,null,null,null,null,null,null,null,null,null,null,null,null,null,null,null,null,null,null,null,null,null,null,null,null,null,null,null,8,5.4622209849975907E-2,7.5630223212001928,8.2848749999999995,8.7635600141243586,null,null,null,null,9,5.1737840846356704,2.9848754334436562,1.552135225390701,null,null,null,null,null,null,null,null,null,null,null,null,9,null,7.7606761269535056,null,null,null,null,null,null,"Athol",19,null,null,"Pleasantville City (Atlantic Co.)",null,"Avon-By-The-Sea Boro. (Monmouth Co.)",328]
[null,null,null,null,null,null,null,null,null,null,null,null,null,null,null,null,"A = land required to dilute effluent = ",null,null,6.1293227297871038,"acres/system",null,null,null,null,null,null,null,null,null,null,null,null,null,null,null,null,null,null,null,null,null,null,null,7,5.8948270772893593E-2,6.5873621045897455,9.4684285714285714,10.061538890327601,null,null,null,null,8,5.8423733427495721,3.3706000054324452,1.7527120028248717,null,"% imperv.","LULC","recharge (in/yr)","LULC",null,null,null,null,null,null,null,8,null,8.7635600141243586,null,null,null,null,null,null,"Atsion",20,null,null,"Port Republic City (Atlantic Co.)",null,"Barnegat Light Boro. (Ocean Co.)",415]
[null,null,null,null,null,null,null,null,null,null,null,null,null,null,null,null,null,null,null,null,null,null,null,null,null,null,null,null,null,null,null,null,null,null,null,null,null,null,null,null,null,null,null,null,6,6.437011681497494E-2,5.6137792991101501,11.0465,11.806484806145834,null,null,null,null,7,6.7076925935517329,3.8698226501260002,2.0123077780655203,null,0,0,{"$f":"+BH12*$BI$10*BF-BI12","v":11.5477515},"landscape open space",null,null,null,null,null,null,null,7,null,10.061538890327601,null,null,null,null,null,null,"Aura",21,null,null,"Somers Point City (Atlantic Co.)",null,"Barnegat Twp.  (Ocean Co.)",416]
[null,"Minimum recharge area needed to dilute nitrate:",null,null,null,null,null,null,null,null,null,null,null,null,null,null,null,null,"LHS = ",{"$f":"4.4186*H*M/(Cq*A*(1-0.179*A^-0.5708))","v":11.547767655893592},null,null,null,null,null,null,null,null,null,null,null,null,null,null,null,null,null,null,null,null,null,null,null,null,5,7.1430049733618356E-2,4.6428497513319087,13.255799999999999,14.275499649969577,null,null,null,null,6,7.8709898707638892,4.5409556946714744,2.3612969612291668,null,0.17,4,9.5917124999999981,"1-2 acre",null,null,null,null,null,null,null,6,null,11.806484806145834,null,null,null,null,null,null,"Barclay",22,null,null,"Ventnor City (Atlantic Co.)",null,"Barrington Boro. (Camden Co.)",136]
[null,null,null,null,null,null,null,null,null,null,null,null,null,null,null,null,null,null,"RHS = ",{"$f":"+S","v":11.5477515},null,null,null,null,null,null,null,null,null,null,null,null,null,null,null,null,null,null,null,null,null,null,null,null,4.5,7.5857640145903904E-2,4.1586406193434327,14.728666666666665,15.937659939094267,null,null,null,null,5,9.5169997666463839,5.4905767884498369,2.8550999299939153,null,0.23,3,8.902629199999998,"1/2 - 1 acre",null,null,null,null,null,null,null,5,null,14.275499649969577,null,null,null,null,null,null,"Bartley",23,null,null,"Weymouth Twp. (Atlantic Co.)",null,"Bass River Twp. (Burlington Co.)",94]
[null,null,{"$f":"IF(hydric_soil=1,+A,\"N.A.\")","v":6.1293227297871038},"acres/system",null,null,null,null,null,null,null,null,null,null,null,null,null,null,null,null,null,null,null,null,null,null,null,null,null,null,null,null,null,null,null,null,null,null,null,null,null,null,null,null,4,8.1132935182878591E-2,3.6754682592684857,16.569749999999999,18.03280434618452,null,null,null,null,4.5,10.625106626062845,6.1298692073439485,3.1875319878188533,null,0.33,2,7.7368843999999992,"1/8 - 1/2 acre",null,null,null,null,null,null,null,4.5,null,15.937659939094267,null,null,null,null,null,null,"Bath",24,null,null,"Allendale Boro. (Bergen Co.)",null,"Bay Head Boro. (Ocean Co.)",417]
[null,null,null,null,null,null,null,null,null,null,null,null,null,null,null,null,null,null,"equation to solve",{"$f":"+LHS-RHS","v":1.615589359182934E-5},null,null,null,null,null,null,null,null,null,null,null,null,null,null,null,null,null,null,null,null,null,null,null,null,3.5,8.7558636768740358E-2,3.1935447713094089,18.936857142857143,20.75405380110718,null,null,null,null,4,12.021869564123012,6.9356939793017371,3.6065608692369038,null,0.65,1,2.2251191999999995,"1/8 acre",null,null,null,null,null,null,null,4,null,18.03280434618452,null,null,null,null,null,null,"Bayboro",25,null,null,"Alpine Boro. (Bergen Co.)",null,"Bayonne City (Hudson Co.)",247]
[null,null,null,null,null,null,null,null,null,null,null,null,null,null,null,null,null,null,null,null,null,null,null,null,null,null,null,null,null,null,null,null,null,null,null,null,null,null,null,null,null,null,null,null,3,9.5611959486951961E-2,2.713164121539144,22.093,24.428673324192697,null,null,null,null,3.5,13.836035867404785,7.9823283850412237,4.1508107602214359,null,0.85,5,0.94907709999999978,"landscape commercial",null,null,null,null,null,null,null,3.5,null,20.75405380110718,null,null,null,null,null,null,"Bedington",26,null,null,"Bergenfield Boro. (Bergen Co.)",null,"Beach Haven Boro. (Ocean Co.)",418]
[null,null,null,null,null,null,null,null,null,null,null,null,null,null,null,null,null,null,null,null,null,null,null,null,null,null,null,null,null,null,null,null,null,null,null,null,null,null,null,null,null,null,null,null,2.5,0.10609840962247352,2.234753975943816,26.511599999999998,29.658298279571479,null,null,null,null,3,16.285782216128464,9.3956435862279601,4.8857346648385391,null,1,6,0,"unlanscaped commercial",null,null,null,null,null,null,null,3,null,24.428673324192697,null,null,null,null,null,null,"Berks",27,null,null,"Bogota Boro. (Bergen Co.)",null,"Beachwood Boro. (Ocean Co.)",419]
[null,null,null,null,null,null,null,null,null,null,null,null,null,null,null,null,null,null,"Initial Guess:",0.1,null,null,null,null,null,null,null,null,null,null,null,null,null,null,null,null,null,null,null,null,null,null,null,null,2,0.12051056135349826,1.7589788772930035,33.139499999999998,37.680384259076874,null,null,null,null,2.5,19.772198853047652,11.407037799835184,5.9316596559142951,null,null,null,null,null,null,null,null,null,null,null,null,2.5,null,29.658298279571479,null,null,null,null,null,null,"Berryland",28,null,null,"Carlstadt Boro. (Bergen Co.)",null,"Bedminster Twp. (Somerset Co.)",479]
[null,null,null,null,null,null,null,null,null,null,null,null,null,null,null,null,null,null,null,null,null,null,null,null,null,null,null,null,null,null,null,null,null,null,null,null,null,null,null,null,null,null,null,null,1.5,0.14201693657339842,1.2869745951399023,44.186,51.499851085090803,null,null,null,null,2,25.120256172717912,14.492455484260335,7.5360768518153742,null,null,null,null,null,null,null,null,null,null,null,null,2,null,37.680384259076874,null,null,null,null,null,null,"Berryland Variant",29,null,null,"Cliffside Park Boro. (Bergen Co.)",null,"Belleville Town (Essex Co.)",201]
[null,null,null,null,null,null,null,null,null,null,null,null,null,null,null,null,null,null,null,null,null,null,null,null,null,null,null,null,null,null,null,null,null,null,null,null,null,null,null,null,null,null,null,null,1,0.17899999999999999,0.82099999999999995,66.278999999999996,80.729598051157126,null,null,null,null,1.5,34.333234056727207,19.80763503272723,10.29997021701816,null,null,null,null,null,null,null,null,null,null,null,null,1.5,null,51.499851085090803,null,null,null,null,null,null,"Bertie",30,null,null,"Closter Boro. (Bergen Co.)",null,"Bellmawr Boro. (Camden Co.)",137]
[null,null,null,null,null,null,null,null,null,null,null,null,null,null,null,null,null,null,null,null,null,null,null,null,null,null,null,null,null,null,null,null,null,null,null,null,null,null,null,null,null,null,null,null,0.75,0.21094442977549357,0.59179167766837981,88.372,111.99718161150032,null,null,null,null,1,53.819732034104746,31.049845404291204,16.145919610231427,null,null,null,null,null,null,null,null,null,null,null,null,1,null,80.729598051157126,null,null,null,null,null,null,"Bibb",31,null,null,"Cresskill Boro. (Bergen Co.)",null,"Belmar Boro. (Monmouth Co.)",329]
[null,null,null,null,null,null,null,null,null,null,null,null,null,null,null,null,null,null,null,null,null,null,null,null,null,null,null,null,null,null,null,null,null,null,null,null,null,null,null,null,null,null,null,null,0.5,0.26587711184925034,0.36706144407537483,132.55799999999999,180.56649934170102,null,null,null,null,0.75,74.664787741000225,43.075839081346274,22.399436322300065,null,null,null,null,null,null,null,null,null,null,null,null,0.75,null,111.99718161150032,null,null,null,null,null,null,"Biddeford",32,null,null,"Demarest Boro. (Bergen Co.)",null,"Belvidere Town (Warren Co.)",547]
[null,null,null,null,null,null,null,null,null,null,null,null,null,null,null,null,null,"Mass Balance Check on Answer",null,null,null,null,null,null,null,null,null,null,null,null,null,null,null,null,null,null,null,null,null,null,null,null,null,null,{"$f":"1/3","v":0.33333333333333331},0.33511498113761168,0.22162833962079609,198.83699999999999,299.05471526521706,null,null,null,null,0.5,120.37766622780067,69.448653592961932,36.113299868340206,null,null,null,null,null,null,null,null,null,null,null,null,0.5,null,180.56649934170102,null,null,null,null,null,null,"Bigapple",33,null,null,"Dumont Boro. (Bergen Co.)",null,"Bergenfield Boro. (Bergen Co.)",26]
[null,null,null,null,null,null,null,null,null,null,null,null,null,null,null,null,null,null,null,null,null,null,null,null,null,null,null,null,null,null,null,null,null,null,null,null,null,null,null,null,null,null,null,null,0.25,0.39491976874468593,0.15127005781382852,265.11599999999999,438.15015977300055,null,null,null,null,{"$f":"1/3","v":0.33333333333333331},199.36981017681137,115.02104433277579,59.81094305304341,null,{"$f":"1/(LINEST(BG23:BG29,BI23:BI29))","v":-12.554553788143821},null,null,null,null,null,null,null,null,null,null,0.33333333333333331,null,299.05471526521706,null,null,null,null,null,null,"Bigapple-urban land",34,null,null,"East Rutherford Boro. (Bergen Co.)",null,"Berkeley Heights Twp. (Union Co.)",524]
[null,null,null,null,null,null,null,null,null,null,null,null,null,null,null,null,null,"Nitrate loading:",null,{"$f":"+H*M*0.454","v":13.620000000000001},"kg/year",null,null,null,null,null,null,null,null,null,null,null,null,null,null,null,null,null,null,null,null,null,null,null,{"$f":"1/8","v":0.125},0.58659289120676483,5.1675888599154396E-2,530.23199999999997,1282.5904265356853,null,null,null,null,0.25,292.10010651533372,168.51929222038481,87.630031954600113,null,null,null,null,null,null,null,null,null,null,null,null,0.25,null,438.15015977300055,null,null,null,null,null,null,"Birdsboro",35,null,null,"Edgewater Boro. (Bergen Co.)",null,"Berkeley Twp. (Ocean Co.)",420]
[null,null,null,null,null,null,null,null,null,null,null,null,null,null,null,null,null,"Nitrate leaving:",null,{"$f":"+Rnet*A*Cq*43560*7.48/(12*1000*1000*0.264)","v":13.633571225938178},"kg/year",null,null,null,null,null,null,null,null,null,null,null,null,null,null,null,null,null,null,null,null,null,null,null,null,null,null,null,null,null,null,null,null,{"$f":"1/8","v":0.125},855.06028435712358,493.30401020603279,256.51808530713708,null,null,null,null,null,null,null,null,null,null,null,null,0.125,null,1282.5904265356853,null,null,null,null,null,null,"Boonton",36,null,null,"Elmwood Park Boro. (Bergen Co.)",null,"Berlin Boro. (Camden Co.)",138]
[null,null,null,null,null,null,null,null,null,null,null,null,null,null,null,null,null,"error",null,{"$f":"(+T37-T38)/T37","v":-9.9641893819216436E-4},null,null,null,null,null,null,null,null,null,null,null,null,null,null,null,null,null,null,null,null,null,null,null,null,null,null,null,null,null,null,null,null,null,null,null,null,null,null,null,null,null,null,null,null,null,null,null,null,null,null,null,null,null,null,null,null,null,null,"Boonton-Rock Outcrop",37,null,null,"Emerson Boro. (Bergen Co.)",null,"Berlin Twp. (Camden Co.)",139]
[null,null,null,null,null,null,null,null,null,null,null,null,null,null,null,null,null,null,null,null,null,null,null,null,null,null,null,null,null,null,null,null,null,null,null,null,null,null,null,null,null,null,null,null,null,null,null,null,null,null,null,null,null,null,null,null,null,null,null,null,null,null,null,null,null,null,null,null,null,null,null,null,null,null,null,null,null,null,"Bowmansville",38,null,null,"Englewood City (Bergen Co.)",null,"Bernards Twp. (Somerset Co.)",480]
[null,null,null,null,null,null,null,null,null,null,null,null,null,null,null,null,null,null,null,null,null,null,null,null,null,null,null,null,null,null,null,null,null,null,null,null,null,null,null,null,null,null,null,null,null,null,null,null,null,null,null,null,null,null,null,null,null,null,null,null,null,null,null,null,null,null,null,null,null,null,null,null,null,null,null,null,null,null,"Braceville",39,null,null,"Englewood Cliffs Boro. (Bergen Co.)",null,"Bernardsville Boro. (Somerset Co.)",481]
[null,"hydric/urban soil?  (1=no, 0=yes)",null,null,null,null,null,null,null,null,null,null,null,null,null,null,null,null,null,null,null,null,null,null,null,null,null,null,null,null,null,null,null,null,null,null,null,null,null,null,null,null,null,null,null,null,null,null,null,null,null,null,null,null,null,null,null,null,null,null,null,null,null,null,null,null,null,null,null,null,null,null,null,null,null,null,null,null,"Broadkill",40,null,null,"Fair Lawn Boro. (Bergen Co.)",null,"Bethlehem Twp. (Hunterdon Co.)",260]
[null,{"$f":"VLOOKUP(+BG9,'Soil Codes'!$A$5:$AH$333,34)","v":1},null,null,null,null,null,null,null,null,null,null,null,null,null,null,null,null,null,null,null,null,null,null,null,null,null,null,null,null,null,null,null,null,null,null,null,null,null,null,null,null,null,null,null,null,null,null,null,null,null,null,null,null,null,null,null,null,null,null,null,null,null,null,null,null,null,null,null,null,null,null,null,null,null,null,null,null,"Bucks",41,null,null,"Fairview Boro. (Bergen Co.)",null,"Beverly City (Burlington Co.)",95]
[null,null,null,null,null,null,null,null,null,null,null,null,null,null,null,null,null,null,null,null,null,null,null,null,null,null,null,null,null,null,null,null,null,null,null,null,null,null,null,null,null,null,null,null,null,null,null,null,null,null,null,null,null,null,null,null,null,null,null,null,null,null,null,null,null,null,null,null,null,null,null,null,null,null,null,null,null,null,"Buddtown",42,null,null,"Fort Lee Boro. (Bergen Co.)",null,"Blairstown Twp. (Warren Co.)",548]
[null,null,null,null,null,null,null,null,null,null,null,null,null,null,null,null,null,null,null,null,null,null,null,null,null,null,null,null,null,null,null,null,null,null,null,null,null,null,null,null,null,null,null,null,null,null,null,null,null,null,null,null,null,null,null,null,null,null,null,null,null,null,null,null,null,null,null,null,null,null,null,null,null,null,null,null,null,null,"Buddtown-Deptford",43,null,null,"Franklin Lakes Boro. (Bergen Co.)",null,"Bloomfield Town (Essex Co.)",202]
[null,"Net average recharge (adjusted for impervious cover)",null,null,null,null,null,null,null,null,null,null,null,null,null,null,null,null,null,null,null,null,null,null,null,null,null,null,null,null,null,null,null,null,null,null,null,null,null,null,null,null,null,null,null,null,null,null,null,null,null,null,null,null,null,null,null,null,null,null,null,null,null,null,null,null,null,null,null,null,null,null,null,null,null,null,null,null,"Buddtown-urban land",44,null,null,"Garfield City (Bergen Co.)",null,"Bloomingdale Boro. (Passaic Co.)",448]
[null,"Net drought recharge (adjusted for impervious cover)",null,null,null,null,null,null,null,null,null,null,null,null,null,null,null,null,null,null,null,null,null,null,null,null,null,null,null,null,null,null,null,null,null,null,null,null,null,null,null,null,null,null,null,null,null,null,null,null,null,null,null,null,null,null,null,null,null,null,null,null,null,null,null,null,null,null,null,null,null,null,null,null,null,null,null,null,"Califon",45,null,null,"Glen Rock Boro. (Bergen Co.)",null,"Bloomsbury Boro. (Hunterdon Co.)",261]
[null,null,null,null,null,null,null,null,null,null,null,null,null,null,null,null,null,null,null,null,null,null,null,null,null,null,null,null,null,null,null,null,null,null,null,null,null,null,null,null,null,null,null,null,null,null,null,null,null,null,null,null,null,null,null,null,null,null,null,null,null,null,null,null,null,null,null,null,null,null,null,null,null,null,null,null,null,null,"Carlisle",46,null,null,"Hackensack City (Bergen Co.)",null,"Bogota Boro. (Bergen Co.)",27]
[null,null,null,null,null,null,null,null,null,null,null,null,null,null,null,null,null,null,null,null,null,null,null,null,null,null,null,null,null,null,null,null,null,null,null,null,null,null,null,null,null,null,null,null,null,null,null,null,null,null,null,null,null,null,null,null,null,null,null,null,null,null,null,null,null,null,null,null,null,null,null,null,null,null,null,null,null,null,"Catden",47,null,null,"Harrington Park Boro. (Bergen Co.)",null,"Boonton Town (Morris Co.)",376]
[null,"Under average conditions, recharge on the pervious portions of this lot is approximately ",null,null,null,null,null,null,null,null,null,null,null,null,null,null,null,null,null,null,null,null,null,null,null,null,null,null,null,null,null,null,null,null,null,null,null,null,null,null,null,null,null,null,null,null,null,null,null,null,null,null,null,null,null,null,null,null,null,null,null,null,null,null,null,null,null,null,null,null,null,null,null,null,null,null,null,null,"Catden-Natchaug",48,null,null,"Hasbrouck Heights Boro. (Bergen Co.)",null,"Boonton Twp. (Morris Co.)",377]
[null,"Under drought conditions, recharge on the pervious portions of this lot is approximately ",null,null,null,null,null,null,null,null,null,null,null,null,null,null,null,null,null,null,null,null,null,null,null,null,null,null,null,null,null,null,null,null,null,null,null,null,null,null,null,null,null,null,null,null,null,null,null,null,null,null,null,null,null,null,null,null,null,null,null,null,null,null,null,null,null,null,null,null,null,null,null,null,null,null,null,null,"Chalfont",49,null,null,"Haworth Boro. (Bergen Co.)",null,"Bordentown City (Burlington Co.)",96]
[null,null,null,null,null,null,null,null,null,null,null,null,null,null,null,null,null,null,null,null,null,null,null,null,null,null,null,null,null,null,null,null,null,null,null,null,null,null,null,null,null,null,null,null,null,null,null,null,null,null,null,null,null,null,null,null,null,null,null,null,null,null,null,null,null,null,null,null,null,null,null,null,null,null,null,null,null,null,"Charlton-rock outcrop",50,null,null,"Hillsdale Boro. (Bergen Co.)",null,"Bordentown Twp. (Burlington Co.)",97]
[null,null,null,null,null,null,null,null,null,null,null,null,null,null,null,null,null,null,null,null,null,null,null,null,null,null,null,null,null,null,null,null,null,null,null,null,null,null,null,null,null,null,null,null,null,null,null,null,null,null,null,null,null,null,null,null,null,null,null,null,null,null,null,null,null,null,null,null,null,null,null,null,null,null,null,null,null,null,"Chatfield-Hollis-Rock outcrop",51,null,null,"Hohokus Boro. (Bergen Co.)",null,"Bound Brook Boro. (Somerset Co.)",482]
[null,null,null,null,null,null,null,null,null,null,null,null,null,null,null,null,null,null,null,null,null,null,null,null,null,null,null,null,null,null,null,null,null,null,null,null,null,null,null,null,null,null,null,null,null,null,null,null,null,null,null,null,null,null,null,null,null,null,null,null,null,null,null,null,null,null,null,null,null,null,null,null,null,null,null,null,null,null,"Chenango",52,null,null,"Leonia Boro. (Bergen Co.)",null,"Bradley Beach Boro. (Monmouth Co.)",330]
[null,null,null,null,null,null,null,null,null,null,null,null,null,null,null,null,null,null,null,null,null,null,null,null,null,null,null,null,null,null,null,null,null,null,null,null,null,null,null,null,null,null,null,null,null,null,null,null,null,null,null,null,null,null,null,null,null,null,null,null,null,null,null,null,null,null,null,null,null,null,null,null,null,null,null,null,null,null,"Chicone",53,null,null,"Little Fy Boro. (Bergen Co.)",null,"Branchburg Twp. (Somerset Co.)",483]
[null,null,null,null,null,null,null,null,null,null,null,null,null,null,null,null,null,null,null,null,null,null,null,null,null,null,null,null,null,null,null,null,null,null,null,null,null,null,null,null,null,null,null,null,null,null,null,null,null,null,null,null,null,null,null,null,null,null,null,null,null,null,null,null,null,null,null,null,null,null,null,null,null,null,null,null,null,null,"Chillum",54,null,null,"Lodi Boro. (Bergen Co.)",null,"Branchville Boro. (Sussex Co.)",502]
[null,null,null,null,null,null,null,null,null,null,null,null,null,null,null,null,null,null,null,null,null,null,null,null,null,null,null,null,null,null,null,null,null,null,null,null,null,null,null,null,null,null,null,null,null,null,null,null,null,null,null,null,null,null,null,null,null,null,null,null,null,null,null,null,null,null,null,null,null,null,null,null,null,null,null,null,null,null,"Chippewa",55,null,null,"Lyndhurst Twp. (Bergen Co.)",null,"Brick Twp. (Ocean Co.)",421]
[null,null,null,null,null,null,null,null,null,null,null,null,null,null,null,null,null,null,null,null,null,null,null,null,null,null,null,null,null,null,null,null,null,null,null,null,null,null,null,null,null,null,null,null,null,null,null,null,null,null,null,null,null,null,null,null,null,null,null,null,null,null,null,null,null,null,null,null,null,null,null,null,null,null,null,null,null,null,"Clay Pits",56,null,null,"Mahwah Twp. (Bergen Co.)",null,"Bridgeton City (Cumberland Co.)",187]
[null,null,null,null,null,null,null,null,null,null,null,null,null,null,null,null,null,null,null,null,null,null,null,null,null,null,null,null,null,null,null,null,null,null,null,null,null,null,null,null,null,null,null,null,null,null,null,null,null,null,null,null,null,null,null,null,null,null,null,null,null,null,null,null,null,null,null,null,null,null,null,null,null,null,null,null,null,null,"Clayey Land",57,null,null,"Maywood Boro. (Bergen Co.)",null,"Bridgewater Twp. (Somerset Co.)",484]
[null,null,null,null,null,null,null,null,null,null,null,null,null,null,null,null,null,null,null,null,null,null,null,null,null,null,null,null,null,null,null,null,null,null,null,null,null,null,null,null,null,null,null,null,null,null,null,null,null,null,null,null,null,null,null,null,null,null,null,null,null,null,null,null,null,null,null,null,null,null,null,null,null,null,null,null,null,null,"Coastal Beach",58,null,null,"Midland Park Boro. (Bergen Co.)",null,"Brielle Boro. (Monmouth Co.)",331]
[null,null,null,null,null,null,null,null,null,null,null,null,null,null,null,null,null,null,null,null,null,null,null,null,null,null,null,null,null,null,null,null,null,null,null,null,null,null,null,null,null,null,null,null,null,null,null,null,null,null,null,null,null,null,null,null,null,null,null,null,null,null,null,null,null,null,null,null,null,null,null,null,null,null,null,null,null,null,"Cokesbury",59,null,null,"Montvale Boro. (Bergen Co.)",null,"Brigantine City (Atlantic Co.)",3]
[null,null,null,null,null,null,null,null,null,null,null,null,null,null,null,null,null,null,null,null,null,null,null,null,null,null,null,null,null,null,null,null,null,null,null,null,null,null,null,null,null,null,null,null,null,null,null,null,null,null,null,null,null,null,null,null,null,null,null,null,null,null,null,null,null,null,null,null,null,null,null,null,null,null,null,null,null,null,"Colemantown",60,null,null,"Moonachie Boro. (Bergen Co.)",null,"Brooklawn Boro. (Camden Co.)",140]
[null,null,null,null,null,null,null,null,null,null,null,null,null,null,null,null,null,null,null,null,null,null,null,null,null,null,null,null,null,null,null,null,null,null,null,null,null,null,null,null,null,null,null,null,null,null,null,null,null,null,null,null,null,null,null,null,null,null,null,null,null,null,null,null,null,null,null,null,null,null,null,null,null,null,null,null,null,null,"Collington",61,null,null,"New Milford Boro. (Bergen Co.)",null,"Buena Boro. (Atlantic Co.)",4]
[null,null,null,null,null,null,null,null,null,null,null,null,null,null,null,null,null,null,null,null,null,null,null,null,null,null,null,null,null,null,null,null,null,null,null,null,null,null,null,null,null,null,null,null,null,null,null,null,null,null,null,null,null,null,null,null,null,null,null,null,null,null,null,null,null,null,null,null,null,null,null,null,null,null,null,null,null,null,"Colonie",62,null,null,"North Arlington Boro. (Bergen Co.)",null,"Buena Vista Twp. (Atlantic Co.)",5]
[null,null,null,null,null,null,null,null,null,null,null,null,null,null,null,null,null,null,null,null,null,null,null,null,null,null,null,null,null,null,null,null,null,null,null,null,null,null,null,null,null,null,null,null,null,null,null,null,null,null,null,null,null,null,null,null,null,null,null,null,null,null,null,null,null,null,null,null,null,null,null,null,null,null,null,null,null,null,"Colts Neck",63,null,null,"Northvale Boro. (Bergen Co.)",null,"Burlington City (Burlington Co.)",98]
[null,null,null,null,null,null,null,null,null,null,null,null,null,null,null,null,null,null,null,null,null,null,null,null,null,null,null,null,null,null,null,null,null,null,null,null,null,null,null,null,null,null,null,null,null,null,null,null,null,null,null,null,null,null,null,null,null,null,null,null,null,null,null,null,null,null,null,null,null,null,null,null,null,null,null,null,null,null,"Croton",64,null,null,"Norwood Boro. (Bergen Co.)",null,"Burlington Twp. (Burlington Co.)",99]
[null,null,null,null,null,null,null,null,null,null,null,null,null,null,null,null,null,null,null,null,null,null,null,null,null,null,null,null,null,null,null,null,null,null,null,null,null,null,null,null,null,null,null,null,null,null,null,null,null,null,null,null,null,null,null,null,null,null,null,null,null,null,null,null,null,null,null,null,null,null,null,null,null,null,null,null,null,null,"Cut And Fill Land*",65,null,null,"Oakland Boro. (Bergen Co.)",null,"Butler Boro. (Morris Co.)",378]
[null,null,null,null,null,null,null,null,null,null,null,null,null,null,null,null,null,null,null,null,null,null,null,null,null,null,null,null,null,null,null,null,null,null,null,null,null,null,null,null,null,null,null,null,null,null,null,null,null,null,null,null,null,null,null,null,null,null,null,null,null,null,null,null,null,null,null,null,null,null,null,null,null,null,null,null,null,null,"Delaware",66,null,null,"Old Tappan Boro. (Bergen Co.)",null,"Byram Twp. (Sussex Co.)",503]
[null,null,null,null,null,null,null,null,null,null,null,null,null,null,null,null,null,null,null,null,null,null,null,null,null,null,null,null,null,null,null,null,null,null,null,null,null,null,null,null,null,null,null,null,null,null,null,null,null,null,null,null,null,null,null,null,null,null,null,null,null,null,null,null,null,null,null,null,null,null,null,null,null,null,null,null,null,null,"Dennisville",67,null,null,"Oradell Boro. (Bergen Co.)",null,"Caldwell Boro. (Essex Co.)",203]
[null,null,null,null,null,null,null,null,null,null,null,null,null,null,null,null,null,null,null,null,null,null,null,null,null,null,null,null,null,null,null,null,null,null,null,null,null,null,null,null,null,null,null,null,null,null,null,null,null,null,null,null,null,null,null,null,null,null,null,null,null,null,null,null,null,null,null,null,null,null,null,null,null,null,null,null,null,null,"Donlonton",68,null,null,"Palisades Park Boro. (Bergen Co.)",null,"Califon Boro. (Hunterdon Co.)",262]
[null,null,null,null,null,null,null,null,null,null,null,null,null,null,null,null,null,null,null,null,null,null,null,null,null,null,null,null,null,null,null,null,null,null,null,null,null,null,null,null,null,null,null,null,null,null,null,null,null,null,null,null,null,null,null,null,null,null,null,null,null,null,null,null,null,null,null,null,null,null,null,null,null,null,null,null,null,null,"Downer",69,null,null,"Paramus Boro. (Bergen Co.)",null,"Camden City (Camden Co.)",141]
[null,null,null,null,null,null,null,null,null,null,null,null,null,null,null,null,null,null,null,null,null,null,null,null,null,null,null,null,null,null,null,null,null,null,null,null,null,null,null,null,null,null,null,null,null,null,null,null,null,null,null,null,null,null,null,null,null,null,null,null,null,null,null,null,null,null,null,null,null,null,null,null,null,null,null,null,null,null,"Doylestown",70,null,null,"Park Ridge Boro. (Bergen Co.)",null,"Cape May City (Cape May Co.)",172]
[null,null,null,null,null,null,null,null,null,null,null,null,null,null,null,null,null,null,null,null,null,null,null,null,null,null,null,null,null,null,null,null,null,null,null,null,null,null,null,null,null,null,null,null,null,null,null,null,null,null,null,null,null,null,null,null,null,null,null,null,null,null,null,null,null,null,null,null,null,null,null,null,null,null,null,null,null,null,"Dragston",71,null,null,"Ramsey Boro. (Bergen Co.)",null,"Cape May Point Boro. (Cape May Co.)",173]
[null,null,null,null,null,null,null,null,null,null,null,null,null,null,null,null,null,null,null,null,null,null,null,null,null,null,null,null,null,null,null,null,null,null,null,null,null,null,null,null,null,null,null,null,null,null,null,null,null,null,null,null,null,null,null,null,null,null,null,null,null,null,null,null,null,null,null,null,null,null,null,null,null,null,null,null,null,null,"Duffield",72,null,null,"Ridgefield Boro. (Bergen Co.)",null,"Carlstadt Boro. (Bergen Co.)",28]
[null,null,null,null,null,null,null,null,null,null,null,null,null,null,null,null,null,null,null,null,null,null,null,null,null,null,null,null,null,null,null,null,null,null,null,null,null,null,null,null,3,null,null,null,null,null,null,null,null,null,null,null,null,null,null,null,null,null,null,null,null,null,null,null,null,null,null,null,null,null,null,null,null,null,null,null,null,null,"Dune Land",73,null,null,"Ridgefield Park Village (Bergen Co.)",null,"Carneys Point Twp. (Salem Co.)",465]
[null,null,null,null,null,null,null,null,null,null,null,null,null,null,null,null,null,null,null,null,null,null,null,null,null,null,null,null,null,null,null,null,null,null,null,null,null,null,null,null,100,null,null,null,null,null,null,null,null,null,null,null,null,null,null,null,null,null,null,null,null,null,null,null,null,null,null,null,null,null,null,null,null,null,null,null,null,null,"Dunellen",74,null,null,"Ridgewood Village (Bergen Co.)",null,"Carteret Boro. (Middlesex Co.)",298]
[null,null,null,null,null,null,null,null,null,null,null,null,null,null,null,null,null,null,null,null,null,null,null,null,null,null,null,null,null,null,null,null,null,null,null,null,null,null,null,null,40,null,null,null,null,null,null,null,null,null,null,null,null,null,null,null,null,null,null,null,null,null,null,null,null,null,null,null,null,null,null,null,null,null,null,null,null,null,"Dunellen Variant",75,null,null,"River Edge Boro. (Bergen Co.)",null,"Cedar Grove Twp. (Essex Co.)",204]
[null,null,null,null,null,null,null,null,null,null,null,null,null,null,null,null,null,null,null,null,null,null,null,null,null,null,null,null,null,null,null,null,null,null,null,null,null,null,null,null,5.2,null,null,null,null,null,null,null,null,null,null,null,null,null,null,null,null,null,null,null,null,null,null,null,null,null,null,null,null,null,null,null,null,null,null,null,null,null,"Edneyville",76,null,null,"River Vale Twp. (Bergen Co.)",null,"Chatham Boro. (Morris Co.)",379]
[null,null,null,null,null,null,null,null,null,null,null,null,null,null,null,null,null,null,null,null,null,null,null,null,null,null,null,null,null,null,null,null,null,null,null,null,null,null,null,null,null,null,null,null,null,null,null,null,null,null,null,null,null,null,null,null,null,null,null,null,null,null,null,null,null,null,null,null,null,null,null,null,null,null,null,null,null,null,"Edneyville Material",77,null,null,"Rochelle Park Twp. (Bergen Co.)",null,"Chatham Twp. (Morris Co.)",380]
[null,null,null,null,null,null,null,null,null,null,null,null,null,null,null,null,null,null,null,null,null,null,null,null,null,null,null,null,null,null,null,null,null,null,null,null,null,null,null,null,null,null,null,null,null,null,null,null,null,null,null,null,null,null,null,null,null,null,null,null,null,null,null,null,null,null,null,null,null,null,null,null,null,null,null,null,null,null,"Edneyville-Parker-Rock Outcrop",78,null,null,"Rockleigh Boro. (Bergen Co.)",null,"Chesilhurst Boro. (Camden Co.)",143]
[null,null,null,null,null,null,null,null,null,null,null,null,null,null,null,null,null,null,null,null,null,null,null,null,null,null,null,null,null,null,null,null,null,null,null,null,null,null,null,null,null,null,null,null,null,null,null,null,null,null,null,null,null,null,null,null,null,null,null,null,null,null,null,null,null,null,null,null,null,null,null,null,null,null,null,null,null,null,"Elkton",79,null,null,"Rutherford Boro. (Bergen Co.)",null,"Chester Boro. (Morris Co.)",381]
[null,null,null,null,null,null,null,null,null,null,null,null,null,null,null,null,null,null,null,null,null,null,null,null,null,null,null,null,null,null,null,null,null,null,null,null,null,null,null,null,null,null,null,null,null,null,null,null,null,null,null,null,null,null,null,null,null,null,null,null,null,null,null,null,null,null,null,null,null,null,null,null,null,null,null,null,null,null,"Ellington  (Middlesex)",80,null,null,"Saddle Brook Twp. (Bergen Co.)",null,"Chester Twp. (Morris Co.)",382]
[null,null,null,null,null,null,null,null,null,null,null,null,null,null,null,null,null,null,null,null,null,null,null,null,null,null,null,null,null,null,null,null,null,null,null,null,null,null,null,null,null,null,null,null,null,null,null,null,null,null,null,null,null,null,null,null,null,null,null,null,null,null,null,null,null,null,null,null,null,null,null,null,null,null,null,null,null,null,"Ellington (Morris)",81,null,null,"Saddle River Boro. (Bergen Co.)",null,"Chesterfield Twp. (Burlington Co.)",100]
[null,null,null,null,null,null,null,null,null,null,null,null,null,null,null,null,null,null,null,null,null,null,null,null,null,null,null,null,null,null,null,null,null,null,null,null,null,null,null,null,null,null,null,null,null,null,null,null,null,null,null,null,null,null,null,null,null,null,null,null,null,null,null,null,null,null,null,null,null,null,null,null,null,null,null,null,null,null,"Evesboro",82,null,null,"South Hackensack Twp. (Bergen Co.)",null,"Chy Hill Twp. (Camden Co.)",142]
[null,null,null,null,null,null,null,null,null,null,null,null,null,null,null,null,null,null,null,null,null,null,null,null,null,null,null,null,null,null,null,null,null,null,null,null,null,null,null,null,null,null,null,null,null,null,null,null,null,null,null,null,null,null,null,null,null,null,null,null,null,null,null,null,null,null,null,null,null,null,null,null,null,null,null,null,null,null,"Fallsington",83,null,null,"Teaneck Twp. (Bergen Co.)",null,"Cinnaminson Twp. (Burlington Co.)",101]
[null,null,null,null,null,null,null,null,null,null,null,null,null,null,null,null,null,null,null,null,null,null,null,null,null,null,null,null,null,null,null,null,null,null,null,null,null,null,null,null,null,null,null,null,null,null,null,null,null,null,null,null,null,null,null,null,null,null,null,null,null,null,null,null,null,null,null,null,null,null,null,null,null,null,null,null,null,null,"Fallsington  Variant",84,null,null,"Tenafly Boro. (Bergen Co.)",null,"Clark Twp. (Union Co.)",525]
[null,null,null,null,null,null,null,null,null,null,null,null,null,null,null,null,null,null,null,null,null,null,null,null,null,null,null,null,null,null,null,null,null,null,null,null,null,null,null,null,null,null,null,null,null,null,null,null,null,null,null,null,null,null,null,null,null,null,null,null,null,null,null,null,null,null,null,null,null,null,null,null,null,null,null,null,null,null,"Farmington-rock outcrop",85,null,null,"Teterboro Boro. (Bergen Co.)",null,"Clayton Boro. (Gloucester Co.)",223]
[null,null,null,null,null,null,null,null,null,null,null,null,null,null,null,null,null,null,null,null,null,null,null,null,null,null,null,null,null,null,null,null,null,null,null,null,null,null,null,null,null,null,null,null,null,null,null,null,null,null,null,null,null,null,null,null,null,null,null,null,null,null,null,null,null,null,null,null,null,null,null,null,null,null,null,null,null,null,"Farmington-Wassaic-rock outcrop",86,null,null,"Upper Saddle River Boro. (Bergen Co.)",null,"Clementon Boro. (Camden Co.)",144]
[null,null,null,null,null,null,null,null,null,null,null,null,null,null,null,null,null,null,null,null,null,null,null,null,null,null,null,null,null,null,null,null,null,null,null,null,null,null,null,null,null,null,null,null,null,null,null,null,null,null,null,null,null,null,null,null,null,null,null,null,null,null,null,null,null,null,null,null,null,null,null,null,null,null,null,null,null,null,"Fill Land *",87,null,null,"Waldwick Boro. (Bergen Co.)",null,"Cliffside Park Boro. (Bergen Co.)",29]
[null,null,null,null,null,null,null,null,null,null,null,null,null,null,null,null,null,null,null,null,null,null,null,null,null,null,null,null,null,null,null,null,null,null,null,null,null,null,null,null,null,null,null,null,null,null,null,null,null,null,null,null,null,null,null,null,null,null,null,null,null,null,null,null,null,null,null,null,null,null,null,null,null,null,null,null,null,null,"Fluvaquents",88,null,null,"Wallington Boro. (Bergen Co.)",null,"Clifton City (Passaic Co.)",449]
[null,null,null,null,null,null,null,null,null,null,null,null,null,null,null,null,null,null,null,null,null,null,null,null,null,null,null,null,null,null,null,null,null,null,null,null,null,null,null,null,null,null,null,null,null,null,null,null,null,null,null,null,null,null,null,null,null,null,null,null,null,null,null,null,null,null,null,null,null,null,null,null,null,null,null,null,null,null,"Fort Mott",89,null,null,"Washington Twp. (Bergen Co.)",null,"Clinton Town (Hunterdon Co.)",263]
[null,null,null,null,null,null,null,null,null,null,null,null,null,null,null,null,null,null,null,null,null,null,null,null,null,null,null,null,null,null,null,null,null,null,null,null,null,null,null,null,null,null,null,null,null,null,null,null,null,null,null,null,null,null,null,null,null,null,null,null,null,null,null,null,null,null,null,null,null,null,null,null,null,null,null,null,null,null,"Fredon",90,null,null,"Westwood Boro. (Bergen Co.)",null,"Clinton Twp. (Hunterdon Co.)",264]
[null,null,null,null,null,null,null,null,null,null,null,null,null,null,null,null,null,null,null,null,null,null,null,null,null,null,null,null,null,null,null,null,null,null,null,null,null,null,null,null,null,null,null,null,null,null,null,null,null,null,null,null,null,null,null,null,null,null,null,null,null,null,null,null,null,null,null,null,null,null,null,null,null,null,null,null,null,null,"Freehold",91,null,null,"Wood-Ridge Boro. (Bergen Co.)",null,"Closter Boro. (Bergen Co.)",30]
[null,null,null,null,null,null,null,null,null,null,null,null,null,null,null,null,null,null,null,null,null,null,null,null,null,null,null,null,null,null,null,null,null,null,null,null,null,null,null,null,null,null,null,null,null,null,null,null,null,null,null,null,null,null,null,null,null,null,null,null,null,null,null,null,null,null,null,null,null,null,null,null,null,null,null,null,null,null,"Fresh Water Marsh",92,null,null,"Woodcliff Lake Boro. (Bergen Co.)",null,"Collingswood Boro. (Camden Co.)",145]
[null,null,null,null,null,null,null,null,null,null,null,null,null,null,null,null,null,null,null,null,null,null,null,null,null,null,null,null,null,null,null,null,null,null,null,null,null,null,null,null,null,null,null,null,null,null,null,null,null,null,null,null,null,null,null,null,null,null,null,null,null,null,null,null,null,null,null,null,null,null,null,null,null,null,null,null,null,null,"Fripp",93,null,null,"Wyckoff Twp. (Bergen Co.)",null,"Colts Neck Twp. (Monmouth Co.)",332]
[null,null,null,null,null,null,null,null,null,null,null,null,null,null,null,null,null,null,null,null,null,null,null,null,null,null,null,null,null,null,null,null,null,null,null,null,null,null,null,null,null,null,null,null,null,null,null,null,null,null,null,null,null,null,null,null,null,null,null,null,null,null,null,null,null,null,null,null,null,null,null,null,null,null,null,null,null,null,"Galestown",94,null,null,"Bass River Twp. (Burlington Co.)",null,"Commercial Twp. (Cumberland Co.)",188]
[null,null,null,null,null,null,null,null,null,null,null,null,null,null,null,null,null,null,null,null,null,null,null,null,null,null,null,null,null,null,null,null,null,null,null,null,null,null,null,null,null,null,null,null,null,null,null,null,null,null,null,null,null,null,null,null,null,null,null,null,null,null,null,null,null,null,null,null,null,null,null,null,null,null,null,null,null,null,"Galloway",95,null,null,"Beverly City (Burlington Co.)",null,"Corbin City (Atlantic Co.)",6]
[null,null,null,null,null,null,null,null,null,null,null,null,null,null,null,null,null,null,null,null,null,null,null,null,null,null,null,null,null,null,null,null,null,null,null,null,null,null,null,null,null,null,null,null,null,null,null,null,null,null,null,null,null,null,null,null,null,null,null,null,null,null,null,null,null,null,null,null,null,null,null,null,null,null,null,null,null,null,"Galloway variant",96,null,null,"Bordentown City (Burlington Co.)",null,"Cranbury Twp. (Middlesex Co.)",299]
[null,null,null,null,null,null,null,null,null,null,null,null,null,null,null,null,null,null,null,null,null,null,null,null,null,null,null,null,null,null,null,null,null,null,null,null,null,null,null,null,null,null,null,null,null,null,null,null,null,null,null,null,null,null,null,null,null,null,null,null,null,null,null,null,null,null,null,null,null,null,null,null,null,null,null,null,null,null,"Galway",97,null,null,"Bordentown Twp. (Burlington Co.)",null,"Cranford Twp. (Union Co.)",526]
[null,null,null,null,null,null,null,null,null,null,null,null,null,null,null,null,null,null,null,null,null,null,null,null,null,null,null,null,null,null,null,null,null,null,null,null,null,null,null,null,null,null,null,null,null,null,null,null,null,null,null,null,null,null,null,null,null,null,null,null,null,null,null,null,null,null,null,null,null,null,null,null,null,null,null,null,null,null,"Gladstone",98,null,null,"Burlington City (Burlington Co.)",null,"Cresskill Boro. (Bergen Co.)",31]
[null,null,null,null,null,null,null,null,null,null,null,null,null,null,null,null,null,null,null,null,null,null,null,null,null,null,null,null,null,null,null,null,null,null,null,null,null,null,null,null,null,null,null,null,null,null,null,null,null,null,null,null,null,null,null,null,null,null,null,null,null,null,null,null,null,null,null,null,null,null,null,null,null,null,null,null,null,null,"Glassboro and Woodstown",99,null,null,"Burlington Twp. (Burlington Co.)",null,"Deal Boro. (Monmouth Co.)",333]
[null,null,null,null,null,null,null,null,null,null,null,null,null,null,null,null,null,null,null,null,null,null,null,null,null,null,null,null,null,null,null,null,null,null,null,null,null,null,null,null,null,null,null,null,null,null,null,null,null,null,null,null,null,null,null,null,null,null,null,null,null,null,null,null,null,null,null,null,null,null,null,null,null,null,null,null,null,null,"Gravel Pits",100,null,null,"Chesterfield Twp. (Burlington Co.)",null,"Deerfield Twp. (Cumberland Co.)",189]
[null,null,null,null,null,null,null,null,null,null,null,null,null,null,null,null,null,null,null,null,null,null,null,null,null,null,null,null,null,null,null,null,null,null,null,null,null,null,null,null,null,null,null,null,null,null,null,null,null,null,null,null,null,null,null,null,null,null,null,null,null,null,null,null,null,null,null,null,null,null,null,null,null,null,null,null,null,null,"Great Piece",101,null,null,"Cinnaminson Twp. (Burlington Co.)",null,"Delanco Twp. (Burlington Co.)",102]
[null,null,null,null,null,null,null,null,null,null,null,null,null,null,null,null,null,null,null,null,null,null,null,null,null,null,null,null,null,null,null,null,null,null,null,null,null,null,null,null,null,null,null,null,null,null,null,null,null,null,null,null,null,null,null,null,null,null,null,null,null,null,null,null,null,null,null,null,null,null,null,null,null,null,null,null,null,null,"Haledon",102,null,null,"Delanco Twp. (Burlington Co.)",null,"Delaware Twp. (Hunterdon Co.)",265]
[null,null,null,null,null,null,null,null,null,null,null,null,null,null,null,null,null,null,null,null,null,null,null,null,null,null,null,null,null,null,null,null,null,null,null,null,null,null,null,null,null,null,null,null,null,null,null,null,null,null,null,null,null,null,null,null,null,null,null,null,null,null,null,null,null,null,null,null,null,null,null,null,null,null,null,null,null,null,"Haledon-Wet Variant",103,null,null,"Delran Twp. (Burlington Co.)",null,"Delran Twp. (Burlington Co.)",103]
[null,null,null,null,null,null,null,null,null,null,null,null,null,null,null,null,null,null,null,null,null,null,null,null,null,null,null,null,null,null,null,null,null,null,null,null,null,null,null,null,null,null,null,null,null,null,null,null,null,null,null,null,null,null,null,null,null,null,null,null,null,null,null,null,null,null,null,null,null,null,null,null,null,null,null,null,null,null,"Halsey",104,null,null,"Eastampton Twp. (Burlington Co.)",null,"Demarest Boro. (Bergen Co.)",32]
[null,null,null,null,null,null,null,null,null,null,null,null,null,null,null,null,null,null,null,null,null,null,null,null,null,null,null,null,null,null,null,null,null,null,null,null,null,null,null,null,null,null,null,null,null,null,null,null,null,null,null,null,null,null,null,null,null,null,null,null,null,null,null,null,null,null,null,null,null,null,null,null,null,null,null,null,null,null,"Hammonton",105,null,null,"Edgewater Park Twp. (Burlington Co.)",null,"Dennis Twp. (Cape May Co.)",174]
[null,null,null,null,null,null,null,null,null,null,null,null,null,null,null,null,null,null,null,null,null,null,null,null,null,null,null,null,null,null,null,null,null,null,null,null,null,null,null,null,null,null,null,null,null,null,null,null,null,null,null,null,null,null,null,null,null,null,null,null,null,null,null,null,null,null,null,null,null,null,null,null,null,null,null,null,null,null,"Hasbrouck",106,null,null,"Evesham Twp. (Burlington Co.)",null,"Denville Twp. (Morris Co.)",383]
[null,null,null,null,null,null,null,null,null,null,null,null,null,null,null,null,null,null,null,null,null,null,null,null,null,null,null,null,null,null,null,null,null,null,null,null,null,null,null,null,null,null,null,null,null,null,null,null,null,null,null,null,null,null,null,null,null,null,null,null,null,null,null,null,null,null,null,null,null,null,null,null,null,null,null,null,null,null,"Hazen",107,null,null,"Fieldsboro Boro. (Burlington Co.)",null,"Deptford Twp. (Gloucester Co.)",224]
[null,null,null,null,null,null,null,null,null,null,null,null,null,null,null,null,null,null,null,null,null,null,null,null,null,null,null,null,null,null,null,null,null,null,null,null,null,null,null,null,null,null,null,null,null,null,null,null,null,null,null,null,null,null,null,null,null,null,null,null,null,null,null,null,null,null,null,null,null,null,null,null,null,null,null,null,null,null,"Hazleton",108,null,null,"Florence Twp. (Burlington Co.)",null,"Dover Town (Morris Co.)",384]
[null,null,null,null,null,null,null,null,null,null,null,null,null,null,null,null,null,null,null,null,null,null,null,null,null,null,null,null,null,null,null,null,null,null,null,null,null,null,null,null,null,null,null,null,null,null,null,null,null,null,null,null,null,null,null,null,null,null,null,null,null,null,null,null,null,null,null,null,null,null,null,null,null,null,null,null,null,null,"Hero",109,null,null,"Hainesport Twp. (Burlington Co.)",null,"Dover Twp. (Ocean Co.)",422]
[null,null,null,null,null,null,null,null,null,null,null,null,null,null,null,null,null,null,null,null,null,null,null,null,null,null,null,null,null,null,null,null,null,null,null,null,null,null,null,null,null,null,null,null,null,null,null,null,null,null,null,null,null,null,null,null,null,null,null,null,null,null,null,null,null,null,null,null,null,null,null,null,null,null,null,null,null,null,"Hibernia",110,null,null,"Lumberton Twp. (Burlington Co.)",null,"Downe Twp. (Cumberland Co.)",190]
[null,null,null,null,null,null,null,null,null,null,null,null,null,null,null,null,null,null,null,null,null,null,null,null,null,null,null,null,null,null,null,null,null,null,null,null,null,null,null,null,null,null,null,null,null,null,null,null,null,null,null,null,null,null,null,null,null,null,null,null,null,null,null,null,null,null,null,null,null,null,null,null,null,null,null,null,null,null,"Hinckley",111,null,null,"Mansfield Twp. (Burlington Co.)",null,"Dumont Boro. (Bergen Co.)",33]
[null,null,null,null,null,null,null,null,null,null,null,null,null,null,null,null,null,null,null,null,null,null,null,null,null,null,null,null,null,null,null,null,null,null,null,null,null,null,null,null,null,null,null,null,null,null,null,null,null,null,null,null,null,null,null,null,null,null,null,null,null,null,null,null,null,null,null,null,null,null,null,null,null,null,null,null,null,null,"Hinckley-urban land",112,null,null,"Maple Shade Twp. (Burlington Co.)",null,"Dunellen Boro. (Middlesex Co.)",300]
[null,null,null,null,null,null,null,null,null,null,null,null,null,null,null,null,null,null,null,null,null,null,null,null,null,null,null,null,null,null,null,null,null,null,null,null,null,null,null,null,null,null,null,null,null,null,null,null,null,null,null,null,null,null,null,null,null,null,null,null,null,null,null,null,null,null,null,null,null,null,null,null,null,null,null,null,null,null,"Hollis-rock outcrop-Chatfield",113,null,null,"Medford Lakes Boro. (Burlington Co.)",null,"Eagleswood Twp. (Ocean Co.)",423]
[null,null,null,null,null,null,null,null,null,null,null,null,null,null,null,null,null,null,null,null,null,null,null,null,null,null,null,null,null,null,null,null,null,null,null,null,null,null,null,null,null,null,null,null,null,null,null,null,null,null,null,null,null,null,null,null,null,null,null,null,null,null,null,null,null,null,null,null,null,null,null,null,null,null,null,null,null,null,"Holmdel",114,null,null,"Medford Twp. (Burlington Co.)",null,"East Amwell Twp. (Hunterdon Co.)",266]
[null,null,null,null,null,null,null,null,null,null,null,null,null,null,null,null,null,null,null,null,null,null,null,null,null,null,null,null,null,null,null,null,null,null,null,null,null,null,null,null,null,null,null,null,null,null,null,null,null,null,null,null,null,null,null,null,null,null,null,null,null,null,null,null,null,null,null,null,null,null,null,null,null,null,null,null,null,null,"Holyoke",115,null,null,"Moorestown Twp. (Burlington Co.)",null,"East Brunswick Twp. (Middlesex Co.)",301]
[null,null,null,null,null,null,null,null,null,null,null,null,null,null,null,null,null,null,null,null,null,null,null,null,null,null,null,null,null,null,null,null,null,null,null,null,null,null,null,null,null,null,null,null,null,null,null,null,null,null,null,null,null,null,null,null,null,null,null,null,null,null,null,null,null,null,null,null,null,null,null,null,null,null,null,null,null,null,"Holyoke-Rock Outcrop (Morris)",116,null,null,"Mount Holly Twp. (Burlington Co.)",null,"East Greenwich Twp. (Gloucester Co.)",225]
[null,null,null,null,null,null,null,null,null,null,null,null,null,null,null,null,null,null,null,null,null,null,null,null,null,null,null,null,null,null,null,null,null,null,null,null,null,null,null,null,null,null,null,null,null,null,null,null,null,null,null,null,null,null,null,null,null,null,null,null,null,null,null,null,null,null,null,null,null,null,null,null,null,null,null,null,null,null,"Holyoke-Rock Outcrop (Passaic)",117,null,null,"Mount Laurel Twp. (Burlington Co.)",null,"East Hanover Twp. (Morris Co.)",385]
[null,null,null,null,null,null,null,null,null,null,null,null,null,null,null,null,null,null,null,null,null,null,null,null,null,null,null,null,null,null,null,null,null,null,null,null,null,null,null,null,null,null,null,null,null,null,null,null,null,null,null,null,null,null,null,null,null,null,null,null,null,null,null,null,null,null,null,null,null,null,null,null,null,null,null,null,null,null,"Hooksan",118,null,null,"New Hanover Twp. (Burlington Co.)",null,"East Newark Boro. (Hudson Co.)",248]
[null,null,null,null,null,null,null,null,null,null,null,null,null,null,null,null,null,null,null,null,null,null,null,null,null,null,null,null,null,null,null,null,null,null,null,null,null,null,null,null,null,null,null,null,null,null,null,null,null,null,null,null,null,null,null,null,null,null,null,null,null,null,null,null,null,null,null,null,null,null,null,null,null,null,null,null,null,null,"Hooksan Variant",119,null,null,"North Hanover Twp. (Burlington Co.)",null,"East Orange City (Essex Co.)",205]
[null,null,null,null,null,null,null,null,null,null,null,null,null,null,null,null,null,null,null,null,null,null,null,null,null,null,null,null,null,null,null,null,null,null,null,null,null,null,null,null,null,null,null,null,null,null,null,null,null,null,null,null,null,null,null,null,null,null,null,null,null,null,null,null,null,null,null,null,null,null,null,null,null,null,null,null,null,null,"Hoosic",120,null,null,"Palmyra Boro. (Burlington Co.)",null,"East Rutherford Boro. (Bergen Co.)",34]
[null,null,null,null,null,null,null,null,null,null,null,null,null,null,null,null,null,null,null,null,null,null,null,null,null,null,null,null,null,null,null,null,null,null,null,null,null,null,null,null,null,null,null,null,null,null,null,null,null,null,null,null,null,null,null,null,null,null,null,null,null,null,null,null,null,null,null,null,null,null,null,null,null,null,null,null,null,null,"Horseneck",121,null,null,"Pemberton Boro. (Burlington Co.)",null,"East Windsor Twp. (Mercer Co.)",285]
[null,null,null,null,null,null,null,null,null,null,null,null,null,null,null,null,null,null,null,null,null,null,null,null,null,null,null,null,null,null,null,null,null,null,null,null,null,null,null,null,null,null,null,null,null,null,null,null,null,null,null,null,null,null,null,null,null,null,null,null,null,null,null,null,null,null,null,null,null,null,null,null,null,null,null,null,null,null,"Horseneck-urban land",122,null,null,"Pemberton Twp. (Burlington Co.)",null,"Eastampton Twp. (Burlington Co.)",104]
[null,null,null,null,null,null,null,null,null,null,null,null,null,null,null,null,null,null,null,null,null,null,null,null,null,null,null,null,null,null,null,null,null,null,null,null,null,null,null,null,null,null,null,null,null,null,null,null,null,null,null,null,null,null,null,null,null,null,null,null,null,null,null,null,null,null,null,null,null,null,null,null,null,null,null,null,null,null,"Howell",123,null,null,"Riverside Twp. (Burlington Co.)",null,"Eatontown Boro. (Monmouth Co.)",334]
[null,null,null,null,null,null,null,null,null,null,null,null,null,null,null,null,null,null,null,null,null,null,null,null,null,null,null,null,null,null,null,null,null,null,null,null,null,null,null,null,null,null,null,null,null,null,null,null,null,null,null,null,null,null,null,null,null,null,null,null,null,null,null,null,null,null,null,null,null,null,null,null,null,null,null,null,null,null,"Humaquepts",124,null,null,"Riverton Boro. (Burlington Co.)",null,"Edgewater Boro. (Bergen Co.)",35]
[null,null,null,null,null,null,null,null,null,null,null,null,null,null,null,null,null,null,null,null,null,null,null,null,null,null,null,null,null,null,null,null,null,null,null,null,null,null,null,null,null,null,null,null,null,null,null,null,null,null,null,null,null,null,null,null,null,null,null,null,null,null,null,null,null,null,null,null,null,null,null,null,null,null,null,null,null,null,"Ingleside",125,null,null,"Shamong Twp. (Burlington Co.)",null,"Edgewater Park Twp. (Burlington Co.)",105]
[null,null,null,null,null,null,null,null,null,null,null,null,null,null,null,null,null,null,null,null,null,null,null,null,null,null,null,null,null,null,null,null,null,null,null,null,null,null,null,null,null,null,null,null,null,null,null,null,null,null,null,null,null,null,null,null,null,null,null,null,null,null,null,null,null,null,null,null,null,null,null,null,null,null,null,null,null,null,"Jade Run",126,null,null,"Southampton Twp. (Burlington Co.)",null,"Edison Twp. (Middlesex Co.)",302]
[null,null,null,null,null,null,null,null,null,null,null,null,null,null,null,null,null,null,null,null,null,null,null,null,null,null,null,null,null,null,null,null,null,null,null,null,null,null,null,null,null,null,null,null,null,null,null,null,null,null,null,null,null,null,null,null,null,null,null,null,null,null,null,null,null,null,null,null,null,null,null,null,null,null,null,null,null,null,"Jade Run-urban land",127,null,null,"Springfield Twp. (Burlington Co.)",null,"Egg Harbor City (Atlantic Co.)",7]
[null,null,null,null,null,null,null,null,null,null,null,null,null,null,null,null,null,null,null,null,null,null,null,null,null,null,null,null,null,null,null,null,null,null,null,null,null,null,null,null,null,null,null,null,null,null,null,null,null,null,null,null,null,null,null,null,null,null,null,null,null,null,null,null,null,null,null,null,null,null,null,null,null,null,null,null,null,null,"Jade Run-Weeksville-urban land",128,null,null,"Tabernacle Twp. (Burlington Co.)",null,"Egg Harbor Twp. (Atlantic Co.)",8]
[null,null,null,null,null,null,null,null,null,null,null,null,null,null,null,null,null,null,null,null,null,null,null,null,null,null,null,null,null,null,null,null,null,null,null,null,null,null,null,null,null,null,null,null,null,null,null,null,null,null,null,null,null,null,null,null,null,null,null,null,null,null,null,null,null,null,null,null,null,null,null,null,null,null,null,null,null,null,"Keansburg",129,null,null,"Washington Twp. (Burlington Co.)",null,"Elizabeth City (Union Co.)",527]
[null,null,null,null,null,null,null,null,null,null,null,null,null,null,null,null,null,null,null,null,null,null,null,null,null,null,null,null,null,null,null,null,null,null,null,null,null,null,null,null,null,null,null,null,null,null,null,null,null,null,null,null,null,null,null,null,null,null,null,null,null,null,null,null,null,null,null,null,null,null,null,null,null,null,null,null,null,null,"Keyport",130,null,null,"Westampton Twp. (Burlington Co.)",null,"Elk Twp. (Gloucester Co.)",226]
[null,null,null,null,null,null,null,null,null,null,null,null,null,null,null,null,null,null,null,null,null,null,null,null,null,null,null,null,null,null,null,null,null,null,null,null,null,null,null,null,null,null,null,null,null,null,null,null,null,null,null,null,null,null,null,null,null,null,null,null,null,null,null,null,null,null,null,null,null,null,null,null,null,null,null,null,null,null,"Keyport Soils",131,null,null,"Willingboro Twp. (Burlington Co.)",null,"Elmer Boro. (Salem Co.)",466]
[null,null,null,null,null,null,null,null,null,null,null,null,null,null,null,null,null,null,null,null,null,null,null,null,null,null,null,null,null,null,null,null,null,null,null,null,null,null,null,null,null,null,null,null,null,null,null,null,null,null,null,null,null,null,null,null,null,null,null,null,null,null,null,null,null,null,null,null,null,null,null,null,null,null,null,null,null,null,"Klej",132,null,null,"Woodland Twp. (Burlington Co.)",null,"Elmwood Park Boro. (Bergen Co.)",36]
[null,null,null,null,null,null,null,null,null,null,null,null,null,null,null,null,null,null,null,null,null,null,null,null,null,null,null,null,null,null,null,null,null,null,null,null,null,null,null,null,null,null,null,null,null,null,null,null,null,null,null,null,null,null,null,null,null,null,null,null,null,null,null,null,null,null,null,null,null,null,null,null,null,null,null,null,null,null,"Klinesville",133,null,null,"Wrightstown Boro. (Burlington Co.)",null,"Elsinboro Twp. (Salem Co.)",467]
[null,null,null,null,null,null,null,null,null,null,null,null,null,null,null,null,null,null,null,null,null,null,null,null,null,null,null,null,null,null,null,null,null,null,null,null,null,null,null,null,null,null,null,null,null,null,null,null,null,null,null,null,null,null,null,null,null,null,null,null,null,null,null,null,null,null,null,null,null,null,null,null,null,null,null,null,null,null,"Knickerbocker",134,null,null,"Audubon Boro. (Camden Co.)",null,"Emerson Boro. (Bergen Co.)",37]
[null,null,null,null,null,null,null,null,null,null,null,null,null,null,null,null,null,null,null,null,null,null,null,null,null,null,null,null,null,null,null,null,null,null,null,null,null,null,null,null,null,null,null,null,null,null,null,null,null,null,null,null,null,null,null,null,null,null,null,null,null,null,null,null,null,null,null,null,null,null,null,null,null,null,null,null,null,null,"Kresson",135,null,null,"Audubon Park Boro. (Camden Co.)",null,"Englewood City (Bergen Co.)",38]
[null,null,null,null,null,null,null,null,null,null,null,null,null,null,null,null,null,null,null,null,null,null,null,null,null,null,null,null,null,null,null,null,null,null,null,null,null,null,null,null,null,null,null,null,null,null,null,null,null,null,null,null,null,null,null,null,null,null,null,null,null,null,null,null,null,null,null,null,null,null,null,null,null,null,null,null,null,null,"Lackawanna",136,null,null,"Barrington Boro. (Camden Co.)",null,"Englewood Cliffs Boro. (Bergen Co.)",39]
[null,null,null,null,null,null,null,null,null,null,null,null,null,null,null,null,null,null,null,null,null,null,null,null,null,null,null,null,null,null,null,null,null,null,null,null,null,null,null,null,null,null,null,null,null,null,null,null,null,null,null,null,null,null,null,null,null,null,null,null,null,null,null,null,null,null,null,null,null,null,null,null,null,null,null,null,null,null,"Lakehurst",137,null,null,"Bellmawr Boro. (Camden Co.)",null,"Englishtown Boro. (Monmouth Co.)",335]
[null,null,null,null,null,null,null,null,null,null,null,null,null,null,null,null,null,null,null,null,null,null,null,null,null,null,null,null,null,null,null,null,null,null,null,null,null,null,null,null,null,null,null,null,null,null,null,null,null,null,null,null,null,null,null,null,null,null,null,null,null,null,null,null,null,null,null,null,null,null,null,null,null,null,null,null,null,null,"Lakeland",138,null,null,"Berlin Boro. (Camden Co.)",null,"Essex Fells Boro. (Essex Co.)",206]
[null,null,null,null,null,null,null,null,null,null,null,null,null,null,null,null,null,null,null,null,null,null,null,null,null,null,null,null,null,null,null,null,null,null,null,null,null,null,null,null,null,null,null,null,null,null,null,null,null,null,null,null,null,null,null,null,null,null,null,null,null,null,null,null,null,null,null,null,null,null,null,null,null,null,null,null,null,null,"Lakewood",139,null,null,"Berlin Twp. (Camden Co.)",null,"Estell Manor City (Atlantic Co.)",9]
[null,null,null,null,null,null,null,null,null,null,null,null,null,null,null,null,null,null,null,null,null,null,null,null,null,null,null,null,null,null,null,null,null,null,null,null,null,null,null,null,null,null,null,null,null,null,null,null,null,null,null,null,null,null,null,null,null,null,null,null,null,null,null,null,null,null,null,null,null,null,null,null,null,null,null,null,null,null,"Lamington",140,null,null,"Brooklawn Boro. (Camden Co.)",null,"Evesham Twp. (Burlington Co.)",106]
[null,null,null,null,null,null,null,null,null,null,null,null,null,null,null,null,null,null,null,null,null,null,null,null,null,null,null,null,null,null,null,null,null,null,null,null,null,null,null,null,null,null,null,null,null,null,null,null,null,null,null,null,null,null,null,null,null,null,null,null,null,null,null,null,null,null,null,null,null,null,null,null,null,null,null,null,null,null,"Lansdale",141,null,null,"Camden City (Camden Co.)",null,"Ewing Twp. (Mercer Co.)",286]
[null,null,null,null,null,null,null,null,null,null,null,null,null,null,null,null,null,null,null,null,null,null,null,null,null,null,null,null,null,null,null,null,null,null,null,null,null,null,null,null,null,null,null,null,null,null,null,null,null,null,null,null,null,null,null,null,null,null,null,null,null,null,null,null,null,null,null,null,null,null,null,null,null,null,null,null,null,null,"Lansdowne",142,null,null,"Chy Hill Twp. (Camden Co.)",null,"Fair Haven Boro. (Monmouth Co.)",336]
[null,null,null,null,null,null,null,null,null,null,null,null,null,null,null,null,null,null,null,null,null,null,null,null,null,null,null,null,null,null,null,null,null,null,null,null,null,null,null,null,null,null,null,null,null,null,null,null,null,null,null,null,null,null,null,null,null,null,null,null,null,null,null,null,null,null,null,null,null,null,null,null,null,null,null,null,null,null,"Lansdowne Variant",143,null,null,"Chesilhurst Boro. (Camden Co.)",null,"Fair Lawn Boro. (Bergen Co.)",40]
[null,null,null,null,null,null,null,null,null,null,null,null,null,null,null,null,null,null,null,null,null,null,null,null,null,null,null,null,null,null,null,null,null,null,null,null,null,null,null,null,null,null,null,null,null,null,null,null,null,null,null,null,null,null,null,null,null,null,null,null,null,null,null,null,null,null,null,null,null,null,null,null,null,null,null,null,null,null,"Lawrenceville",144,null,null,"Clementon Boro. (Camden Co.)",null,"Fairfield Boro. (Essex Co.)",207]
[null,null,null,null,null,null,null,null,null,null,null,null,null,null,null,null,null,null,null,null,null,null,null,null,null,null,null,null,null,null,null,null,null,null,null,null,null,null,null,null,null,null,null,null,null,null,null,null,null,null,null,null,null,null,null,null,null,null,null,null,null,null,null,null,null,null,null,null,null,null,null,null,null,null,null,null,null,null,"Legore",145,null,null,"Collingswood Boro. (Camden Co.)",null,"Fairfield Twp. (Cumberland Co.)",191]
[null,null,null,null,null,null,null,null,null,null,null,null,null,null,null,null,null,null,null,null,null,null,null,null,null,null,null,null,null,null,null,null,null,null,null,null,null,null,null,null,null,null,null,null,null,null,null,null,null,null,null,null,null,null,null,null,null,null,null,null,null,null,null,null,null,null,null,null,null,null,null,null,null,null,null,null,null,null,"Lehigh",146,null,null,"Gibbsboro Boro. (Camden Co.)",null,"Fairview Boro. (Bergen Co.)",41]
[null,null,null,null,null,null,null,null,null,null,null,null,null,null,null,null,null,null,null,null,null,null,null,null,null,null,null,null,null,null,null,null,null,null,null,null,null,null,null,null,null,null,null,null,null,null,null,null,null,null,null,null,null,null,null,null,null,null,null,null,null,null,null,null,null,null,null,null,null,null,null,null,null,null,null,null,null,null,"Lenni",147,null,null,"Gloucester City (Camden Co.)",null,"Fanwood Boro. (Union Co.)",528]
[null,null,null,null,null,null,null,null,null,null,null,null,null,null,null,null,null,null,null,null,null,null,null,null,null,null,null,null,null,null,null,null,null,null,null,null,null,null,null,null,null,null,null,null,null,null,null,null,null,null,null,null,null,null,null,null,null,null,null,null,null,null,null,null,null,null,null,null,null,null,null,null,null,null,null,null,null,null,"Lenoir",148,null,null,"Gloucester Twp. (Camden Co.)",null,"Far Hills Boro. (Somerset Co.)",485]
[null,null,null,null,null,null,null,null,null,null,null,null,null,null,null,null,null,null,null,null,null,null,null,null,null,null,null,null,null,null,null,null,null,null,null,null,null,null,null,null,null,null,null,null,null,null,null,null,null,null,null,null,null,null,null,null,null,null,null,null,null,null,null,null,null,null,null,null,null,null,null,null,null,null,null,null,null,null,"Leon",149,null,null,"Haddon Heights Boro. (Camden Co.)",null,"Farmingdale Boro. (Monmouth Co.)",337]
[null,null,null,null,null,null,null,null,null,null,null,null,null,null,null,null,null,null,null,null,null,null,null,null,null,null,null,null,null,null,null,null,null,null,null,null,null,null,null,null,null,null,null,null,null,null,null,null,null,null,null,null,null,null,null,null,null,null,null,null,null,null,null,null,null,null,null,null,null,null,null,null,null,null,null,null,null,null,"Livingston",150,null,null,"Haddon Twp. (Camden Co.)",null,"Fieldsboro Boro. (Burlington Co.)",107]
[null,null,null,null,null,null,null,null,null,null,null,null,null,null,null,null,null,null,null,null,null,null,null,null,null,null,null,null,null,null,null,null,null,null,null,null,null,null,null,null,null,null,null,null,null,null,null,null,null,null,null,null,null,null,null,null,null,null,null,null,null,null,null,null,null,null,null,null,null,null,null,null,null,null,null,null,null,null,"Loamy Alluvial Land",151,null,null,"Haddonfield Boro. (Camden Co.)",null,"Flemington Boro. (Hunterdon Co.)",267]
[null,null,null,null,null,null,null,null,null,null,null,null,null,null,null,null,null,null,null,null,null,null,null,null,null,null,null,null,null,null,null,null,null,null,null,null,null,null,null,null,null,null,null,null,null,null,null,null,null,null,null,null,null,null,null,null,null,null,null,null,null,null,null,null,null,null,null,null,null,null,null,null,null,null,null,null,null,null,"Lordstown-Wallpack",152,null,null,"Hi-Nella Boro. (Camden Co.)",null,"Florence Twp. (Burlington Co.)",108]
[null,null,null,null,null,null,null,null,null,null,null,null,null,null,null,null,null,null,null,null,null,null,null,null,null,null,null,null,null,null,null,null,null,null,null,null,null,null,null,null,null,null,null,null,null,null,null,null,null,null,null,null,null,null,null,null,null,null,null,null,null,null,null,null,null,null,null,null,null,null,null,null,null,null,null,null,null,null,"Lyons",153,null,null,"Laurel Springs Boro. (Camden Co.)",null,"Florham Park Boro. (Morris Co.)",386]
[null,null,null,null,null,null,null,null,null,null,null,null,null,null,null,null,null,null,null,null,null,null,null,null,null,null,null,null,null,null,null,null,null,null,null,null,null,null,null,null,null,null,null,null,null,null,null,null,null,null,null,null,null,null,null,null,null,null,null,null,null,null,null,null,null,null,null,null,null,null,null,null,null,null,null,null,null,null,"Made Land*",154,null,null,"Lawnside Boro. (Camden Co.)",null,"Folsom Boro. (Atlantic Co.)",10]
[null,null,null,null,null,null,null,null,null,null,null,null,null,null,null,null,null,null,null,null,null,null,null,null,null,null,null,null,null,null,null,null,null,null,null,null,null,null,null,null,null,null,null,null,null,null,null,null,null,null,null,null,null,null,null,null,null,null,null,null,null,null,null,null,null,null,null,null,null,null,null,null,null,null,null,null,null,null,"Manahawkin",155,null,null,"Lindenwold Boro. (Camden Co.)",null,"Fort Lee Boro. (Bergen Co.)",42]
[null,null,null,null,null,null,null,null,null,null,null,null,null,null,null,null,null,null,null,null,null,null,null,null,null,null,null,null,null,null,null,null,null,null,null,null,null,null,null,null,null,null,null,null,null,null,null,null,null,null,null,null,null,null,null,null,null,null,null,null,null,null,null,null,null,null,null,null,null,null,null,null,null,null,null,null,null,null,"Manlius-Nassau",156,null,null,"Magnolia Boro. (Camden Co.)",null,"Frankford Twp. (Sussex Co.)",504]
[null,null,null,null,null,null,null,null,null,null,null,null,null,null,null,null,null,null,null,null,null,null,null,null,null,null,null,null,null,null,null,null,null,null,null,null,null,null,null,null,null,null,null,null,null,null,null,null,null,null,null,null,null,null,null,null,null,null,null,null,null,null,null,null,null,null,null,null,null,null,null,null,null,null,null,null,null,null,"Mannington-Nanticoke",157,null,null,"Merchantville Boro. (Camden Co.)",null,"Franklin Boro. (Sussex Co.)",505]
[null,null,null,null,null,null,null,null,null,null,null,null,null,null,null,null,null,null,null,null,null,null,null,null,null,null,null,null,null,null,null,null,null,null,null,null,null,null,null,null,null,null,null,null,null,null,null,null,null,null,null,null,null,null,null,null,null,null,null,null,null,null,null,null,null,null,null,null,null,null,null,null,null,null,null,null,null,null,"Mannington-Nanticoke-Udorthents",158,null,null,"Mount Ephraim Boro. (Camden Co.)",null,"Franklin Lakes Boro. (Bergen Co.)",43]
[null,null,null,null,null,null,null,null,null,null,null,null,null,null,null,null,null,null,null,null,null,null,null,null,null,null,null,null,null,null,null,null,null,null,null,null,null,null,null,null,null,null,null,null,null,null,null,null,null,null,null,null,null,null,null,null,null,null,null,null,null,null,null,null,null,null,null,null,null,null,null,null,null,null,null,null,null,null,"Marlton",159,null,null,"Oaklyn Boro. (Camden Co.)",null,"Franklin Twp. (Gloucester Co.)",227]
[null,null,null,null,null,null,null,null,null,null,null,null,null,null,null,null,null,null,null,null,null,null,null,null,null,null,null,null,null,null,null,null,null,null,null,null,null,null,null,null,null,null,null,null,null,null,null,null,null,null,null,null,null,null,null,null,null,null,null,null,null,null,null,null,null,null,null,null,null,null,null,null,null,null,null,null,null,null,"Marsh",160,null,null,"Pennsauken Twp. (Camden Co.)",null,"Franklin Twp. (Hunterdon Co.)",268]
[null,null,null,null,null,null,null,null,null,null,null,null,null,null,null,null,null,null,null,null,null,null,null,null,null,null,null,null,null,null,null,null,null,null,null,null,null,null,null,null,null,null,null,null,null,null,null,null,null,null,null,null,null,null,null,null,null,null,null,null,null,null,null,null,null,null,null,null,null,null,null,null,null,null,null,null,null,null,"Matapeake",161,null,null,"Pine Hill Boro. (Camden Co.)",null,"Franklin Twp. (Somerset Co.)",486]
[null,null,null,null,null,null,null,null,null,null,null,null,null,null,null,null,null,null,null,null,null,null,null,null,null,null,null,null,null,null,null,null,null,null,null,null,null,null,null,null,null,null,null,null,null,null,null,null,null,null,null,null,null,null,null,null,null,null,null,null,null,null,null,null,null,null,null,null,null,null,null,null,null,null,null,null,null,null,"Matawan",162,null,null,"Pine Valley Boro. (Camden Co.)",null,"Franklin Twp. (Warren Co.)",549]
[null,null,null,null,null,null,null,null,null,null,null,null,null,null,null,null,null,null,null,null,null,null,null,null,null,null,null,null,null,null,null,null,null,null,null,null,null,null,null,null,null,null,null,null,null,null,null,null,null,null,null,null,null,null,null,null,null,null,null,null,null,null,null,null,null,null,null,null,null,null,null,null,null,null,null,null,null,null,"Matlock",163,null,null,"Runnemede Boro. (Camden Co.)",null,"Fredon Twp. (Sussex Co.)",506]
[null,null,null,null,null,null,null,null,null,null,null,null,null,null,null,null,null,null,null,null,null,null,null,null,null,null,null,null,null,null,null,null,null,null,null,null,null,null,null,null,null,null,null,null,null,null,null,null,null,null,null,null,null,null,null,null,null,null,null,null,null,null,null,null,null,null,null,null,null,null,null,null,null,null,null,null,null,null,"Mattapex",164,null,null,"Somerdale Boro. (Camden Co.)",null,"Freehold Boro. (Monmouth Co.)",338]
[null,null,null,null,null,null,null,null,null,null,null,null,null,null,null,null,null,null,null,null,null,null,null,null,null,null,null,null,null,null,null,null,null,null,null,null,null,null,null,null,null,null,null,null,null,null,null,null,null,null,null,null,null,null,null,null,null,null,null,null,null,null,null,null,null,null,null,null,null,null,null,null,null,null,null,null,null,null,"Meckesville",165,null,null,"Stratford Boro. (Camden Co.)",null,"Freehold Twp. (Monmouth Co.)",339]
[null,null,null,null,null,null,null,null,null,null,null,null,null,null,null,null,null,null,null,null,null,null,null,null,null,null,null,null,null,null,null,null,null,null,null,null,null,null,null,null,null,null,null,null,null,null,null,null,null,null,null,null,null,null,null,null,null,null,null,null,null,null,null,null,null,null,null,null,null,null,null,null,null,null,null,null,null,null,"Middlebury",166,null,null,"Tavistock Boro. (Camden Co.)",null,"Frelinghuysen Twp. (Warren Co.)",550]
[null,null,null,null,null,null,null,null,null,null,null,null,null,null,null,null,null,null,null,null,null,null,null,null,null,null,null,null,null,null,null,null,null,null,null,null,null,null,null,null,null,null,null,null,null,null,null,null,null,null,null,null,null,null,null,null,null,null,null,null,null,null,null,null,null,null,null,null,null,null,null,null,null,null,null,null,null,null,"Minoa",167,null,null,"Voorhees Twp. (Camden Co.)",null,"Frenchtown Boro. (Hunterdon Co.)",269]
[null,null,null,null,null,null,null,null,null,null,null,null,null,null,null,null,null,null,null,null,null,null,null,null,null,null,null,null,null,null,null,null,null,null,null,null,null,null,null,null,null,null,null,null,null,null,null,null,null,null,null,null,null,null,null,null,null,null,null,null,null,null,null,null,null,null,null,null,null,null,null,null,null,null,null,null,null,null,"Mispillion-Transquaking-Appoquinimink",168,null,null,"Waterford Twp. (Camden Co.)",null,"Galloway Twp. (Atlantic Co.)",11]
[null,null,null,null,null,null,null,null,null,null,null,null,null,null,null,null,null,null,null,null,null,null,null,null,null,null,null,null,null,null,null,null,null,null,null,null,null,null,null,null,null,null,null,null,null,null,null,null,null,null,null,null,null,null,null,null,null,null,null,null,null,null,null,null,null,null,null,null,null,null,null,null,null,null,null,null,null,null,"Moderately Wet Land",169,null,null,"Winslow Twp. (Camden Co.)",null,"Garfield City (Bergen Co.)",44]
[null,null,null,null,null,null,null,null,null,null,null,null,null,null,null,null,null,null,null,null,null,null,null,null,null,null,null,null,null,null,null,null,null,null,null,null,null,null,null,null,null,null,null,null,null,null,null,null,null,null,null,null,null,null,null,null,null,null,null,null,null,null,null,null,null,null,null,null,null,null,null,null,null,null,null,null,null,null,"Mount Lucas",170,null,null,"Woodlynne Boro. (Camden Co.)",null,"Garwood Boro. (Union Co.)",529]
[null,null,null,null,null,null,null,null,null,null,null,null,null,null,null,null,null,null,null,null,null,null,null,null,null,null,null,null,null,null,null,null,null,null,null,null,null,null,null,null,null,null,null,null,null,null,null,null,null,null,null,null,null,null,null,null,null,null,null,null,null,null,null,null,null,null,null,null,null,null,null,null,null,null,null,null,null,null,"Muck",171,null,null,"Avalon Boro. (Cape May Co.)",null,"Gibbsboro Boro. (Camden Co.)",146]
[null,null,null,null,null,null,null,null,null,null,null,null,null,null,null,null,null,null,null,null,null,null,null,null,null,null,null,null,null,null,null,null,null,null,null,null,null,null,null,null,null,null,null,null,null,null,null,null,null,null,null,null,null,null,null,null,null,null,null,null,null,null,null,null,null,null,null,null,null,null,null,null,null,null,null,null,null,null,"Muck, Shallow, Over Clay",172,null,null,"Cape May City (Cape May Co.)",null,"Glassboro Boro. (Gloucester Co.)",228]
[null,null,null,null,null,null,null,null,null,null,null,null,null,null,null,null,null,null,null,null,null,null,null,null,null,null,null,null,null,null,null,null,null,null,null,null,null,null,null,null,null,null,null,null,null,null,null,null,null,null,null,null,null,null,null,null,null,null,null,null,null,null,null,null,null,null,null,null,null,null,null,null,null,null,null,null,null,null,"Muck, Shallow, Over Loam",173,null,null,"Cape May Point Boro. (Cape May Co.)",null,"Glen Gardner Boro. (Hunterdon Co.)",270]
[null,null,null,null,null,null,null,null,null,null,null,null,null,null,null,null,null,null,null,null,null,null,null,null,null,null,null,null,null,null,null,null,null,null,null,null,null,null,null,null,null,null,null,null,null,null,null,null,null,null,null,null,null,null,null,null,null,null,null,null,null,null,null,null,null,null,null,null,null,null,null,null,null,null,null,null,null,null,"Mullica",174,null,null,"Dennis Twp. (Cape May Co.)",null,"Glen Ridge Boro. (Essex Co.)",208]
[null,null,null,null,null,null,null,null,null,null,null,null,null,null,null,null,null,null,null,null,null,null,null,null,null,null,null,null,null,null,null,null,null,null,null,null,null,null,null,null,null,null,null,null,null,null,null,null,null,null,null,null,null,null,null,null,null,null,null,null,null,null,null,null,null,null,null,null,null,null,null,null,null,null,null,null,null,null,"Muttontown",175,null,null,"Lower Twp. (Cape May Co.)",null,"Glen Rock Boro. (Bergen Co.)",45]
[null,null,null,null,null,null,null,null,null,null,null,null,null,null,null,null,null,null,null,null,null,null,null,null,null,null,null,null,null,null,null,null,null,null,null,null,null,null,null,null,null,null,null,null,null,null,null,null,null,null,null,null,null,null,null,null,null,null,null,null,null,null,null,null,null,null,null,null,null,null,null,null,null,null,null,null,null,null,"Nassau",176,null,null,"Middle Twp. (Cape May Co.)",null,"Gloucester City (Camden Co.)",147]
[null,null,null,null,null,null,null,null,null,null,null,null,null,null,null,null,null,null,null,null,null,null,null,null,null,null,null,null,null,null,null,null,null,null,null,null,null,null,null,null,null,null,null,null,null,null,null,null,null,null,null,null,null,null,null,null,null,null,null,null,null,null,null,null,null,null,null,null,null,null,null,null,null,null,null,null,null,null,"Nassau-Rock Outcrop (Sussex)",177,null,null,"North Wildwood City (Cape May Co.)",null,"Gloucester Twp. (Camden Co.)",148]
[null,null,null,null,null,null,null,null,null,null,null,null,null,null,null,null,null,null,null,null,null,null,null,null,null,null,null,null,null,null,null,null,null,null,null,null,null,null,null,null,null,null,null,null,null,null,null,null,null,null,null,null,null,null,null,null,null,null,null,null,null,null,null,null,null,null,null,null,null,null,null,null,null,null,null,null,null,null,"Nassau-Rock Outcrop (Warren)",178,null,null,"Ocean City (Cape May Co.)",null,"Green Brook Twp. (Somerset Co.)",487]
[null,null,null,null,null,null,null,null,null,null,null,null,null,null,null,null,null,null,null,null,null,null,null,null,null,null,null,null,null,null,null,null,null,null,null,null,null,null,null,null,null,null,null,null,null,null,null,null,null,null,null,null,null,null,null,null,null,null,null,null,null,null,null,null,null,null,null,null,null,null,null,null,null,null,null,null,null,null,"Natchaug",179,null,null,"Sea Isle City (Cape May Co.)",null,"Green Twp. (Sussex Co.)",507]
[null,null,null,null,null,null,null,null,null,null,null,null,null,null,null,null,null,null,null,null,null,null,null,null,null,null,null,null,null,null,null,null,null,null,null,null,null,null,null,null,null,null,null,null,null,null,null,null,null,null,null,null,null,null,null,null,null,null,null,null,null,null,null,null,null,null,null,null,null,null,null,null,null,null,null,null,null,null,"Neshaminy",180,null,null,"Stone Harbor Boro. (Cape May Co.)",null,"Greenwich Twp. (Cumberland Co.)",192]
[null,null,null,null,null,null,null,null,null,null,null,null,null,null,null,null,null,null,null,null,null,null,null,null,null,null,null,null,null,null,null,null,null,null,null,null,null,null,null,null,null,null,null,null,null,null,null,null,null,null,null,null,null,null,null,null,null,null,null,null,null,null,null,null,null,null,null,null,null,null,null,null,null,null,null,null,null,null,"Neshaminy Variant",181,null,null,"Upper Twp. (Cape May Co.)",null,"Greenwich Twp. (Gloucester Co.)",229]
[null,null,null,null,null,null,null,null,null,null,null,null,null,null,null,null,null,null,null,null,null,null,null,null,null,null,null,null,null,null,null,null,null,null,null,null,null,null,null,null,null,null,null,null,null,null,null,null,null,null,null,null,null,null,null,null,null,null,null,null,null,null,null,null,null,null,null,null,null,null,null,null,null,null,null,null,null,null,"Netcong",182,null,null,"West Cape May Boro. (Cape May Co.)",null,"Greenwich Twp. (Warren Co.)",551]
[null,null,null,null,null,null,null,null,null,null,null,null,null,null,null,null,null,null,null,null,null,null,null,null,null,null,null,null,null,null,null,null,null,null,null,null,null,null,null,null,null,null,null,null,null,null,null,null,null,null,null,null,null,null,null,null,null,null,null,null,null,null,null,null,null,null,null,null,null,null,null,null,null,null,null,null,null,null,"Nixon",183,null,null,"West Wildwood Boro. (Cape May Co.)",null,"Guttenberg Town (Hudson Co.)",249]
[null,null,null,null,null,null,null,null,null,null,null,null,null,null,null,null,null,null,null,null,null,null,null,null,null,null,null,null,null,null,null,null,null,null,null,null,null,null,null,null,null,null,null,null,null,null,null,null,null,null,null,null,null,null,null,null,null,null,null,null,null,null,null,null,null,null,null,null,null,null,null,null,null,null,null,null,null,null,"Nixon Variant",184,null,null,"Wildwood City (Cape May Co.)",null,"Hackensack City (Bergen Co.)",46]
[null,null,null,null,null,null,null,null,null,null,null,null,null,null,null,null,null,null,null,null,null,null,null,null,null,null,null,null,null,null,null,null,null,null,null,null,null,null,null,null,null,null,null,null,null,null,null,null,null,null,null,null,null,null,null,null,null,null,null,null,null,null,null,null,null,null,null,null,null,null,null,null,null,null,null,null,null,null,"Nixonton",185,null,null,"Wildwood Crest Boro. (Cape May Co.)",null,"Hackettstown Town (Warren Co.)",552]
[null,null,null,null,null,null,null,null,null,null,null,null,null,null,null,null,null,null,null,null,null,null,null,null,null,null,null,null,null,null,null,null,null,null,null,null,null,null,null,null,null,null,null,null,null,null,null,null,null,null,null,null,null,null,null,null,null,null,null,null,null,null,null,null,null,null,null,null,null,null,null,null,null,null,null,null,null,null,"Norton",186,null,null,"Woodbine Boro. (Cape May Co.)",null,"Haddon Heights Boro. (Camden Co.)",149]
[null,null,null,null,null,null,null,null,null,null,null,null,null,null,null,null,null,null,null,null,null,null,null,null,null,null,null,null,null,null,null,null,null,null,null,null,null,null,null,null,null,null,null,null,null,null,null,null,null,null,null,null,null,null,null,null,null,null,null,null,null,null,null,null,null,null,null,null,null,null,null,null,null,null,null,null,null,null,"Norwich",187,null,null,"Bridgeton City (Cumberland Co.)",null,"Haddon Twp. (Camden Co.)",150]
[null,null,null,null,null,null,null,null,null,null,null,null,null,null,null,null,null,null,null,null,null,null,null,null,null,null,null,null,null,null,null,null,null,null,null,null,null,null,null,null,null,null,null,null,null,null,null,null,null,null,null,null,null,null,null,null,null,null,null,null,null,null,null,null,null,null,null,null,null,null,null,null,null,null,null,null,null,null,"Ochrepts",188,null,null,"Commercial Twp. (Cumberland Co.)",null,"Haddonfield Boro. (Camden Co.)",151]
[null,null,null,null,null,null,null,null,null,null,null,null,null,null,null,null,null,null,null,null,null,null,null,null,null,null,null,null,null,null,null,null,null,null,null,null,null,null,null,null,null,null,null,null,null,null,null,null,null,null,null,null,null,null,null,null,null,null,null,null,null,null,null,null,null,null,null,null,null,null,null,null,null,null,null,null,null,null,"Oquaga",189,null,null,"Deerfield Twp. (Cumberland Co.)",null,"Hainesport Twp. (Burlington Co.)",109]
[null,null,null,null,null,null,null,null,null,null,null,null,null,null,null,null,null,null,null,null,null,null,null,null,null,null,null,null,null,null,null,null,null,null,null,null,null,null,null,null,null,null,null,null,null,null,null,null,null,null,null,null,null,null,null,null,null,null,null,null,null,null,null,null,null,null,null,null,null,null,null,null,null,null,null,null,null,null,"Oquaga-Rock Outcrop",190,null,null,"Downe Twp. (Cumberland Co.)",null,"Haledon Boro. (Passaic Co.)",450]
[null,null,null,null,null,null,null,null,null,null,null,null,null,null,null,null,null,null,null,null,null,null,null,null,null,null,null,null,null,null,null,null,null,null,null,null,null,null,null,null,null,null,null,null,null,null,null,null,null,null,null,null,null,null,null,null,null,null,null,null,null,null,null,null,null,null,null,null,null,null,null,null,null,null,null,null,null,null,"Oquaga-Swartswood Rock Outcrop",191,null,null,"Fairfield Twp. (Cumberland Co.)",null,"Hamburg Boro. (Sussex Co.)",508]
[null,null,null,null,null,null,null,null,null,null,null,null,null,null,null,null,null,null,null,null,null,null,null,null,null,null,null,null,null,null,null,null,null,null,null,null,null,null,null,null,null,null,null,null,null,null,null,null,null,null,null,null,null,null,null,null,null,null,null,null,null,null,null,null,null,null,null,null,null,null,null,null,null,null,null,null,null,null,"Othello",192,null,null,"Greenwich Twp. (Cumberland Co.)",null,"Hamilton Twp. (Atlantic Co.)",12]
[null,null,null,null,null,null,null,null,null,null,null,null,null,null,null,null,null,null,null,null,null,null,null,null,null,null,null,null,null,null,null,null,null,null,null,null,null,null,null,null,null,null,null,null,null,null,null,null,null,null,null,null,null,null,null,null,null,null,null,null,null,null,null,null,null,null,null,null,null,null,null,null,null,null,null,null,null,null,"Otisville",193,null,null,"Hopewell Twp. (Cumberland Co.)",null,"Hamilton Twp. (Mercer Co.)",287]
[null,null,null,null,null,null,null,null,null,null,null,null,null,null,null,null,null,null,null,null,null,null,null,null,null,null,null,null,null,null,null,null,null,null,null,null,null,null,null,null,null,null,null,null,null,null,null,null,null,null,null,null,null,null,null,null,null,null,null,null,null,null,null,null,null,null,null,null,null,null,null,null,null,null,null,null,null,null,"Palms",194,null,null,"Lawrence Twp. (Cumberland Co.)",null,"Hammonton Town (Atlantic Co.)",13]
[null,null,null,null,null,null,null,null,null,null,null,null,null,null,null,null,null,null,null,null,null,null,null,null,null,null,null,null,null,null,null,null,null,null,null,null,null,null,null,null,null,null,null,null,null,null,null,null,null,null,null,null,null,null,null,null,null,null,null,null,null,null,null,null,null,null,null,null,null,null,null,null,null,null,null,null,null,null,"Palmyra",195,null,null,"Maurice River Twp. (Cumberland Co.)",null,"Hampton Boro. (Hunterdon Co.)",271]
[null,null,null,null,null,null,null,null,null,null,null,null,null,null,null,null,null,null,null,null,null,null,null,null,null,null,null,null,null,null,null,null,null,null,null,null,null,null,null,null,null,null,null,null,null,null,null,null,null,null,null,null,null,null,null,null,null,null,null,null,null,null,null,null,null,null,null,null,null,null,null,null,null,null,null,null,null,null,"Parker",196,null,null,"Millville City (Cumberland Co.)",null,"Hampton Twp. (Sussex Co.)",509]
[null,null,null,null,null,null,null,null,null,null,null,null,null,null,null,null,null,null,null,null,null,null,null,null,null,null,null,null,null,null,null,null,null,null,null,null,null,null,null,null,null,null,null,null,null,null,null,null,null,null,null,null,null,null,null,null,null,null,null,null,null,null,null,null,null,null,null,null,null,null,null,null,null,null,null,null,null,null,"Parker-Rock Outcrop",197,null,null,"Shiloh Boro. (Cumberland Co.)",null,"Hanover Twp. (Morris Co.)",387]
[null,null,null,null,null,null,null,null,null,null,null,null,null,null,null,null,null,null,null,null,null,null,null,null,null,null,null,null,null,null,null,null,null,null,null,null,null,null,null,null,null,null,null,null,null,null,null,null,null,null,null,null,null,null,null,null,null,null,null,null,null,null,null,null,null,null,null,null,null,null,null,null,null,null,null,null,null,null,"Parsippany",198,null,null,"Stow Creek Twp. (Cumberland Co.)",null,"Harding Twp. (Morris Co.)",388]
[null,null,null,null,null,null,null,null,null,null,null,null,null,null,null,null,null,null,null,null,null,null,null,null,null,null,null,null,null,null,null,null,null,null,null,null,null,null,null,null,null,null,null,null,null,null,null,null,null,null,null,null,null,null,null,null,null,null,null,null,null,null,null,null,null,null,null,null,null,null,null,null,null,null,null,null,null,null,"Parsippany Variant",199,null,null,"Upper Deerfield Twp. (Cumberland Co.)",null,"Hardwick Twp. (Warren Co.)",553]
[null,null,null,null,null,null,null,null,null,null,null,null,null,null,null,null,null,null,null,null,null,null,null,null,null,null,null,null,null,null,null,null,null,null,null,null,null,null,null,null,null,null,null,null,null,null,null,null,null,null,null,null,null,null,null,null,null,null,null,null,null,null,null,null,null,null,null,null,null,null,null,null,null,null,null,null,null,null,"Pascack",200,null,null,"Vineland City (Cumberland Co.)",null,"Hardyston Twp. (Sussex Co.)",510]
[null,null,null,null,null,null,null,null,null,null,null,null,null,null,null,null,null,null,null,null,null,null,null,null,null,null,null,null,null,null,null,null,null,null,null,null,null,null,null,null,null,null,null,null,null,null,null,null,null,null,null,null,null,null,null,null,null,null,null,null,null,null,null,null,null,null,null,null,null,null,null,null,null,null,null,null,null,null,"Pasquotank",201,null,null,"Belleville Town (Essex Co.)",null,"Harmony Twp. (Warren Co.)",554]
[null,null,null,null,null,null,null,null,null,null,null,null,null,null,null,null,null,null,null,null,null,null,null,null,null,null,null,null,null,null,null,null,null,null,null,null,null,null,null,null,null,null,null,null,null,null,null,null,null,null,null,null,null,null,null,null,null,null,null,null,null,null,null,null,null,null,null,null,null,null,null,null,null,null,null,null,null,null,"Passaic",202,null,null,"Bloomfield Town (Essex Co.)",null,"Harrington Park Boro. (Bergen Co.)",47]
[null,null,null,null,null,null,null,null,null,null,null,null,null,null,null,null,null,null,null,null,null,null,null,null,null,null,null,null,null,null,null,null,null,null,null,null,null,null,null,null,null,null,null,null,null,null,null,null,null,null,null,null,null,null,null,null,null,null,null,null,null,null,null,null,null,null,null,null,null,null,null,null,null,null,null,null,null,null,"Pattenburg",203,null,null,"Caldwell Boro. (Essex Co.)",null,"Harrison Town (Hudson Co.)",250]
[null,null,null,null,null,null,null,null,null,null,null,null,null,null,null,null,null,null,null,null,null,null,null,null,null,null,null,null,null,null,null,null,null,null,null,null,null,null,null,null,null,null,null,null,null,null,null,null,null,null,null,null,null,null,null,null,null,null,null,null,null,null,null,null,null,null,null,null,null,null,null,null,null,null,null,null,null,null,"Pawcatuck-Transquaking",204,null,null,"Cedar Grove Twp. (Essex Co.)",null,"Harrison Twp. (Gloucester Co.)",230]
[null,null,null,null,null,null,null,null,null,null,null,null,null,null,null,null,null,null,null,null,null,null,null,null,null,null,null,null,null,null,null,null,null,null,null,null,null,null,null,null,null,null,null,null,null,null,null,null,null,null,null,null,null,null,null,null,null,null,null,null,null,null,null,null,null,null,null,null,null,null,null,null,null,null,null,null,null,null,"Paxton",205,null,null,"East Orange City (Essex Co.)",null,"Harvey Cedars Boro. (Ocean Co.)",424]
[null,null,null,null,null,null,null,null,null,null,null,null,null,null,null,null,null,null,null,null,null,null,null,null,null,null,null,null,null,null,null,null,null,null,null,null,null,null,null,null,null,null,null,null,null,null,null,null,null,null,null,null,null,null,null,null,null,null,null,null,null,null,null,null,null,null,null,null,null,null,null,null,null,null,null,null,null,null,"Peat",206,null,null,"Essex Fells Boro. (Essex Co.)",null,"Hasbrouck Heights Boro. (Bergen Co.)",48]
[null,null,null,null,null,null,null,null,null,null,null,null,null,null,null,null,null,null,null,null,null,null,null,null,null,null,null,null,null,null,null,null,null,null,null,null,null,null,null,null,null,null,null,null,null,null,null,null,null,null,null,null,null,null,null,null,null,null,null,null,null,null,null,null,null,null,null,null,null,null,null,null,null,null,null,null,null,null,"Peckmantown",207,null,null,"Fairfield Boro. (Essex Co.)",null,"Haworth Boro. (Bergen Co.)",49]
[null,null,null,null,null,null,null,null,null,null,null,null,null,null,null,null,null,null,null,null,null,null,null,null,null,null,null,null,null,null,null,null,null,null,null,null,null,null,null,null,null,null,null,null,null,null,null,null,null,null,null,null,null,null,null,null,null,null,null,null,null,null,null,null,null,null,null,null,null,null,null,null,null,null,null,null,null,null,"Peckmantown-urban land",208,null,null,"Glen Ridge Boro. (Essex Co.)",null,"Hawthorne Boro. (Passaic Co.)",451]
[null,null,null,null,null,null,null,null,null,null,null,null,null,null,null,null,null,null,null,null,null,null,null,null,null,null,null,null,null,null,null,null,null,null,null,null,null,null,null,null,null,null,null,null,null,null,null,null,null,null,null,null,null,null,null,null,null,null,null,null,null,null,null,null,null,null,null,null,null,null,null,null,null,null,null,null,null,null,"Pedricktown, Askecksy, and Mullica",209,null,null,"Irvington Town (Essex Co.)",null,"Hazlet Twp. (Monmouth Co.)",340]
[null,null,null,null,null,null,null,null,null,null,null,null,null,null,null,null,null,null,null,null,null,null,null,null,null,null,null,null,null,null,null,null,null,null,null,null,null,null,null,null,null,null,null,null,null,null,null,null,null,null,null,null,null,null,null,null,null,null,null,null,null,null,null,null,null,null,null,null,null,null,null,null,null,null,null,null,null,null,"Pemberton",210,null,null,"Livingston Twp. (Essex Co.)",null,"Helmetta Boro. (Middlesex Co.)",303]
[null,null,null,null,null,null,null,null,null,null,null,null,null,null,null,null,null,null,null,null,null,null,null,null,null,null,null,null,null,null,null,null,null,null,null,null,null,null,null,null,null,null,null,null,null,null,null,null,null,null,null,null,null,null,null,null,null,null,null,null,null,null,null,null,null,null,null,null,null,null,null,null,null,null,null,null,null,null,"Penn",211,null,null,"Maplewood Twp. (Essex Co.)",null,"High Bridge Boro. (Hunterdon Co.)",272]
[null,null,null,null,null,null,null,null,null,null,null,null,null,null,null,null,null,null,null,null,null,null,null,null,null,null,null,null,null,null,null,null,null,null,null,null,null,null,null,null,null,null,null,null,null,null,null,null,null,null,null,null,null,null,null,null,null,null,null,null,null,null,null,null,null,null,null,null,null,null,null,null,null,null,null,null,null,null,"Phalanx",212,null,null,"Millburn Twp. (Essex Co.)",null,"Highland Park Boro. (Middlesex Co.)",304]
[null,null,null,null,null,null,null,null,null,null,null,null,null,null,null,null,null,null,null,null,null,null,null,null,null,null,null,null,null,null,null,null,null,null,null,null,null,null,null,null,null,null,null,null,null,null,null,null,null,null,null,null,null,null,null,null,null,null,null,null,null,null,null,null,null,null,null,null,null,null,null,null,null,null,null,null,null,null,"Pits, Muck",213,null,null,"Montclair Town (Essex Co.)",null,"Highlands Boro. (Monmouth Co.)",341]
[null,null,null,null,null,null,null,null,null,null,null,null,null,null,null,null,null,null,null,null,null,null,null,null,null,null,null,null,null,null,null,null,null,null,null,null,null,null,null,null,null,null,null,null,null,null,null,null,null,null,null,null,null,null,null,null,null,null,null,null,null,null,null,null,null,null,null,null,null,null,null,null,null,null,null,null,null,null,"Plummer",214,null,null,"Newark City (Essex Co.)",null,"Hightstown Boro. (Mercer Co.)",288]
[null,null,null,null,null,null,null,null,null,null,null,null,null,null,null,null,null,null,null,null,null,null,null,null,null,null,null,null,null,null,null,null,null,null,null,null,null,null,null,null,null,null,null,null,null,null,null,null,null,null,null,null,null,null,null,null,null,null,null,null,null,null,null,null,null,null,null,null,null,null,null,null,null,null,null,null,null,null,"Pocomoke",215,null,null,"North Caldwell Boro. (Essex Co.)",null,"Hillsborough Twp. (Somerset Co.)",488]
[null,null,null,null,null,null,null,null,null,null,null,null,null,null,null,null,null,null,null,null,null,null,null,null,null,null,null,null,null,null,null,null,null,null,null,null,null,null,null,null,null,null,null,null,null,null,null,null,null,null,null,null,null,null,null,null,null,null,null,null,null,null,null,null,null,null,null,null,null,null,null,null,null,null,null,null,null,null,"Pompton",216,null,null,"Nutley Town (Essex Co.)",null,"Hillsdale Boro. (Bergen Co.)",50]
[null,null,null,null,null,null,null,null,null,null,null,null,null,null,null,null,null,null,null,null,null,null,null,null,null,null,null,null,null,null,null,null,null,null,null,null,null,null,null,null,null,null,null,null,null,null,null,null,null,null,null,null,null,null,null,null,null,null,null,null,null,null,null,null,null,null,null,null,null,null,null,null,null,null,null,null,null,null,"Pope",217,null,null,"Orange City (Essex Co.)",null,"Hillside Twp. (Union Co.)",530]
[null,null,null,null,null,null,null,null,null,null,null,null,null,null,null,null,null,null,null,null,null,null,null,null,null,null,null,null,null,null,null,null,null,null,null,null,null,null,null,null,null,null,null,null,null,null,null,null,null,null,null,null,null,null,null,null,null,null,null,null,null,null,null,null,null,null,null,null,null,null,null,null,null,null,null,null,null,null,"Portsmouth",218,null,null,"Roseland Boro. (Essex Co.)",null,"Hi-Nella Boro. (Camden Co.)",152]
[null,null,null,null,null,null,null,null,null,null,null,null,null,null,null,null,null,null,null,null,null,null,null,null,null,null,null,null,null,null,null,null,null,null,null,null,null,null,null,null,null,null,null,null,null,null,null,null,null,null,null,null,null,null,null,null,null,null,null,null,null,null,null,null,null,null,null,null,null,null,null,null,null,null,null,null,null,null,"Preakness",219,null,null,"South Orange Village (Essex Co.)",null,"Hoboken City (Hudson Co.)",251]
[null,null,null,null,null,null,null,null,null,null,null,null,null,null,null,null,null,null,null,null,null,null,null,null,null,null,null,null,null,null,null,null,null,null,null,null,null,null,null,null,null,null,null,null,null,null,null,null,null,null,null,null,null,null,null,null,null,null,null,null,null,null,null,null,null,null,null,null,null,null,null,null,null,null,null,null,null,null,"Psamments*",220,null,null,"Verona Boro. (Essex Co.)",null,"Hohokus Boro. (Bergen Co.)",51]
[null,null,null,null,null,null,null,null,null,null,null,null,null,null,null,null,null,null,null,null,null,null,null,null,null,null,null,null,null,null,null,null,null,null,null,null,null,null,null,null,null,null,null,null,null,null,null,null,null,null,null,null,null,null,null,null,null,null,null,null,null,null,null,null,null,null,null,null,null,null,null,null,null,null,null,null,null,null,"Quakertown",221,null,null,"West Caldwell Boro. (Essex Co.)",null,"Holland Twp. (Hunterdon Co.)",273]
[null,null,null,null,null,null,null,null,null,null,null,null,null,null,null,null,null,null,null,null,null,null,null,null,null,null,null,null,null,null,null,null,null,null,null,null,null,null,null,null,null,null,null,null,null,null,null,null,null,null,null,null,null,null,null,null,null,null,null,null,null,null,null,null,null,null,null,null,null,null,null,null,null,null,null,null,null,null,"Quarry*",222,null,null,"West Orange Town (Essex Co.)",null,"Holmdel Twp. (Monmouth Co.)",342]
[null,null,null,null,null,null,null,null,null,null,null,null,null,null,null,null,null,null,null,null,null,null,null,null,null,null,null,null,null,null,null,null,null,null,null,null,null,null,null,null,null,null,null,null,null,null,null,null,null,null,null,null,null,null,null,null,null,null,null,null,null,null,null,null,null,null,null,null,null,null,null,null,null,null,null,null,null,null,"Raritan",223,null,null,"Clayton Boro. (Gloucester Co.)",null,"Hopatcong Boro. (Sussex Co.)",511]
[null,null,null,null,null,null,null,null,null,null,null,null,null,null,null,null,null,null,null,null,null,null,null,null,null,null,null,null,null,null,null,null,null,null,null,null,null,null,null,null,null,null,null,null,null,null,null,null,null,null,null,null,null,null,null,null,null,null,null,null,null,null,null,null,null,null,null,null,null,null,null,null,null,null,null,null,null,null,"Raynhamn",224,null,null,"Deptford Twp. (Gloucester Co.)",null,"Hope Twp. (Warren Co.)",555]
[null,null,null,null,null,null,null,null,null,null,null,null,null,null,null,null,null,null,null,null,null,null,null,null,null,null,null,null,null,null,null,null,null,null,null,null,null,null,null,null,null,null,null,null,null,null,null,null,null,null,null,null,null,null,null,null,null,null,null,null,null,null,null,null,null,null,null,null,null,null,null,null,null,null,null,null,null,null,"Readington",225,null,null,"East Greenwich Twp. (Gloucester Co.)",null,"Hopewell Boro. (Mercer Co.)",289]
[null,null,null,null,null,null,null,null,null,null,null,null,null,null,null,null,null,null,null,null,null,null,null,null,null,null,null,null,null,null,null,null,null,null,null,null,null,null,null,null,null,null,null,null,null,null,null,null,null,null,null,null,null,null,null,null,null,null,null,null,null,null,null,null,null,null,null,null,null,null,null,null,null,null,null,null,null,null,"Reaville",226,null,null,"Elk Twp. (Gloucester Co.)",null,"Hopewell Twp. (Cumberland Co.)",193]
[null,null,null,null,null,null,null,null,null,null,null,null,null,null,null,null,null,null,null,null,null,null,null,null,null,null,null,null,null,null,null,null,null,null,null,null,null,null,null,null,null,null,null,null,null,null,null,null,null,null,null,null,null,null,null,null,null,null,null,null,null,null,null,null,null,null,null,null,null,null,null,null,null,null,null,null,null,null,"Reaville Variant",227,null,null,"Franklin Twp. (Gloucester Co.)",null,"Hopewell Twp. (Mercer Co.)",290]
[null,null,null,null,null,null,null,null,null,null,null,null,null,null,null,null,null,null,null,null,null,null,null,null,null,null,null,null,null,null,null,null,null,null,null,null,null,null,null,null,null,null,null,null,null,null,null,null,null,null,null,null,null,null,null,null,null,null,null,null,null,null,null,null,null,null,null,null,null,null,null,null,null,null,null,null,null,null,"Ridgebury",228,null,null,"Glassboro Boro. (Gloucester Co.)",null,"Howell Twp. (Monmouth Co.)",343]
[null,null,null,null,null,null,null,null,null,null,null,null,null,null,null,null,null,null,null,null,null,null,null,null,null,null,null,null,null,null,null,null,null,null,null,null,null,null,null,null,null,null,null,null,null,null,null,null,null,null,null,null,null,null,null,null,null,null,null,null,null,null,null,null,null,null,null,null,null,null,null,null,null,null,null,null,null,null,"Riker",229,null,null,"Greenwich Twp. (Gloucester Co.)",null,"Independence Twp. (Warren Co.)",556]
[null,null,null,null,null,null,null,null,null,null,null,null,null,null,null,null,null,null,null,null,null,null,null,null,null,null,null,null,null,null,null,null,null,null,null,null,null,null,null,null,null,null,null,null,null,null,null,null,null,null,null,null,null,null,null,null,null,null,null,null,null,null,null,null,null,null,null,null,null,null,null,null,null,null,null,null,null,null,"Riverhead",230,null,null,"Harrison Twp. (Gloucester Co.)",null,"Interlaken Boro. (Monmouth Co.)",344]
[null,null,null,null,null,null,null,null,null,null,null,null,null,null,null,null,null,null,null,null,null,null,null,null,null,null,null,null,null,null,null,null,null,null,null,null,null,null,null,null,null,null,null,null,null,null,null,null,null,null,null,null,null,null,null,null,null,null,null,null,null,null,null,null,null,null,null,null,null,null,null,null,null,null,null,null,null,null,"Riverhead Variant",231,null,null,"Logan Twp. (Gloucester Co.)",null,"Irvington Town (Essex Co.)",209]
[null,null,null,null,null,null,null,null,null,null,null,null,null,null,null,null,null,null,null,null,null,null,null,null,null,null,null,null,null,null,null,null,null,null,null,null,null,null,null,null,null,null,null,null,null,null,null,null,null,null,null,null,null,null,null,null,null,null,null,null,null,null,null,null,null,null,null,null,null,null,null,null,null,null,null,null,null,null,"Rock Land Edneyville Mat.",232,null,null,"Mantua Twp. (Gloucester Co.)",null,"Island Heights Boro. (Ocean Co.)",425]
[null,null,null,null,null,null,null,null,null,null,null,null,null,null,null,null,null,null,null,null,null,null,null,null,null,null,null,null,null,null,null,null,null,null,null,null,null,null,null,null,null,null,null,null,null,null,null,null,null,null,null,null,null,null,null,null,null,null,null,null,null,null,null,null,null,null,null,null,null,null,null,null,null,null,null,null,null,null,"Rock outcrop - Arnot-rubble land",233,null,null,"Monroe Twp. (Gloucester Co.)",null,"Jackson Twp. (Ocean Co.)",426]
[null,null,null,null,null,null,null,null,null,null,null,null,null,null,null,null,null,null,null,null,null,null,null,null,null,null,null,null,null,null,null,null,null,null,null,null,null,null,null,null,null,null,null,null,null,null,null,null,null,null,null,null,null,null,null,null,null,null,null,null,null,null,null,null,null,null,null,null,null,null,null,null,null,null,null,null,null,null,"Rock Outcrop (Greenpond Cong.)",234,null,null,"National Park Boro. (Gloucester Co.)",null,"Jamesburg Boro. (Middlesex Co.)",305]
[null,null,null,null,null,null,null,null,null,null,null,null,null,null,null,null,null,null,null,null,null,null,null,null,null,null,null,null,null,null,null,null,null,null,null,null,null,null,null,null,null,null,null,null,null,null,null,null,null,null,null,null,null,null,null,null,null,null,null,null,null,null,null,null,null,null,null,null,null,null,null,null,null,null,null,null,null,null,"Rock outcrop-Farmington-Galway",235,null,null,"Newfield Boro. (Gloucester Co.)",null,"Jefferson Twp. (Morris Co.)",389]
[null,null,null,null,null,null,null,null,null,null,null,null,null,null,null,null,null,null,null,null,null,null,null,null,null,null,null,null,null,null,null,null,null,null,null,null,null,null,null,null,null,null,null,null,null,null,null,null,null,null,null,null,null,null,null,null,null,null,null,null,null,null,null,null,null,null,null,null,null,null,null,null,null,null,null,null,null,null,"Rock Outcrop-Holyoke",236,null,null,"Paulsboro Boro. (Gloucester Co.)",null,"Jersey City (Hudson Co.)",252]
[null,null,null,null,null,null,null,null,null,null,null,null,null,null,null,null,null,null,null,null,null,null,null,null,null,null,null,null,null,null,null,null,null,null,null,null,null,null,null,null,null,null,null,null,null,null,null,null,null,null,null,null,null,null,null,null,null,null,null,null,null,null,null,null,null,null,null,null,null,null,null,null,null,null,null,null,null,null,"Rock Outcrop-Nassau",237,null,null,"Pitman Boro. (Gloucester Co.)",null,"Keansburg Boro. (Monmouth Co.)",345]
[null,null,null,null,null,null,null,null,null,null,null,null,null,null,null,null,null,null,null,null,null,null,null,null,null,null,null,null,null,null,null,null,null,null,null,null,null,null,null,null,null,null,null,null,null,null,null,null,null,null,null,null,null,null,null,null,null,null,null,null,null,null,null,null,null,null,null,null,null,null,null,null,null,null,null,null,null,null,"Rock Outcrop-Oquaga (Sussex)",238,null,null,"South Harrison Twp. (Gloucester Co.)",null,"Kearny Town (Hudson Co.)",253]
[null,null,null,null,null,null,null,null,null,null,null,null,null,null,null,null,null,null,null,null,null,null,null,null,null,null,null,null,null,null,null,null,null,null,null,null,null,null,null,null,null,null,null,null,null,null,null,null,null,null,null,null,null,null,null,null,null,null,null,null,null,null,null,null,null,null,null,null,null,null,null,null,null,null,null,null,null,null,"Rock Outcrop-Oquaga (Warren)",239,null,null,"Swedesboro Boro. (Gloucester Co.)",null,"Kenilworth Boro. (Union Co.)",531]
[null,null,null,null,null,null,null,null,null,null,null,null,null,null,null,null,null,null,null,null,null,null,null,null,null,null,null,null,null,null,null,null,null,null,null,null,null,null,null,null,null,null,null,null,null,null,null,null,null,null,null,null,null,null,null,null,null,null,null,null,null,null,null,null,null,null,null,null,null,null,null,null,null,null,null,null,null,null,"Rock Outcrop-Parker-Edneyville",240,null,null,"Washington Twp. (Gloucester Co.)",null,"Keyport Boro. (Monmouth Co.)",346]
[null,null,null,null,null,null,null,null,null,null,null,null,null,null,null,null,null,null,null,null,null,null,null,null,null,null,null,null,null,null,null,null,null,null,null,null,null,null,null,null,null,null,null,null,null,null,null,null,null,null,null,null,null,null,null,null,null,null,null,null,null,null,null,null,null,null,null,null,null,null,null,null,null,null,null,null,null,null,"Rock Outcrop-Rockaway (Morris)",241,null,null,"Wenonah Boro. (Gloucester Co.)",null,"Kingwood Twp. (Hunterdon Co.)",274]
[null,null,null,null,null,null,null,null,null,null,null,null,null,null,null,null,null,null,null,null,null,null,null,null,null,null,null,null,null,null,null,null,null,null,null,null,null,null,null,null,null,null,null,null,null,null,null,null,null,null,null,null,null,null,null,null,null,null,null,null,null,null,null,null,null,null,null,null,null,null,null,null,null,null,null,null,null,null,"Rock Outcrop-Rockaway (Passaic)",242,null,null,"West Deptford Twp. (Gloucester Co.)",null,"Kinnelon Boro. (Morris Co.)",390]
[null,null,null,null,null,null,null,null,null,null,null,null,null,null,null,null,null,null,null,null,null,null,null,null,null,null,null,null,null,null,null,null,null,null,null,null,null,null,null,null,null,null,null,null,null,null,null,null,null,null,null,null,null,null,null,null,null,null,null,null,null,null,null,null,null,null,null,null,null,null,null,null,null,null,null,null,null,null,"Rock Outcrop-Rockaway (Sussex)",243,null,null,"Westville Boro. (Gloucester Co.)",null,"Knowlton Twp. (Warren Co.)",557]
[null,null,null,null,null,null,null,null,null,null,null,null,null,null,null,null,null,null,null,null,null,null,null,null,null,null,null,null,null,null,null,null,null,null,null,null,null,null,null,null,null,null,null,null,null,null,null,null,null,null,null,null,null,null,null,null,null,null,null,null,null,null,null,null,null,null,null,null,null,null,null,null,null,null,null,null,null,null,"Rock Outcrop-Rockaway-Parker",244,null,null,"Woodbury City (Gloucester Co.)",null,"Lacey Twp. (Ocean Co.)",427]
[null,null,null,null,null,null,null,null,null,null,null,null,null,null,null,null,null,null,null,null,null,null,null,null,null,null,null,null,null,null,null,null,null,null,null,null,null,null,null,null,null,null,null,null,null,null,null,null,null,null,null,null,null,null,null,null,null,null,null,null,null,null,null,null,null,null,null,null,null,null,null,null,null,null,null,null,null,null,"Rock Outcrop-Swartswood",245,null,null,"Woodbury Heights Boro. (Gloucester Co.)",null,"Lafayette Twp. (Sussex Co.)",512]
[null,null,null,null,null,null,null,null,null,null,null,null,null,null,null,null,null,null,null,null,null,null,null,null,null,null,null,null,null,null,null,null,null,null,null,null,null,null,null,null,null,null,null,null,null,null,null,null,null,null,null,null,null,null,null,null,null,null,null,null,null,null,null,null,null,null,null,null,null,null,null,null,null,null,null,null,null,null,"Rock Outcrop-Wassaic",246,null,null,"Woolwich Twp. (Gloucester Co.)",null,"Lakehurst Boro. (Ocean Co.)",428]
[null,null,null,null,null,null,null,null,null,null,null,null,null,null,null,null,null,null,null,null,null,null,null,null,null,null,null,null,null,null,null,null,null,null,null,null,null,null,null,null,null,null,null,null,null,null,null,null,null,null,null,null,null,null,null,null,null,null,null,null,null,null,null,null,null,null,null,null,null,null,null,null,null,null,null,null,null,null,"Rockaway",247,null,null,"Bayonne City (Hudson Co.)",null,"Lakewood Twp. (Ocean Co.)",429]
[null,null,null,null,null,null,null,null,null,null,null,null,null,null,null,null,null,null,null,null,null,null,null,null,null,null,null,null,null,null,null,null,null,null,null,null,null,null,null,null,null,null,null,null,null,null,null,null,null,null,null,null,null,null,null,null,null,null,null,null,null,null,null,null,null,null,null,null,null,null,null,null,null,null,null,null,null,null,"Rockaway-Rock Outcrop (Bergen)",248,null,null,"East Newark Boro. (Hudson Co.)",null,"Lambertville City (Hunterdon Co.)",275]
[null,null,null,null,null,null,null,null,null,null,null,null,null,null,null,null,null,null,null,null,null,null,null,null,null,null,null,null,null,null,null,null,null,null,null,null,null,null,null,null,null,null,null,null,null,null,null,null,null,null,null,null,null,null,null,null,null,null,null,null,null,null,null,null,null,null,null,null,null,null,null,null,null,null,null,null,null,null,"Rockaway-Rock Outcrop (Morris)",249,null,null,"Guttenberg Town (Hudson Co.)",null,"Laurel Springs Boro. (Camden Co.)",153]
[null,null,null,null,null,null,null,null,null,null,null,null,null,null,null,null,null,null,null,null,null,null,null,null,null,null,null,null,null,null,null,null,null,null,null,null,null,null,null,null,null,null,null,null,null,null,null,null,null,null,null,null,null,null,null,null,null,null,null,null,null,null,null,null,null,null,null,null,null,null,null,null,null,null,null,null,null,null,"Rockaway-Rock Outcrop (Passaic)",250,null,null,"Harrison Town (Hudson Co.)",null,"Lavallette Boro. (Ocean Co.)",430]
[null,null,null,null,null,null,null,null,null,null,null,null,null,null,null,null,null,null,null,null,null,null,null,null,null,null,null,null,null,null,null,null,null,null,null,null,null,null,null,null,null,null,null,null,null,null,null,null,null,null,null,null,null,null,null,null,null,null,null,null,null,null,null,null,null,null,null,null,null,null,null,null,null,null,null,null,null,null,"Rockaway-Rock Outcrop (Sussex)",251,null,null,"Hoboken City (Hudson Co.)",null,"Lawnside Boro. (Camden Co.)",154]
[null,null,null,null,null,null,null,null,null,null,null,null,null,null,null,null,null,null,null,null,null,null,null,null,null,null,null,null,null,null,null,null,null,null,null,null,null,null,null,null,null,null,null,null,null,null,null,null,null,null,null,null,null,null,null,null,null,null,null,null,null,null,null,null,null,null,null,null,null,null,null,null,null,null,null,null,null,null,"Rough Broken Land - Sale",252,null,null,"Jersey City (Hudson Co.)",null,"Lawrence Twp. (Cumberland Co.)",194]
[null,null,null,null,null,null,null,null,null,null,null,null,null,null,null,null,null,null,null,null,null,null,null,null,null,null,null,null,null,null,null,null,null,null,null,null,null,null,null,null,null,null,null,null,null,null,null,null,null,null,null,null,null,null,null,null,null,null,null,null,null,null,null,null,null,null,null,null,null,null,null,null,null,null,null,null,null,null,"Rowland",253,null,null,"Kearny Town (Hudson Co.)",null,"Lawrence Twp. (Mercer Co.)",291]
[null,null,null,null,null,null,null,null,null,null,null,null,null,null,null,null,null,null,null,null,null,null,null,null,null,null,null,null,null,null,null,null,null,null,null,null,null,null,null,null,null,null,null,null,null,null,null,null,null,null,null,null,null,null,null,null,null,null,null,null,null,null,null,null,null,null,null,null,null,null,null,null,null,null,null,null,null,null,"Royce",254,null,null,"North Bergen Twp. (Hudson Co.)",null,"Lebanon Boro. (Hunterdon Co.)",276]
[null,null,null,null,null,null,null,null,null,null,null,null,null,null,null,null,null,null,null,null,null,null,null,null,null,null,null,null,null,null,null,null,null,null,null,null,null,null,null,null,null,null,null,null,null,null,null,null,null,null,null,null,null,null,null,null,null,null,null,null,null,null,null,null,null,null,null,null,null,null,null,null,null,null,null,null,null,null,"Sand Pits",255,null,null,"Secaucus Town (Hudson Co.)",null,"Lebanon Twp. (Hunterdon Co.)",277]
[null,null,null,null,null,null,null,null,null,null,null,null,null,null,null,null,null,null,null,null,null,null,null,null,null,null,null,null,null,null,null,null,null,null,null,null,null,null,null,null,null,null,null,null,null,null,null,null,null,null,null,null,null,null,null,null,null,null,null,null,null,null,null,null,null,null,null,null,null,null,null,null,null,null,null,null,null,null,"Sandy Alluvial Land",256,null,null,"Union City (Hudson Co.)",null,"Leonia Boro. (Bergen Co.)",52]
[null,null,null,null,null,null,null,null,null,null,null,null,null,null,null,null,null,null,null,null,null,null,null,null,null,null,null,null,null,null,null,null,null,null,null,null,null,null,null,null,null,null,null,null,null,null,null,null,null,null,null,null,null,null,null,null,null,null,null,null,null,null,null,null,null,null,null,null,null,null,null,null,null,null,null,null,null,null,"Sandy And Clayey Land",257,null,null,"Weehawken Twp. (Hudson Co.)",null,"Liberty Twp. (Warren Co.)",558]
[null,null,null,null,null,null,null,null,null,null,null,null,null,null,null,null,null,null,null,null,null,null,null,null,null,null,null,null,null,null,null,null,null,null,null,null,null,null,null,null,null,null,null,null,null,null,null,null,null,null,null,null,null,null,null,null,null,null,null,null,null,null,null,null,null,null,null,null,null,null,null,null,null,null,null,null,null,null,"Sandy And Silty Land",258,null,null,"West New York Town (Hudson Co.)",null,"Lincoln Park Boro. (Morris Co.)",391]
[null,null,null,null,null,null,null,null,null,null,null,null,null,null,null,null,null,null,null,null,null,null,null,null,null,null,null,null,null,null,null,null,null,null,null,null,null,null,null,null,null,null,null,null,null,null,null,null,null,null,null,null,null,null,null,null,null,null,null,null,null,null,null,null,null,null,null,null,null,null,null,null,null,null,null,null,null,null,"Sandy Land (Burlington)",259,null,null,"Alexandria Twp. (Hunterdon Co.)",null,"Linden City (Union Co.)",532]
[null,null,null,null,null,null,null,null,null,null,null,null,null,null,null,null,null,null,null,null,null,null,null,null,null,null,null,null,null,null,null,null,null,null,null,null,null,null,null,null,null,null,null,null,null,null,null,null,null,null,null,null,null,null,null,null,null,null,null,null,null,null,null,null,null,null,null,null,null,null,null,null,null,null,null,null,null,null,"Sandy Land (Salem)",260,null,null,"Bethlehem Twp. (Hunterdon Co.)",null,"Lindenwold Boro. (Camden Co.)",155]
[null,null,null,null,null,null,null,null,null,null,null,null,null,null,null,null,null,null,null,null,null,null,null,null,null,null,null,null,null,null,null,null,null,null,null,null,null,null,null,null,null,null,null,null,null,null,null,null,null,null,null,null,null,null,null,null,null,null,null,null,null,null,null,null,null,null,null,null,null,null,null,null,null,null,null,null,null,null,"Sandy Pits",261,null,null,"Bloomsbury Boro. (Hunterdon Co.)",null,"Linwood City (Atlantic Co.)",14]
[null,null,null,null,null,null,null,null,null,null,null,null,null,null,null,null,null,null,null,null,null,null,null,null,null,null,null,null,null,null,null,null,null,null,null,null,null,null,null,null,null,null,null,null,null,null,null,null,null,null,null,null,null,null,null,null,null,null,null,null,null,null,null,null,null,null,null,null,null,null,null,null,null,null,null,null,null,null,"Sassafras",262,null,null,"Califon Boro. (Hunterdon Co.)",null,"Little Egg Harbor Twp. (Ocean Co.)",431]
[null,null,null,null,null,null,null,null,null,null,null,null,null,null,null,null,null,null,null,null,null,null,null,null,null,null,null,null,null,null,null,null,null,null,null,null,null,null,null,null,null,null,null,null,null,null,null,null,null,null,null,null,null,null,null,null,null,null,null,null,null,null,null,null,null,null,null,null,null,null,null,null,null,null,null,null,null,null,"Scio",263,null,null,"Clinton Town (Hunterdon Co.)",null,"Little Falls Twp.  (Passaic Co.)",452]
[null,null,null,null,null,null,null,null,null,null,null,null,null,null,null,null,null,null,null,null,null,null,null,null,null,null,null,null,null,null,null,null,null,null,null,null,null,null,null,null,null,null,null,null,null,null,null,null,null,null,null,null,null,null,null,null,null,null,null,null,null,null,null,null,null,null,null,null,null,null,null,null,null,null,null,null,null,null,"Sharptown",264,null,null,"Clinton Twp. (Hunterdon Co.)",null,"Little Fy Boro. (Bergen Co.)",53]
[null,null,null,null,null,null,null,null,null,null,null,null,null,null,null,null,null,null,null,null,null,null,null,null,null,null,null,null,null,null,null,null,null,null,null,null,null,null,null,null,null,null,null,null,null,null,null,null,null,null,null,null,null,null,null,null,null,null,null,null,null,null,null,null,null,null,null,null,null,null,null,null,null,null,null,null,null,null,"Shrewsbury",265,null,null,"Delaware Twp. (Hunterdon Co.)",null,"Little Silver Boro. (Monmouth Co.)",347]
[null,null,null,null,null,null,null,null,null,null,null,null,null,null,null,null,null,null,null,null,null,null,null,null,null,null,null,null,null,null,null,null,null,null,null,null,null,null,null,null,null,null,null,null,null,null,null,null,null,null,null,null,null,null,null,null,null,null,null,null,null,null,null,null,null,null,null,null,null,null,null,null,null,null,null,null,null,null,"Shrewsbury Variant",266,null,null,"East Amwell Twp. (Hunterdon Co.)",null,"Livingston Twp. (Essex Co.)",210]
[null,null,null,null,null,null,null,null,null,null,null,null,null,null,null,null,null,null,null,null,null,null,null,null,null,null,null,null,null,null,null,null,null,null,null,null,null,null,null,null,null,null,null,null,null,null,null,null,null,null,null,null,null,null,null,null,null,null,null,null,null,null,null,null,null,null,null,null,null,null,null,null,null,null,null,null,null,null,"Sloan",267,null,null,"Flemington Boro. (Hunterdon Co.)",null,"Loch Arbour Village (Monmouth Co.)",348]
[null,null,null,null,null,null,null,null,null,null,null,null,null,null,null,null,null,null,null,null,null,null,null,null,null,null,null,null,null,null,null,null,null,null,null,null,null,null,null,null,null,null,null,null,null,null,null,null,null,null,null,null,null,null,null,null,null,null,null,null,null,null,null,null,null,null,null,null,null,null,null,null,null,null,null,null,null,null,"St. Johns",268,null,null,"Franklin Twp. (Hunterdon Co.)",null,"Lodi Boro. (Bergen Co.)",54]
[null,null,null,null,null,null,null,null,null,null,null,null,null,null,null,null,null,null,null,null,null,null,null,null,null,null,null,null,null,null,null,null,null,null,null,null,null,null,null,null,null,null,null,null,null,null,null,null,null,null,null,null,null,null,null,null,null,null,null,null,null,null,null,null,null,null,null,null,null,null,null,null,null,null,null,null,null,null,"Steep Stony Land",269,null,null,"Frenchtown Boro. (Hunterdon Co.)",null,"Logan Twp. (Gloucester Co.)",231]
[null,null,null,null,null,null,null,null,null,null,null,null,null,null,null,null,null,null,null,null,null,null,null,null,null,null,null,null,null,null,null,null,null,null,null,null,null,null,null,null,null,null,null,null,null,null,null,null,null,null,null,null,null,null,null,null,null,null,null,null,null,null,null,null,null,null,null,null,null,null,null,null,null,null,null,null,null,null,"Steinsburg",270,null,null,"Glen Gardner Boro. (Hunterdon Co.)",null,"Long Beach Twp. (Ocean Co.)",432]
[null,null,null,null,null,null,null,null,null,null,null,null,null,null,null,null,null,null,null,null,null,null,null,null,null,null,null,null,null,null,null,null,null,null,null,null,null,null,null,null,null,null,null,null,null,null,null,null,null,null,null,null,null,null,null,null,null,null,null,null,null,null,null,null,null,null,null,null,null,null,null,null,null,null,null,null,null,null,"Sulfahemists",271,null,null,"Hampton Boro. (Hunterdon Co.)",null,"Long Branch City (Monmouth Co.)",349]
[null,null,null,null,null,null,null,null,null,null,null,null,null,null,null,null,null,null,null,null,null,null,null,null,null,null,null,null,null,null,null,null,null,null,null,null,null,null,null,null,null,null,null,null,null,null,null,null,null,null,null,null,null,null,null,null,null,null,null,null,null,null,null,null,null,null,null,null,null,null,null,null,null,null,null,null,null,null,"Sulfaquents",272,null,null,"High Bridge Boro. (Hunterdon Co.)",null,"Longport Boro. (Atlantic Co.)",15]
[null,null,null,null,null,null,null,null,null,null,null,null,null,null,null,null,null,null,null,null,null,null,null,null,null,null,null,null,null,null,null,null,null,null,null,null,null,null,null,null,null,null,null,null,null,null,null,null,null,null,null,null,null,null,null,null,null,null,null,null,null,null,null,null,null,null,null,null,null,null,null,null,null,null,null,null,null,null,"Swamp",273,null,null,"Holland Twp. (Hunterdon Co.)",null,"Lopatcong Twp. (Warren Co.)",559]
[null,null,null,null,null,null,null,null,null,null,null,null,null,null,null,null,null,null,null,null,null,null,null,null,null,null,null,null,null,null,null,null,null,null,null,null,null,null,null,null,null,null,null,null,null,null,null,null,null,null,null,null,null,null,null,null,null,null,null,null,null,null,null,null,null,null,null,null,null,null,null,null,null,null,null,null,null,null,"Swartswood",274,null,null,"Kingwood Twp. (Hunterdon Co.)",null,"Lower Alloways Creek Twp. (Salem Co.)",468]
[null,null,null,null,null,null,null,null,null,null,null,null,null,null,null,null,null,null,null,null,null,null,null,null,null,null,null,null,null,null,null,null,null,null,null,null,null,null,null,null,null,null,null,null,null,null,null,null,null,null,null,null,null,null,null,null,null,null,null,null,null,null,null,null,null,null,null,null,null,null,null,null,null,null,null,null,null,null,"Swartswood-Rock Outcrop",275,null,null,"Lambertville City (Hunterdon Co.)",null,"Lower Twp. (Cape May Co.)",175]
[null,null,null,null,null,null,null,null,null,null,null,null,null,null,null,null,null,null,null,null,null,null,null,null,null,null,null,null,null,null,null,null,null,null,null,null,null,null,null,null,null,null,null,null,null,null,null,null,null,null,null,null,null,null,null,null,null,null,null,null,null,null,null,null,null,null,null,null,null,null,null,null,null,null,null,null,null,null,"Swedesboro",276,null,null,"Lebanon Boro. (Hunterdon Co.)",null,"Lumberton Twp. (Burlington Co.)",110]
[null,null,null,null,null,null,null,null,null,null,null,null,null,null,null,null,null,null,null,null,null,null,null,null,null,null,null,null,null,null,null,null,null,null,null,null,null,null,null,null,null,null,null,null,null,null,null,null,null,null,null,null,null,null,null,null,null,null,null,null,null,null,null,null,null,null,null,null,null,null,null,null,null,null,null,null,null,null,"Tidal Marsh",277,null,null,"Lebanon Twp. (Hunterdon Co.)",null,"Lyndhurst Twp. (Bergen Co.)",55]
[null,null,null,null,null,null,null,null,null,null,null,null,null,null,null,null,null,null,null,null,null,null,null,null,null,null,null,null,null,null,null,null,null,null,null,null,null,null,null,null,null,null,null,null,null,null,null,null,null,null,null,null,null,null,null,null,null,null,null,null,null,null,null,null,null,null,null,null,null,null,null,null,null,null,null,null,null,null,"Timakawa",278,null,null,"Milford Boro. (Hunterdon Co.)",null,"Madison Boro. (Morris Co.)",392]
[null,null,null,null,null,null,null,null,null,null,null,null,null,null,null,null,null,null,null,null,null,null,null,null,null,null,null,null,null,null,null,null,null,null,null,null,null,null,null,null,null,null,null,null,null,null,null,null,null,null,null,null,null,null,null,null,null,null,null,null,null,null,null,null,null,null,null,null,null,null,null,null,null,null,null,null,null,null,"Tinton",279,null,null,"Raritan Twp. (Hunterdon Co.)",null,"Magnolia Boro. (Camden Co.)",156]
[null,null,null,null,null,null,null,null,null,null,null,null,null,null,null,null,null,null,null,null,null,null,null,null,null,null,null,null,null,null,null,null,null,null,null,null,null,null,null,null,null,null,null,null,null,null,null,null,null,null,null,null,null,null,null,null,null,null,null,null,null,null,null,null,null,null,null,null,null,null,null,null,null,null,null,null,null,null,"Tioga",280,null,null,"Readington Twp. (Hunterdon Co.)",null,"Mahwah Twp. (Bergen Co.)",56]
[null,null,null,null,null,null,null,null,null,null,null,null,null,null,null,null,null,null,null,null,null,null,null,null,null,null,null,null,null,null,null,null,null,null,null,null,null,null,null,null,null,null,null,null,null,null,null,null,null,null,null,null,null,null,null,null,null,null,null,null,null,null,null,null,null,null,null,null,null,null,null,null,null,null,null,null,null,null,"Transquaking",281,null,null,"Stockton Boro. (Hunterdon Co.)",null,"Manalapan Twp. (Monmouth Co.)",350]
[null,null,null,null,null,null,null,null,null,null,null,null,null,null,null,null,null,null,null,null,null,null,null,null,null,null,null,null,null,null,null,null,null,null,null,null,null,null,null,null,null,null,null,null,null,null,null,null,null,null,null,null,null,null,null,null,null,null,null,null,null,null,null,null,null,null,null,null,null,null,null,null,null,null,null,null,null,null,"Tunkhannock",282,null,null,"Tewksbury Twp. (Hunterdon Co.)",null,"Manasquan Boro. (Monmouth Co.)",351]
[null,null,null,null,null,null,null,null,null,null,null,null,null,null,null,null,null,null,null,null,null,null,null,null,null,null,null,null,null,null,null,null,null,null,null,null,null,null,null,null,null,null,null,null,null,null,null,null,null,null,null,null,null,null,null,null,null,null,null,null,null,null,null,null,null,null,null,null,null,null,null,null,null,null,null,null,null,null,"Turbotville",283,null,null,"Union Twp. (Hunterdon Co.)",null,"Manchester Twp. (Ocean Co.)",433]
[null,null,null,null,null,null,null,null,null,null,null,null,null,null,null,null,null,null,null,null,null,null,null,null,null,null,null,null,null,null,null,null,null,null,null,null,null,null,null,null,null,null,null,null,null,null,null,null,null,null,null,null,null,null,null,null,null,null,null,null,null,null,null,null,null,null,null,null,null,null,null,null,null,null,null,null,null,null,"Udifluvents",284,null,null,"West Amwell Twp. (Hunterdon Co.)",null,"Mannington Twp. (Salem Co.)",469]
[null,null,null,null,null,null,null,null,null,null,null,null,null,null,null,null,null,null,null,null,null,null,null,null,null,null,null,null,null,null,null,null,null,null,null,null,null,null,null,null,null,null,null,null,null,null,null,null,null,null,null,null,null,null,null,null,null,null,null,null,null,null,null,null,null,null,null,null,null,null,null,null,null,null,null,null,null,null,"Udorthents",285,null,null,"East Windsor Twp. (Mercer Co.)",null,"Mansfield Twp. (Burlington Co.)",111]
[null,null,null,null,null,null,null,null,null,null,null,null,null,null,null,null,null,null,null,null,null,null,null,null,null,null,null,null,null,null,null,null,null,null,null,null,null,null,null,null,null,null,null,null,null,null,null,null,null,null,null,null,null,null,null,null,null,null,null,null,null,null,null,null,null,null,null,null,null,null,null,null,null,null,null,null,null,null,"Udorthents*",286,null,null,"Ewing Twp. (Mercer Co.)",null,"Mansfield Twp. (Warren Co.)",560]
[null,null,null,null,null,null,null,null,null,null,null,null,null,null,null,null,null,null,null,null,null,null,null,null,null,null,null,null,null,null,null,null,null,null,null,null,null,null,null,null,null,null,null,null,null,null,null,null,null,null,null,null,null,null,null,null,null,null,null,null,null,null,null,null,null,null,null,null,null,null,null,null,null,null,null,null,null,null,"Udorthents-Horseneck",287,null,null,"Hamilton Twp. (Mercer Co.)",null,"Mantoloking Boro. (Ocean Co.)",434]
[null,null,null,null,null,null,null,null,null,null,null,null,null,null,null,null,null,null,null,null,null,null,null,null,null,null,null,null,null,null,null,null,null,null,null,null,null,null,null,null,null,null,null,null,null,null,null,null,null,null,null,null,null,null,null,null,null,null,null,null,null,null,null,null,null,null,null,null,null,null,null,null,null,null,null,null,null,null,"Udorthents-Peckmantown",288,null,null,"Hightstown Boro. (Mercer Co.)",null,"Mantua Twp. (Gloucester Co.)",232]
[null,null,null,null,null,null,null,null,null,null,null,null,null,null,null,null,null,null,null,null,null,null,null,null,null,null,null,null,null,null,null,null,null,null,null,null,null,null,null,null,null,null,null,null,null,null,null,null,null,null,null,null,null,null,null,null,null,null,null,null,null,null,null,null,null,null,null,null,null,null,null,null,null,null,null,null,null,null,"Unadilla",289,null,null,"Hopewell Boro. (Mercer Co.)",null,"Manville Boro. (Somerset Co.)",489]
[null,null,null,null,null,null,null,null,null,null,null,null,null,null,null,null,null,null,null,null,null,null,null,null,null,null,null,null,null,null,null,null,null,null,null,null,null,null,null,null,null,null,null,null,null,null,null,null,null,null,null,null,null,null,null,null,null,null,null,null,null,null,null,null,null,null,null,null,null,null,null,null,null,null,null,null,null,null,"Urban Land Wet",290,null,null,"Hopewell Twp. (Mercer Co.)",null,"Maple Shade Twp. (Burlington Co.)",112]
[null,null,null,null,null,null,null,null,null,null,null,null,null,null,null,null,null,null,null,null,null,null,null,null,null,null,null,null,null,null,null,null,null,null,null,null,null,null,null,null,null,null,null,null,null,null,null,null,null,null,null,null,null,null,null,null,null,null,null,null,null,null,null,null,null,null,null,null,null,null,null,null,null,null,null,null,null,null,"Urban Land*",291,null,null,"Lawrence Twp. (Mercer Co.)",null,"Maplewood Twp. (Essex Co.)",211]
[null,null,null,null,null,null,null,null,null,null,null,null,null,null,null,null,null,null,null,null,null,null,null,null,null,null,null,null,null,null,null,null,null,null,null,null,null,null,null,null,null,null,null,null,null,null,null,null,null,null,null,null,null,null,null,null,null,null,null,null,null,null,null,null,null,null,null,null,null,null,null,null,null,null,null,null,null,null,"Urban land-Bigapple",292,null,null,"Pennington Boro. (Mercer Co.)",null,"Margate City (Atlantic Co.)",16]
[null,null,null,null,null,null,null,null,null,null,null,null,null,null,null,null,null,null,null,null,null,null,null,null,null,null,null,null,null,null,null,null,null,null,null,null,null,null,null,null,null,null,null,null,null,null,null,null,null,null,null,null,null,null,null,null,null,null,null,null,null,null,null,null,null,null,null,null,null,null,null,null,null,null,null,null,null,null,"Urban land-Chatfield-Rock Outcrop",293,null,null,"Princeton Boro. (Mercer Co.)",null,"Marlboro Twp. (Monmouth Co.)",352]
[null,null,null,null,null,null,null,null,null,null,null,null,null,null,null,null,null,null,null,null,null,null,null,null,null,null,null,null,null,null,null,null,null,null,null,null,null,null,null,null,null,null,null,null,null,null,null,null,null,null,null,null,null,null,null,null,null,null,null,null,null,null,null,null,null,null,null,null,null,null,null,null,null,null,null,null,null,null,"Urban land-Farmington-rock outcrop",294,null,null,"Princeton Twp. (Mercer Co.)",null,"Matawan Boro. (Monmouth Co.)",353]
[null,null,null,null,null,null,null,null,null,null,null,null,null,null,null,null,null,null,null,null,null,null,null,null,null,null,null,null,null,null,null,null,null,null,null,null,null,null,null,null,null,null,null,null,null,null,null,null,null,null,null,null,null,null,null,null,null,null,null,null,null,null,null,null,null,null,null,null,null,null,null,null,null,null,null,null,null,null,"Urban land-Farmington-Wassaic",295,null,null,"Trenton City (Mercer Co.)",null,"Maurice River Twp. (Cumberland Co.)",195]
[null,null,null,null,null,null,null,null,null,null,null,null,null,null,null,null,null,null,null,null,null,null,null,null,null,null,null,null,null,null,null,null,null,null,null,null,null,null,null,null,null,null,null,null,null,null,null,null,null,null,null,null,null,null,null,null,null,null,null,null,null,null,null,null,null,null,null,null,null,null,null,null,null,null,null,null,null,null,"Urban land-Horseneck",296,null,null,"Washington Twp. (Mercer Co.)",null,"Maywood Boro. (Bergen Co.)",57]
[null,null,null,null,null,null,null,null,null,null,null,null,null,null,null,null,null,null,null,null,null,null,null,null,null,null,null,null,null,null,null,null,null,null,null,null,null,null,null,null,null,null,null,null,null,null,null,null,null,null,null,null,null,null,null,null,null,null,null,null,null,null,null,null,null,null,null,null,null,null,null,null,null,null,null,null,null,null,"Urban land-Knickerbocker",297,null,null,"West Windsor Twp. (Mercer Co.)",null,"Medford Lakes Boro. (Burlington Co.)",113]
[null,null,null,null,null,null,null,null,null,null,null,null,null,null,null,null,null,null,null,null,null,null,null,null,null,null,null,null,null,null,null,null,null,null,null,null,null,null,null,null,null,null,null,null,null,null,null,null,null,null,null,null,null,null,null,null,null,null,null,null,null,null,null,null,null,null,null,null,null,null,null,null,null,null,null,null,null,null,"Urban land-Peckmantown",298,null,null,"Carteret Boro. (Middlesex Co.)",null,"Medford Twp. (Burlington Co.)",114]
[null,null,null,null,null,null,null,null,null,null,null,null,null,null,null,null,null,null,null,null,null,null,null,null,null,null,null,null,null,null,null,null,null,null,null,null,null,null,null,null,null,null,null,null,null,null,null,null,null,null,null,null,null,null,null,null,null,null,null,null,null,null,null,null,null,null,null,null,null,null,null,null,null,null,null,null,null,null,"Urban land-Yalesvile-rock outcrop",299,null,null,"Cranbury Twp. (Middlesex Co.)",null,"Mendham Boro. (Morris Co.)",393]
[null,null,null,null,null,null,null,null,null,null,null,null,null,null,null,null,null,null,null,null,null,null,null,null,null,null,null,null,null,null,null,null,null,null,null,null,null,null,null,null,null,null,null,null,null,null,null,null,null,null,null,null,null,null,null,null,null,null,null,null,null,null,null,null,null,null,null,null,null,null,null,null,null,null,null,null,null,null,"Valois",300,null,null,"Dunellen Boro. (Middlesex Co.)",null,"Mendham Twp. (Morris Co.)",394]
[null,null,null,null,null,null,null,null,null,null,null,null,null,null,null,null,null,null,null,null,null,null,null,null,null,null,null,null,null,null,null,null,null,null,null,null,null,null,null,null,null,null,null,null,null,null,null,null,null,null,null,null,null,null,null,null,null,null,null,null,null,null,null,null,null,null,null,null,null,null,null,null,null,null,null,null,null,null,"Venango",301,null,null,"East Brunswick Twp. (Middlesex Co.)",null,"Merchantville Boro. (Camden Co.)",157]
[null,null,null,null,null,null,null,null,null,null,null,null,null,null,null,null,null,null,null,null,null,null,null,null,null,null,null,null,null,null,null,null,null,null,null,null,null,null,null,null,null,null,null,null,null,null,null,null,null,null,null,null,null,null,null,null,null,null,null,null,null,null,null,null,null,null,null,null,null,null,null,null,null,null,null,null,null,null,"Very Stony Land Mt. Lucas",302,null,null,"Edison Twp. (Middlesex Co.)",null,"Metuchen Boro. (Middlesex Co.)",306]
[null,null,null,null,null,null,null,null,null,null,null,null,null,null,null,null,null,null,null,null,null,null,null,null,null,null,null,null,null,null,null,null,null,null,null,null,null,null,null,null,null,null,null,null,null,null,null,null,null,null,null,null,null,null,null,null,null,null,null,null,null,null,null,null,null,null,null,null,null,null,null,null,null,null,null,null,null,null,"Very Stony Land Neshaminy",303,null,null,"Helmetta Boro. (Middlesex Co.)",null,"Middle Twp. (Cape May Co.)",176]
[null,null,null,null,null,null,null,null,null,null,null,null,null,null,null,null,null,null,null,null,null,null,null,null,null,null,null,null,null,null,null,null,null,null,null,null,null,null,null,null,null,null,null,null,null,null,null,null,null,null,null,null,null,null,null,null,null,null,null,null,null,null,null,null,null,null,null,null,null,null,null,null,null,null,null,null,null,null,"Very Stony Land Watchung",304,null,null,"Highland Park Boro. (Middlesex Co.)",null,"Middlesex Boro. (Middlesex Co.)",307]
[null,null,null,null,null,null,null,null,null,null,null,null,null,null,null,null,null,null,null,null,null,null,null,null,null,null,null,null,null,null,null,null,null,null,null,null,null,null,null,null,null,null,null,null,null,null,null,null,null,null,null,null,null,null,null,null,null,null,null,null,null,null,null,null,null,null,null,null,null,null,null,null,null,null,null,null,null,null,"Wallkill",305,null,null,"Jamesburg Boro. (Middlesex Co.)",null,"Middletown Twp. (Monmouth Co.)",354]
[null,null,null,null,null,null,null,null,null,null,null,null,null,null,null,null,null,null,null,null,null,null,null,null,null,null,null,null,null,null,null,null,null,null,null,null,null,null,null,null,null,null,null,null,null,null,null,null,null,null,null,null,null,null,null,null,null,null,null,null,null,null,null,null,null,null,null,null,null,null,null,null,null,null,null,null,null,null,"Wallpack",306,null,null,"Metuchen Boro. (Middlesex Co.)",null,"Midland Park Boro. (Bergen Co.)",58]
[null,null,null,null,null,null,null,null,null,null,null,null,null,null,null,null,null,null,null,null,null,null,null,null,null,null,null,null,null,null,null,null,null,null,null,null,null,null,null,null,null,null,null,null,null,null,null,null,null,null,null,null,null,null,null,null,null,null,null,null,null,null,null,null,null,null,null,null,null,null,null,null,null,null,null,null,null,null,"Washington",307,null,null,"Middlesex Boro. (Middlesex Co.)",null,"Milford Boro. (Hunterdon Co.)",278]
[null,null,null,null,null,null,null,null,null,null,null,null,null,null,null,null,null,null,null,null,null,null,null,null,null,null,null,null,null,null,null,null,null,null,null,null,null,null,null,null,null,null,null,null,null,null,null,null,null,null,null,null,null,null,null,null,null,null,null,null,null,null,null,null,null,null,null,null,null,null,null,null,null,null,null,null,null,null,"Wassaic",308,null,null,"Milltown Boro. (Middlesex Co.)",null,"Millburn Twp. (Essex Co.)",212]
[null,null,null,null,null,null,null,null,null,null,null,null,null,null,null,null,null,null,null,null,null,null,null,null,null,null,null,null,null,null,null,null,null,null,null,null,null,null,null,null,null,null,null,null,null,null,null,null,null,null,null,null,null,null,null,null,null,null,null,null,null,null,null,null,null,null,null,null,null,null,null,null,null,null,null,null,null,null,"Wassaic-Rock Outcrop (Sussex)",309,null,null,"Monroe Twp. (Middlesex Co.)",null,"Millstone Boro. (Somerset Co.)",490]
[null,null,null,null,null,null,null,null,null,null,null,null,null,null,null,null,null,null,null,null,null,null,null,null,null,null,null,null,null,null,null,null,null,null,null,null,null,null,null,null,null,null,null,null,null,null,null,null,null,null,null,null,null,null,null,null,null,null,null,null,null,null,null,null,null,null,null,null,null,null,null,null,null,null,null,null,null,null,"Wassaic-Rock Outcrop (Warren)",310,null,null,"New Brunswick City (Middlesex Co.)",null,"Millstone Twp. (Monmouth Co.)",355]
[null,null,null,null,null,null,null,null,null,null,null,null,null,null,null,null,null,null,null,null,null,null,null,null,null,null,null,null,null,null,null,null,null,null,null,null,null,null,null,null,null,null,null,null,null,null,null,null,null,null,null,null,null,null,null,null,null,null,null,null,null,null,null,null,null,null,null,null,null,null,null,null,null,null,null,null,null,null,"Watchung",311,null,null,"North Brunswick Twp. (Middlesex Co.)",null,"Milltown Boro. (Middlesex Co.)",308]
[null,null,null,null,null,null,null,null,null,null,null,null,null,null,null,null,null,null,null,null,null,null,null,null,null,null,null,null,null,null,null,null,null,null,null,null,null,null,null,null,null,null,null,null,null,null,null,null,null,null,null,null,null,null,null,null,null,null,null,null,null,null,null,null,null,null,null,null,null,null,null,null,null,null,null,null,null,null,"Wayland",312,null,null,"Old Bridge Twp. (Middlesex Co.)",null,"Millville City (Cumberland Co.)",196]
[null,null,null,null,null,null,null,null,null,null,null,null,null,null,null,null,null,null,null,null,null,null,null,null,null,null,null,null,null,null,null,null,null,null,null,null,null,null,null,null,null,null,null,null,null,null,null,null,null,null,null,null,null,null,null,null,null,null,null,null,null,null,null,null,null,null,null,null,null,null,null,null,null,null,null,null,null,null,"Weeksville",313,null,null,"Perth Amboy City (Middlesex Co.)",null,"Mine Hill Twp. (Morris Co.)",395]
[null,null,null,null,null,null,null,null,null,null,null,null,null,null,null,null,null,null,null,null,null,null,null,null,null,null,null,null,null,null,null,null,null,null,null,null,null,null,null,null,null,null,null,null,null,null,null,null,null,null,null,null,null,null,null,null,null,null,null,null,null,null,null,null,null,null,null,null,null,null,null,null,null,null,null,null,null,null,"Wellsboro",314,null,null,"Piscataway Twp. (Middlesex Co.)",null,"Monmouth Beach Boro. (Monmouth Co.)",356]
[null,null,null,null,null,null,null,null,null,null,null,null,null,null,null,null,null,null,null,null,null,null,null,null,null,null,null,null,null,null,null,null,null,null,null,null,null,null,null,null,null,null,null,null,null,null,null,null,null,null,null,null,null,null,null,null,null,null,null,null,null,null,null,null,null,null,null,null,null,null,null,null,null,null,null,null,null,null,"Westphalia",315,null,null,"Plainsboro Twp. (Middlesex Co.)",null,"Monroe Twp. (Gloucester Co.)",233]
[null,null,null,null,null,null,null,null,null,null,null,null,null,null,null,null,null,null,null,null,null,null,null,null,null,null,null,null,null,null,null,null,null,null,null,null,null,null,null,null,null,null,null,null,null,null,null,null,null,null,null,null,null,null,null,null,null,null,null,null,null,null,null,null,null,null,null,null,null,null,null,null,null,null,null,null,null,null,"Wethersfield",316,null,null,"Sayreville Boro. (Middlesex Co.)",null,"Monroe Twp. (Middlesex Co.)",309]
[null,null,null,null,null,null,null,null,null,null,null,null,null,null,null,null,null,null,null,null,null,null,null,null,null,null,null,null,null,null,null,null,null,null,null,null,null,null,null,null,null,null,null,null,null,null,null,null,null,null,null,null,null,null,null,null,null,null,null,null,null,null,null,null,null,null,null,null,null,null,null,null,null,null,null,null,null,null,"Wethersfield Rock Outcrop",317,null,null,"South Amboy City (Middlesex Co.)",null,"Montague Twp. (Sussex Co.)",513]
[null,null,null,null,null,null,null,null,null,null,null,null,null,null,null,null,null,null,null,null,null,null,null,null,null,null,null,null,null,null,null,null,null,null,null,null,null,null,null,null,null,null,null,null,null,null,null,null,null,null,null,null,null,null,null,null,null,null,null,null,null,null,null,null,null,null,null,null,null,null,null,null,null,null,null,null,null,null,"Whippany",318,null,null,"South Brunswick Twp. (Middlesex Co.)",null,"Montclair Town (Essex Co.)",213]
[null,null,null,null,null,null,null,null,null,null,null,null,null,null,null,null,null,null,null,null,null,null,null,null,null,null,null,null,null,null,null,null,null,null,null,null,null,null,null,null,null,null,null,null,null,null,null,null,null,null,null,null,null,null,null,null,null,null,null,null,null,null,null,null,null,null,null,null,null,null,null,null,null,null,null,null,null,null,"Whitman",319,null,null,"South Plainfield Boro. (Middlesex Co.)",null,"Montgomery Twp. (Somerset Co.)",491]
[null,null,null,null,null,null,null,null,null,null,null,null,null,null,null,null,null,null,null,null,null,null,null,null,null,null,null,null,null,null,null,null,null,null,null,null,null,null,null,null,null,null,null,null,null,null,null,null,null,null,null,null,null,null,null,null,null,null,null,null,null,null,null,null,null,null,null,null,null,null,null,null,null,null,null,null,null,null,"Willette",320,null,null,"South River Boro. (Middlesex Co.)",null,"Montvale Boro. (Bergen Co.)",59]
[null,null,null,null,null,null,null,null,null,null,null,null,null,null,null,null,null,null,null,null,null,null,null,null,null,null,null,null,null,null,null,null,null,null,null,null,null,null,null,null,null,null,null,null,null,null,null,null,null,null,null,null,null,null,null,null,null,null,null,null,null,null,null,null,null,null,null,null,null,null,null,null,null,null,null,null,null,null,"Woodmansie",321,null,null,"Spotswood Boro. (Middlesex Co.)",null,"Montville Twp. (Morris Co.)",396]
[null,null,null,null,null,null,null,null,null,null,null,null,null,null,null,null,null,null,null,null,null,null,null,null,null,null,null,null,null,null,null,null,null,null,null,null,null,null,null,null,null,null,null,null,null,null,null,null,null,null,null,null,null,null,null,null,null,null,null,null,null,null,null,null,null,null,null,null,null,null,null,null,null,null,null,null,null,null,"Woodstown",322,null,null,"Woodbridge Twp. (Middlesex Co.)",null,"Moonachie Boro. (Bergen Co.)",60]
[null,null,null,null,null,null,null,null,null,null,null,null,null,null,null,null,null,null,null,null,null,null,null,null,null,null,null,null,null,null,null,null,null,null,null,null,null,null,null,null,null,null,null,null,null,null,null,null,null,null,null,null,null,null,null,null,null,null,null,null,null,null,null,null,null,null,null,null,null,null,null,null,null,null,null,null,null,null,"Wooster",323,null,null,"Aberdeen Twp. (Monmouth Co.)",null,"Moorestown Twp. (Burlington Co.)",115]
[null,null,null,null,null,null,null,null,null,null,null,null,null,null,null,null,null,null,null,null,null,null,null,null,null,null,null,null,null,null,null,null,null,null,null,null,null,null,null,null,null,null,null,null,null,null,null,null,null,null,null,null,null,null,null,null,null,null,null,null,null,null,null,null,null,null,null,null,null,null,null,null,null,null,null,null,null,null,"Wurtsboro",324,null,null,"Allenhurst Boro. (Monmouth Co.)",null,"Morris Plains Boro. (Morris Co.)",397]
[null,null,null,null,null,null,null,null,null,null,null,null,null,null,null,null,null,null,null,null,null,null,null,null,null,null,null,null,null,null,null,null,null,null,null,null,null,null,null,null,null,null,null,null,null,null,null,null,null,null,null,null,null,null,null,null,null,null,null,null,null,null,null,null,null,null,null,null,null,null,null,null,null,null,null,null,null,null,"Yalesville",325,null,null,"Allentown Boro. (Monmouth Co.)",null,"Morris Twp. (Morris Co.)",398]
[null,null,null,null,null,null,null,null,null,null,null,null,null,null,null,null,null,null,null,null,null,null,null,null,null,null,null,null,null,null,null,null,null,null,null,null,null,null,null,null,null,null,null,null,null,null,null,null,null,null,null,null,null,null,null,null,null,null,null,null,null,null,null,null,null,null,null,null,null,null,null,null,null,null,null,null,null,null,"Yalesville-Boonton-Holyoke",326,null,null,"Asbury Park City (Monmouth Co.)",null,"Morristown Town (Morris Co.)",399]
[null,null,null,null,null,null,null,null,null,null,null,null,null,null,null,null,null,null,null,null,null,null,null,null,null,null,null,null,null,null,null,null,null,null,null,null,null,null,null,null,null,null,null,null,null,null,null,null,null,null,null,null,null,null,null,null,null,null,null,null,null,null,null,null,null,null,null,null,null,null,null,null,null,null,null,null,null,null,"Yalesville-Holyoke",327,null,null,"Atlantic Highlands Boro. (Monmouth Co.)",null,"Mount Arlington Boro. (Morris Co.)",400]
[null,null,null,null,null,null,null,null,null,null,null,null,null,null,null,null,null,null,null,null,null,null,null,null,null,null,null,null,null,null,null,null,null,null,null,null,null,null,null,null,null,null,null,null,null,null,null,null,null,null,null,null,null,null,null,null,null,null,null,null,null,null,null,null,null,null,null,null,null,null,null,null,null,null,null,null,null,null,"Yalesville-rock outcrop",328,null,null,"Avon-By-The-Sea Boro. (Monmouth Co.)",null,"Mount Ephraim Boro. (Camden Co.)",158]
[null,null,null,null,null,null,null,null,null,null,null,null,null,null,null,null,null,null,null,null,null,null,null,null,null,null,null,null,null,null,null,null,null,null,null,null,null,null,null,null,null,null,null,null,null,null,null,null,null,null,null,null,null,null,null,null,null,null,null,null,null,null,null,null,null,null,null,null,null,null,null,null,null,null,null,null,null,null,"Yalesville-urban land",329,null,null,"Belmar Boro. (Monmouth Co.)",null,"Mount Holly Twp. (Burlington Co.)",116]
[null,null,null,null,null,null,null,null,null,null,null,null,null,null,null,null,null,null,null,null,null,null,null,null,null,null,null,null,null,null,null,null,null,null,null,null,null,null,null,null,null,null,null,null,null,null,null,null,null,null,null,null,null,null,null,null,null,null,null,null,null,null,null,null,null,null,null,null,null,null,null,null,null,null,null,null,null,null,null,null,null,null,"Bradley Beach Boro. (Monmouth Co.)",null,"Mount Laurel Twp. (Burlington Co.)",117]
[null,null,null,null,null,null,null,null,null,null,null,null,null,null,null,null,null,null,null,null,null,null,null,null,null,null,null,null,null,null,null,null,null,null,null,null,null,null,null,null,null,null,null,null,null,null,null,null,null,null,null,null,null,null,null,null,null,null,null,null,null,null,null,null,null,null,null,null,null,null,null,null,null,null,null,null,null,null,null,null,null,null,"Brielle Boro. (Monmouth Co.)",null,"Mount Olive Twp. (Morris Co.)",401]
[null,null,null,null,null,null,null,null,null,null,null,null,null,null,null,null,null,null,null,null,null,null,null,null,null,null,null,null,null,null,null,null,null,null,null,null,null,null,null,null,null,null,null,null,null,null,null,null,null,null,null,null,null,null,null,null,null,null,null,null,null,null,null,null,null,null,null,null,null,null,null,null,null,null,null,null,null,null,null,null,null,null,"Colts Neck Twp. (Monmouth Co.)",null,"Mountain Lakes Boro. (Morris Co.)",402]
[null,null,null,null,null,null,null,null,null,null,null,null,null,null,null,null,null,null,null,null,null,null,null,null,null,null,null,null,null,null,null,null,null,null,null,null,null,null,null,null,null,null,null,null,null,null,null,null,null,null,null,null,null,null,null,null,null,null,null,null,null,null,null,null,null,null,null,null,null,null,null,null,null,null,null,null,null,null,null,null,null,null,"Deal Boro. (Monmouth Co.)",null,"Mountainside Boro. (Union Co.)",533]
[null,null,null,null,null,null,null,null,null,null,null,null,null,null,null,null,null,null,null,null,null,null,null,null,null,null,null,null,null,null,null,null,null,null,null,null,null,null,null,null,null,null,null,null,null,null,null,null,null,null,null,null,null,null,null,null,null,null,null,null,null,null,null,null,null,null,null,null,null,null,null,null,null,null,null,null,null,null,null,null,null,null,"Eatontown Boro. (Monmouth Co.)",null,"Mullica Twp. (Atlantic Co.)",17]
[null,null,null,null,null,null,null,null,null,null,null,null,null,null,null,null,null,null,null,null,null,null,null,null,null,null,null,null,null,null,null,null,null,null,null,null,null,null,null,null,null,null,null,null,null,null,null,null,null,null,null,null,null,null,null,null,null,null,null,null,null,null,null,null,null,null,null,null,null,null,null,null,null,null,null,null,null,null,null,null,null,null,"Englishtown Boro. (Monmouth Co.)",null,"National Park Boro. (Gloucester Co.)",234]
[null,null,null,null,null,null,null,null,null,null,null,null,null,null,null,null,null,null,null,null,null,null,null,null,null,null,null,null,null,null,null,null,null,null,null,null,null,null,null,null,null,null,null,null,null,null,null,null,null,null,null,null,null,null,null,null,null,null,null,null,null,null,null,null,null,null,null,null,null,null,null,null,null,null,null,null,null,null,null,null,null,null,"Fair Haven Boro. (Monmouth Co.)",null,"Neptune City Boro. (Monmouth Co.)",357]
[null,null,null,null,null,null,null,null,null,null,null,null,null,null,null,null,null,null,null,null,null,null,null,null,null,null,null,null,null,null,null,null,null,null,null,null,null,null,null,null,null,null,null,null,null,null,null,null,null,null,null,null,null,null,null,null,null,null,null,null,null,null,null,null,null,null,null,null,null,null,null,null,null,null,null,null,null,null,null,null,null,null,"Farmingdale Boro. (Monmouth Co.)",null,"Neptune Twp. (Monmouth Co.)",358]
[null,null,null,null,null,null,null,null,null,null,null,null,null,null,null,null,null,null,null,null,null,null,null,null,null,null,null,null,null,null,null,null,null,null,null,null,null,null,null,null,null,null,null,null,null,null,null,null,null,null,null,null,null,null,null,null,null,null,null,null,null,null,null,null,null,null,null,null,null,null,null,null,null,null,null,null,null,null,null,null,null,null,"Freehold Boro. (Monmouth Co.)",null,"Netcong Boro. (Morris Co.)",403]
[null,null,null,null,null,null,null,null,null,null,null,null,null,null,null,null,null,null,null,null,null,null,null,null,null,null,null,null,null,null,null,null,null,null,null,null,null,null,null,null,null,null,null,null,null,null,null,null,null,null,null,null,null,null,null,null,null,null,null,null,null,null,null,null,null,null,null,null,null,null,null,null,null,null,null,null,null,null,null,null,null,null,"Freehold Twp. (Monmouth Co.)",null,"New Brunswick City (Middlesex Co.)",310]
[null,null,null,null,null,null,null,null,null,null,null,null,null,null,null,null,null,null,null,null,null,null,null,null,null,null,null,null,null,null,null,null,null,null,null,null,null,null,null,null,null,null,null,null,null,null,null,null,null,null,null,null,null,null,null,null,null,null,null,null,null,null,null,null,null,null,null,null,null,null,null,null,null,null,null,null,null,null,null,null,null,null,"Hazlet Twp. (Monmouth Co.)",null,"New Hanover Twp. (Burlington Co.)",118]
[null,null,null,null,null,null,null,null,null,null,null,null,null,null,null,null,null,null,null,null,null,null,null,null,null,null,null,null,null,null,null,null,null,null,null,null,null,null,null,null,null,null,null,null,null,null,null,null,null,null,null,null,null,null,null,null,null,null,null,null,null,null,null,null,null,null,null,null,null,null,null,null,null,null,null,null,null,null,null,null,null,null,"Highlands Boro. (Monmouth Co.)",null,"New Milford Boro. (Bergen Co.)",61]
[null,null,null,null,null,null,null,null,null,null,null,null,null,null,null,null,null,null,null,null,null,null,null,null,null,null,null,null,null,null,null,null,null,null,null,null,null,null,null,null,null,null,null,null,null,null,null,null,null,null,null,null,null,null,null,null,null,null,null,null,null,null,null,null,null,null,null,null,null,null,null,null,null,null,null,null,null,null,null,null,null,null,"Holmdel Twp. (Monmouth Co.)",null,"New Providence Boro. (Union Co.)",534]
[null,null,null,null,null,null,null,null,null,null,null,null,null,null,null,null,null,null,null,null,null,null,null,null,null,null,null,null,null,null,null,null,null,null,null,null,null,null,null,null,null,null,null,null,null,null,null,null,null,null,null,null,null,null,null,null,null,null,null,null,null,null,null,null,null,null,null,null,null,null,null,null,null,null,null,null,null,null,null,null,null,null,"Howell Twp. (Monmouth Co.)",null,"Newark City (Essex Co.)",214]
[null,null,null,null,null,null,null,null,null,null,null,null,null,null,null,null,null,null,null,null,null,null,null,null,null,null,null,null,null,null,null,null,null,null,null,null,null,null,null,null,null,null,null,null,null,null,null,null,null,null,null,null,null,null,null,null,null,null,null,null,null,null,null,null,null,null,null,null,null,null,null,null,null,null,null,null,null,null,null,null,null,null,"Interlaken Boro. (Monmouth Co.)",null,"Newfield Boro. (Gloucester Co.)",235]
[null,null,null,null,null,null,null,null,null,null,null,null,null,null,null,null,null,null,null,null,null,null,null,null,null,null,null,null,null,null,null,null,null,null,null,null,null,null,null,null,null,null,null,null,null,null,null,null,null,null,null,null,null,null,null,null,null,null,null,null,null,null,null,null,null,null,null,null,null,null,null,null,null,null,null,null,null,null,null,null,null,null,"Keansburg Boro. (Monmouth Co.)",null,"Newton Town (Sussex Co.)",514]
[null,null,null,null,null,null,null,null,null,null,null,null,null,null,null,null,null,null,null,null,null,null,null,null,null,null,null,null,null,null,null,null,null,null,null,null,null,null,null,null,null,null,null,null,null,null,null,null,null,null,null,null,null,null,null,null,null,null,null,null,null,null,null,null,null,null,null,null,null,null,null,null,null,null,null,null,null,null,null,null,null,null,"Keyport Boro. (Monmouth Co.)",null,"North Arlington Boro. (Bergen Co.)",62]
[null,null,null,null,null,null,null,null,null,null,null,null,null,null,null,null,null,null,null,null,null,null,null,null,null,null,null,null,null,null,null,null,null,null,null,null,null,null,null,null,null,null,null,null,null,null,null,null,null,null,null,null,null,null,null,null,null,null,null,null,null,null,null,null,null,null,null,null,null,null,null,null,null,null,null,null,null,null,null,null,null,null,"Little Silver Boro. (Monmouth Co.)",null,"North Bergen Twp. (Hudson Co.)",254]
[null,null,null,null,null,null,null,null,null,null,null,null,null,null,null,null,null,null,null,null,null,null,null,null,null,null,null,null,null,null,null,null,null,null,null,null,null,null,null,null,null,null,null,null,null,null,null,null,null,null,null,null,null,null,null,null,null,null,null,null,null,null,null,null,null,null,null,null,null,null,null,null,null,null,null,null,null,null,null,null,null,null,"Loch Arbour Village (Monmouth Co.)",null,"North Brunswick Twp. (Middlesex Co.)",311]
[null,null,null,null,null,null,null,null,null,null,null,null,null,null,null,null,null,null,null,null,null,null,null,null,null,null,null,null,null,null,null,null,null,null,null,null,null,null,null,null,null,null,null,null,null,null,null,null,null,null,null,null,null,null,null,null,null,null,null,null,null,null,null,null,null,null,null,null,null,null,null,null,null,null,null,null,null,null,null,null,null,null,"Long Branch City (Monmouth Co.)",null,"North Caldwell Boro. (Essex Co.)",215]
[null,null,null,null,null,null,null,null,null,null,null,null,null,null,null,null,null,null,null,null,null,null,null,null,null,null,null,null,null,null,null,null,null,null,null,null,null,null,null,null,null,null,null,null,null,null,null,null,null,null,null,null,null,null,null,null,null,null,null,null,null,null,null,null,null,null,null,null,null,null,null,null,null,null,null,null,null,null,null,null,null,null,"Manalapan Twp. (Monmouth Co.)",null,"North Haledon Boro. (Passaic Co.)",453]
[null,null,null,null,null,null,null,null,null,null,null,null,null,null,null,null,null,null,null,null,null,null,null,null,null,null,null,null,null,null,null,null,null,null,null,null,null,null,null,null,null,null,null,null,null,null,null,null,null,null,null,null,null,null,null,null,null,null,null,null,null,null,null,null,null,null,null,null,null,null,null,null,null,null,null,null,null,null,null,null,null,null,"Manasquan Boro. (Monmouth Co.)",null,"North Hanover Twp. (Burlington Co.)",119]
[null,null,null,null,null,null,null,null,null,null,null,null,null,null,null,null,null,null,null,null,null,null,null,null,null,null,null,null,null,null,null,null,null,null,null,null,null,null,null,null,null,null,null,null,null,null,null,null,null,null,null,null,null,null,null,null,null,null,null,null,null,null,null,null,null,null,null,null,null,null,null,null,null,null,null,null,null,null,null,null,null,null,"Marlboro Twp. (Monmouth Co.)",null,"North Plainfield Boro. (Somerset Co.)",492]
[null,null,null,null,null,null,null,null,null,null,null,null,null,null,null,null,null,null,null,null,null,null,null,null,null,null,null,null,null,null,null,null,null,null,null,null,null,null,null,null,null,null,null,null,null,null,null,null,null,null,null,null,null,null,null,null,null,null,null,null,null,null,null,null,null,null,null,null,null,null,null,null,null,null,null,null,null,null,null,null,null,null,"Matawan Boro. (Monmouth Co.)",null,"North Wildwood City (Cape May Co.)",177]
[null,null,null,null,null,null,null,null,null,null,null,null,null,null,null,null,null,null,null,null,null,null,null,null,null,null,null,null,null,null,null,null,null,null,null,null,null,null,null,null,null,null,null,null,null,null,null,null,null,null,null,null,null,null,null,null,null,null,null,null,null,null,null,null,null,null,null,null,null,null,null,null,null,null,null,null,null,null,null,null,null,null,"Middletown Twp. (Monmouth Co.)",null,"Northfield City (Atlantic Co.)",18]
[null,null,null,null,null,null,null,null,null,null,null,null,null,null,null,null,null,null,null,null,null,null,null,null,null,null,null,null,null,null,null,null,null,null,null,null,null,null,null,null,null,null,null,null,null,null,null,null,null,null,null,null,null,null,null,null,null,null,null,null,null,null,null,null,null,null,null,null,null,null,null,null,null,null,null,null,null,null,null,null,null,null,"Millstone Twp. (Monmouth Co.)",null,"Northvale Boro. (Bergen Co.)",63]
[null,null,null,null,null,null,null,null,null,null,null,null,null,null,null,null,null,null,null,null,null,null,null,null,null,null,null,null,null,null,null,null,null,null,null,null,null,null,null,null,null,null,null,null,null,null,null,null,null,null,null,null,null,null,null,null,null,null,null,null,null,null,null,null,null,null,null,null,null,null,null,null,null,null,null,null,null,null,null,null,null,null,"Monmouth Beach Boro. (Monmouth Co.)",null,"Norwood Boro. (Bergen Co.)",64]
[null,null,null,null,null,null,null,null,null,null,null,null,null,null,null,null,null,null,null,null,null,null,null,null,null,null,null,null,null,null,null,null,null,null,null,null,null,null,null,null,null,null,null,null,null,null,null,null,null,null,null,null,null,null,null,null,null,null,null,null,null,null,null,null,null,null,null,null,null,null,null,null,null,null,null,null,null,null,null,null,null,null,"Neptune City Boro. (Monmouth Co.)",null,"Nutley Town (Essex Co.)",216]
[null,null,null,null,null,null,null,null,null,null,null,null,null,null,null,null,null,null,null,null,null,null,null,null,null,null,null,null,null,null,null,null,null,null,null,null,null,null,null,null,null,null,null,null,null,null,null,null,null,null,null,null,null,null,null,null,null,null,null,null,null,null,null,null,null,null,null,null,null,null,null,null,null,null,null,null,null,null,null,null,null,null,"Neptune Twp. (Monmouth Co.)",null,"Oakland Boro. (Bergen Co.)",65]
[null,null,null,null,null,null,null,null,null,null,null,null,null,null,null,null,null,null,null,null,null,null,null,null,null,null,null,null,null,null,null,null,null,null,null,null,null,null,null,null,null,null,null,null,null,null,null,null,null,null,null,null,null,null,null,null,null,null,null,null,null,null,null,null,null,null,null,null,null,null,null,null,null,null,null,null,null,null,null,null,null,null,"Ocean Twp. (Monmouth Co.)",null,"Oaklyn Boro. (Camden Co.)",159]
[null,null,null,null,null,null,null,null,null,null,null,null,null,null,null,null,null,null,null,null,null,null,null,null,null,null,null,null,null,null,null,null,null,null,null,null,null,null,null,null,null,null,null,null,null,null,null,null,null,null,null,null,null,null,null,null,null,null,null,null,null,null,null,null,null,null,null,null,null,null,null,null,null,null,null,null,null,null,null,null,null,null,"Oceanport Boro. (Monmouth Co.)",null,"Ocean City (Cape May Co.)",178]
[null,null,null,null,null,null,null,null,null,null,null,null,null,null,null,null,null,null,null,null,null,null,null,null,null,null,null,null,null,null,null,null,null,null,null,null,null,null,null,null,null,null,null,null,null,null,null,null,null,null,null,null,null,null,null,null,null,null,null,null,null,null,null,null,null,null,null,null,null,null,null,null,null,null,null,null,null,null,null,null,null,null,"Red Bank Boro. (Monmouth Co.)",null,"Ocean Gate Boro. (Ocean Co.)",435]
[null,null,null,null,null,null,null,null,null,null,null,null,null,null,null,null,null,null,null,null,null,null,null,null,null,null,null,null,null,null,null,null,null,null,null,null,null,null,null,null,null,null,null,null,null,null,null,null,null,null,null,null,null,null,null,null,null,null,null,null,null,null,null,null,null,null,null,null,null,null,null,null,null,null,null,null,null,null,null,null,null,null,"Roosevelt Boro. (Monmouth Co.)",null,"Ocean Twp. (Monmouth Co.)",359]
[null,null,null,null,null,null,null,null,null,null,null,null,null,null,null,null,null,null,null,null,null,null,null,null,null,null,null,null,null,null,null,null,null,null,null,null,null,null,null,null,null,null,null,null,null,null,null,null,null,null,null,null,null,null,null,null,null,null,null,null,null,null,null,null,null,null,null,null,null,null,null,null,null,null,null,null,null,null,null,null,null,null,"Rumson Boro. (Monmouth Co.)",null,"Ocean Twp. (Ocean Co.)",436]
[null,null,null,null,null,null,null,null,null,null,null,null,null,null,null,null,null,null,null,null,null,null,null,null,null,null,null,null,null,null,null,null,null,null,null,null,null,null,null,null,null,null,null,null,null,null,null,null,null,null,null,null,null,null,null,null,null,null,null,null,null,null,null,null,null,null,null,null,null,null,null,null,null,null,null,null,null,null,null,null,null,null,"Sea Bright Boro. (Monmouth Co.)",null,"Oceanport Boro. (Monmouth Co.)",360]
[null,null,null,null,null,null,null,null,null,null,null,null,null,null,null,null,null,null,null,null,null,null,null,null,null,null,null,null,null,null,null,null,null,null,null,null,null,null,null,null,null,null,null,null,null,null,null,null,null,null,null,null,null,null,null,null,null,null,null,null,null,null,null,null,null,null,null,null,null,null,null,null,null,null,null,null,null,null,null,null,null,null,"Sea Girt Boro. (Monmouth Co.)",null,"Ogdensburg Boro. (Sussex Co.)",515]
[null,null,null,null,null,null,null,null,null,null,null,null,null,null,null,null,null,null,null,null,null,null,null,null,null,null,null,null,null,null,null,null,null,null,null,null,null,null,null,null,null,null,null,null,null,null,null,null,null,null,null,null,null,null,null,null,null,null,null,null,null,null,null,null,null,null,null,null,null,null,null,null,null,null,null,null,null,null,null,null,null,null,"Shrewsbury Boro. (Monmouth Co.)",null,"Old Bridge Twp. (Middlesex Co.)",312]
[null,null,null,null,null,null,null,null,null,null,null,null,null,null,null,null,null,null,null,null,null,null,null,null,null,null,null,null,null,null,null,null,null,null,null,null,null,null,null,null,null,null,null,null,null,null,null,null,null,null,null,null,null,null,null,null,null,null,null,null,null,null,null,null,null,null,null,null,null,null,null,null,null,null,null,null,null,null,null,null,null,null,"Shrewsbury Twp. (Monmouth Co.)",null,"Old Tappan Boro. (Bergen Co.)",66]
[null,null,null,null,null,null,null,null,null,null,null,null,null,null,null,null,null,null,null,null,null,null,null,null,null,null,null,null,null,null,null,null,null,null,null,null,null,null,null,null,null,null,null,null,null,null,null,null,null,null,null,null,null,null,null,null,null,null,null,null,null,null,null,null,null,null,null,null,null,null,null,null,null,null,null,null,null,null,null,null,null,null,"South Belmar Boro. (Monmouth Co.)",null,"Oldmans Twp. (Salem Co.)",470]
[null,null,null,null,null,null,null,null,null,null,null,null,null,null,null,null,null,null,null,null,null,null,null,null,null,null,null,null,null,null,null,null,null,null,null,null,null,null,null,null,null,null,null,null,null,null,null,null,null,null,null,null,null,null,null,null,null,null,null,null,null,null,null,null,null,null,null,null,null,null,null,null,null,null,null,null,null,null,null,null,null,null,"Spring Lake Boro. (Monmouth Co.)",null,"Oradell Boro. (Bergen Co.)",67]
[null,null,null,null,null,null,null,null,null,null,null,null,null,null,null,null,null,null,null,null,null,null,null,null,null,null,null,null,null,null,null,null,null,null,null,null,null,null,null,null,null,null,null,null,null,null,null,null,null,null,null,null,null,null,null,null,null,null,null,null,null,null,null,null,null,null,null,null,null,null,null,null,null,null,null,null,null,null,null,null,null,null,"Spring Lake Heights Boro. (Monmouth Co.)",null,"Orange City (Essex Co.)",217]
[null,null,null,null,null,null,null,null,null,null,null,null,null,null,null,null,null,null,null,null,null,null,null,null,null,null,null,null,null,null,null,null,null,null,null,null,null,null,null,null,null,null,null,null,null,null,null,null,null,null,null,null,null,null,null,null,null,null,null,null,null,null,null,null,null,null,null,null,null,null,null,null,null,null,null,null,null,null,null,null,null,null,"Tinton Falls Boro. (Monmouth Co.)",null,"Oxford Twp. (Warren Co.)",561]
[null,null,null,null,null,null,null,null,null,null,null,null,null,null,null,null,null,null,null,null,null,null,null,null,null,null,null,null,null,null,null,null,null,null,null,null,null,null,null,null,null,null,null,null,null,null,null,null,null,null,null,null,null,null,null,null,null,null,null,null,null,null,null,null,null,null,null,null,null,null,null,null,null,null,null,null,null,null,null,null,null,null,"Union Beach Boro. (Monmouth Co.)",null,"Pahaquarry Twp. (Warren Co.)",562]
[null,null,null,null,null,null,null,null,null,null,null,null,null,null,null,null,null,null,null,null,null,null,null,null,null,null,null,null,null,null,null,null,null,null,null,null,null,null,null,null,null,null,null,null,null,null,null,null,null,null,null,null,null,null,null,null,null,null,null,null,null,null,null,null,null,null,null,null,null,null,null,null,null,null,null,null,null,null,null,null,null,null,"Upper Freehold Twp. (Monmouth Co.)",null,"Palisades Park Boro. (Bergen Co.)",68]
[null,null,null,null,null,null,null,null,null,null,null,null,null,null,null,null,null,null,null,null,null,null,null,null,null,null,null,null,null,null,null,null,null,null,null,null,null,null,null,null,null,null,null,null,null,null,null,null,null,null,null,null,null,null,null,null,null,null,null,null,null,null,null,null,null,null,null,null,null,null,null,null,null,null,null,null,null,null,null,null,null,null,"Wall Twp. (Monmouth Co.)",null,"Palmyra Boro. (Burlington Co.)",120]
[null,null,null,null,null,null,null,null,null,null,null,null,null,null,null,null,null,null,null,null,null,null,null,null,null,null,null,null,null,null,null,null,null,null,null,null,null,null,null,null,null,null,null,null,null,null,null,null,null,null,null,null,null,null,null,null,null,null,null,null,null,null,null,null,null,null,null,null,null,null,null,null,null,null,null,null,null,null,null,null,null,null,"West Long Branch Boro. (Monmouth Co.)",null,"Paramus Boro. (Bergen Co.)",69]
[null,null,null,null,null,null,null,null,null,null,null,null,null,null,null,null,null,null,null,null,null,null,null,null,null,null,null,null,null,null,null,null,null,null,null,null,null,null,null,null,null,null,null,null,null,null,null,null,null,null,null,null,null,null,null,null,null,null,null,null,null,null,null,null,null,null,null,null,null,null,null,null,null,null,null,null,null,null,null,null,null,null,"Boonton Town (Morris Co.)",null,"Park Ridge Boro. (Bergen Co.)",70]
[null,null,null,null,null,null,null,null,null,null,null,null,null,null,null,null,null,null,null,null,null,null,null,null,null,null,null,null,null,null,null,null,null,null,null,null,null,null,null,null,null,null,null,null,null,null,null,null,null,null,null,null,null,null,null,null,null,null,null,null,null,null,null,null,null,null,null,null,null,null,null,null,null,null,null,null,null,null,null,null,null,null,"Boonton Twp. (Morris Co.)",null,"Parsippany-Troy Hills Twp. (Morris Co.)",404]
[null,null,null,null,null,null,null,null,null,null,null,null,null,null,null,null,null,null,null,null,null,null,null,null,null,null,null,null,null,null,null,null,null,null,null,null,null,null,null,null,null,null,null,null,null,null,null,null,null,null,null,null,null,null,null,null,null,null,null,null,null,null,null,null,null,null,null,null,null,null,null,null,null,null,null,null,null,null,null,null,null,null,"Butler Boro. (Morris Co.)",null,"Passaic City (Passaic Co.)",454]
[null,null,null,null,null,null,null,null,null,null,null,null,null,null,null,null,null,null,null,null,null,null,null,null,null,null,null,null,null,null,null,null,null,null,null,null,null,null,null,null,null,null,null,null,null,null,null,null,null,null,null,null,null,null,null,null,null,null,null,null,null,null,null,null,null,null,null,null,null,null,null,null,null,null,null,null,null,null,null,null,null,null,"Chatham Boro. (Morris Co.)",null,"Passaic Twp. (Morris Co.)",405]
[null,null,null,null,null,null,null,null,null,null,null,null,null,null,null,null,null,null,null,null,null,null,null,null,null,null,null,null,null,null,null,null,null,null,null,null,null,null,null,null,null,null,null,null,null,null,null,null,null,null,null,null,null,null,null,null,null,null,null,null,null,null,null,null,null,null,null,null,null,null,null,null,null,null,null,null,null,null,null,null,null,null,"Chatham Twp. (Morris Co.)",null,"Paterson City (Passaic Co.)",455]
[null,null,null,null,null,null,null,null,null,null,null,null,null,null,null,null,null,null,null,null,null,null,null,null,null,null,null,null,null,null,null,null,null,null,null,null,null,null,null,null,null,null,null,null,null,null,null,null,null,null,null,null,null,null,null,null,null,null,null,null,null,null,null,null,null,null,null,null,null,null,null,null,null,null,null,null,null,null,null,null,null,null,"Chester Boro. (Morris Co.)",null,"Paulsboro Boro. (Gloucester Co.)",236]
[null,null,null,null,null,null,null,null,null,null,null,null,null,null,null,null,null,null,null,null,null,null,null,null,null,null,null,null,null,null,null,null,null,null,null,null,null,null,null,null,null,null,null,null,null,null,null,null,null,null,null,null,null,null,null,null,null,null,null,null,null,null,null,null,null,null,null,null,null,null,null,null,null,null,null,null,null,null,null,null,null,null,"Chester Twp. (Morris Co.)",null,"Peapack-Gladstone Boro. (Somerset Co.)",493]
[null,null,null,null,null,null,null,null,null,null,null,null,null,null,null,null,null,null,null,null,null,null,null,null,null,null,null,null,null,null,null,null,null,null,null,null,null,null,null,null,null,null,null,null,null,null,null,null,null,null,null,null,null,null,null,null,null,null,null,null,null,null,null,null,null,null,null,null,null,null,null,null,null,null,null,null,null,null,null,null,null,null,"Denville Twp. (Morris Co.)",null,"Pemberton Boro. (Burlington Co.)",121]
[null,null,null,null,null,null,null,null,null,null,null,null,null,null,null,null,null,null,null,null,null,null,null,null,null,null,null,null,null,null,null,null,null,null,null,null,null,null,null,null,null,null,null,null,null,null,null,null,null,null,null,null,null,null,null,null,null,null,null,null,null,null,null,null,null,null,null,null,null,null,null,null,null,null,null,null,null,null,null,null,null,null,"Dover Town (Morris Co.)",null,"Pemberton Twp. (Burlington Co.)",122]
[null,null,null,null,null,null,null,null,null,null,null,null,null,null,null,null,null,null,null,null,null,null,null,null,null,null,null,null,null,null,null,null,null,null,null,null,null,null,null,null,null,null,null,null,null,null,null,null,null,null,null,null,null,null,null,null,null,null,null,null,null,null,null,null,null,null,null,null,null,null,null,null,null,null,null,null,null,null,null,null,null,null,"East Hanover Twp. (Morris Co.)",null,"Pennington Boro. (Mercer Co.)",292]
[null,null,null,null,null,null,null,null,null,null,null,null,null,null,null,null,null,null,null,null,null,null,null,null,null,null,null,null,null,null,null,null,null,null,null,null,null,null,null,null,null,null,null,null,null,null,null,null,null,null,null,null,null,null,null,null,null,null,null,null,null,null,null,null,null,null,null,null,null,null,null,null,null,null,null,null,null,null,null,null,null,null,"Florham Park Boro. (Morris Co.)",null,"Penns Grove Boro. (Salem Co.)",471]
[null,null,null,null,null,null,null,null,null,null,null,null,null,null,null,null,null,null,null,null,null,null,null,null,null,null,null,null,null,null,null,null,null,null,null,null,null,null,null,null,null,null,null,null,null,null,null,null,null,null,null,null,null,null,null,null,null,null,null,null,null,null,null,null,null,null,null,null,null,null,null,null,null,null,null,null,null,null,null,null,null,null,"Hanover Twp. (Morris Co.)",null,"Pennsauken Twp. (Camden Co.)",160]
[null,null,null,null,null,null,null,null,null,null,null,null,null,null,null,null,null,null,null,null,null,null,null,null,null,null,null,null,null,null,null,null,null,null,null,null,null,null,null,null,null,null,null,null,null,null,null,null,null,null,null,null,null,null,null,null,null,null,null,null,null,null,null,null,null,null,null,null,null,null,null,null,null,null,null,null,null,null,null,null,null,null,"Harding Twp. (Morris Co.)",null,"Pennsville Twp. (Salem Co.)",472]
[null,null,null,null,null,null,null,null,null,null,null,null,null,null,null,null,null,null,null,null,null,null,null,null,null,null,null,null,null,null,null,null,null,null,null,null,null,null,null,null,null,null,null,null,null,null,null,null,null,null,null,null,null,null,null,null,null,null,null,null,null,null,null,null,null,null,null,null,null,null,null,null,null,null,null,null,null,null,null,null,null,null,"Jefferson Twp. (Morris Co.)",null,"Pequannock Twp. (Morris Co.)",406]
[null,null,null,null,null,null,null,null,null,null,null,null,null,null,null,null,null,null,null,null,null,null,null,null,null,null,null,null,null,null,null,null,null,null,null,null,null,null,null,null,null,null,null,null,null,null,null,null,null,null,null,null,null,null,null,null,null,null,null,null,null,null,null,null,null,null,null,null,null,null,null,null,null,null,null,null,null,null,null,null,null,null,"Kinnelon Boro. (Morris Co.)",null,"Perth Amboy City (Middlesex Co.)",313]
[null,null,null,null,null,null,null,null,null,null,null,null,null,null,null,null,null,null,null,null,null,null,null,null,null,null,null,null,null,null,null,null,null,null,null,null,null,null,null,null,null,null,null,null,null,null,null,null,null,null,null,null,null,null,null,null,null,null,null,null,null,null,null,null,null,null,null,null,null,null,null,null,null,null,null,null,null,null,null,null,null,null,"Lincoln Park Boro. (Morris Co.)",null,"Phillipsburg Town (Warren Co.)",563]
[null,null,null,null,null,null,null,null,null,null,null,null,null,null,null,null,null,null,null,null,null,null,null,null,null,null,null,null,null,null,null,null,null,null,null,null,null,null,null,null,null,null,null,null,null,null,null,null,null,null,null,null,null,null,null,null,null,null,null,null,null,null,null,null,null,null,null,null,null,null,null,null,null,null,null,null,null,null,null,null,null,null,"Madison Boro. (Morris Co.)",null,"Pilesgrove Twp. (Salem Co.)",473]
[null,null,null,null,null,null,null,null,null,null,null,null,null,null,null,null,null,null,null,null,null,null,null,null,null,null,null,null,null,null,null,null,null,null,null,null,null,null,null,null,null,null,null,null,null,null,null,null,null,null,null,null,null,null,null,null,null,null,null,null,null,null,null,null,null,null,null,null,null,null,null,null,null,null,null,null,null,null,null,null,null,null,"Mendham Boro. (Morris Co.)",null,"Pine Hill Boro. (Camden Co.)",161]
[null,null,null,null,null,null,null,null,null,null,null,null,null,null,null,null,null,null,null,null,null,null,null,null,null,null,null,null,null,null,null,null,null,null,null,null,null,null,null,null,null,null,null,null,null,null,null,null,null,null,null,null,null,null,null,null,null,null,null,null,null,null,null,null,null,null,null,null,null,null,null,null,null,null,null,null,null,null,null,null,null,null,"Mendham Twp. (Morris Co.)",null,"Pine Valley Boro. (Camden Co.)",162]
[null,null,null,null,null,null,null,null,null,null,null,null,null,null,null,null,null,null,null,null,null,null,null,null,null,null,null,null,null,null,null,null,null,null,null,null,null,null,null,null,null,null,null,null,null,null,null,null,null,null,null,null,null,null,null,null,null,null,null,null,null,null,null,null,null,null,null,null,null,null,null,null,null,null,null,null,null,null,null,null,null,null,"Mine Hill Twp. (Morris Co.)",null,"Piscataway Twp. (Middlesex Co.)",314]
[null,null,null,null,null,null,null,null,null,null,null,null,null,null,null,null,null,null,null,null,null,null,null,null,null,null,null,null,null,null,null,null,null,null,null,null,null,null,null,null,null,null,null,null,null,null,null,null,null,null,null,null,null,null,null,null,null,null,null,null,null,null,null,null,null,null,null,null,null,null,null,null,null,null,null,null,null,null,null,null,null,null,"Montville Twp. (Morris Co.)",null,"Pitman Boro. (Gloucester Co.)",237]
[null,null,null,null,null,null,null,null,null,null,null,null,null,null,null,null,null,null,null,null,null,null,null,null,null,null,null,null,null,null,null,null,null,null,null,null,null,null,null,null,null,null,null,null,null,null,null,null,null,null,null,null,null,null,null,null,null,null,null,null,null,null,null,null,null,null,null,null,null,null,null,null,null,null,null,null,null,null,null,null,null,null,"Morris Plains Boro. (Morris Co.)",null,"Pittsgrove Twp. (Salem Co.)",474]
[null,null,null,null,null,null,null,null,null,null,null,null,null,null,null,null,null,null,null,null,null,null,null,null,null,null,null,null,null,null,null,null,null,null,null,null,null,null,null,null,null,null,null,null,null,null,null,null,null,null,null,null,null,null,null,null,null,null,null,null,null,null,null,null,null,null,null,null,null,null,null,null,null,null,null,null,null,null,null,null,null,null,"Morris Twp. (Morris Co.)",null,"Plainfield City (Union Co.)",535]
[null,null,null,null,null,null,null,null,null,null,null,null,null,null,null,null,null,null,null,null,null,null,null,null,null,null,null,null,null,null,null,null,null,null,null,null,null,null,null,null,null,null,null,null,null,null,null,null,null,null,null,null,null,null,null,null,null,null,null,null,null,null,null,null,null,null,null,null,null,null,null,null,null,null,null,null,null,null,null,null,null,null,"Morristown Town (Morris Co.)",null,"Plainsboro Twp. (Middlesex Co.)",315]
[null,null,null,null,null,null,null,null,null,null,null,null,null,null,null,null,null,null,null,null,null,null,null,null,null,null,null,null,null,null,null,null,null,null,null,null,null,null,null,null,null,null,null,null,null,null,null,null,null,null,null,null,null,null,null,null,null,null,null,null,null,null,null,null,null,null,null,null,null,null,null,null,null,null,null,null,null,null,null,null,null,null,"Mount Arlington Boro. (Morris Co.)",null,"Pleasantville City (Atlantic Co.)",19]
[null,null,null,null,null,null,null,null,null,null,null,null,null,null,null,null,null,null,null,null,null,null,null,null,null,null,null,null,null,null,null,null,null,null,null,null,null,null,null,null,null,null,null,null,null,null,null,null,null,null,null,null,null,null,null,null,null,null,null,null,null,null,null,null,null,null,null,null,null,null,null,null,null,null,null,null,null,null,null,null,null,null,"Mount Olive Twp. (Morris Co.)",null,"Plumsted Twp. (Ocean Co.)",438]
[null,null,null,null,null,null,null,null,null,null,null,null,null,null,null,null,null,null,null,null,null,null,null,null,null,null,null,null,null,null,null,null,null,null,null,null,null,null,null,null,null,null,null,null,null,null,null,null,null,null,null,null,null,null,null,null,null,null,null,null,null,null,null,null,null,null,null,null,null,null,null,null,null,null,null,null,null,null,null,null,null,null,"Mountain Lakes Boro. (Morris Co.)",null,"Pne Beach Boro. (Ocean Co.)",437]
[null,null,null,null,null,null,null,null,null,null,null,null,null,null,null,null,null,null,null,null,null,null,null,null,null,null,null,null,null,null,null,null,null,null,null,null,null,null,null,null,null,null,null,null,null,null,null,null,null,null,null,null,null,null,null,null,null,null,null,null,null,null,null,null,null,null,null,null,null,null,null,null,null,null,null,null,null,null,null,null,null,null,"Netcong Boro. (Morris Co.)",null,"Pohatcong Twp. (Warren Co.)",564]
[null,null,null,null,null,null,null,null,null,null,null,null,null,null,null,null,null,null,null,null,null,null,null,null,null,null,null,null,null,null,null,null,null,null,null,null,null,null,null,null,null,null,null,null,null,null,null,null,null,null,null,null,null,null,null,null,null,null,null,null,null,null,null,null,null,null,null,null,null,null,null,null,null,null,null,null,null,null,null,null,null,null,"Parsippany-Troy Hills Twp. (Morris Co.)",null,"Point Pleasant Beach Boro. (Ocean Co.)",439]
[null,null,null,null,null,null,null,null,null,null,null,null,null,null,null,null,null,null,null,null,null,null,null,null,null,null,null,null,null,null,null,null,null,null,null,null,null,null,null,null,null,null,null,null,null,null,null,null,null,null,null,null,null,null,null,null,null,null,null,null,null,null,null,null,null,null,null,null,null,null,null,null,null,null,null,null,null,null,null,null,null,null,"Passaic Twp. (Morris Co.)",null,"Point Pleasant Boro. (Ocean Co.)",440]
[null,null,null,null,null,null,null,null,null,null,null,null,null,null,null,null,null,null,null,null,null,null,null,null,null,null,null,null,null,null,null,null,null,null,null,null,null,null,null,null,null,null,null,null,null,null,null,null,null,null,null,null,null,null,null,null,null,null,null,null,null,null,null,null,null,null,null,null,null,null,null,null,null,null,null,null,null,null,null,null,null,null,"Pequannock Twp. (Morris Co.)",null,"Pompton Lakes Boro. (Passaic Co.)",456]
[null,null,null,null,null,null,null,null,null,null,null,null,null,null,null,null,null,null,null,null,null,null,null,null,null,null,null,null,null,null,null,null,null,null,null,null,null,null,null,null,null,null,null,null,null,null,null,null,null,null,null,null,null,null,null,null,null,null,null,null,null,null,null,null,null,null,null,null,null,null,null,null,null,null,null,null,null,null,null,null,null,null,"Randolph Twp. (Morris Co.)",null,"Port Republic City (Atlantic Co.)",20]
[null,null,null,null,null,null,null,null,null,null,null,null,null,null,null,null,null,null,null,null,null,null,null,null,null,null,null,null,null,null,null,null,null,null,null,null,null,null,null,null,null,null,null,null,null,null,null,null,null,null,null,null,null,null,null,null,null,null,null,null,null,null,null,null,null,null,null,null,null,null,null,null,null,null,null,null,null,null,null,null,null,null,"Riverdale Boro. (Morris Co.)",null,"Princeton Boro. (Mercer Co.)",293]
[null,null,null,null,null,null,null,null,null,null,null,null,null,null,null,null,null,null,null,null,null,null,null,null,null,null,null,null,null,null,null,null,null,null,null,null,null,null,null,null,null,null,null,null,null,null,null,null,null,null,null,null,null,null,null,null,null,null,null,null,null,null,null,null,null,null,null,null,null,null,null,null,null,null,null,null,null,null,null,null,null,null,"Rockaway Boro. (Morris Co.)",null,"Princeton Twp. (Mercer Co.)",294]
[null,null,null,null,null,null,null,null,null,null,null,null,null,null,null,null,null,null,null,null,null,null,null,null,null,null,null,null,null,null,null,null,null,null,null,null,null,null,null,null,null,null,null,null,null,null,null,null,null,null,null,null,null,null,null,null,null,null,null,null,null,null,null,null,null,null,null,null,null,null,null,null,null,null,null,null,null,null,null,null,null,null,"Rockaway Twp. (Morris Co.)",null,"Prospect Park Boro. (Passaic Co.)",457]
[null,null,null,null,null,null,null,null,null,null,null,null,null,null,null,null,null,null,null,null,null,null,null,null,null,null,null,null,null,null,null,null,null,null,null,null,null,null,null,null,null,null,null,null,null,null,null,null,null,null,null,null,null,null,null,null,null,null,null,null,null,null,null,null,null,null,null,null,null,null,null,null,null,null,null,null,null,null,null,null,null,null,"Roxbury Twp. (Morris Co.)",null,"Quinton Twp. (Salem Co.)",475]
[null,null,null,null,null,null,null,null,null,null,null,null,null,null,null,null,null,null,null,null,null,null,null,null,null,null,null,null,null,null,null,null,null,null,null,null,null,null,null,null,null,null,null,null,null,null,null,null,null,null,null,null,null,null,null,null,null,null,null,null,null,null,null,null,null,null,null,null,null,null,null,null,null,null,null,null,null,null,null,null,null,null,"Victory Gardens Boro. (Morris Co.)",null,"Rahway City (Union Co.)",536]
[null,null,null,null,null,null,null,null,null,null,null,null,null,null,null,null,null,null,null,null,null,null,null,null,null,null,null,null,null,null,null,null,null,null,null,null,null,null,null,null,null,null,null,null,null,null,null,null,null,null,null,null,null,null,null,null,null,null,null,null,null,null,null,null,null,null,null,null,null,null,null,null,null,null,null,null,null,null,null,null,null,null,"Washington Twp. (Morris Co.)",null,"Ramsey Boro. (Bergen Co.)",71]
[null,null,null,null,null,null,null,null,null,null,null,null,null,null,null,null,null,null,null,null,null,null,null,null,null,null,null,null,null,null,null,null,null,null,null,null,null,null,null,null,null,null,null,null,null,null,null,null,null,null,null,null,null,null,null,null,null,null,null,null,null,null,null,null,null,null,null,null,null,null,null,null,null,null,null,null,null,null,null,null,null,null,"Wharton Boro. (Morris Co.)",null,"Randolph Twp. (Morris Co.)",407]
[null,null,null,null,null,null,null,null,null,null,null,null,null,null,null,null,null,null,null,null,null,null,null,null,null,null,null,null,null,null,null,null,null,null,null,null,null,null,null,null,null,null,null,null,null,null,null,null,null,null,null,null,null,null,null,null,null,null,null,null,null,null,null,null,null,null,null,null,null,null,null,null,null,null,null,null,null,null,null,null,null,null,"Barnegat Light Boro. (Ocean Co.)",null,"Raritan Boro. (Somerset Co.)",494]
[null,null,null,null,null,null,null,null,null,null,null,null,null,null,null,null,null,null,null,null,null,null,null,null,null,null,null,null,null,null,null,null,null,null,null,null,null,null,null,null,null,null,null,null,null,null,null,null,null,null,null,null,null,null,null,null,null,null,null,null,null,null,null,null,null,null,null,null,null,null,null,null,null,null,null,null,null,null,null,null,null,null,"Barnegat Twp.  (Ocean Co.)",null,"Raritan Twp. (Hunterdon Co.)",279]
[null,null,null,null,null,null,null,null,null,null,null,null,null,null,null,null,null,null,null,null,null,null,null,null,null,null,null,null,null,null,null,null,null,null,null,null,null,null,null,null,null,null,null,null,null,null,null,null,null,null,null,null,null,null,null,null,null,null,null,null,null,null,null,null,null,null,null,null,null,null,null,null,null,null,null,null,null,null,null,null,null,null,"Bay Head Boro. (Ocean Co.)",null,"Readington Twp. (Hunterdon Co.)",280]
[null,null,null,null,null,null,null,null,null,null,null,null,null,null,null,null,null,null,null,null,null,null,null,null,null,null,null,null,null,null,null,null,null,null,null,null,null,null,null,null,null,null,null,null,null,null,null,null,null,null,null,null,null,null,null,null,null,null,null,null,null,null,null,null,null,null,null,null,null,null,null,null,null,null,null,null,null,null,null,null,null,null,"Beach Haven Boro. (Ocean Co.)",null,"Red Bank Boro. (Monmouth Co.)",361]
[null,null,null,null,null,null,null,null,null,null,null,null,null,null,null,null,null,null,null,null,null,null,null,null,null,null,null,null,null,null,null,null,null,null,null,null,null,null,null,null,null,null,null,null,null,null,null,null,null,null,null,null,null,null,null,null,null,null,null,null,null,null,null,null,null,null,null,null,null,null,null,null,null,null,null,null,null,null,null,null,null,null,"Beachwood Boro. (Ocean Co.)",null,"Ridgefield Boro. (Bergen Co.)",72]
[null,null,null,null,null,null,null,null,null,null,null,null,null,null,null,null,null,null,null,null,null,null,null,null,null,null,null,null,null,null,null,null,null,null,null,null,null,null,null,null,null,null,null,null,null,null,null,null,null,null,null,null,null,null,null,null,null,null,null,null,null,null,null,null,null,null,null,null,null,null,null,null,null,null,null,null,null,null,null,null,null,null,"Berkeley Twp. (Ocean Co.)",null,"Ridgefield Park Village (Bergen Co.)",73]
[null,null,null,null,null,null,null,null,null,null,null,null,null,null,null,null,null,null,null,null,null,null,null,null,null,null,null,null,null,null,null,null,null,null,null,null,null,null,null,null,null,null,null,null,null,null,null,null,null,null,null,null,null,null,null,null,null,null,null,null,null,null,null,null,null,null,null,null,null,null,null,null,null,null,null,null,null,null,null,null,null,null,"Brick Twp. (Ocean Co.)",null,"Ridgewood Village (Bergen Co.)",74]
[null,null,null,null,null,null,null,null,null,null,null,null,null,null,null,null,null,null,null,null,null,null,null,null,null,null,null,null,null,null,null,null,null,null,null,null,null,null,null,null,null,null,null,null,null,null,null,null,null,null,null,null,null,null,null,null,null,null,null,null,null,null,null,null,null,null,null,null,null,null,null,null,null,null,null,null,null,null,null,null,null,null,"Dover Twp. (Ocean Co.)",null,"Ringwood Boro. (Passaic Co.)",458]
[null,null,null,null,null,null,null,null,null,null,null,null,null,null,null,null,null,null,null,null,null,null,null,null,null,null,null,null,null,null,null,null,null,null,null,null,null,null,null,null,null,null,null,null,null,null,null,null,null,null,null,null,null,null,null,null,null,null,null,null,null,null,null,null,null,null,null,null,null,null,null,null,null,null,null,null,null,null,null,null,null,null,"Eagleswood Twp. (Ocean Co.)",null,"River Edge Boro. (Bergen Co.)",75]
[null,null,null,null,null,null,null,null,null,null,null,null,null,null,null,null,null,null,null,null,null,null,null,null,null,null,null,null,null,null,null,null,null,null,null,null,null,null,null,null,null,null,null,null,null,null,null,null,null,null,null,null,null,null,null,null,null,null,null,null,null,null,null,null,null,null,null,null,null,null,null,null,null,null,null,null,null,null,null,null,null,null,"Harvey Cedars Boro. (Ocean Co.)",null,"River Vale Twp. (Bergen Co.)",76]
[null,null,null,null,null,null,null,null,null,null,null,null,null,null,null,null,null,null,null,null,null,null,null,null,null,null,null,null,null,null,null,null,null,null,null,null,null,null,null,null,null,null,null,null,null,null,null,null,null,null,null,null,null,null,null,null,null,null,null,null,null,null,null,null,null,null,null,null,null,null,null,null,null,null,null,null,null,null,null,null,null,null,"Island Heights Boro. (Ocean Co.)",null,"Riverdale Boro. (Morris Co.)",408]
[null,null,null,null,null,null,null,null,null,null,null,null,null,null,null,null,null,null,null,null,null,null,null,null,null,null,null,null,null,null,null,null,null,null,null,null,null,null,null,null,null,null,null,null,null,null,null,null,null,null,null,null,null,null,null,null,null,null,null,null,null,null,null,null,null,null,null,null,null,null,null,null,null,null,null,null,null,null,null,null,null,null,"Jackson Twp. (Ocean Co.)",null,"Riverside Twp. (Burlington Co.)",123]
[null,null,null,null,null,null,null,null,null,null,null,null,null,null,null,null,null,null,null,null,null,null,null,null,null,null,null,null,null,null,null,null,null,null,null,null,null,null,null,null,null,null,null,null,null,null,null,null,null,null,null,null,null,null,null,null,null,null,null,null,null,null,null,null,null,null,null,null,null,null,null,null,null,null,null,null,null,null,null,null,null,null,"Lacey Twp. (Ocean Co.)",null,"Riverton Boro. (Burlington Co.)",124]
[null,null,null,null,null,null,null,null,null,null,null,null,null,null,null,null,null,null,null,null,null,null,null,null,null,null,null,null,null,null,null,null,null,null,null,null,null,null,null,null,null,null,null,null,null,null,null,null,null,null,null,null,null,null,null,null,null,null,null,null,null,null,null,null,null,null,null,null,null,null,null,null,null,null,null,null,null,null,null,null,null,null,"Lakehurst Boro. (Ocean Co.)",null,"Rochelle Park Twp. (Bergen Co.)",77]
[null,null,null,null,null,null,null,null,null,null,null,null,null,null,null,null,null,null,null,null,null,null,null,null,null,null,null,null,null,null,null,null,null,null,null,null,null,null,null,null,null,null,null,null,null,null,null,null,null,null,null,null,null,null,null,null,null,null,null,null,null,null,null,null,null,null,null,null,null,null,null,null,null,null,null,null,null,null,null,null,null,null,"Lakewood Twp. (Ocean Co.)",null,"Rockaway Boro. (Morris Co.)",409]
[null,null,null,null,null,null,null,null,null,null,null,null,null,null,null,null,null,null,null,null,null,null,null,null,null,null,null,null,null,null,null,null,null,null,null,null,null,null,null,null,null,null,null,null,null,null,null,null,null,null,null,null,null,null,null,null,null,null,null,null,null,null,null,null,null,null,null,null,null,null,null,null,null,null,null,null,null,null,null,null,null,null,"Lavallette Boro. (Ocean Co.)",null,"Rockaway Twp. (Morris Co.)",410]
[null,null,null,null,null,null,null,null,null,null,null,null,null,null,null,null,null,null,null,null,null,null,null,null,null,null,null,null,null,null,null,null,null,null,null,null,null,null,null,null,null,null,null,null,null,null,null,null,null,null,null,null,null,null,null,null,null,null,null,null,null,null,null,null,null,null,null,null,null,null,null,null,null,null,null,null,null,null,null,null,null,null,"Little Egg Harbor Twp. (Ocean Co.)",null,"Rockleigh Boro. (Bergen Co.)",78]
[null,null,null,null,null,null,null,null,null,null,null,null,null,null,null,null,null,null,null,null,null,null,null,null,null,null,null,null,null,null,null,null,null,null,null,null,null,null,null,null,null,null,null,null,null,null,null,null,null,null,null,null,null,null,null,null,null,null,null,null,null,null,null,null,null,null,null,null,null,null,null,null,null,null,null,null,null,null,null,null,null,null,"Long Beach Twp. (Ocean Co.)",null,"Rocky Hill Boro. (Somerset Co.)",495]
[null,null,null,null,null,null,null,null,null,null,null,null,null,null,null,null,null,null,null,null,null,null,null,null,null,null,null,null,null,null,null,null,null,null,null,null,null,null,null,null,null,null,null,null,null,null,null,null,null,null,null,null,null,null,null,null,null,null,null,null,null,null,null,null,null,null,null,null,null,null,null,null,null,null,null,null,null,null,null,null,null,null,"Manchester Twp. (Ocean Co.)",null,"Roosevelt Boro. (Monmouth Co.)",362]
[null,null,null,null,null,null,null,null,null,null,null,null,null,null,null,null,null,null,null,null,null,null,null,null,null,null,null,null,null,null,null,null,null,null,null,null,null,null,null,null,null,null,null,null,null,null,null,null,null,null,null,null,null,null,null,null,null,null,null,null,null,null,null,null,null,null,null,null,null,null,null,null,null,null,null,null,null,null,null,null,null,null,"Mantoloking Boro. (Ocean Co.)",null,"Roseland Boro. (Essex Co.)",218]
[null,null,null,null,null,null,null,null,null,null,null,null,null,null,null,null,null,null,null,null,null,null,null,null,null,null,null,null,null,null,null,null,null,null,null,null,null,null,null,null,null,null,null,null,null,null,null,null,null,null,null,null,null,null,null,null,null,null,null,null,null,null,null,null,null,null,null,null,null,null,null,null,null,null,null,null,null,null,null,null,null,null,"Ocean Gate Boro. (Ocean Co.)",null,"Roselle Boro. (Union Co.)",537]
[null,null,null,null,null,null,null,null,null,null,null,null,null,null,null,null,null,null,null,null,null,null,null,null,null,null,null,null,null,null,null,null,null,null,null,null,null,null,null,null,null,null,null,null,null,null,null,null,null,null,null,null,null,null,null,null,null,null,null,null,null,null,null,null,null,null,null,null,null,null,null,null,null,null,null,null,null,null,null,null,null,null,"Ocean Twp. (Ocean Co.)",null,"Roselle Park Boro. (Union Co.)",538]
[null,null,null,null,null,null,null,null,null,null,null,null,null,null,null,null,null,null,null,null,null,null,null,null,null,null,null,null,null,null,null,null,null,null,null,null,null,null,null,null,null,null,null,null,null,null,null,null,null,null,null,null,null,null,null,null,null,null,null,null,null,null,null,null,null,null,null,null,null,null,null,null,null,null,null,null,null,null,null,null,null,null,"Pne Beach Boro. (Ocean Co.)",null,"Roxbury Twp. (Morris Co.)",411]
[null,null,null,null,null,null,null,null,null,null,null,null,null,null,null,null,null,null,null,null,null,null,null,null,null,null,null,null,null,null,null,null,null,null,null,null,null,null,null,null,null,null,null,null,null,null,null,null,null,null,null,null,null,null,null,null,null,null,null,null,null,null,null,null,null,null,null,null,null,null,null,null,null,null,null,null,null,null,null,null,null,null,"Plumsted Twp. (Ocean Co.)",null,"Rumson Boro. (Monmouth Co.)",363]
[null,null,null,null,null,null,null,null,null,null,null,null,null,null,null,null,null,null,null,null,null,null,null,null,null,null,null,null,null,null,null,null,null,null,null,null,null,null,null,null,null,null,null,null,null,null,null,null,null,null,null,null,null,null,null,null,null,null,null,null,null,null,null,null,null,null,null,null,null,null,null,null,null,null,null,null,null,null,null,null,null,null,"Point Pleasant Beach Boro. (Ocean Co.)",null,"Runnemede Boro. (Camden Co.)",163]
[null,null,null,null,null,null,null,null,null,null,null,null,null,null,null,null,null,null,null,null,null,null,null,null,null,null,null,null,null,null,null,null,null,null,null,null,null,null,null,null,null,null,null,null,null,null,null,null,null,null,null,null,null,null,null,null,null,null,null,null,null,null,null,null,null,null,null,null,null,null,null,null,null,null,null,null,null,null,null,null,null,null,"Point Pleasant Boro. (Ocean Co.)",null,"Rutherford Boro. (Bergen Co.)",79]
[null,null,null,null,null,null,null,null,null,null,null,null,null,null,null,null,null,null,null,null,null,null,null,null,null,null,null,null,null,null,null,null,null,null,null,null,null,null,null,null,null,null,null,null,null,null,null,null,null,null,null,null,null,null,null,null,null,null,null,null,null,null,null,null,null,null,null,null,null,null,null,null,null,null,null,null,null,null,null,null,null,null,"Seaside Heights Boro. (Ocean Co.)",null,"Saddle Brook Twp. (Bergen Co.)",80]
[null,null,null,null,null,null,null,null,null,null,null,null,null,null,null,null,null,null,null,null,null,null,null,null,null,null,null,null,null,null,null,null,null,null,null,null,null,null,null,null,null,null,null,null,null,null,null,null,null,null,null,null,null,null,null,null,null,null,null,null,null,null,null,null,null,null,null,null,null,null,null,null,null,null,null,null,null,null,null,null,null,null,"Seaside Park Boro. (Ocean Co.)",null,"Saddle River Boro. (Bergen Co.)",81]
[null,null,null,null,null,null,null,null,null,null,null,null,null,null,null,null,null,null,null,null,null,null,null,null,null,null,null,null,null,null,null,null,null,null,null,null,null,null,null,null,null,null,null,null,null,null,null,null,null,null,null,null,null,null,null,null,null,null,null,null,null,null,null,null,null,null,null,null,null,null,null,null,null,null,null,null,null,null,null,null,null,null,"Ship Bottom Boro. (Ocean Co.)",null,"Salem City (Salem Co.)",476]
[null,null,null,null,null,null,null,null,null,null,null,null,null,null,null,null,null,null,null,null,null,null,null,null,null,null,null,null,null,null,null,null,null,null,null,null,null,null,null,null,null,null,null,null,null,null,null,null,null,null,null,null,null,null,null,null,null,null,null,null,null,null,null,null,null,null,null,null,null,null,null,null,null,null,null,null,null,null,null,null,null,null,"South Toms River Boro. (Ocean Co.)",null,"Sandyston Twp. (Sussex Co.)",516]
[null,null,null,null,null,null,null,null,null,null,null,null,null,null,null,null,null,null,null,null,null,null,null,null,null,null,null,null,null,null,null,null,null,null,null,null,null,null,null,null,null,null,null,null,null,null,null,null,null,null,null,null,null,null,null,null,null,null,null,null,null,null,null,null,null,null,null,null,null,null,null,null,null,null,null,null,null,null,null,null,null,null,"Stafford Twp. (Ocean Co.)",null,"Sayreville Boro. (Middlesex Co.)",316]
[null,null,null,null,null,null,null,null,null,null,null,null,null,null,null,null,null,null,null,null,null,null,null,null,null,null,null,null,null,null,null,null,null,null,null,null,null,null,null,null,null,null,null,null,null,null,null,null,null,null,null,null,null,null,null,null,null,null,null,null,null,null,null,null,null,null,null,null,null,null,null,null,null,null,null,null,null,null,null,null,null,null,"Surf City Boro. (Ocean Co.)",null,"Scotch Plains Twp. (Union Co.)",539]
[null,null,null,null,null,null,null,null,null,null,null,null,null,null,null,null,null,null,null,null,null,null,null,null,null,null,null,null,null,null,null,null,null,null,null,null,null,null,null,null,null,null,null,null,null,null,null,null,null,null,null,null,null,null,null,null,null,null,null,null,null,null,null,null,null,null,null,null,null,null,null,null,null,null,null,null,null,null,null,null,null,null,"Tuckerton Boro. (Ocean Co.)",null,"Sea Bright Boro. (Monmouth Co.)",364]
[null,null,null,null,null,null,null,null,null,null,null,null,null,null,null,null,null,null,null,null,null,null,null,null,null,null,null,null,null,null,null,null,null,null,null,null,null,null,null,null,null,null,null,null,null,null,null,null,null,null,null,null,null,null,null,null,null,null,null,null,null,null,null,null,null,null,null,null,null,null,null,null,null,null,null,null,null,null,null,null,null,null,"Bloomingdale Boro. (Passaic Co.)",null,"Sea Girt Boro. (Monmouth Co.)",365]
[null,null,null,null,null,null,null,null,null,null,null,null,null,null,null,null,null,null,null,null,null,null,null,null,null,null,null,null,null,null,null,null,null,null,null,null,null,null,null,null,null,null,null,null,null,null,null,null,null,null,null,null,null,null,null,null,null,null,null,null,null,null,null,null,null,null,null,null,null,null,null,null,null,null,null,null,null,null,null,null,null,null,"Clifton City (Passaic Co.)",null,"Sea Isle City (Cape May Co.)",179]
[null,null,null,null,null,null,null,null,null,null,null,null,null,null,null,null,null,null,null,null,null,null,null,null,null,null,null,null,null,null,null,null,null,null,null,null,null,null,null,null,null,null,null,null,null,null,null,null,null,null,null,null,null,null,null,null,null,null,null,null,null,null,null,null,null,null,null,null,null,null,null,null,null,null,null,null,null,null,null,null,null,null,"Haledon Boro. (Passaic Co.)",null,"Seaside Heights Boro. (Ocean Co.)",441]
[null,null,null,null,null,null,null,null,null,null,null,null,null,null,null,null,null,null,null,null,null,null,null,null,null,null,null,null,null,null,null,null,null,null,null,null,null,null,null,null,null,null,null,null,null,null,null,null,null,null,null,null,null,null,null,null,null,null,null,null,null,null,null,null,null,null,null,null,null,null,null,null,null,null,null,null,null,null,null,null,null,null,"Hawthorne Boro. (Passaic Co.)",null,"Seaside Park Boro. (Ocean Co.)",442]
[null,null,null,null,null,null,null,null,null,null,null,null,null,null,null,null,null,null,null,null,null,null,null,null,null,null,null,null,null,null,null,null,null,null,null,null,null,null,null,null,null,null,null,null,null,null,null,null,null,null,null,null,null,null,null,null,null,null,null,null,null,null,null,null,null,null,null,null,null,null,null,null,null,null,null,null,null,null,null,null,null,null,"Little Falls Twp.  (Passaic Co.)",null,"Secaucus Town (Hudson Co.)",255]
[null,null,null,null,null,null,null,null,null,null,null,null,null,null,null,null,null,null,null,null,null,null,null,null,null,null,null,null,null,null,null,null,null,null,null,null,null,null,null,null,null,null,null,null,null,null,null,null,null,null,null,null,null,null,null,null,null,null,null,null,null,null,null,null,null,null,null,null,null,null,null,null,null,null,null,null,null,null,null,null,null,null,"North Haledon Boro. (Passaic Co.)",null,"Shamong Twp. (Burlington Co.)",125]
[null,null,null,null,null,null,null,null,null,null,null,null,null,null,null,null,null,null,null,null,null,null,null,null,null,null,null,null,null,null,null,null,null,null,null,null,null,null,null,null,null,null,null,null,null,null,null,null,null,null,null,null,null,null,null,null,null,null,null,null,null,null,null,null,null,null,null,null,null,null,null,null,null,null,null,null,null,null,null,null,null,null,"Passaic City (Passaic Co.)",null,"Shiloh Boro. (Cumberland Co.)",197]
[null,null,null,null,null,null,null,null,null,null,null,null,null,null,null,null,null,null,null,null,null,null,null,null,null,null,null,null,null,null,null,null,null,null,null,null,null,null,null,null,null,null,null,null,null,null,null,null,null,null,null,null,null,null,null,null,null,null,null,null,null,null,null,null,null,null,null,null,null,null,null,null,null,null,null,null,null,null,null,null,null,null,"Paterson City (Passaic Co.)",null,"Ship Bottom Boro. (Ocean Co.)",443]
[null,null,null,null,null,null,null,null,null,null,null,null,null,null,null,null,null,null,null,null,null,null,null,null,null,null,null,null,null,null,null,null,null,null,null,null,null,null,null,null,null,null,null,null,null,null,null,null,null,null,null,null,null,null,null,null,null,null,null,null,null,null,null,null,null,null,null,null,null,null,null,null,null,null,null,null,null,null,null,null,null,null,"Pompton Lakes Boro. (Passaic Co.)",null,"Shrewsbury Boro. (Monmouth Co.)",366]
[null,null,null,null,null,null,null,null,null,null,null,null,null,null,null,null,null,null,null,null,null,null,null,null,null,null,null,null,null,null,null,null,null,null,null,null,null,null,null,null,null,null,null,null,null,null,null,null,null,null,null,null,null,null,null,null,null,null,null,null,null,null,null,null,null,null,null,null,null,null,null,null,null,null,null,null,null,null,null,null,null,null,"Prospect Park Boro. (Passaic Co.)",null,"Shrewsbury Twp. (Monmouth Co.)",367]
[null,null,null,null,null,null,null,null,null,null,null,null,null,null,null,null,null,null,null,null,null,null,null,null,null,null,null,null,null,null,null,null,null,null,null,null,null,null,null,null,null,null,null,null,null,null,null,null,null,null,null,null,null,null,null,null,null,null,null,null,null,null,null,null,null,null,null,null,null,null,null,null,null,null,null,null,null,null,null,null,null,null,"Ringwood Boro. (Passaic Co.)",null,"Somerdale Boro. (Camden Co.)",164]
[null,null,null,null,null,null,null,null,null,null,null,null,null,null,null,null,null,null,null,null,null,null,null,null,null,null,null,null,null,null,null,null,null,null,null,null,null,null,null,null,null,null,null,null,null,null,null,null,null,null,null,null,null,null,null,null,null,null,null,null,null,null,null,null,null,null,null,null,null,null,null,null,null,null,null,null,null,null,null,null,null,null,"Totowa Boro. (Passaic Co.)",null,"Somers Point City (Atlantic Co.)",21]
[null,null,null,null,null,null,null,null,null,null,null,null,null,null,null,null,null,null,null,null,null,null,null,null,null,null,null,null,null,null,null,null,null,null,null,null,null,null,null,null,null,null,null,null,null,null,null,null,null,null,null,null,null,null,null,null,null,null,null,null,null,null,null,null,null,null,null,null,null,null,null,null,null,null,null,null,null,null,null,null,null,null,"Wanaque Boro. (Passaic Co.)",null,"Somerville Boro. (Somerset Co.)",496]
[null,null,null,null,null,null,null,null,null,null,null,null,null,null,null,null,null,null,null,null,null,null,null,null,null,null,null,null,null,null,null,null,null,null,null,null,null,null,null,null,null,null,null,null,null,null,null,null,null,null,null,null,null,null,null,null,null,null,null,null,null,null,null,null,null,null,null,null,null,null,null,null,null,null,null,null,null,null,null,null,null,null,"Wayne Twp. (Passaic Co.)",null,"South Amboy City (Middlesex Co.)",317]
[null,null,null,null,null,null,null,null,null,null,null,null,null,null,null,null,null,null,null,null,null,null,null,null,null,null,null,null,null,null,null,null,null,null,null,null,null,null,null,null,null,null,null,null,null,null,null,null,null,null,null,null,null,null,null,null,null,null,null,null,null,null,null,null,null,null,null,null,null,null,null,null,null,null,null,null,null,null,null,null,null,null,"West Milford Twp. (Passaic Co.)",null,"South Belmar Boro. (Monmouth Co.)",368]
[null,null,null,null,null,null,null,null,null,null,null,null,null,null,null,null,null,null,null,null,null,null,null,null,null,null,null,null,null,null,null,null,null,null,null,null,null,null,null,null,null,null,null,null,null,null,null,null,null,null,null,null,null,null,null,null,null,null,null,null,null,null,null,null,null,null,null,null,null,null,null,null,null,null,null,null,null,null,null,null,null,null,"West Paterson Boro. (Passaic Co.)",null,"South Bound Brook Boro. (Somerset Co.)",497]
[null,null,null,null,null,null,null,null,null,null,null,null,null,null,null,null,null,null,null,null,null,null,null,null,null,null,null,null,null,null,null,null,null,null,null,null,null,null,null,null,null,null,null,null,null,null,null,null,null,null,null,null,null,null,null,null,null,null,null,null,null,null,null,null,null,null,null,null,null,null,null,null,null,null,null,null,null,null,null,null,null,null,"Alloway Twp. (Salem Co.)",null,"South Brunswick Twp. (Middlesex Co.)",318]
[null,null,null,null,null,null,null,null,null,null,null,null,null,null,null,null,null,null,null,null,null,null,null,null,null,null,null,null,null,null,null,null,null,null,null,null,null,null,null,null,null,null,null,null,null,null,null,null,null,null,null,null,null,null,null,null,null,null,null,null,null,null,null,null,null,null,null,null,null,null,null,null,null,null,null,null,null,null,null,null,null,null,"Carneys Point Twp. (Salem Co.)",null,"South Hackensack Twp. (Bergen Co.)",82]
[null,null,null,null,null,null,null,null,null,null,null,null,null,null,null,null,null,null,null,null,null,null,null,null,null,null,null,null,null,null,null,null,null,null,null,null,null,null,null,null,null,null,null,null,null,null,null,null,null,null,null,null,null,null,null,null,null,null,null,null,null,null,null,null,null,null,null,null,null,null,null,null,null,null,null,null,null,null,null,null,null,null,"Elmer Boro. (Salem Co.)",null,"South Harrison Twp. (Gloucester Co.)",238]
[null,null,null,null,null,null,null,null,null,null,null,null,null,null,null,null,null,null,null,null,null,null,null,null,null,null,null,null,null,null,null,null,null,null,null,null,null,null,null,null,null,null,null,null,null,null,null,null,null,null,null,null,null,null,null,null,null,null,null,null,null,null,null,null,null,null,null,null,null,null,null,null,null,null,null,null,null,null,null,null,null,null,"Elsinboro Twp. (Salem Co.)",null,"South Orange Village (Essex Co.)",219]
[null,null,null,null,null,null,null,null,null,null,null,null,null,null,null,null,null,null,null,null,null,null,null,null,null,null,null,null,null,null,null,null,null,null,null,null,null,null,null,null,null,null,null,null,null,null,null,null,null,null,null,null,null,null,null,null,null,null,null,null,null,null,null,null,null,null,null,null,null,null,null,null,null,null,null,null,null,null,null,null,null,null,"Lower Alloways Creek Twp. (Salem Co.)",null,"South Plainfield Boro. (Middlesex Co.)",319]
[null,null,null,null,null,null,null,null,null,null,null,null,null,null,null,null,null,null,null,null,null,null,null,null,null,null,null,null,null,null,null,null,null,null,null,null,null,null,null,null,null,null,null,null,null,null,null,null,null,null,null,null,null,null,null,null,null,null,null,null,null,null,null,null,null,null,null,null,null,null,null,null,null,null,null,null,null,null,null,null,null,null,"Mannington Twp. (Salem Co.)",null,"South River Boro. (Middlesex Co.)",320]
[null,null,null,null,null,null,null,null,null,null,null,null,null,null,null,null,null,null,null,null,null,null,null,null,null,null,null,null,null,null,null,null,null,null,null,null,null,null,null,null,null,null,null,null,null,null,null,null,null,null,null,null,null,null,null,null,null,null,null,null,null,null,null,null,null,null,null,null,null,null,null,null,null,null,null,null,null,null,null,null,null,null,"Oldmans Twp. (Salem Co.)",null,"South Toms River Boro. (Ocean Co.)",444]
[null,null,null,null,null,null,null,null,null,null,null,null,null,null,null,null,null,null,null,null,null,null,null,null,null,null,null,null,null,null,null,null,null,null,null,null,null,null,null,null,null,null,null,null,null,null,null,null,null,null,null,null,null,null,null,null,null,null,null,null,null,null,null,null,null,null,null,null,null,null,null,null,null,null,null,null,null,null,null,null,null,null,"Penns Grove Boro. (Salem Co.)",null,"Southampton Twp. (Burlington Co.)",126]
[null,null,null,null,null,null,null,null,null,null,null,null,null,null,null,null,null,null,null,null,null,null,null,null,null,null,null,null,null,null,null,null,null,null,null,null,null,null,null,null,null,null,null,null,null,null,null,null,null,null,null,null,null,null,null,null,null,null,null,null,null,null,null,null,null,null,null,null,null,null,null,null,null,null,null,null,null,null,null,null,null,null,"Pennsville Twp. (Salem Co.)",null,"Sparta Twp. (Sussex Co.)",517]
[null,null,null,null,null,null,null,null,null,null,null,null,null,null,null,null,null,null,null,null,null,null,null,null,null,null,null,null,null,null,null,null,null,null,null,null,null,null,null,null,null,null,null,null,null,null,null,null,null,null,null,null,null,null,null,null,null,null,null,null,null,null,null,null,null,null,null,null,null,null,null,null,null,null,null,null,null,null,null,null,null,null,"Pilesgrove Twp. (Salem Co.)",null,"Spotswood Boro. (Middlesex Co.)",321]
[null,null,null,null,null,null,null,null,null,null,null,null,null,null,null,null,null,null,null,null,null,null,null,null,null,null,null,null,null,null,null,null,null,null,null,null,null,null,null,null,null,null,null,null,null,null,null,null,null,null,null,null,null,null,null,null,null,null,null,null,null,null,null,null,null,null,null,null,null,null,null,null,null,null,null,null,null,null,null,null,null,null,"Pittsgrove Twp. (Salem Co.)",null,"Spring Lake Boro. (Monmouth Co.)",369]
[null,null,null,null,null,null,null,null,null,null,null,null,null,null,null,null,null,null,null,null,null,null,null,null,null,null,null,null,null,null,null,null,null,null,null,null,null,null,null,null,null,null,null,null,null,null,null,null,null,null,null,null,null,null,null,null,null,null,null,null,null,null,null,null,null,null,null,null,null,null,null,null,null,null,null,null,null,null,null,null,null,null,"Quinton Twp. (Salem Co.)",null,"Spring Lake Heights Boro. (Monmouth Co.)",370]
[null,null,null,null,null,null,null,null,null,null,null,null,null,null,null,null,null,null,null,null,null,null,null,null,null,null,null,null,null,null,null,null,null,null,null,null,null,null,null,null,null,null,null,null,null,null,null,null,null,null,null,null,null,null,null,null,null,null,null,null,null,null,null,null,null,null,null,null,null,null,null,null,null,null,null,null,null,null,null,null,null,null,"Salem City (Salem Co.)",null,"Springfield Twp. (Burlington Co.)",127]
[null,null,null,null,null,null,null,null,null,null,null,null,null,null,null,null,null,null,null,null,null,null,null,null,null,null,null,null,null,null,null,null,null,null,null,null,null,null,null,null,null,null,null,null,null,null,null,null,null,null,null,null,null,null,null,null,null,null,null,null,null,null,null,null,null,null,null,null,null,null,null,null,null,null,null,null,null,null,null,null,null,null,"Upper Pittsgrove Twp. (Salem Co.)",null,"Springfield Twp. (Union Co.)",540]
[null,null,null,null,null,null,null,null,null,null,null,null,null,null,null,null,null,null,null,null,null,null,null,null,null,null,null,null,null,null,null,null,null,null,null,null,null,null,null,null,null,null,null,null,null,null,null,null,null,null,null,null,null,null,null,null,null,null,null,null,null,null,null,null,null,null,null,null,null,null,null,null,null,null,null,null,null,null,null,null,null,null,"Woodstown Boro. (Salem Co.)",null,"Stafford Twp. (Ocean Co.)",445]
[null,null,null,null,null,null,null,null,null,null,null,null,null,null,null,null,null,null,null,null,null,null,null,null,null,null,null,null,null,null,null,null,null,null,null,null,null,null,null,null,null,null,null,null,null,null,null,null,null,null,null,null,null,null,null,null,null,null,null,null,null,null,null,null,null,null,null,null,null,null,null,null,null,null,null,null,null,null,null,null,null,null,"Bedminster Twp. (Somerset Co.)",null,"Stanhope Boro. (Sussex Co.)",518]
[null,null,null,null,null,null,null,null,null,null,null,null,null,null,null,null,null,null,null,null,null,null,null,null,null,null,null,null,null,null,null,null,null,null,null,null,null,null,null,null,null,null,null,null,null,null,null,null,null,null,null,null,null,null,null,null,null,null,null,null,null,null,null,null,null,null,null,null,null,null,null,null,null,null,null,null,null,null,null,null,null,null,"Bernards Twp. (Somerset Co.)",null,"Stillwater Twp. (Sussex Co.)",519]
[null,null,null,null,null,null,null,null,null,null,null,null,null,null,null,null,null,null,null,null,null,null,null,null,null,null,null,null,null,null,null,null,null,null,null,null,null,null,null,null,null,null,null,null,null,null,null,null,null,null,null,null,null,null,null,null,null,null,null,null,null,null,null,null,null,null,null,null,null,null,null,null,null,null,null,null,null,null,null,null,null,null,"Bernardsville Boro. (Somerset Co.)",null,"Stockton Boro. (Hunterdon Co.)",281]
[null,null,null,null,null,null,null,null,null,null,null,null,null,null,null,null,null,null,null,null,null,null,null,null,null,null,null,null,null,null,null,null,null,null,null,null,null,null,null,null,null,null,null,null,null,null,null,null,null,null,null,null,null,null,null,null,null,null,null,null,null,null,null,null,null,null,null,null,null,null,null,null,null,null,null,null,null,null,null,null,null,null,"Bound Brook Boro. (Somerset Co.)",null,"Stone Harbor Boro. (Cape May Co.)",180]
[null,null,null,null,null,null,null,null,null,null,null,null,null,null,null,null,null,null,null,null,null,null,null,null,null,null,null,null,null,null,null,null,null,null,null,null,null,null,null,null,null,null,null,null,null,null,null,null,null,null,null,null,null,null,null,null,null,null,null,null,null,null,null,null,null,null,null,null,null,null,null,null,null,null,null,null,null,null,null,null,null,null,"Branchburg Twp. (Somerset Co.)",null,"Stow Creek Twp. (Cumberland Co.)",198]
[null,null,null,null,null,null,null,null,null,null,null,null,null,null,null,null,null,null,null,null,null,null,null,null,null,null,null,null,null,null,null,null,null,null,null,null,null,null,null,null,null,null,null,null,null,null,null,null,null,null,null,null,null,null,null,null,null,null,null,null,null,null,null,null,null,null,null,null,null,null,null,null,null,null,null,null,null,null,null,null,null,null,"Bridgewater Twp. (Somerset Co.)",null,"Stratford Boro. (Camden Co.)",165]
[null,null,null,null,null,null,null,null,null,null,null,null,null,null,null,null,null,null,null,null,null,null,null,null,null,null,null,null,null,null,null,null,null,null,null,null,null,null,null,null,null,null,null,null,null,null,null,null,null,null,null,null,null,null,null,null,null,null,null,null,null,null,null,null,null,null,null,null,null,null,null,null,null,null,null,null,null,null,null,null,null,null,"Far Hills Boro. (Somerset Co.)",null,"Summit City (Union Co.)",541]
[null,null,null,null,null,null,null,null,null,null,null,null,null,null,null,null,null,null,null,null,null,null,null,null,null,null,null,null,null,null,null,null,null,null,null,null,null,null,null,null,null,null,null,null,null,null,null,null,null,null,null,null,null,null,null,null,null,null,null,null,null,null,null,null,null,null,null,null,null,null,null,null,null,null,null,null,null,null,null,null,null,null,"Franklin Twp. (Somerset Co.)",null,"Surf City Boro. (Ocean Co.)",446]
[null,null,null,null,null,null,null,null,null,null,null,null,null,null,null,null,null,null,null,null,null,null,null,null,null,null,null,null,null,null,null,null,null,null,null,null,null,null,null,null,null,null,null,null,null,null,null,null,null,null,null,null,null,null,null,null,null,null,null,null,null,null,null,null,null,null,null,null,null,null,null,null,null,null,null,null,null,null,null,null,null,null,"Green Brook Twp. (Somerset Co.)",null,"Sussex Boro. (Sussex Co.)",520]
[null,null,null,null,null,null,null,null,null,null,null,null,null,null,null,null,null,null,null,null,null,null,null,null,null,null,null,null,null,null,null,null,null,null,null,null,null,null,null,null,null,null,null,null,null,null,null,null,null,null,null,null,null,null,null,null,null,null,null,null,null,null,null,null,null,null,null,null,null,null,null,null,null,null,null,null,null,null,null,null,null,null,"Hillsborough Twp. (Somerset Co.)",null,"Swedesboro Boro. (Gloucester Co.)",239]
[null,null,null,null,null,null,null,null,null,null,null,null,null,null,null,null,null,null,null,null,null,null,null,null,null,null,null,null,null,null,null,null,null,null,null,null,null,null,null,null,null,null,null,null,null,null,null,null,null,null,null,null,null,null,null,null,null,null,null,null,null,null,null,null,null,null,null,null,null,null,null,null,null,null,null,null,null,null,null,null,null,null,"Manville Boro. (Somerset Co.)",null,"Tabernacle Twp. (Burlington Co.)",128]
[null,null,null,null,null,null,null,null,null,null,null,null,null,null,null,null,null,null,null,null,null,null,null,null,null,null,null,null,null,null,null,null,null,null,null,null,null,null,null,null,null,null,null,null,null,null,null,null,null,null,null,null,null,null,null,null,null,null,null,null,null,null,null,null,null,null,null,null,null,null,null,null,null,null,null,null,null,null,null,null,null,null,"Millstone Boro. (Somerset Co.)",null,"Tavistock Boro. (Camden Co.)",166]
[null,null,null,null,null,null,null,null,null,null,null,null,null,null,null,null,null,null,null,null,null,null,null,null,null,null,null,null,null,null,null,null,null,null,null,null,null,null,null,null,null,null,null,null,null,null,null,null,null,null,null,null,null,null,null,null,null,null,null,null,null,null,null,null,null,null,null,null,null,null,null,null,null,null,null,null,null,null,null,null,null,null,"Montgomery Twp. (Somerset Co.)",null,"Teaneck Twp. (Bergen Co.)",83]
[null,null,null,null,null,null,null,null,null,null,null,null,null,null,null,null,null,null,null,null,null,null,null,null,null,null,null,null,null,null,null,null,null,null,null,null,null,null,null,null,null,null,null,null,null,null,null,null,null,null,null,null,null,null,null,null,null,null,null,null,null,null,null,null,null,null,null,null,null,null,null,null,null,null,null,null,null,null,null,null,null,null,"North Plainfield Boro. (Somerset Co.)",null,"Tenafly Boro. (Bergen Co.)",84]
[null,null,null,null,null,null,null,null,null,null,null,null,null,null,null,null,null,null,null,null,null,null,null,null,null,null,null,null,null,null,null,null,null,null,null,null,null,null,null,null,null,null,null,null,null,null,null,null,null,null,null,null,null,null,null,null,null,null,null,null,null,null,null,null,null,null,null,null,null,null,null,null,null,null,null,null,null,null,null,null,null,null,"Peapack-Gladstone Boro. (Somerset Co.)",null,"Teterboro Boro. (Bergen Co.)",85]
[null,null,null,null,null,null,null,null,null,null,null,null,null,null,null,null,null,null,null,null,null,null,null,null,null,null,null,null,null,null,null,null,null,null,null,null,null,null,null,null,null,null,null,null,null,null,null,null,null,null,null,null,null,null,null,null,null,null,null,null,null,null,null,null,null,null,null,null,null,null,null,null,null,null,null,null,null,null,null,null,null,null,"Raritan Boro. (Somerset Co.)",null,"Tewksbury Twp. (Hunterdon Co.)",282]
[null,null,null,null,null,null,null,null,null,null,null,null,null,null,null,null,null,null,null,null,null,null,null,null,null,null,null,null,null,null,null,null,null,null,null,null,null,null,null,null,null,null,null,null,null,null,null,null,null,null,null,null,null,null,null,null,null,null,null,null,null,null,null,null,null,null,null,null,null,null,null,null,null,null,null,null,null,null,null,null,null,null,"Rocky Hill Boro. (Somerset Co.)",null,"Tinton Falls Boro. (Monmouth Co.)",371]
[null,null,null,null,null,null,null,null,null,null,null,null,null,null,null,null,null,null,null,null,null,null,null,null,null,null,null,null,null,null,null,null,null,null,null,null,null,null,null,null,null,null,null,null,null,null,null,null,null,null,null,null,null,null,null,null,null,null,null,null,null,null,null,null,null,null,null,null,null,null,null,null,null,null,null,null,null,null,null,null,null,null,"Somerville Boro. (Somerset Co.)",null,"Totowa Boro. (Passaic Co.)",459]
[null,null,null,null,null,null,null,null,null,null,null,null,null,null,null,null,null,null,null,null,null,null,null,null,null,null,null,null,null,null,null,null,null,null,null,null,null,null,null,null,null,null,null,null,null,null,null,null,null,null,null,null,null,null,null,null,null,null,null,null,null,null,null,null,null,null,null,null,null,null,null,null,null,null,null,null,null,null,null,null,null,null,"South Bound Brook Boro. (Somerset Co.)",null,"Trenton City (Mercer Co.)",295]
[null,null,null,null,null,null,null,null,null,null,null,null,null,null,null,null,null,null,null,null,null,null,null,null,null,null,null,null,null,null,null,null,null,null,null,null,null,null,null,null,null,null,null,null,null,null,null,null,null,null,null,null,null,null,null,null,null,null,null,null,null,null,null,null,null,null,null,null,null,null,null,null,null,null,null,null,null,null,null,null,null,null,"Warren Twp. (Somerset Co.)",null,"Tuckerton Boro. (Ocean Co.)",447]
[null,null,null,null,null,null,null,null,null,null,null,null,null,null,null,null,null,null,null,null,null,null,null,null,null,null,null,null,null,null,null,null,null,null,null,null,null,null,null,null,null,null,null,null,null,null,null,null,null,null,null,null,null,null,null,null,null,null,null,null,null,null,null,null,null,null,null,null,null,null,null,null,null,null,null,null,null,null,null,null,null,null,"Watchung Boro. (Somerset Co.)",null,"Union Beach Boro. (Monmouth Co.)",372]
[null,null,null,null,null,null,null,null,null,null,null,null,null,null,null,null,null,null,null,null,null,null,null,null,null,null,null,null,null,null,null,null,null,null,null,null,null,null,null,null,null,null,null,null,null,null,null,null,null,null,null,null,null,null,null,null,null,null,null,null,null,null,null,null,null,null,null,null,null,null,null,null,null,null,null,null,null,null,null,null,null,null,"Andover Boro. (Sussex Co.)",null,"Union City (Hudson Co.)",256]
[null,null,null,null,null,null,null,null,null,null,null,null,null,null,null,null,null,null,null,null,null,null,null,null,null,null,null,null,null,null,null,null,null,null,null,null,null,null,null,null,null,null,null,null,null,null,null,null,null,null,null,null,null,null,null,null,null,null,null,null,null,null,null,null,null,null,null,null,null,null,null,null,null,null,null,null,null,null,null,null,null,null,"Andover Twp. (Sussex Co.)",null,"Union Twp. (Hunterdon Co.)",283]
[null,null,null,null,null,null,null,null,null,null,null,null,null,null,null,null,null,null,null,null,null,null,null,null,null,null,null,null,null,null,null,null,null,null,null,null,null,null,null,null,null,null,null,null,null,null,null,null,null,null,null,null,null,null,null,null,null,null,null,null,null,null,null,null,null,null,null,null,null,null,null,null,null,null,null,null,null,null,null,null,null,null,"Branchville Boro. (Sussex Co.)",null,"Union Twp. (Union Co.)",542]
[null,null,null,null,null,null,null,null,null,null,null,null,null,null,null,null,null,null,null,null,null,null,null,null,null,null,null,null,null,null,null,null,null,null,null,null,null,null,null,null,null,null,null,null,null,null,null,null,null,null,null,null,null,null,null,null,null,null,null,null,null,null,null,null,null,null,null,null,null,null,null,null,null,null,null,null,null,null,null,null,null,null,"Byram Twp. (Sussex Co.)",null,"Upper Deerfield Twp. (Cumberland Co.)",199]
[null,null,null,null,null,null,null,null,null,null,null,null,null,null,null,null,null,null,null,null,null,null,null,null,null,null,null,null,null,null,null,null,null,null,null,null,null,null,null,null,null,null,null,null,null,null,null,null,null,null,null,null,null,null,null,null,null,null,null,null,null,null,null,null,null,null,null,null,null,null,null,null,null,null,null,null,null,null,null,null,null,null,"Frankford Twp. (Sussex Co.)",null,"Upper Freehold Twp. (Monmouth Co.)",373]
[null,null,null,null,null,null,null,null,null,null,null,null,null,null,null,null,null,null,null,null,null,null,null,null,null,null,null,null,null,null,null,null,null,null,null,null,null,null,null,null,null,null,null,null,null,null,null,null,null,null,null,null,null,null,null,null,null,null,null,null,null,null,null,null,null,null,null,null,null,null,null,null,null,null,null,null,null,null,null,null,null,null,"Franklin Boro. (Sussex Co.)",null,"Upper Pittsgrove Twp. (Salem Co.)",477]
[null,null,null,null,null,null,null,null,null,null,null,null,null,null,null,null,null,null,null,null,null,null,null,null,null,null,null,null,null,null,null,null,null,null,null,null,null,null,null,null,null,null,null,null,null,null,null,null,null,null,null,null,null,null,null,null,null,null,null,null,null,null,null,null,null,null,null,null,null,null,null,null,null,null,null,null,null,null,null,null,null,null,"Fredon Twp. (Sussex Co.)",null,"Upper Saddle River Boro. (Bergen Co.)",86]
[null,null,null,null,null,null,null,null,null,null,null,null,null,null,null,null,null,null,null,null,null,null,null,null,null,null,null,null,null,null,null,null,null,null,null,null,null,null,null,null,null,null,null,null,null,null,null,null,null,null,null,null,null,null,null,null,null,null,null,null,null,null,null,null,null,null,null,null,null,null,null,null,null,null,null,null,null,null,null,null,null,null,"Green Twp. (Sussex Co.)",null,"Upper Twp. (Cape May Co.)",181]
[null,null,null,null,null,null,null,null,null,null,null,null,null,null,null,null,null,null,null,null,null,null,null,null,null,null,null,null,null,null,null,null,null,null,null,null,null,null,null,null,null,null,null,null,null,null,null,null,null,null,null,null,null,null,null,null,null,null,null,null,null,null,null,null,null,null,null,null,null,null,null,null,null,null,null,null,null,null,null,null,null,null,"Hamburg Boro. (Sussex Co.)",null,"Ventnor City (Atlantic Co.)",22]
[null,null,null,null,null,null,null,null,null,null,null,null,null,null,null,null,null,null,null,null,null,null,null,null,null,null,null,null,null,null,null,null,null,null,null,null,null,null,null,null,null,null,null,null,null,null,null,null,null,null,null,null,null,null,null,null,null,null,null,null,null,null,null,null,null,null,null,null,null,null,null,null,null,null,null,null,null,null,null,null,null,null,"Hampton Twp. (Sussex Co.)",null,"Vernon Twp. (Sussex Co.)",521]
[null,null,null,null,null,null,null,null,null,null,null,null,null,null,null,null,null,null,null,null,null,null,null,null,null,null,null,null,null,null,null,null,null,null,null,null,null,null,null,null,null,null,null,null,null,null,null,null,null,null,null,null,null,null,null,null,null,null,null,null,null,null,null,null,null,null,null,null,null,null,null,null,null,null,null,null,null,null,null,null,null,null,"Hardyston Twp. (Sussex Co.)",null,"Verona Boro. (Essex Co.)",220]
[null,null,null,null,null,null,null,null,null,null,null,null,null,null,null,null,null,null,null,null,null,null,null,null,null,null,null,null,null,null,null,null,null,null,null,null,null,null,null,null,null,null,null,null,null,null,null,null,null,null,null,null,null,null,null,null,null,null,null,null,null,null,null,null,null,null,null,null,null,null,null,null,null,null,null,null,null,null,null,null,null,null,"Hopatcong Boro. (Sussex Co.)",null,"Victory Gardens Boro. (Morris Co.)",412]
[null,null,null,null,null,null,null,null,null,null,null,null,null,null,null,null,null,null,null,null,null,null,null,null,null,null,null,null,null,null,null,null,null,null,null,null,null,null,null,null,null,null,null,null,null,null,null,null,null,null,null,null,null,null,null,null,null,null,null,null,null,null,null,null,null,null,null,null,null,null,null,null,null,null,null,null,null,null,null,null,null,null,"Lafayette Twp. (Sussex Co.)",null,"Vineland City (Cumberland Co.)",200]
[null,null,null,null,null,null,null,null,null,null,null,null,null,null,null,null,null,null,null,null,null,null,null,null,null,null,null,null,null,null,null,null,null,null,null,null,null,null,null,null,null,null,null,null,null,null,null,null,null,null,null,null,null,null,null,null,null,null,null,null,null,null,null,null,null,null,null,null,null,null,null,null,null,null,null,null,null,null,null,null,null,null,"Montague Twp. (Sussex Co.)",null,"Voorhees Twp. (Camden Co.)",167]
[null,null,null,null,null,null,null,null,null,null,null,null,null,null,null,null,null,null,null,null,null,null,null,null,null,null,null,null,null,null,null,null,null,null,null,null,null,null,null,null,null,null,null,null,null,null,null,null,null,null,null,null,null,null,null,null,null,null,null,null,null,null,null,null,null,null,null,null,null,null,null,null,null,null,null,null,null,null,null,null,null,null,"Newton Town (Sussex Co.)",null,"Waldwick Boro. (Bergen Co.)",87]
[null,null,null,null,null,null,null,null,null,null,null,null,null,null,null,null,null,null,null,null,null,null,null,null,null,null,null,null,null,null,null,null,null,null,null,null,null,null,null,null,null,null,null,null,null,null,null,null,null,null,null,null,null,null,null,null,null,null,null,null,null,null,null,null,null,null,null,null,null,null,null,null,null,null,null,null,null,null,null,null,null,null,"Ogdensburg Boro. (Sussex Co.)",null,"Wall Twp. (Monmouth Co.)",374]
[null,null,null,null,null,null,null,null,null,null,null,null,null,null,null,null,null,null,null,null,null,null,null,null,null,null,null,null,null,null,null,null,null,null,null,null,null,null,null,null,null,null,null,null,null,null,null,null,null,null,null,null,null,null,null,null,null,null,null,null,null,null,null,null,null,null,null,null,null,null,null,null,null,null,null,null,null,null,null,null,null,null,"Sandyston Twp. (Sussex Co.)",null,"Wallington Boro. (Bergen Co.)",88]
[null,null,null,null,null,null,null,null,null,null,null,null,null,null,null,null,null,null,null,null,null,null,null,null,null,null,null,null,null,null,null,null,null,null,null,null,null,null,null,null,null,null,null,null,null,null,null,null,null,null,null,null,null,null,null,null,null,null,null,null,null,null,null,null,null,null,null,null,null,null,null,null,null,null,null,null,null,null,null,null,null,null,"Sparta Twp. (Sussex Co.)",null,"Walpack Twp. (Sussex Co.)",522]
[null,null,null,null,null,null,null,null,null,null,null,null,null,null,null,null,null,null,null,null,null,null,null,null,null,null,null,null,null,null,null,null,null,null,null,null,null,null,null,null,null,null,null,null,null,null,null,null,null,null,null,null,null,null,null,null,null,null,null,null,null,null,null,null,null,null,null,null,null,null,null,null,null,null,null,null,null,null,null,null,null,null,"Stanhope Boro. (Sussex Co.)",null,"Wanaque Boro. (Passaic Co.)",460]
[null,null,null,null,null,null,null,null,null,null,null,null,null,null,null,null,null,null,null,null,null,null,null,null,null,null,null,null,null,null,null,null,null,null,null,null,null,null,null,null,null,null,null,null,null,null,null,null,null,null,null,null,null,null,null,null,null,null,null,null,null,null,null,null,null,null,null,null,null,null,null,null,null,null,null,null,null,null,null,null,null,null,"Stillwater Twp. (Sussex Co.)",null,"Wantage Twp. (Sussex Co.)",523]
[null,null,null,null,null,null,null,null,null,null,null,null,null,null,null,null,null,null,null,null,null,null,null,null,null,null,null,null,null,null,null,null,null,null,null,null,null,null,null,null,null,null,null,null,null,null,null,null,null,null,null,null,null,null,null,null,null,null,null,null,null,null,null,null,null,null,null,null,null,null,null,null,null,null,null,null,null,null,null,null,null,null,"Sussex Boro. (Sussex Co.)",null,"Warren Twp. (Somerset Co.)",498]
[null,null,null,null,null,null,null,null,null,null,null,null,null,null,null,null,null,null,null,null,null,null,null,null,null,null,null,null,null,null,null,null,null,null,null,null,null,null,null,null,null,null,null,null,null,null,null,null,null,null,null,null,null,null,null,null,null,null,null,null,null,null,null,null,null,null,null,null,null,null,null,null,null,null,null,null,null,null,null,null,null,null,"Vernon Twp. (Sussex Co.)",null,"Washington Boro. (Warren Co.)",565]
[null,null,null,null,null,null,null,null,null,null,null,null,null,null,null,null,null,null,null,null,null,null,null,null,null,null,null,null,null,null,null,null,null,null,null,null,null,null,null,null,null,null,null,null,null,null,null,null,null,null,null,null,null,null,null,null,null,null,null,null,null,null,null,null,null,null,null,null,null,null,null,null,null,null,null,null,null,null,null,null,null,null,"Walpack Twp. (Sussex Co.)",null,"Washington Twp. (Bergen Co.)",89]
[null,null,null,null,null,null,null,null,null,null,null,null,null,null,null,null,null,null,null,null,null,null,null,null,null,null,null,null,null,null,null,null,null,null,null,null,null,null,null,null,null,null,null,null,null,null,null,null,null,null,null,null,null,null,null,null,null,null,null,null,null,null,null,null,null,null,null,null,null,null,null,null,null,null,null,null,null,null,null,null,null,null,"Wantage Twp. (Sussex Co.)",null,"Washington Twp. (Burlington Co.)",129]
[null,null,null,null,null,null,null,null,null,null,null,null,null,null,null,null,null,null,null,null,null,null,null,null,null,null,null,null,null,null,null,null,null,null,null,null,null,null,null,null,null,null,null,null,null,null,null,null,null,null,null,null,null,null,null,null,null,null,null,null,null,null,null,null,null,null,null,null,null,null,null,null,null,null,null,null,null,null,null,null,null,null,"Berkeley Heights Twp. (Union Co.)",null,"Washington Twp. (Gloucester Co.)",240]
[null,null,null,null,null,null,null,null,null,null,null,null,null,null,null,null,null,null,null,null,null,null,null,null,null,null,null,null,null,null,null,null,null,null,null,null,null,null,null,null,null,null,null,null,null,null,null,null,null,null,null,null,null,null,null,null,null,null,null,null,null,null,null,null,null,null,null,null,null,null,null,null,null,null,null,null,null,null,null,null,null,null,"Clark Twp. (Union Co.)",null,"Washington Twp. (Mercer Co.)",296]
[null,null,null,null,null,null,null,null,null,null,null,null,null,null,null,null,null,null,null,null,null,null,null,null,null,null,null,null,null,null,null,null,null,null,null,null,null,null,null,null,null,null,null,null,null,null,null,null,null,null,null,null,null,null,null,null,null,null,null,null,null,null,null,null,null,null,null,null,null,null,null,null,null,null,null,null,null,null,null,null,null,null,"Cranford Twp. (Union Co.)",null,"Washington Twp. (Morris Co.)",413]
[null,null,null,null,null,null,null,null,null,null,null,null,null,null,null,null,null,null,null,null,null,null,null,null,null,null,null,null,null,null,null,null,null,null,null,null,null,null,null,null,null,null,null,null,null,null,null,null,null,null,null,null,null,null,null,null,null,null,null,null,null,null,null,null,null,null,null,null,null,null,null,null,null,null,null,null,null,null,null,null,null,null,"Elizabeth City (Union Co.)",null,"Washington Twp. (Warren Co.)",566]
[null,null,null,null,null,null,null,null,null,null,null,null,null,null,null,null,null,null,null,null,null,null,null,null,null,null,null,null,null,null,null,null,null,null,null,null,null,null,null,null,null,null,null,null,null,null,null,null,null,null,null,null,null,null,null,null,null,null,null,null,null,null,null,null,null,null,null,null,null,null,null,null,null,null,null,null,null,null,null,null,null,null,"Fanwood Boro. (Union Co.)",null,"Watchung Boro. (Somerset Co.)",499]
[null,null,null,null,null,null,null,null,null,null,null,null,null,null,null,null,null,null,null,null,null,null,null,null,null,null,null,null,null,null,null,null,null,null,null,null,null,null,null,null,null,null,null,null,null,null,null,null,null,null,null,null,null,null,null,null,null,null,null,null,null,null,null,null,null,null,null,null,null,null,null,null,null,null,null,null,null,null,null,null,null,null,"Garwood Boro. (Union Co.)",null,"Waterford Twp. (Camden Co.)",168]
[null,null,null,null,null,null,null,null,null,null,null,null,null,null,null,null,null,null,null,null,null,null,null,null,null,null,null,null,null,null,null,null,null,null,null,null,null,null,null,null,null,null,null,null,null,null,null,null,null,null,null,null,null,null,null,null,null,null,null,null,null,null,null,null,null,null,null,null,null,null,null,null,null,null,null,null,null,null,null,null,null,null,"Hillside Twp. (Union Co.)",null,"Wayne Twp. (Passaic Co.)",461]
[null,null,null,null,null,null,null,null,null,null,null,null,null,null,null,null,null,null,null,null,null,null,null,null,null,null,null,null,null,null,null,null,null,null,null,null,null,null,null,null,null,null,null,null,null,null,null,null,null,null,null,null,null,null,null,null,null,null,null,null,null,null,null,null,null,null,null,null,null,null,null,null,null,null,null,null,null,null,null,null,null,null,"Kenilworth Boro. (Union Co.)",null,"Weehawken Twp. (Hudson Co.)",257]
[null,null,null,null,null,null,null,null,null,null,null,null,null,null,null,null,null,null,null,null,null,null,null,null,null,null,null,null,null,null,null,null,null,null,null,null,null,null,null,null,null,null,null,null,null,null,null,null,null,null,null,null,null,null,null,null,null,null,null,null,null,null,null,null,null,null,null,null,null,null,null,null,null,null,null,null,null,null,null,null,null,null,"Linden City (Union Co.)",null,"Wenonah Boro. (Gloucester Co.)",241]
[null,null,null,null,null,null,null,null,null,null,null,null,null,null,null,null,null,null,null,null,null,null,null,null,null,null,null,null,null,null,null,null,null,null,null,null,null,null,null,null,null,null,null,null,null,null,null,null,null,null,null,null,null,null,null,null,null,null,null,null,null,null,null,null,null,null,null,null,null,null,null,null,null,null,null,null,null,null,null,null,null,null,"Mountainside Boro. (Union Co.)",null,"West Amwell Twp. (Hunterdon Co.)",284]
[null,null,null,null,null,null,null,null,null,null,null,null,null,null,null,null,null,null,null,null,null,null,null,null,null,null,null,null,null,null,null,null,null,null,null,null,null,null,null,null,null,null,null,null,null,null,null,null,null,null,null,null,null,null,null,null,null,null,null,null,null,null,null,null,null,null,null,null,null,null,null,null,null,null,null,null,null,null,null,null,null,null,"New Providence Boro. (Union Co.)",null,"West Caldwell Boro. (Essex Co.)",221]
[null,null,null,null,null,null,null,null,null,null,null,null,null,null,null,null,null,null,null,null,null,null,null,null,null,null,null,null,null,null,null,null,null,null,null,null,null,null,null,null,null,null,null,null,null,null,null,null,null,null,null,null,null,null,null,null,null,null,null,null,null,null,null,null,null,null,null,null,null,null,null,null,null,null,null,null,null,null,null,null,null,null,"Plainfield City (Union Co.)",null,"West Cape May Boro. (Cape May Co.)",182]
[null,null,null,null,null,null,null,null,null,null,null,null,null,null,null,null,null,null,null,null,null,null,null,null,null,null,null,null,null,null,null,null,null,null,null,null,null,null,null,null,null,null,null,null,null,null,null,null,null,null,null,null,null,null,null,null,null,null,null,null,null,null,null,null,null,null,null,null,null,null,null,null,null,null,null,null,null,null,null,null,null,null,"Rahway City (Union Co.)",null,"West Deptford Twp. (Gloucester Co.)",242]
[null,null,null,null,null,null,null,null,null,null,null,null,null,null,null,null,null,null,null,null,null,null,null,null,null,null,null,null,null,null,null,null,null,null,null,null,null,null,null,null,null,null,null,null,null,null,null,null,null,null,null,null,null,null,null,null,null,null,null,null,null,null,null,null,null,null,null,null,null,null,null,null,null,null,null,null,null,null,null,null,null,null,"Roselle Boro. (Union Co.)",null,"West Long Branch Boro. (Monmouth Co.)",375]
[null,null,null,null,null,null,null,null,null,null,null,null,null,null,null,null,null,null,null,null,null,null,null,null,null,null,null,null,null,null,null,null,null,null,null,null,null,null,null,null,null,null,null,null,null,null,null,null,null,null,null,null,null,null,null,null,null,null,null,null,null,null,null,null,null,null,null,null,null,null,null,null,null,null,null,null,null,null,null,null,null,null,"Roselle Park Boro. (Union Co.)",null,"West Milford Twp. (Passaic Co.)",462]
[null,null,null,null,null,null,null,null,null,null,null,null,null,null,null,null,null,null,null,null,null,null,null,null,null,null,null,null,null,null,null,null,null,null,null,null,null,null,null,null,null,null,null,null,null,null,null,null,null,null,null,null,null,null,null,null,null,null,null,null,null,null,null,null,null,null,null,null,null,null,null,null,null,null,null,null,null,null,null,null,null,null,"Scotch Plains Twp. (Union Co.)",null,"West New York Town (Hudson Co.)",258]
[null,null,null,null,null,null,null,null,null,null,null,null,null,null,null,null,null,null,null,null,null,null,null,null,null,null,null,null,null,null,null,null,null,null,null,null,null,null,null,null,null,null,null,null,null,null,null,null,null,null,null,null,null,null,null,null,null,null,null,null,null,null,null,null,null,null,null,null,null,null,null,null,null,null,null,null,null,null,null,null,null,null,"Springfield Twp. (Union Co.)",null,"West Orange Town (Essex Co.)",222]
[null,null,null,null,null,null,null,null,null,null,null,null,null,null,null,null,null,null,null,null,null,null,null,null,null,null,null,null,null,null,null,null,null,null,null,null,null,null,null,null,null,null,null,null,null,null,null,null,null,null,null,null,null,null,null,null,null,null,null,null,null,null,null,null,null,null,null,null,null,null,null,null,null,null,null,null,null,null,null,null,null,null,"Summit City (Union Co.)",null,"West Paterson Boro. (Passaic Co.)",463]
[null,null,null,null,null,null,null,null,null,null,null,null,null,null,null,null,null,null,null,null,null,null,null,null,null,null,null,null,null,null,null,null,null,null,null,null,null,null,null,null,null,null,null,null,null,null,null,null,null,null,null,null,null,null,null,null,null,null,null,null,null,null,null,null,null,null,null,null,null,null,null,null,null,null,null,null,null,null,null,null,null,null,"Union Twp. (Union Co.)",null,"West Wildwood Boro. (Cape May Co.)",183]
[null,null,null,null,null,null,null,null,null,null,null,null,null,null,null,null,null,null,null,null,null,null,null,null,null,null,null,null,null,null,null,null,null,null,null,null,null,null,null,null,null,null,null,null,null,null,null,null,null,null,null,null,null,null,null,null,null,null,null,null,null,null,null,null,null,null,null,null,null,null,null,null,null,null,null,null,null,null,null,null,null,null,"Westfield Town (Union Co.)",null,"West Windsor Twp. (Mercer Co.)",297]
[null,null,null,null,null,null,null,null,null,null,null,null,null,null,null,null,null,null,null,null,null,null,null,null,null,null,null,null,null,null,null,null,null,null,null,null,null,null,null,null,null,null,null,null,null,null,null,null,null,null,null,null,null,null,null,null,null,null,null,null,null,null,null,null,null,null,null,null,null,null,null,null,null,null,null,null,null,null,null,null,null,null,"Winfield Twp. (Union Co.)",null,"Westampton Twp. (Burlington Co.)",130]
[null,null,null,null,null,null,null,null,null,null,null,null,null,null,null,null,null,null,null,null,null,null,null,null,null,null,null,null,null,null,null,null,null,null,null,null,null,null,null,null,null,null,null,null,null,null,null,null,null,null,null,null,null,null,null,null,null,null,null,null,null,null,null,null,null,null,null,null,null,null,null,null,null,null,null,null,null,null,null,null,null,null,"Allamuchy Twp. (Warren Co.)",null,"Westfield Town (Union Co.)",543]
[null,null,null,null,null,null,null,null,null,null,null,null,null,null,null,null,null,null,null,null,null,null,null,null,null,null,null,null,null,null,null,null,null,null,null,null,null,null,null,null,null,null,null,null,null,null,null,null,null,null,null,null,null,null,null,null,null,null,null,null,null,null,null,null,null,null,null,null,null,null,null,null,null,null,null,null,null,null,null,null,null,null,"Alpha Boro. (Warren Co.)",null,"Westville Boro. (Gloucester Co.)",243]
[null,null,null,null,null,null,null,null,null,null,null,null,null,null,null,null,null,null,null,null,null,null,null,null,null,null,null,null,null,null,null,null,null,null,null,null,null,null,null,null,null,null,null,null,null,null,null,null,null,null,null,null,null,null,null,null,null,null,null,null,null,null,null,null,null,null,null,null,null,null,null,null,null,null,null,null,null,null,null,null,null,null,"Belvidere Town (Warren Co.)",null,"Westwood Boro. (Bergen Co.)",90]
[null,null,null,null,null,null,null,null,null,null,null,null,null,null,null,null,null,null,null,null,null,null,null,null,null,null,null,null,null,null,null,null,null,null,null,null,null,null,null,null,null,null,null,null,null,null,null,null,null,null,null,null,null,null,null,null,null,null,null,null,null,null,null,null,null,null,null,null,null,null,null,null,null,null,null,null,null,null,null,null,null,null,"Blairstown Twp. (Warren Co.)",null,"Weymouth Twp. (Atlantic Co.)",23]
[null,null,null,null,null,null,null,null,null,null,null,null,null,null,null,null,null,null,null,null,null,null,null,null,null,null,null,null,null,null,null,null,null,null,null,null,null,null,null,null,null,null,null,null,null,null,null,null,null,null,null,null,null,null,null,null,null,null,null,null,null,null,null,null,null,null,null,null,null,null,null,null,null,null,null,null,null,null,null,null,null,null,"Franklin Twp. (Warren Co.)",null,"Wharton Boro. (Morris Co.)",414]
[null,null,null,null,null,null,null,null,null,null,null,null,null,null,null,null,null,null,null,null,null,null,null,null,null,null,null,null,null,null,null,null,null,null,null,null,null,null,null,null,null,null,null,null,null,null,null,null,null,null,null,null,null,null,null,null,null,null,null,null,null,null,null,null,null,null,null,null,null,null,null,null,null,null,null,null,null,null,null,null,null,null,"Frelinghuysen Twp. (Warren Co.)",null,"White Twp. (Warren Co.)",567]
[null,null,null,null,null,null,null,null,null,null,null,null,null,null,null,null,null,null,null,null,null,null,null,null,null,null,null,null,null,null,null,null,null,null,null,null,null,null,null,null,null,null,null,null,null,null,null,null,null,null,null,null,null,null,null,null,null,null,null,null,null,null,null,null,null,null,null,null,null,null,null,null,null,null,null,null,null,null,null,null,null,null,"Greenwich Twp. (Warren Co.)",null,"Wildwood City (Cape May Co.)",184]
[null,null,null,null,null,null,null,null,null,null,null,null,null,null,null,null,null,null,null,null,null,null,null,null,null,null,null,null,null,null,null,null,null,null,null,null,null,null,null,null,null,null,null,null,null,null,null,null,null,null,null,null,null,null,null,null,null,null,null,null,null,null,null,null,null,null,null,null,null,null,null,null,null,null,null,null,null,null,null,null,null,null,"Hackettstown Town (Warren Co.)",null,"Wildwood Crest Boro. (Cape May Co.)",185]
[null,null,null,null,null,null,null,null,null,null,null,null,null,null,null,null,null,null,null,null,null,null,null,null,null,null,null,null,null,null,null,null,null,null,null,null,null,null,null,null,null,null,null,null,null,null,null,null,null,null,null,null,null,null,null,null,null,null,null,null,null,null,null,null,null,null,null,null,null,null,null,null,null,null,null,null,null,null,null,null,null,null,"Hardwick Twp. (Warren Co.)",null,"Willingboro Twp. (Burlington Co.)",131]
[null,null,null,null,null,null,null,null,null,null,null,null,null,null,null,null,null,null,null,null,null,null,null,null,null,null,null,null,null,null,null,null,null,null,null,null,null,null,null,null,null,null,null,null,null,null,null,null,null,null,null,null,null,null,null,null,null,null,null,null,null,null,null,null,null,null,null,null,null,null,null,null,null,null,null,null,null,null,null,null,null,null,"Harmony Twp. (Warren Co.)",null,"Winfield Twp. (Union Co.)",544]
[null,null,null,null,null,null,null,null,null,null,null,null,null,null,null,null,null,null,null,null,null,null,null,null,null,null,null,null,null,null,null,null,null,null,null,null,null,null,null,null,null,null,null,null,null,null,null,null,null,null,null,null,null,null,null,null,null,null,null,null,null,null,null,null,null,null,null,null,null,null,null,null,null,null,null,null,null,null,null,null,null,null,"Hope Twp. (Warren Co.)",null,"Winslow Twp. (Camden Co.)",169]
[null,null,null,null,null,null,null,null,null,null,null,null,null,null,null,null,null,null,null,null,null,null,null,null,null,null,null,null,null,null,null,null,null,null,null,null,null,null,null,null,null,null,null,null,null,null,null,null,null,null,null,null,null,null,null,null,null,null,null,null,null,null,null,null,null,null,null,null,null,null,null,null,null,null,null,null,null,null,null,null,null,null,"Independence Twp. (Warren Co.)",null,"Woodbine Boro. (Cape May Co.)",186]
[null,null,null,null,null,null,null,null,null,null,null,null,null,null,null,null,null,null,null,null,null,null,null,null,null,null,null,null,null,null,null,null,null,null,null,null,null,null,null,null,null,null,null,null,null,null,null,null,null,null,null,null,null,null,null,null,null,null,null,null,null,null,null,null,null,null,null,null,null,null,null,null,null,null,null,null,null,null,null,null,null,null,"Knowlton Twp. (Warren Co.)",null,"Woodbridge Twp. (Middlesex Co.)",322]
[null,null,null,null,null,null,null,null,null,null,null,null,null,null,null,null,null,null,null,null,null,null,null,null,null,null,null,null,null,null,null,null,null,null,null,null,null,null,null,null,null,null,null,null,null,null,null,null,null,null,null,null,null,null,null,null,null,null,null,null,null,null,null,null,null,null,null,null,null,null,null,null,null,null,null,null,null,null,null,null,null,null,"Liberty Twp. (Warren Co.)",null,"Woodbury City (Gloucester Co.)",244]
[null,null,null,null,null,null,null,null,null,null,null,null,null,null,null,null,null,null,null,null,null,null,null,null,null,null,null,null,null,null,null,null,null,null,null,null,null,null,null,null,null,null,null,null,null,null,null,null,null,null,null,null,null,null,null,null,null,null,null,null,null,null,null,null,null,null,null,null,null,null,null,null,null,null,null,null,null,null,null,null,null,null,"Lopatcong Twp. (Warren Co.)",null,"Woodbury Heights Boro. (Gloucester Co.)",245]
[null,null,null,null,null,null,null,null,null,null,null,null,null,null,null,null,null,null,null,null,null,null,null,null,null,null,null,null,null,null,null,null,null,null,null,null,null,null,null,null,null,null,null,null,null,null,null,null,null,null,null,null,null,null,null,null,null,null,null,null,null,null,null,null,null,null,null,null,null,null,null,null,null,null,null,null,null,null,null,null,null,null,"Mansfield Twp. (Warren Co.)",null,"Woodcliff Lake Boro. (Bergen Co.)",92]
[null,null,null,null,null,null,null,null,null,null,null,null,null,null,null,null,null,null,null,null,null,null,null,null,null,null,null,null,null,null,null,null,null,null,null,null,null,null,null,null,null,null,null,null,null,null,null,null,null,null,null,null,null,null,null,null,null,null,null,null,null,null,null,null,null,null,null,null,null,null,null,null,null,null,null,null,null,null,null,null,null,null,"Oxford Twp. (Warren Co.)",null,"Woodland Twp. (Burlington Co.)",132]
[null,null,null,null,null,null,null,null,null,null,null,null,null,null,null,null,null,null,null,null,null,null,null,null,null,null,null,null,null,null,null,null,null,null,null,null,null,null,null,null,null,null,null,null,null,null,null,null,null,null,null,null,null,null,null,null,null,null,null,null,null,null,null,null,null,null,null,null,null,null,null,null,null,null,null,null,null,null,null,null,null,null,"Pahaquarry Twp. (Warren Co.)",null,"Woodlynne Boro. (Camden Co.)",170]
[null,null,null,null,null,null,null,null,null,null,null,null,null,null,null,null,null,null,null,null,null,null,null,null,null,null,null,null,null,null,null,null,null,null,null,null,null,null,null,null,null,null,null,null,null,null,null,null,null,null,null,null,null,null,null,null,null,null,null,null,null,null,null,null,null,null,null,null,null,null,null,null,null,null,null,null,null,null,null,null,null,null,"Phillipsburg Town (Warren Co.)",null,"Wood-Ridge Boro. (Bergen Co.)",91]
[null,null,null,null,null,null,null,null,null,null,null,null,null,null,null,null,null,null,null,null,null,null,null,null,null,null,null,null,null,null,null,null,null,null,null,null,null,null,null,null,null,null,null,null,null,null,null,null,null,null,null,null,null,null,null,null,null,null,null,null,null,null,null,null,null,null,null,null,null,null,null,null,null,null,null,null,null,null,null,null,null,null,"Pohatcong Twp. (Warren Co.)",null,"Woodstown Boro. (Salem Co.)",478]
[null,null,null,null,null,null,null,null,null,null,null,null,null,null,null,null,null,null,null,null,null,null,null,null,null,null,null,null,null,null,null,null,null,null,null,null,null,null,null,null,null,null,null,null,null,null,null,null,null,null,null,null,null,null,null,null,null,null,null,null,null,null,null,null,null,null,null,null,null,null,null,null,null,null,null,null,null,null,null,null,null,null,"Washington Boro. (Warren Co.)",null,"Woolwich Twp. (Gloucester Co.)",246]
[null,null,null,null,null,null,null,null,null,null,null,null,null,null,null,null,null,null,null,null,null,null,null,null,null,null,null,null,null,null,null,null,null,null,null,null,null,null,null,null,null,null,null,null,null,null,null,null,null,null,null,null,null,null,null,null,null,null,null,null,null,null,null,null,null,null,null,null,null,null,null,null,null,null,null,null,null,null,null,null,null,null,"Washington Twp. (Warren Co.)",null,"Wrightstown Boro. (Burlington Co.)",133]
[null,null,null,null,null,null,null,null,null,null,null,null,null,null,null,null,null,null,null,null,null,null,null,null,null,null,null,null,null,null,null,null,null,null,null,null,null,null,null,null,null,null,null,null,null,null,null,null,null,null,null,null,null,null,null,null,null,null,null,null,null,null,null,null,null,null,null,null,null,null,null,null,null,null,null,null,null,null,null,null,null,null,"White Twp. (Warren Co.)",null,"Wyckoff Twp. (Bergen Co.)",93]

{"sheet":"Printout","index":1,"n_rows":66,"n_cols":6,"rows_kept":66,"cut":false,"hidden":false,"merged":[[25,2,26,3],[31,2,31,3],[22,2,23,3],[28,2,29,4],[1,1,2,5],[9,3,9,4],[10,3,10,5],[18,2,21,3],[6,2,6,3],[8,2,8,5],[14,2,16,3],[3,2,3,5],[4,2,4,3],[5,2,5,3]]}
[]
[null,{"$f":"+'Calculation Window'!B1:E1","v":" A Recharge-Based Nitrate-Dilution Model for New Jersey V7.0 for Excel 2010"}]
[]
[null,null,"Adjusted Trela-Douglas Model Input Parameters"]
[null,null,"population density:",null,{"$f":"+'Calculation Window'!D5","v":3},"people/home"]
[null,null,"nitrate loading rage",null,{"$f":"+'Calculation Window'!D6","v":10},"pounds/person/year"]
[null,null,"NO3 target:",null,{"$f":"+'Calculation Window'!D7","v":2}," mg/l"]
[]
[null,null,"Ground-Water Recharge Methodology Input Parameters"]
[null,null,"Soil",{"$f":"+'Calculation Window'!BG4","v":"Wellsboro"}]
[null,null,"Municipality",{"$f":"+'Calculation Window'!BG5","v":"Lambertville City (Hunterdon Co.)"}]
[]
[null,null,{"$f":"IF(+'Calculation Window'!B43=0,\"Hydric or urban soil. Can't use this method.\",\" \")","v":" "}]
[]
[null,null,"Minimum recharge area needed to dilute nitrate "]
[null,null,null,null,{"$f":"+'Calculation Window'!C26","v":6.1293227297871038},"acres/system"]
[]
[]
[null,null,{"$f":"IF('Calculation Window'!BM14=2,+Printout!B62,Printout!B61)","v":"Average recharge on this soil type in this municipality to a totally pervious lot is approximately "}]
[null,null,null,null,{"$f":"+'Calculation Window'!D16","v":11.5477515},"inches/year"]
[]
[]
[null,null,"Impervious percentage on building lots of this size ",null,{"$f":"IF(+'Calculation Window'!B43=0,\"N.A.\",+'Calculation Window'!T20)","v":6.3591340831476217E-2}]
[]
[]
[null,null,{"$f":"IF('Calculation Window'!BM14=2,C66,C65)","v":"Average recharge adjusted for impervious cover"},null,{"$f":"+E20*(1-E23)","v":10.81341449852631},"inches/year"]
[]
[]
[null,null,"This method assumes the maximum recharge rate to the pervious portion of the lot."]
[]
[]
[null,null,{"$f":"TODAY()","v":"2016-09-01"}]
[]
[]
[]
[]
[]
[]
[]
[]
[]
[]
[]
[]
[]
[]
[]
[]
[]
[]
[]
[]
[]
[]
[]
[]
[]
[]
[]
[]
[null,"Average recharge on this soil type in this municipality to a totally pervious lot is approximately "]
[null,"Drought recharge on this soil type in this municipality to a totally pervious lot is approximately "]
[]
[]
[null,null,"Average recharge adjusted for impervious cover"]
[null,null,"Drought recharge adjusted for impervious cover"]

{"sheet":"ReadMe","index":2,"n_rows":21,"n_cols":11,"rows_kept":21,"cut":false,"hidden":false,"merged":[]}
[]
[]
[null,"BRIEF EXPLANATION"]
[]
[]
[]
[]
[null,"      "]
[]
[]
[]
[null,"      ",null,null,null,null,null,null,null,null,"  "]
[]
[null,"    "]
[]
[]
[null,null,null,null,null,null,null,null,null,null,"      "]
[null,null,null,null,null,null,null,null,null,null,"   "]
[]
[]
[null,null,null,null,null,null,null,null,null,null,"                   "]

{"sheet":"Metadata","index":3,"n_rows":351,"n_cols":2,"rows_kept":351,"cut":false,"hidden":false,"merged":[]}
[]
["METADATA FOR THE FILE"]
["NJ_NO3_DILUTION_V50.XLS"]
[]
[null," "]
[null," "]
["1. IDENTIFICATION INFORMATION"]
[]
["1.1 CITATION"]
[]
["MS Excel Workbook Implementing A Recharge-Based "]
["Nitrate-Dilution Model for New Jersey, version 5.0"]
[]
["   Jeffrey L. Hoffman and Robert J. Canace, 2002"]
[]
[]
["1.2 DESCRIPTION"]
[]
["1.2.1 ABSTRACT"]
[]
["Nitrate (NO3) is a constituent found in the effluent from individual"]
["on-site wastewater disposal systems (septic tanks.)"]
["Ensuring that nitrate concentrations in ground water do not"]
["exceed targets should be one goal when planning"]
["or reviewing proposed developments that will use septic tanks."]
["The method presented here combines a model of nitrate"]
["dilution (based on Trela and Douglas, 1978) with ground-water"]
["recharge (Charles and others, 1993) to estimate the minimum lot size"]
["needed to provide enough recharge to dilute nitrate to a specified "]
["target. This method is intended to be a guide for estimating the "]
["impact of nitrate from septic tanks on ground-water quality in reference."]
["to a specified target."]
[]
["Trela and Douglas (1978) presented a model of nitrate dilution"]
["in ground water. That model required inputs of"]
["per capita water demand, residents per household, NO3 "]
["concentration in effluent, recharge on the lot, and NO3"]
["ground-water target. This model has been modified to require"]
["estimates of residents per household, net per capita NO3 loading"]
["rate from the septic tank, and NO3 target."]
[]
["The New Jersey Geological Survey's (NJGS) method for estimating"]
["ground-water recharge (Charles and others, 1993) is a water-"]
["budget approach applicable only to New Jersey. It requires"]
["knowledge of the municipality, soil, land use, and basin factor. With"]
["these four variables it can estimate ground-water recharge on a"]
["particular site. In this spreadsheet the user inputs municipality, soil"]
["type, and basin factor (which shouldn't be changed without a "]
["site-specific study). The model then determines an appropriate land use"]
["based on how much area is needed to generate recharge to dilute the"]
["nitrate to the specified target."]
[]
["The methodology presented in this spreadsheet uses the "]
["NJGS' recharge methodology to provide the necessary"]
["recharge for the modified Trela-Douglas model. Because it is an "]
["estimation of nitrate in ground water under 'as built' conditions"]
["it must solve the two equations simultaneously. The result"]
["is the minimum acerage required to provide enough recharge"]
["to dilute the effluent coming out of one septic tank to the target."]
[]
["This methodology is not intended to predict nitrate concentrations"]
["downgradient of an individual septic tank. It is intended to"]
["estimate net impact of a number of homes on ground-water"]
["nitrate concentrations at a point downgradient of the homes."]
[]
["The methodology assumes that all of the assumptions in the"]
["underlying Trela-Douglas nitrate dilution model and the"]
["NJGS ground-water recharge model are appropriate to the"]
["site being analyzed. See the original documentation for a"]
["more thorough discussion of the necessary assumptions"]
["and how they affect and limit the analysis."]
[]
["The NJGS now recommends using a basin factor of 1.0, instead"]
["of 1.3 as used by Charles and others (1993). This is"]
["based on a calibration of basin-wide recharge volume"]
["from this methodology to revised stream baseflow estimations"]
["(Hoffman, 1999a). This factor should not be changed. The basin"]
["factor is used in the spreadsheet to calculate recharge but is"]
["not explicatly a variable the user can alter."]
[]
["One important limiting factor is that the NJGS ground-water"]
["recharge methodology does not apply to wetlands, surface"]
["water or hydric soils."]
[]
["This digital product consists of an EXCEL spread-"]
["sheet which incorporates these factors. "]
["When first opened, this file displays, on the left, a calculation"]
["window. The user enters, in the cells colored yellow, the "]
["parameters needed by the Trela-Douglas and NJGS models."]
[]
["1.2.2. LIST OF FILES AND BRIEF DESCRIPTION"]
[]
["NJ_NO3_DILUTION_V50.XLS"]
["An Excel spreadsheet which contains the calculations necessary for "]
["solving the modified Trela-Douglas nitrate dilution and NJGS ground- "]
["dilution and NJGS ground-water recharge models."]
[]
["This file contains 5 worksheets:"]
[]
["Metadata - This metadata file."]
[]
["Calculation Window - A worksheet in which the user enters"]
["  the required input parameters. Clicking the solve button"]
["  runs a macro which calculates the minimum land area needed to "]
["  capture enough recharge to dilute the nitrate in the effluent to the ."]
["  target. Clicking on the 'print' button prints a summary "]
["  sheet to the computer's printer."]
[]
["Municipality codes - A list of all municpalities"]
["  in New Jersey with a code assigned just for"]
["  this report. This worksheet contains the climate"]
["  factor for each municipality. These data are from"]
["  Appendix 6 of Charles and others (1993)."]
[]
["Soil codes - A list of all soils in New Jersey with"]
["  a code assigned just for this report. This worksheet"]
["  includes the recharge factor and recharge constant"]
["  for each soil. These data are from Appendix 5"]
["  of Charles and others (1993)."]
[]
["Printout - A series of cells formatted for printout of the results."]
[]
["1.2.3. LIST OF KEYWORDS"]
[]
["nitrate, dilution, septic tanks, recharge, dilution model,"]
["ground-water recharge, land use, land cover, soils, New Jersey"]
[]
[]
["1.3. GEOGRAPHIC EXTENT"]
[]
["State of New Jersey"]
[]
["1.4. CONTACT INFORMATION"]
[]
["Jeffrey L. Hoffman, Research Scientist"]
["Robert J. Canace, Section Chief"]
["New Jersey Geological Survey"]
["Division of Science, Research and Technology"]
["New Jersey Department of Environmental Protection"]
["PO Box 427"]
["Trenton, NJ 08625"]
["phone: (609) 984-6587"]
["email: Jeffrey.L.Hoffman@dep.state.nj.us"]
["      Bob.Canace@dep.state.nj.us"]
[]
[null," "]
["2. DATA CREATION & QUALITY INFORMATION"]
[]
["2.1 NAME OF DATA"]
[]
["NJ_NO3_DILUTION_V50.XLS"]
[]
["2.2 DESCRIPTION OF THE TYPE OF DATA"]
[]
["The data consist of an EXCEL spreadsheet which incorporates"]
["the equations necessary to estimate the land area needed"]
["to provide enough recharge to dilute nitrate coming from a"]
["septic tank to target. The equations come from the"]
["Trela-Douglas nitrate dilution model (Trela and Douglas, 1978)"]
["and the NJGS ground-water recharge methodology (Charles"]
["and others, 1993)."]
[]
["This spreadsheet also includes a calculation worksheet"]
["which allows the user to input the necessary variables. "]
["The method is specific to a municipality and soil. "]
[]
["2.3. DATA SOURCES"]
[]
["The data and equations are from Trela and Douglas (1978) and"]
["Charles and others (1993)."]
[]
["A report documenting the development of this method is"]
["in preparation."]
[]
["2.4 DATA ORGANIZER"]
[]
["Jeffrey L. Hoffman "]
[]
["2.5 DATE OF COMPILATION"]
[]
["September 2000 (version 2.0)"]
["May 2001 (version 3.0)"]
["June 2001 (version 3.1)"]
["July 2001 (versions 4.0 and 4.1)"]
["May 2002 (version 5.0)"]
[]
[]
["2.6 DATA CREATION AND ACCURACY"]
[]
["The basic factors of the ground-water recharge methodology "]
["were created by Charles and others (1993). See that report"]
["for a description of how the factors were created."]
[]
["A digital version of these factors was transferred"]
["to the NJ Geological Survey's geographical information"]
["system where it is used to calculate ground-water"]
["recharge for counties and watersheds (Hoffman, 1999b)."]
[]
["This digital version was downloaded into an EXCEL "]
["spreadsheet and reformatted. "]
[]
["The basic equations for calculating ground-water"]
["recharge are from Charles and others (1993). (Appendix 7 of that "]
["report describes how these equations were developed.) These"]
["equations were added to the 'Calculation Window' worksheet. "]
[]
["2.7 PREVIOUS VERSIONS"]
[]
["Version 2.0 was the first version officially released. Earlier versions"]
["were circulated within the DEP for comment. "]
["Version 3.0 modifies the nitrate loading portion to more explicitely"]
["account for nitrate mass loading directly and to not account for"]
["volume of septic effluent in diluting the nitrate."]
["Version 3.1 added a few minor reporting lines relating to impervious"]
["surface cover and reduction in average recharge."]
["Version 4.0 removed the term 'carrying-capacity' from the title and"]
["descriptions. This version also included some more minor changes"]
["in layout and reporting."]
["Version 4.1 modified the way the basin factor is handled."]
["Verson 5.0 corrects a mathematical error made in the equations. The"]
["impervious surface cover modification was erronously applies"]
["twice in previous versions."]
[]
["2.8. NECESSARY SOFTWARE SETUP"]
[]
["This spreadsheet was developed using the EXCEL spreadsheet "]
["software. Use of brand, commercial or trade names is for "]
["identification purposes only and does not constitute endorsement by "]
["the New Jersey Geological Survey."]
[]
["The file NJ_NO3_DILUTION_50.XLS is an EXCEL 97"]
["spreadsheet. When Excel starts to load the file it will indicate that "]
["the spreadsheet wants to run macros. The user must indicate that "]
["this is acceptable by clicking the 'ok' button. This is because the "]
["spreadsheet calculates the minimum lot size by running a macro. "]
["Not allowing macros to execute will prevent the spreadsheet "]
["from performing as desired."]
[]
["Additionally, the calculations require access to a special solver routine. "]
["The program must have access to the file SOLVER.XLA. This is an "]
["add-in file to EXCEL 97 that must be activated by issuing the "]
["following commands:"]
["   1) On the 'Tools' menu pick the 'Add-Ins' option ."]
["   2) Check off the box in front of 'Solver Add-In.' (If this is not an"]
["       option, use the browse command to locate the file "]
["       SOLVER.XLA and pick this file.) Then click the 'OK' button."]
[]
["The spreadsheet cannot perform the mathematics necessary "]
[" if this add-in is not accessible."]
[]
["Users have discovered that the SOLVER.XLA file is dependent upon"]
["the version of Excel. The SOLVER.XLA file for Excel 97 is not the"]
["same as SOLVER.XLA for Excel 2000. It is important to install the"]
["version of the solver that came with the Excel program."]
[]
["The calculation window does not automatically update the appropriate"]
[" lot size as parameters are entered (as it does for the municipality "]
["and soil). The user must click on the 'SOLVE' button to do this. This"]
[" runs an Excel macro which calculates the appropriate area."]
["The macro responds with a command box titled 'Solver "]
["Results.' If the solver finds an acceptable solution the user should"]
[" indicate in this command to \"Keep Solver Solution\" and then click "]
["on the \"ok\" button."]
[]
["Clicking on the 'Print results' button prints a summary sheet of"]
["what is on the screen on the system's printer. If the 'SOLVE' button"]
["is not clicked before printing results then the minimum recharge"]
["areas showed on the printed page may not be a result of the"]
["input parameters shown."]
[]
["2.9. SOLUTION TECHNIQUES"]
[]
["The spreadsheet uses an iterative technique to solve two nonlinear"]
["equations. This is documented in cells Q1- U26 of the "]
["Calculation Window. In some cases changing the initial guess"]
["shown in cell T30 may help the solution technique arrive at an answer."]
[]
[null," "]
[null," "]
["3. DISTRIBUTION INFORMATION"]
[]
["This file consists of one EXCEL spreadsheet. "]
[]
["This product may be distributed with proper attributation."]
[]
[]
[null," "]
["4. METADATA REFERENCE INFORMATION"]
[]
["4.1 PUBLICATION DATE"]
[]
["May 2002"]
[]
["4.2 AUTHORS"]
[]
["Jeffrey L. Hoffman and Robert J. Canace"]
[]
[]
[null," "]
["5. AUTHOR NOTES"]
[]
["The ground-water recharge methodology was developed in "]
["the early 1990s and applies only to New Jersey."]
[]
["Please report any errors in this spreadsheet to the authors."]
[]
["Check the NJGS website for possible additional information."]
["  http://www.njgeology.org/index.html"]
[]
["The Charles and others (1993) and Hoffman (1999) reports are"]
["available from the DEP's Maps and Publications Sales Office."]
["A spreadsheet implementing the method of Charles and others"]
["(1993) is available for downloading from the NJGS website as"]
["Digital Geodata Series product DGS 99-2 (Hoffman, 1999b)."]
[]
["Over-the-counter purchases:"]
[" DEP Maps and Publications Sales Office"]
[" Carroll Building"]
[" 428 East State St."]
[" Trenton, NJ "]
[" Hours: 8:30AM-12noon; 1pm-4pm (Monday-Friday)"]
[]
["Mail-order purchases:"]
[" DEP Maps and Publications Sales Office"]
[" PO Box 438"]
[" Trenton, NJ 08625-0438"]
[]
["(609) 777-1038"]
[]
[]
[null," "]
["6. REFERENCES"]
[]
["Charles, E.G., Behroozi, Cyrus, Schooley, Jack and"]
["  Hoffman, J.L., 1993, A method for evaluating ground-"]
["  water-recharge areas in New Jersey: N.J. Geological"]
["  Survey Report GSR-32, Trenton, 95p."]
[]
["Hoffman, J.L., 1999a, Basin factor calibration for ground-water-"]
["  recharge estimation. New Jersey Geological Survey "]
["  Technical Memorandum 99-2, Trenton, 2p."]
[]
["Hoffman, J.L., 1999b, Ground-water recharge calculations"]
["  for New Jersey, spreadsheet: N.J. Geological Survey"]
["  Digital Geodata Series DGS 99-2, Trenton."]
[]
["Trela, J.J. and Douglas, L.A., 1978, Soils, septic systems"]
["   and carrying capacity in the New Jersey Pine Barrens:"]
["   paper presented at the First Annual Pine Barrens"]
["   Research Conference, Atlantic City, May 22, 1978,"]
["   34p."]

{"sheet":"Municipality Codes","index":4,"n_rows":571,"n_cols":17,"rows_kept":571,"cut":false,"hidden":false,"merged":[[2,0,2,2],[2,4,3,4],[1,4,1,6],[2,5,2,6]]}
[]
[null,null,null,null,"Climate Factors"]
["Municipality Codes Data Window",null,null,null,"original","revised 2008"]
["code","County","Municipality",null,null,"average","drought"]
[1,"Atlantic Co.","Absecon City",null,1.18,1.2574000000000001,1.2175800000000001]
[2,"Atlantic Co.","Atlantic City",null,1.18,1.1907399999999999,1.1500900000000001]
[3,"Atlantic Co.","Brigantine City",null,1.18,1.20303,1.14446]
[4,"Atlantic Co.","Buena Boro.",null,1.35,1.3398000000000001,1.12537]
[5,"Atlantic Co.","Buena Vista Twp.",null,1.35,1.34474,1.1426400000000001,null,null,null,null,null,null,null,null,null,5]
[6,"Atlantic Co.","Corbin City",null,1.33,1.3176600000000001,1.2244999999999999]
[7,"Atlantic Co.","Egg Harbor City",null,1.39,1.37581,1.2723500000000001]
[8,"Atlantic Co.","Egg Harbor Twp.",null,1.2,1.2928999999999999,1.22323]
[9,"Atlantic Co.","Estell Manor City",null,1.33,1.3374600000000001,1.2340599999999999]
[10,"Atlantic Co.","Folsom Boro.",null,1.36,1.3552299999999999,1.12591]
[11,"Atlantic Co.","Galloway Twp.",null,1.27,1.3177099999999999,1.25576]
[12,"Atlantic Co.","Hamilton Twp.",null,1.32,1.3482000000000001,1.19862]
[13,"Atlantic Co.","Hammonton Town",null,1.36,1.38079,1.1854899999999999]
[14,"Atlantic Co.","Linwood City",null,1.18,1.2488300000000001,1.18746]
[15,"Atlantic Co.","Longport Boro.",null,1.18,1.2037199999999999,1.14059]
[16,"Atlantic Co.","Margate City",null,1.18,1.1972799999999999,1.1416299999999999]
[17,"Atlantic Co.","Mullica Twp.",null,1.36,1.37999,1.21974]
[18,"Atlantic Co.","Northfield City",null,1.18,1.25379,1.1997899999999999]
[19,"Atlantic Co.","Pleasantville City",null,1.18,1.24502,1.20109]
[20,"Atlantic Co.","Port Republic City",null,1.4,1.34944,1.2963100000000001]
[21,"Atlantic Co.","Somers Point City",null,1.18,1.2603800000000001,1.18845]
[22,"Atlantic Co.","Ventnor City",null,1.18,1.1886300000000001,1.13934]
[23,"Atlantic Co.","Weymouth Twp.",null,1.33,1.3440399999999999,1.2203200000000001]
[24,"Bergen Co.","Allendale Boro.",null,1.59,1.6429800000000001,1.3568899999999999]
[25,"Bergen Co.","Alpine Boro.",null,1.49,1.5682100000000001,1.3338099999999999]
[26,"Bergen Co.","Bergenfield Boro.",null,1.58,1.5489599999999999,1.3082499999999999]
[27,"Bergen Co.","Bogota Boro.",null,1.39,1.51946,1.2869900000000001]
[28,"Bergen Co.","Carlstadt Boro.",null,1.4,1.48291,1.2504299999999999]
[29,"Bergen Co.","Cliffside Park Boro.",null,1.39,1.48804,1.3103100000000001]
[30,"Bergen Co.","Closter Boro.",null,1.59,1.5739000000000001,1.3226899999999999]
[31,"Bergen Co.","Cresskill Boro.",null,1.51,1.55741,1.3245499999999999]
[32,"Bergen Co.","Demarest Boro.",null,1.57,1.5647800000000001,1.32437]
[33,"Bergen Co.","Dumont Boro.",null,1.59,1.5608500000000001,1.3119099999999999]
[34,"Bergen Co.","East Rutherford Boro.",null,1.41,1.4756,1.23075]
[35,"Bergen Co.","Edgewater Boro.",null,1.39,1.4897100000000001,1.31837]
[36,"Bergen Co.","Elmwood Park Boro.",null,1.59,1.5513699999999999,1.2618100000000001]
[37,"Bergen Co.","Emerson Boro.",null,1.59,1.5795999999999999,1.3090299999999999]
[38,"Bergen Co.","Englewood City",null,1.39,1.5306500000000001,1.3222100000000001]
[39,"Bergen Co.","Englewood Cliffs Boro.",null,1.39,1.52698,1.3372200000000001]
[40,"Bergen Co.","Fair Lawn Boro.",null,1.59,1.57297,1.27868]
[41,"Bergen Co.","Fairview Boro.",null,1.39,1.4837199999999999,1.2966800000000001]
[42,"Bergen Co.","Fort Lee Boro.",null,1.39,1.5066299999999999,1.3243799999999999]
[43,"Bergen Co.","Franklin Lakes Boro.",null,1.59,1.6718900000000001,1.35982]
[44,"Bergen Co.","Garfield City",null,1.59,1.5298799999999999,1.2521800000000001]
[45,"Bergen Co.","Glen Rock Boro.",null,1.59,1.59222,1.2936000000000001]
[46,"Bergen Co.","Hackensack City",null,1.56,1.52912,1.2801199999999999]
[47,"Bergen Co.","Harrington Park Boro.",null,1.59,1.5828500000000001,1.31986]
[48,"Bergen Co.","Hasbrouck Heights Boro.",null,1.56,1.51122,1.2575099999999999]
[49,"Bergen Co.","Haworth Boro.",null,1.59,1.5702700000000001,1.31203]
[50,"Bergen Co.","Hillsdale Boro.",null,1.59,1.5998000000000001,1.3213600000000001]
[51,"Bergen Co.","Hohokus Boro.",null,1.59,1.6091800000000001,1.32033]
[52,"Bergen Co.","Leonia Boro.",null,1.39,1.5135700000000001,1.31243]
[53,"Bergen Co.","Little Fy Boro.",null,1.39,1.4993700000000001,1.2738400000000001]
[54,"Bergen Co.","Lodi Boro.",null,1.59,1.5243500000000001,1.2604900000000001]
[55,"Bergen Co.","Lyndhurst Twp.",null,1.4,1.4528799999999999,1.20224]
[56,"Bergen Co.","Mahwah Twp.",null,1.74,1.6991400000000001,1.4281299999999999]
[57,"Bergen Co.","Maywood Boro.",null,1.59,1.53925,1.2758499999999999]
[58,"Bergen Co.","Midland Park Boro.",null,1.59,1.62303,1.32376]
[59,"Bergen Co.","Montvale Boro.",null,1.59,1.62209,1.35002]
[60,"Bergen Co.","Moonachie Boro.",null,1.39,1.49492,1.25912]
[61,"Bergen Co.","New Milford Boro.",null,1.59,1.5556000000000001,1.3004599999999999]
[62,"Bergen Co.","North Arlington Boro.",null,1.39,1.4419200000000001,1.18763]
[63,"Bergen Co.","Northvale Boro.",null,1.59,1.58982,1.3266500000000001]
[64,"Bergen Co.","Norwood Boro.",null,1.59,1.58267,1.32548]
[65,"Bergen Co.","Oakland Boro.",null,1.72,1.7144200000000001,1.4001399999999999]
[66,"Bergen Co.","Old Tappan Boro.",null,1.59,1.59535,1.3253999999999999]
[67,"Bergen Co.","Oradell Boro.",null,1.59,1.5698099999999999,1.30196]
[68,"Bergen Co.","Palisades Park Boro.",null,1.39,1.50288,1.3065800000000001]
[69,"Bergen Co.","Paramus Boro.",null,1.59,1.5688500000000001,1.2900700000000001]
[70,"Bergen Co.","Park Ridge Boro.",null,1.59,1.6125799999999999,1.3370899999999999]
[71,"Bergen Co.","Ramsey Boro.",null,1.59,1.6630199999999999,1.3873]
[72,"Bergen Co.","Ridgefield Boro.",null,1.39,1.49089,1.2899799999999999]
[73,"Bergen Co.","Ridgefield Park Village",null,1.39,1.50603,1.2900700000000001]
[74,"Bergen Co.","Ridgewood Village",null,1.59,1.6032999999999999,1.30907]
[75,"Bergen Co.","River Edge Boro.",null,1.59,1.5528200000000001,1.292]
[76,"Bergen Co.","River Vale Twp.",null,1.59,1.5965100000000001,1.3245199999999999]
[77,"Bergen Co.","Rochelle Park Twp.",null,1.59,1.54434,1.27186]
[78,"Bergen Co.","Rockleigh Boro.",null,1.59,1.5856399999999999,1.3283799999999999]
[79,"Bergen Co.","Rutherford Boro.",null,1.45,1.4788699999999999,1.2219]
[80,"Bergen Co.","Saddle Brook Twp.",null,1.59,1.54447,1.2658]
[81,"Bergen Co.","Saddle River Boro.",null,1.59,1.62384,1.3413600000000001]
[82,"Bergen Co.","South Hackensack Twp.",null,1.43,1.5085500000000001,1.2698]
[83,"Bergen Co.","Teaneck Twp.",null,1.45,1.52905,1.3001199999999999]
[84,"Bergen Co.","Tenafly Boro.",null,1.41,1.5460799999999999,1.3284899999999999]
[85,"Bergen Co.","Teterboro Boro.",null,1.4,1.5074700000000001,1.2641800000000001]
[86,"Bergen Co.","Upper Saddle River Boro.",null,1.59,1.6415900000000001,1.3717699999999999]
[87,"Bergen Co.","Waldwick Boro.",null,1.59,1.62808,1.3364400000000001]
[88,"Bergen Co.","Wallington Boro.",null,1.59,1.5095099999999999,1.2405999999999999]
[89,"Bergen Co.","Washington Twp.",null,1.59,1.5934200000000001,1.31125]
[90,"Bergen Co.","Westwood Boro.",null,1.59,1.58735,1.3129]
[91,"Bergen Co.","Wood-Ridge Boro.",null,1.52,1.61202,1.3334299999999999]
[92,"Bergen Co.","Woodcliff Lake Boro.",null,1.59,1.50386,1.2465200000000001]
[93,"Bergen Co.","Wyckoff Twp.",null,1.59,1.6392899999999999,1.3350900000000001]
[94,"Burlington Co.","Bass River Twp.",null,1.45,1.4390799999999999,1.3662099999999999]
[95,"Burlington Co.","Beverly City",null,1.41,1.45533,1.3068599999999999]
[96,"Burlington Co.","Bordentown City",null,1.43,1.47224,1.36094]
[97,"Burlington Co.","Bordentown Twp.",null,1.43,1.4710399999999999,1.3573999999999999]
[98,"Burlington Co.","Burlington City",null,1.41,1.47133,1.34267]
[99,"Burlington Co.","Burlington Twp.",null,1.41,1.46591,1.3324100000000001]
[100,"Burlington Co.","Chesterfield Twp.",null,1.43,1.4605300000000001,1.3315600000000001]
[101,"Burlington Co.","Cinnaminson Twp.",null,1.41,1.4086700000000001,1.25024]
[102,"Burlington Co.","Delanco Twp.",null,1.41,1.44312,1.28545]
[103,"Burlington Co.","Delran Twp.",null,1.41,1.4286700000000001,1.2702899999999999]
[104,"Burlington Co.","Eastampton Twp.",null,1.44,1.45062,1.3060799999999999]
[105,"Burlington Co.","Edgewater Park Twp.",null,1.41,1.4530400000000001,1.3043800000000001]
[106,"Burlington Co.","Evesham Twp.",null,1.42,1.4157900000000001,1.31707]
[107,"Burlington Co.","Fieldsboro Boro.",null,1.43,1.47573,1.3663700000000001]
[108,"Burlington Co.","Florence Twp.",null,1.43,1.4762599999999999,1.3590599999999999]
[109,"Burlington Co.","Hainesport Twp.",null,1.42,1.4422600000000001,1.2996399999999999]
[110,"Burlington Co.","Lumberton Twp.",null,1.44,1.4426000000000001,1.3049500000000001]
[111,"Burlington Co.","Mansfield Twp.",null,1.44,1.4648099999999999,1.33718]
[112,"Burlington Co.","Maple Shade Twp.",null,1.41,1.3978900000000001,1.2719]
[113,"Burlington Co.","Medford Lakes Boro.",null,1.43,1.43529,1.3266100000000001]
[114,"Burlington Co.","Medford Twp.",null,1.43,1.4314199999999999,1.3191200000000001]
[115,"Burlington Co.","Moorestown Twp.",null,1.41,1.4204399999999999,1.2775000000000001]
[116,"Burlington Co.","Mount Holly Twp.",null,1.44,1.4490400000000001,1.3038099999999999]
[117,"Burlington Co.","Mount Laurel Twp.",null,1.41,1.42526,1.29714]
[118,"Burlington Co.","New Hanover Twp.",null,1.44,1.4630399999999999,1.3159000000000001]
[119,"Burlington Co.","North Hanover Twp.",null,1.44,1.4592000000000001,1.3161099999999999]
[120,"Burlington Co.","Palmyra Boro.",null,1.41,1.39276,1.22332]
[121,"Burlington Co.","Pemberton Boro.",null,1.44,1.44902,1.30863]
[122,"Burlington Co.","Pemberton Twp.",null,1.44,1.46207,1.3236600000000001]
[123,"Burlington Co.","Riverside Twp.",null,1.41,1.4333800000000001,1.27108]
[124,"Burlington Co.","Riverton Boro.",null,1.41,1.40378,1.2348600000000001]
[125,"Burlington Co.","Shamong Twp.",null,1.43,1.43096,1.3044500000000001]
[126,"Burlington Co.","Southampton Twp.",null,1.44,1.44777,1.3208299999999999]
[127,"Burlington Co.","Springfield Twp.",null,1.44,1.4564999999999999,1.3156600000000001]
[128,"Burlington Co.","Tabernacle Twp.",null,1.43,1.45024,1.3369800000000001]
[129,"Burlington Co.","Washington Twp.",null,1.41,1.42882,1.32213]
[130,"Burlington Co.","Westampton Twp.",null,1.42,1.4517,1.30619]
[131,"Burlington Co.","Willingboro Twp.",null,1.41,1.4481999999999999,1.29895]
[132,"Burlington Co.","Woodland Twp.",null,1.45,1.4766699999999999,1.3671800000000001]
[133,"Burlington Co.","Wrightstown Boro.",null,1.44,1.4558500000000001,1.31121]
[134,"Camden Co.","Audubon Boro.",null,1.36,1.3553500000000001,1.27979]
[135,"Camden Co.","Audubon Park Boro.",null,1.36,1.34667,1.2640899999999999]
[136,"Camden Co.","Barrington Boro.",null,1.36,1.3625,1.30026]
[137,"Camden Co.","Bellmawr Boro.",null,1.36,1.3384,1.2723]
[138,"Camden Co.","Berlin Boro.",null,1.42,1.39046,1.29749]
[139,"Camden Co.","Berlin Twp.",null,1.42,1.3972199999999999,1.30758]
[140,"Camden Co.","Brooklawn Boro.",null,1.36,1.3235300000000001,1.24556]
[141,"Camden Co.","Camden City",null,1.36,1.34259,1.21898]
[142,"Camden Co.","Chy Hill Twp.",null,1.39,1.3909400000000001,1.30081]
[143,"Camden Co.","Chesilhurst Boro.",null,1.39,1.3873200000000001,1.2335700000000001]
[144,"Camden Co.","Clementon Boro.",null,1.36,1.37795,1.30508]
[145,"Camden Co.","Collingswood Boro.",null,1.36,1.35639,1.26013]
[146,"Camden Co.","Gibbsboro Boro.",null,1.36,1.3904700000000001,1.3204199999999999]
[147,"Camden Co.","Gloucester City",null,1.36,1.32925,1.2438]
[148,"Camden Co.","Gloucester Twp.",null,1.36,1.35466,1.27858]
[149,"Camden Co.","Haddon Heights Boro.",null,1.36,1.3576699999999999,1.28979]
[150,"Camden Co.","Haddon Twp.",null,1.36,1.3511499999999999,1.2644299999999999]
[151,"Camden Co.","Haddonfield Boro.",null,1.36,1.37418,1.2968599999999999]
[152,"Camden Co.","Hi-Nella Boro.",null,1.36,1.3694999999999999,1.3122400000000001]
[153,"Camden Co.","Laurel Springs Boro.",null,1.36,1.37354,1.31134]
[154,"Camden Co.","Lawnside Boro.",null,1.36,1.3724099999999999,1.31037]
[155,"Camden Co.","Lindenwold Boro.",null,1.36,1.3783000000000001,1.3109500000000001]
[156,"Camden Co.","Magnolia Boro.",null,1.36,1.3671800000000001,1.30915]
[157,"Camden Co.","Merchantville Boro.",null,1.4,1.3742099999999999,1.2483]
[158,"Camden Co.","Mount Ephraim Boro.",null,1.36,1.3430200000000001,1.27085]
[159,"Camden Co.","Oaklyn Boro.",null,1.36,1.3518300000000001,1.2664299999999999]
[160,"Camden Co.","Pennsauken Twp.",null,1.39,1.37531,1.2353799999999999]
[161,"Camden Co.","Pine Hill Boro.",null,1.37,1.37381,1.2917700000000001]
[162,"Camden Co.","Pine Valley Boro.",null,1.36,1.3778999999999999,1.2928900000000001]
[163,"Camden Co.","Runnemede Boro.",null,1.36,1.34758,1.2892300000000001]
[164,"Camden Co.","Somerdale Boro.",null,1.36,1.3714200000000001,1.3136300000000001]
[165,"Camden Co.","Stratford Boro.",null,1.36,1.3708499999999999,1.3117300000000001]
[166,"Camden Co.","Tavistock Boro.",null,1.36,1.3747199999999999,1.30915]
[167,"Camden Co.","Voorhees Twp.",null,1.38,1.39595,1.32176]
[168,"Camden Co.","Waterford Twp.",null,1.41,1.4010400000000001,1.2515099999999999]
[169,"Camden Co.","Winslow Twp.",null,1.38,1.3726400000000001,1.2042900000000001]
[170,"Camden Co.","Woodlynne Boro.",null,1.36,1.3451299999999999,1.2444299999999999]
[171,"Cape May Co.","Avalon Boro.",null,1.3,1.2553799999999999,1.1217699999999999]
[172,"Cape May Co.","Cape May City",null,1.22,1.2254,1.11734]
[173,"Cape May Co.","Cape May Point Boro.",null,1.22,1.2255400000000001,1.1278900000000001]
[174,"Cape May Co.","Dennis Twp.",null,1.33,1.3206,1.21193]
[175,"Cape May Co.","Lower Twp.",null,1.22,1.24244,1.1427700000000001]
[176,"Cape May Co.","Middle Twp.",null,1.27,1.2817700000000001,1.1728400000000001]
[177,"Cape May Co.","North Wildwood City",null,1.22,1.2372700000000001,1.1066]
[178,"Cape May Co.","Ocean City",null,1.22,1.24082,1.1510199999999999]
[179,"Cape May Co.","Sea Isle City",null,1.33,1.26187,1.13558]
[180,"Cape May Co.","Stone Harbor Boro.",null,1.22,1.2474499999999999,1.1131599999999999]
[181,"Cape May Co.","Upper Twp.",null,1.33,1.3069,1.2042999999999999]
[182,"Cape May Co.","West Cape May Boro.",null,1.22,1.22719,1.1268899999999999]
[183,"Cape May Co.","West Wildwood Boro.",null,1.22,1.2419500000000001,1.1197699999999999]
[184,"Cape May Co.","Wildwood City",null,1.22,1.2351099999999999,1.1085499999999999]
[185,"Cape May Co.","Wildwood Crest Boro.",null,1.22,1.2314700000000001,1.10866]
[186,"Cape May Co.","Woodbine Boro.",null,1.33,1.3346800000000001,1.22435]
[187,"Cumberland Co.","Bridgeton City",null,1.32,1.3059499999999999,1.14632]
[188,"Cumberland Co.","Commercial Twp.",null,1.32,1.3105100000000001,1.2371700000000001]
[189,"Cumberland Co.","Deerfield Twp.",null,1.32,1.3135300000000001,1.1434599999999999]
[190,"Cumberland Co.","Downe Twp.",null,1.32,1.29356,1.21726]
[191,"Cumberland Co.","Fairfield Twp.",null,1.32,1.2968599999999999,1.1599699999999999]
[192,"Cumberland Co.","Greenwich Twp.",null,1.33,1.3035099999999999,1.1294299999999999]
[193,"Cumberland Co.","Hopewell Twp.",null,1.33,1.3085800000000001,1.1358600000000001]
[194,"Cumberland Co.","Lawrence Twp.",null,1.32,1.2946599999999999,1.1900900000000001]
[195,"Cumberland Co.","Maurice River Twp.",null,1.33,1.3326100000000001,1.2340100000000001]
[196,"Cumberland Co.","Millville City",null,1.32,1.31575,1.1999500000000001]
[197,"Cumberland Co.","Shiloh Boro.",null,1.35,1.31396,1.12856]
[198,"Cumberland Co.","Stow Creek Twp.",null,1.35,1.31697,1.1280300000000001]
[199,"Cumberland Co.","Upper Deerfield Twp.",null,1.33,1.31586,1.12252]
[200,"Cumberland Co.","Vineland City",null,1.32,1.32942,1.16015]
[201,"Essex Co.","Belleville Town",null,1.44,1.4739899999999999,1.19801]
[202,"Essex Co.","Bloomfield Town",null,1.6,1.51732,1.22082]
[203,"Essex Co.","Caldwell Boro.",null,1.67,1.66113,1.3057399999999999]
[204,"Essex Co.","Cedar Grove Twp.",null,1.6,1.5990800000000001,1.27041]
[205,"Essex Co.","East Orange City",null,1.39,1.4893000000000001,1.2044900000000001]
[206,"Essex Co.","Essex Fells Boro.",null,1.67,1.6678500000000001,1.3094600000000001]
[207,"Essex Co.","Fairfield Boro.",null,1.64,1.6514200000000001,1.31179]
[208,"Essex Co.","Glen Ridge Boro.",null,1.66,1.5373300000000001,1.2305900000000001]
[209,"Essex Co.","Irvington Town",null,1.31,1.4537199999999999,1.1899599999999999]
[210,"Essex Co.","Livingston Twp.",null,1.68,1.6919200000000001,1.3557699999999999]
[211,"Essex Co.","Maplewood Twp.",null,1.62,1.55674,1.264]
[212,"Essex Co.","Millburn Twp.",null,1.69,1.6600699999999999,1.3479399999999999]
[213,"Essex Co.","Montclair Town",null,1.64,1.5665500000000001,1.24864]
[214,"Essex Co.","Newark City",null,1.31,1.36832,1.1322399999999999]
[215,"Essex Co.","North Caldwell Boro.",null,1.61,1.63165,1.2903100000000001]
[216,"Essex Co.","Nutley Town",null,1.59,1.5015700000000001,1.2168600000000001]
[217,"Essex Co.","Orange City",null,1.61,1.53966,1.23688]
[218,"Essex Co.","Roseland Boro.",null,1.67,1.68327,1.33118]
[219,"Essex Co.","South Orange Village",null,1.63,1.56013,1.25919]
[220,"Essex Co.","Verona Boro.",null,1.67,1.6186,1.27765]
[221,"Essex Co.","West Caldwell Boro.",null,1.67,1.6653500000000001,1.3159400000000001]
[222,"Essex Co.","West Orange Town",null,1.67,1.62008,1.28634]
[223,"Gloucester Co.","Clayton Boro.",null,1.35,1.33033,1.1528799999999999]
[224,"Gloucester Co.","Deptford Twp.",null,1.36,1.31898,1.2469300000000001]
[225,"Gloucester Co.","East Greenwich Twp.",null,1.35,1.28748,1.1525700000000001]
[226,"Gloucester Co.","Elk Twp.",null,1.35,1.31752,1.1348400000000001]
[227,"Gloucester Co.","Franklin Twp.",null,1.35,1.3367899999999999,1.1224700000000001]
[228,"Gloucester Co.","Glassboro Boro.",null,1.35,1.3220799999999999,1.1723699999999999]
[229,"Gloucester Co.","Greenwich Twp.",null,1.36,1.2862899999999999,1.1290100000000001]
[230,"Gloucester Co.","Harrison Twp.",null,1.35,1.3040799999999999,1.1475299999999999]
[231,"Gloucester Co.","Logan Twp.",null,1.35,1.3244499999999999,1.1363300000000001]
[232,"Gloucester Co.","Mantua Twp.",null,1.36,1.3021,1.1847799999999999]
[233,"Gloucester Co.","Monroe Twp.",null,1.36,1.3508199999999999,1.1619600000000001]
[234,"Gloucester Co.","National Park Boro.",null,1.36,1.2839,1.18767]
[235,"Gloucester Co.","Newfield Boro.",null,1.33,1.3336600000000001,1.11625]
[236,"Gloucester Co.","Paulsboro Boro.",null,1.36,1.27372,1.14713]
[237,"Gloucester Co.","Pitman Boro.",null,1.36,1.3152600000000001,1.1890000000000001]
[238,"Gloucester Co.","South Harrison Twp.",null,1.35,1.3129900000000001,1.12706]
[239,"Gloucester Co.","Swedesboro Boro.",null,1.35,1.3150500000000001,1.1328]
[240,"Gloucester Co.","Washington Twp.",null,1.36,1.3350599999999999,1.2282]
[241,"Gloucester Co.","Wenonah Boro.",null,1.36,1.30419,1.2152000000000001]
[242,"Gloucester Co.","West Deptford Twp.",null,1.36,1.2863800000000001,1.19059]
[243,"Gloucester Co.","Westville Boro.",null,1.36,1.3165899999999999,1.2426999999999999]
[244,"Gloucester Co.","Woodbury City",null,1.36,1.29983,1.2226399999999999]
[245,"Gloucester Co.","Woodbury Heights Boro.",null,1.36,1.30108,1.2214100000000001]
[246,"Gloucester Co.","Woolwich Twp.",null,1.35,1.3188800000000001,1.1348]
[247,"Hudson Co.","Bayonne City",null,1.32,1.2922899999999999,1.0662199999999999]
[248,"Hudson Co.","East Newark Boro.",null,1.31,1.39229,1.1477200000000001]
[249,"Hudson Co.","Guttenberg Town",null,1.39,1.46669,1.28417]
[250,"Hudson Co.","Harrison Town",null,1.31,1.37243,1.13653]
[251,"Hudson Co.","Hoboken City",null,1.39,1.4229099999999999,1.2250799999999999]
[252,"Hudson Co.","Jersey City",null,1.39,1.3704700000000001,1.15604]
[253,"Hudson Co.","Kearny Town",null,1.36,1.393,1.1563099999999999]
[254,"Hudson Co.","North Bergen Twp.",null,1.39,1.4611799999999999,1.2633000000000001]
[255,"Hudson Co.","Secaucus Town",null,1.39,1.4394199999999999,1.2185600000000001]
[256,"Hudson Co.","Union City",null,1.39,1.44015,1.2416700000000001]
[257,"Hudson Co.","Weehawken Twp.",null,1.39,1.44492,1.25542]
[258,"Hudson Co.","West New York Town",null,1.39,1.46086,1.27559]
[259,"Hunterdon Co.","Alexandria Twp.",null,1.54,1.5178100000000001,1.2416199999999999]
[260,"Hunterdon Co.","Bethlehem Twp.",null,1.56,1.57989,1.3087200000000001]
[261,"Hunterdon Co.","Bloomsbury Boro.",null,1.5,1.5160100000000001,1.2275499999999999]
[262,"Hunterdon Co.","Califon Boro.",null,1.83,1.7488999999999999,1.40733]
[263,"Hunterdon Co.","Clinton Town",null,1.54,1.63419,1.3766099999999999]
[264,"Hunterdon Co.","Clinton Twp.",null,1.63,1.64825,1.37161]
[265,"Hunterdon Co.","Delaware Twp.",null,1.46,1.4296500000000001,1.1701699999999999]
[266,"Hunterdon Co.","East Amwell Twp.",null,1.52,1.4565300000000001,1.19218]
[267,"Hunterdon Co.","Flemington Boro.",null,1.54,1.52041,1.2589300000000001]
[268,"Hunterdon Co.","Franklin Twp.",null,1.54,1.5595600000000001,1.3071600000000001]
[269,"Hunterdon Co.","Frenchtown Boro.",null,1.54,1.4618599999999999,1.1635500000000001]
[270,"Hunterdon Co.","Glen Gardner Boro.",null,1.83,1.65557,1.3777200000000001]
[271,"Hunterdon Co.","Hampton Boro.",null,1.66,1.6346400000000001,1.3591800000000001]
[272,"Hunterdon Co.","High Bridge Boro.",null,1.83,1.6711400000000001,1.3956]
[273,"Hunterdon Co.","Holland Twp.",null,1.53,1.4736899999999999,1.16269]
[274,"Hunterdon Co.","Kingwood Twp.",null,1.49,1.4506300000000001,1.1642699999999999]
[275,"Hunterdon Co.","Lambertville City",null,1.39,1.3939299999999999,1.17605]
[276,"Hunterdon Co.","Lebanon Boro.",null,1.68,1.6661699999999999,1.37951]
[277,"Hunterdon Co.","Lebanon Twp.",null,1.83,1.7112799999999999,1.3949199999999999]
[278,"Hunterdon Co.","Milford Boro.",null,1.54,1.47336,1.1674599999999999]
[279,"Hunterdon Co.","Raritan Twp.",null,1.54,1.5156700000000001,1.25431]
[280,"Hunterdon Co.","Readington Twp.",null,1.52,1.5756699999999999,1.2821100000000001]
[281,"Hunterdon Co.","Stockton Boro.",null,1.39,1.39255,1.13751]
[282,"Hunterdon Co.","Tewksbury Twp.",null,1.78,1.72689,1.37602]
[283,"Hunterdon Co.","Union Twp.",null,1.56,1.5940300000000001,1.33484]
[284,"Hunterdon Co.","West Amwell Twp.",null,1.39,1.4211100000000001,1.19865]
[285,"Mercer Co.","East Windsor Twp.",null,1.43,1.44156,1.26075]
[286,"Mercer Co.","Ewing Twp.",null,1.4,1.49017,1.35639]
[287,"Mercer Co.","Hamilton Twp.",null,1.43,1.46516,1.3379000000000001]
[288,"Mercer Co.","Hightstown Boro.",null,1.43,1.44034,1.2547600000000001]
[289,"Mercer Co.","Hopewell Boro.",null,1.53,1.4525399999999999,1.1919500000000001]
[290,"Mercer Co.","Hopewell Twp.",null,1.42,1.4584699999999999,1.24607]
[291,"Mercer Co.","Lawrence Twp.",null,1.43,1.46469,1.2855300000000001]
[292,"Mercer Co.","Pennington Boro.",null,1.39,1.4656,1.27128]
[293,"Mercer Co.","Princeton Boro.",null,1.43,1.4473100000000001,1.1994899999999999]
[294,"Mercer Co.","Princeton Twp.",null,1.43,1.4484399999999999,1.19702]
[295,"Mercer Co.","Trenton City",null,1.42,1.4884900000000001,1.3774900000000001]
[296,"Mercer Co.","Washington Twp.",null,1.43,1.4469799999999999,1.29684]
[297,"Mercer Co.","West Windsor Twp.",null,1.43,1.4470799999999999,1.2559199999999999]
[298,"Middlesex Co.","Carteret Boro.",null,1.39,1.3621099999999999,1.10066]
[299,"Middlesex Co.","Cranbury Twp.",null,1.43,1.44123,1.2238899999999999]
[300,"Middlesex Co.","Dunellen Boro.",null,1.55,1.54118,1.3163100000000001]
[301,"Middlesex Co.","East Brunswick Twp.",null,1.48,1.4594100000000001,1.20842]
[302,"Middlesex Co.","Edison Twp.",null,1.52,1.4803599999999999,1.2536499999999999]
[303,"Middlesex Co.","Helmetta Boro.",null,1.48,1.4535400000000001,1.20922]
[304,"Middlesex Co.","Highland Park Boro.",null,1.48,1.4801,1.2395400000000001]
[305,"Middlesex Co.","Jamesburg Boro.",null,1.47,1.4506699999999999,1.2150399999999999]
[306,"Middlesex Co.","Metuchen Boro.",null,1.55,1.47672,1.25373]
[307,"Middlesex Co.","Middlesex Boro.",null,1.54,1.5197000000000001,1.27521]
[308,"Middlesex Co.","Milltown Boro.",null,1.48,1.4643200000000001,1.21]
[309,"Middlesex Co.","Monroe Twp.",null,1.45,1.4525399999999999,1.2339800000000001]
[310,"Middlesex Co.","New Brunswick City",null,1.48,1.47435,1.2236899999999999]
[311,"Middlesex Co.","North Brunswick Twp.",null,1.48,1.46096,1.19357]
[312,"Middlesex Co.","Old Bridge Twp.",null,1.47,1.4513199999999999,1.20699]
[313,"Middlesex Co.","Perth Amboy City",null,1.53,1.41337,1.1582600000000001]
[314,"Middlesex Co.","Piscataway Twp.",null,1.52,1.5041199999999999,1.26902]
[315,"Middlesex Co.","Plainsboro Twp.",null,1.43,1.44123,1.2010400000000001]
[316,"Middlesex Co.","Sayreville Boro.",null,1.48,1.4470400000000001,1.19855]
[317,"Middlesex Co.","South Amboy City",null,1.48,1.4293899999999999,1.1746000000000001]
[318,"Middlesex Co.","South Brunswick Twp.",null,1.46,1.4456899999999999,1.1807000000000001]
[319,"Middlesex Co.","South Plainfield Boro.",null,1.55,1.52125,1.30758]
[320,"Middlesex Co.","South River Boro.",null,1.48,1.46024,1.21374]
[321,"Middlesex Co.","Spotswood Boro.",null,1.48,1.4563900000000001,1.21177]
[322,"Middlesex Co.","Woodbridge Twp.",null,1.54,1.43129,1.1897599999999999]
[323,"Monmouth Co.","Aberdeen Twp.",null,1.46,1.4373199999999999,1.18]
[324,"Monmouth Co.","Allenhurst Boro.",null,1.55,1.53183,1.3787799999999999]
[325,"Monmouth Co.","Allentown Boro.",null,1.43,1.45096,1.31169]
[326,"Monmouth Co.","Asbury Park City",null,1.55,1.5354699999999999,1.38662]
[327,"Monmouth Co.","Atlantic Highlands Boro.",null,1.55,1.43476,1.1893199999999999]
[328,"Monmouth Co.","Avon-By-The-Sea Boro.",null,1.55,1.5427900000000001,1.4058200000000001]
[329,"Monmouth Co.","Belmar Boro.",null,1.55,1.5452300000000001,1.4117]
[330,"Monmouth Co.","Bradley Beach Boro.",null,1.55,1.54067,1.40052]
[331,"Monmouth Co.","Brielle Boro.",null,1.55,1.55335,1.4301600000000001]
[332,"Monmouth Co.","Colts Neck Twp.",null,1.45,1.4935499999999999,1.29087]
[333,"Monmouth Co.","Deal Boro.",null,1.55,1.52738,1.36819]
[334,"Monmouth Co.","Eatontown Boro.",null,1.55,1.5071099999999999,1.31684]
[335,"Monmouth Co.","Englishtown Boro.",null,1.44,1.46455,1.25597]
[336,"Monmouth Co.","Fair Haven Boro.",null,1.55,1.46936,1.24526]
[337,"Monmouth Co.","Farmingdale Boro.",null,1.44,1.5218499999999999,1.3512999999999999]
[338,"Monmouth Co.","Freehold Boro.",null,1.44,1.4854000000000001,1.2902499999999999]
[339,"Monmouth Co.","Freehold Twp.",null,1.44,1.48767,1.30175]
[340,"Monmouth Co.","Hazlet Twp.",null,1.44,1.42496,1.1588099999999999]
[341,"Monmouth Co.","Highlands Boro.",null,1.55,1.44479,1.21482]
[342,"Monmouth Co.","Holmdel Twp.",null,1.44,1.45444,1.2101500000000001]
[343,"Monmouth Co.","Howell Twp.",null,1.44,1.5188699999999999,1.3481399999999999]
[344,"Monmouth Co.","Interlaken Boro.",null,1.55,1.5318499999999999,1.37626]
[345,"Monmouth Co.","Keansburg Boro.",null,1.46,1.40625,1.1315999999999999]
[346,"Monmouth Co.","Keyport Boro.",null,1.44,1.42537,1.1596299999999999]
[347,"Monmouth Co.","Little Silver Boro.",null,1.55,1.48387,1.2720100000000001]
[348,"Monmouth Co.","Loch Arbour Village",null,1.55,1.5329299999999999,1.38174]
[349,"Monmouth Co.","Long Branch City",null,1.55,1.5074700000000001,1.3258700000000001]
[350,"Monmouth Co.","Manalapan Twp.",null,1.44,1.4695100000000001,1.26718]
[351,"Monmouth Co.","Manasquan Boro.",null,1.55,1.55332,1.4328700000000001]
[352,"Monmouth Co.","Marlboro Twp.",null,1.44,1.4668399999999999,1.2390099999999999]
[353,"Monmouth Co.","Matawan Boro.",null,1.45,1.4411099999999999,1.18608]
[354,"Monmouth Co.","Middletown Twp.",null,1.53,1.4498,1.2066399999999999]
[355,"Monmouth Co.","Millstone Twp.",null,1.43,1.46227,1.28786]
[356,"Monmouth Co.","Monmouth Beach Boro.",null,1.55,1.48739,1.2888500000000001]
[357,"Monmouth Co.","Neptune City Boro.",null,1.55,1.5401100000000001,1.3956900000000001]
[358,"Monmouth Co.","Neptune Twp.",null,1.55,1.53531,1.38165]
[359,"Monmouth Co.","Ocean Twp.",null,1.55,1.4973399999999999,1.3002899999999999]
[360,"Monmouth Co.","Oceanport Boro.",null,1.55,1.52457,1.3565499999999999]
[361,"Monmouth Co.","Red Bank Boro.",null,1.55,1.4763999999999999,1.25481]
[362,"Monmouth Co.","Roosevelt Boro.",null,1.43,1.4521200000000001,1.28193]
[363,"Monmouth Co.","Rumson Boro.",null,1.55,1.4693400000000001,1.2513799999999999]
[364,"Monmouth Co.","Sea Bright Boro.",null,1.55,1.46915,1.25823]
[365,"Monmouth Co.","Sea Girt Boro.",null,1.55,1.5524500000000001,1.4313499999999999]
[366,"Monmouth Co.","Shrewsbury Boro.",null,1.55,1.4893799999999999,1.28047]
[367,"Monmouth Co.","Shrewsbury Twp.",null,1.55,1.49491,1.2907500000000001]
[368,"Monmouth Co.","South Belmar Boro.",null,1.55,1.54671,1.4150499999999999]
[369,"Monmouth Co.","Spring Lake Boro.",null,1.55,1.5495000000000001,1.42327]
[370,"Monmouth Co.","Spring Lake Heights Boro.",null,1.55,1.54904,1.4191100000000001]
[371,"Monmouth Co.","Tinton Falls Boro.",null,1.55,1.5104299999999999,1.32392]
[372,"Monmouth Co.","Union Beach Boro.",null,1.44,1.41215,1.13917]
[373,"Monmouth Co.","Upper Freehold Twp.",null,1.43,1.4558,1.3056700000000001]
[374,"Monmouth Co.","Wall Twp.",null,1.53,1.5404100000000001,1.3924399999999999]
[375,"Monmouth Co.","West Long Branch Boro.",null,1.55,1.51109,1.32819]
[376,"Morris Co.","Boonton Town",null,1.67,1.66116,1.33172]
[377,"Morris Co.","Boonton Twp.",null,1.67,1.70906,1.3489100000000001]
[378,"Morris Co.","Butler Boro.",null,1.83,1.77321,1.4034]
[379,"Morris Co.","Chatham Boro.",null,1.69,1.71221,1.4065799999999999]
[380,"Morris Co.","Chatham Twp.",null,1.69,1.7044600000000001,1.4176200000000001]
[381,"Morris Co.","Chester Boro.",null,1.83,1.81132,1.38855]
[382,"Morris Co.","Chester Twp.",null,1.82,1.7963,1.38279]
[383,"Morris Co.","Denville Twp.",null,1.7,1.7221599999999999,1.3505799999999999]
[384,"Morris Co.","Dover Town",null,1.73,1.7628299999999999,1.36087]
[385,"Morris Co.","East Hanover Twp.",null,1.68,1.68869,1.3596600000000001]
[386,"Morris Co.","Florham Park Boro.",null,1.69,1.7143900000000001,1.39615]
[387,"Morris Co.","Hanover Twp.",null,1.72,1.69577,1.3707]
[388,"Morris Co.","Harding Twp.",null,1.72,1.71305,1.4016900000000001]
[389,"Morris Co.","Jefferson Twp.",null,1.8,1.8009500000000001,1.3891]
[390,"Morris Co.","Kinnelon Boro.",null,1.78,1.7777400000000001,1.3946400000000001]
[391,"Morris Co.","Lincoln Park Boro.",null,1.62,1.66377,1.32084]
[392,"Morris Co.","Madison Boro.",null,1.69,1.65666,1.3881399999999999]
[393,"Morris Co.","Mendham Boro.",null,1.73,1.7189700000000001,1.41161]
[394,"Morris Co.","Mendham Twp.",null,1.75,1.75542,1.3786400000000001]
[395,"Morris Co.","Mine Hill Twp.",null,1.73,1.7609600000000001,1.3803300000000001]
[396,"Morris Co.","Montville Twp.",null,1.67,1.7780499999999999,1.3659300000000001]
[397,"Morris Co.","Morris Plains Boro.",null,1.73,1.67502,1.3342799999999999]
[398,"Morris Co.","Morris Twp.",null,1.73,1.7140500000000001,1.3644799999999999]
[399,"Morris Co.","Morristown Town",null,1.73,1.73119,1.3887]
[400,"Morris Co.","Mount Arlington Boro.",null,1.73,1.7244600000000001,1.3897699999999999]
[401,"Morris Co.","Mount Olive Twp.",null,1.82,1.7732699999999999,1.35423]
[402,"Morris Co.","Mountain Lakes Boro.",null,1.67,1.7867599999999999,1.3613900000000001]
[403,"Morris Co.","Netcong Boro.",null,1.83,1.67567,1.33683]
[404,"Morris Co.","Parsippany-Troy Hills Twp.",null,1.69,1.77427,1.3510899999999999]
[405,"Morris Co.","Passaic Twp.",null,1.58,1.6733499999999999,1.34345]
[406,"Morris Co.","Pequannock Twp.",null,1.64,1.69859,1.34944]
[407,"Morris Co.","Randolph Twp.",null,1.73,1.7712699999999999,1.37242]
[408,"Morris Co.","Riverdale Boro.",null,1.83,1.7377899999999999,1.3837600000000001]
[409,"Morris Co.","Rockaway Boro.",null,1.73,1.7406999999999999,1.3533200000000001]
[410,"Morris Co.","Rockaway Twp.",null,1.77,1.7849999999999999,1.38198]
[411,"Morris Co.","Roxbury Twp.",null,1.77,1.7867200000000001,1.36496]
[412,"Morris Co.","Victory Gardens Boro.",null,1.73,1.7540199999999999,1.36]
[413,"Morris Co.","Washington Twp.",null,1.83,1.80281,1.3925399999999999]
[414,"Morris Co.","Wharton Boro.",null,1.73,1.77129,1.36113]
[415,"Ocean Co.","Barnegat Light Boro.",null,1.54,1.47827,1.3287899999999999]
[416,"Ocean Co.","Barnegat Twp. ",null,1.48,1.49332,1.38429]
[417,"Ocean Co.","Bay Head Boro.",null,1.54,1.55653,1.44641]
[418,"Ocean Co.","Beach Haven Boro.",null,1.45,1.35989,1.23675]
[419,"Ocean Co.","Beachwood Boro.",null,1.54,1.5391300000000001,1.40496]
[420,"Ocean Co.","Berkeley Twp.",null,1.54,1.5321800000000001,1.3977900000000001]
[421,"Ocean Co.","Brick Twp.",null,1.54,1.55087,1.42032]
[422,"Ocean Co.","Dover Twp.",null,1.54,1.5439799999999999,1.40601]
[423,"Ocean Co.","Eagleswood Twp.",null,1.45,1.4419599999999999,1.34327]
[424,"Ocean Co.","Harvey Cedars Boro.",null,1.45,1.4522200000000001,1.30027]
[425,"Ocean Co.","Island Heights Boro.",null,1.54,1.5447299999999999,1.41764]
[426,"Ocean Co.","Jackson Twp.",null,1.49,1.49807,1.3350599999999999]
[427,"Ocean Co.","Lacey Twp.",null,1.54,1.5161,1.3940699999999999]
[428,"Ocean Co.","Lakehurst Boro.",null,1.54,1.5192300000000001,1.3635699999999999]
[429,"Ocean Co.","Lakewood Twp.",null,1.54,1.53694,1.38463]
[430,"Ocean Co.","Lavallette Boro.",null,1.54,1.5496700000000001,1.4388399999999999]
[431,"Ocean Co.","Little Egg Harbor Twp.",null,1.45,1.4157,1.3362499999999999]
[432,"Ocean Co.","Long Beach Twp.",null,1.47,1.41042,1.2761]
[433,"Ocean Co.","Manchester Twp.",null,1.53,1.5089699999999999,1.3649199999999999]
[434,"Ocean Co.","Mantoloking Boro.",null,1.54,1.55647,1.44929]
[435,"Ocean Co.","Ocean Gate Boro.",null,1.54,1.54186,1.41754]
[436,"Ocean Co.","Ocean Twp.",null,1.54,1.5,1.39]
[437,"Ocean Co.","Pne Beach Boro.",null,1.54,1.54244,1.4117599999999999]
[438,"Ocean Co.","Plumsted Twp.",null,1.46,1.4764699999999999,1.3244]
[439,"Ocean Co.","Point Pleasant Beach Boro.",null,1.55,1.5557099999999999,1.4422999999999999]
[440,"Ocean Co.","Point Pleasant Boro.",null,1.54,1.5549999999999999,1.4363300000000001]
[441,"Ocean Co.","Seaside Heights Boro.",null,1.54,1.54531,1.4326399999999999]
[442,"Ocean Co.","Seaside Park Boro.",null,1.54,1.54158,1.4270799999999999]
[443,"Ocean Co.","Ship Bottom Boro.",null,1.45,1.4238,1.2803199999999999]
[444,"Ocean Co.","South Toms River Boro.",null,1.54,1.5402400000000001,1.40303]
[445,"Ocean Co.","Stafford Twp.",null,1.45,1.4701299999999999,1.36226]
[446,"Ocean Co.","Surf City Boro.",null,1.45,1.43232,1.2859499999999999]
[447,"Ocean Co.","Tuckerton Boro.",null,1.45,1.4063099999999999,1.3208500000000001]
[448,"Passaic Co.","Bloomingdale Boro.",null,1.83,1.79277,1.4354800000000001]
[449,"Passaic Co.","Clifton City",null,1.59,1.5378099999999999,1.2423999999999999]
[450,"Passaic Co.","Haledon Boro.",null,1.59,1.6023700000000001,1.2864]
[451,"Passaic Co.","Hawthorne Boro.",null,1.59,1.60382,1.2961100000000001]
[452,"Passaic Co.","Little Falls Twp. ",null,1.59,1.5888500000000001,1.2685299999999999]
[453,"Passaic Co.","North Haledon Boro.",null,1.59,1.6208499999999999,1.3061199999999999]
[454,"Passaic Co.","Passaic City",null,1.59,1.5194099999999999,1.2383200000000001]
[455,"Passaic Co.","Paterson City",null,1.59,1.5743199999999999,1.2685]
[456,"Passaic Co.","Pompton Lakes Boro.",null,1.77,1.7276199999999999,1.3863000000000001]
[457,"Passaic Co.","Prospect Park Boro.",null,1.59,1.59588,1.2839700000000001]
[458,"Passaic Co.","Ringwood Boro.",null,1.83,1.77597,1.4894799999999999]
[459,"Passaic Co.","Totowa Boro.",null,1.59,1.6017699999999999,1.27942]
[460,"Passaic Co.","Wanaque Boro.",null,1.83,1.76637,1.4362600000000001]
[461,"Passaic Co.","Wayne Twp.",null,1.59,1.64974,1.3183199999999999]
[462,"Passaic Co.","West Milford Twp.",null,1.83,1.8383499999999999,1.4928300000000001]
[463,"Passaic Co.","West Paterson Boro.",null,1.59,1.57578,1.2633300000000001]
[464,"Salem Co.","Alloway Twp.",null,1.35,1.3339300000000001,1.1218900000000001]
[465,"Salem Co.","Carneys Point Twp.",null,1.35,1.3843300000000001,1.19055]
[466,"Salem Co.","Elmer Boro.",null,1.35,1.3218000000000001,1.10446]
[467,"Salem Co.","Elsinboro Twp.",null,1.35,1.36389,1.1788700000000001]
[468,"Salem Co.","Lower Alloways Creek Twp.",null,1.35,1.33426,1.1415900000000001]
[469,"Salem Co.","Mannington Twp.",null,1.35,1.3640099999999999,1.1654]
[470,"Salem Co.","Oldmans Twp.",null,1.35,1.3648499999999999,1.1656899999999999]
[471,"Salem Co.","Penns Grove Boro.",null,1.35,1.3972100000000001,1.20374]
[472,"Salem Co.","Pennsville Twp.",null,1.35,1.39672,1.22176]
[473,"Salem Co.","Pilesgrove Twp.",null,1.35,1.3347,1.12961]
[474,"Salem Co.","Pittsgrove Twp.",null,1.34,1.3220099999999999,1.1130800000000001]
[475,"Salem Co.","Quinton Twp.",null,1.35,1.3400300000000001,1.13876]
[476,"Salem Co.","Salem City",null,1.35,1.36879,1.1802900000000001]
[477,"Salem Co.","Upper Pittsgrove Twp.",null,1.35,1.32175,1.1102000000000001]
[478,"Salem Co.","Woodstown Boro.",null,1.35,1.3349800000000001,1.1280699999999999]
[479,"Somerset Co.","Bedminster Twp.",null,1.55,1.6483699999999999,1.30396]
[480,"Somerset Co.","Bernards Twp.",null,1.52,1.6347,1.32917]
[481,"Somerset Co.","Bernardsville Boro.",null,1.63,1.7102299999999999,1.3621799999999999]
[482,"Somerset Co.","Bound Brook Boro.",null,1.49,1.50282,1.23712]
[483,"Somerset Co.","Branchburg Twp.",null,1.5,1.5142,1.20757]
[484,"Somerset Co.","Bridgewater Twp.",null,1.49,1.51467,1.2224600000000001]
[485,"Somerset Co.","Far Hills Boro.",null,1.49,1.66425,1.32165]
[486,"Somerset Co.","Franklin Twp.",null,1.48,1.46095,1.17591]
[487,"Somerset Co.","Green Brook Twp.",null,1.55,1.55406,1.32012]
[488,"Somerset Co.","Hillsborough Twp.",null,1.5,1.46353,1.15557]
[489,"Somerset Co.","Manville Boro.",null,1.49,1.4703200000000001,1.1752199999999999]
[490,"Somerset Co.","Millstone Boro.",null,1.49,1.4551000000000001,1.14958]
[491,"Somerset Co.","Montgomery Twp.",null,1.5,1.4489099999999999,1.1498600000000001]
[492,"Somerset Co.","North Plainfield Boro.",null,1.55,1.57606,1.35622]
[493,"Somerset Co.","Peapack-Gladstone Boro.",null,1.67,1.71898,1.3474699999999999]
[494,"Somerset Co.","Raritan Boro.",null,1.49,1.4839199999999999,1.1830799999999999]
[495,"Somerset Co.","Rocky Hill Boro.",null,1.43,1.44414,1.1530100000000001]
[496,"Somerset Co.","Somerville Boro.",null,1.49,1.48278,1.18767]
[497,"Somerset Co.","South Bound Brook Boro.",null,1.49,1.49516,1.2318499999999999]
[498,"Somerset Co.","Warren Twp.",null,1.52,1.5828199999999999,1.32487]
[499,"Somerset Co.","Watchung Boro.",null,1.55,1.6050899999999999,1.3751800000000001]
[500,"Sussex Co.","Andover Boro.",null,1.6,1.6778200000000001,1.27877]
[501,"Sussex Co.","Andover Twp.",null,1.6,1.66218,1.2639899999999999]
[502,"Sussex Co.","Branchville Boro.",null,1.6,1.59582,1.19221]
[503,"Sussex Co.","Byram Twp.",null,1.6,1.7231300000000001,1.31315]
[504,"Sussex Co.","Frankford Twp.",null,1.64,1.60097,1.1995100000000001]
[505,"Sussex Co.","Franklin Boro.",null,1.66,1.75773,1.35592]
[506,"Sussex Co.","Fredon Twp.",null,1.6,1.59883,1.21763]
[507,"Sussex Co.","Green Twp.",null,1.6,1.65473,1.26298]
[508,"Sussex Co.","Hamburg Boro.",null,1.66,1.75203,1.3598600000000001]
[509,"Sussex Co.","Hampton Twp.",null,1.6,1.59002,1.1954400000000001]
[510,"Sussex Co.","Hardyston Twp.",null,1.71,1.77641,1.3814299999999999]
[511,"Sussex Co.","Hopatcong Boro.",null,1.61,1.7543200000000001,1.3385899999999999]
[512,"Sussex Co.","Lafayette Twp.",null,1.64,1.66978,1.2632099999999999]
[513,"Sussex Co.","Montague Twp.",null,1.66,1.53756,1.1867799999999999]
[514,"Sussex Co.","Newton Town",null,1.6,1.6221699999999999,1.22908]
[515,"Sussex Co.","Ogdensburg Boro.",null,1.7,1.76186,1.35484]
[516,"Sussex Co.","Sandyston Twp.",null,1.64,1.5448999999999999,1.1663699999999999]
[517,"Sussex Co.","Sparta Twp.",null,1.69,1.7422800000000001,1.33331]
[518,"Sussex Co.","Stanhope Boro.",null,1.68,1.7621899999999999,1.3420700000000001]
[519,"Sussex Co.","Stillwater Twp.",null,1.6,1.5676699999999999,1.19024]
[520,"Sussex Co.","Sussex Boro.",null,1.66,1.6814499999999999,1.2956799999999999]
[521,"Sussex Co.","Vernon Twp.",null,1.68,1.7707299999999999,1.43116]
[522,"Sussex Co.","Walpack Twp.",null,1.6,1.55593,1.19163]
[523,"Sussex Co.","Wantage Twp.",null,1.66,1.63879,1.2684]
[524,"Union Co.","Berkeley Heights Twp.",null,1.59,1.6493199999999999,1.4008700000000001]
[525,"Union Co.","Clark Twp.",null,1.55,1.48349,1.25038]
[526,"Union Co.","Cranford Twp.",null,1.59,1.5115499999999999,1.2631699999999999]
[527,"Union Co.","Elizabeth City",null,1.31,1.32063,1.08877]
[528,"Union Co.","Fanwood Boro.",null,1.55,1.5860399999999999,1.36103]
[529,"Union Co.","Garwood Boro.",null,1.55,1.53522,1.2928599999999999]
[530,"Union Co.","Hillside Twp.",null,1.31,1.4024300000000001,1.1560900000000001]
[531,"Union Co.","Kenilworth Boro.",null,1.59,1.5122599999999999,1.2528900000000001]
[532,"Union Co.","Linden City",null,1.34,1.3766799999999999,1.1264799999999999]
[533,"Union Co.","Mountainside Boro.",null,1.66,1.6262000000000001,1.36704]
[534,"Union Co.","New Providence Boro.",null,1.69,1.6777299999999999,1.40954]
[535,"Union Co.","Plainfield City",null,1.55,1.5639099999999999,1.3484799999999999]
[536,"Union Co.","Rahway City",null,1.55,1.43011,1.1877200000000001]
[537,"Union Co.","Roselle Boro.",null,1.31,1.42526,1.1777]
[538,"Union Co.","Roselle Park Boro.",null,1.31,1.45048,1.1997599999999999]
[539,"Union Co.","Scotch Plains Twp.",null,1.55,1.56565,1.34076]
[540,"Union Co.","Springfield Twp.",null,1.69,1.6120000000000001,1.3325100000000001]
[541,"Union Co.","Summit City",null,1.69,1.6808700000000001,1.3890199999999999]
[542,"Union Co.","Union Twp.",null,1.49,1.4958199999999999,1.2305200000000001]
[543,"Union Co.","Westfield Town",null,1.57,1.5621499999999999,1.3226199999999999]
[544,"Union Co.","Winfield Twp.",null,1.55,1.4638,1.2214499999999999]
[545,"Warren Co.","Allamuchy Twp.",null,1.66,1.6946300000000001,1.2979499999999999]
[546,"Warren Co.","Alpha Boro.",null,1.5,1.4784299999999999,1.1727700000000001]
[547,"Warren Co.","Belvidere Town",null,1.5,1.54416,1.28145]
[548,"Warren Co.","Blairstown Twp.",null,1.55,1.60266,1.26685]
[549,"Warren Co.","Franklin Twp.",null,1.5,1.55741,1.2825500000000001]
[550,"Warren Co.","Frelinghuysen Twp.",null,1.6,1.6247400000000001,1.2500899999999999]
[551,"Warren Co.","Greenwich Twp.",null,1.5,1.5056099999999999,1.2152700000000001]
[552,"Warren Co.","Hackettstown Town",null,1.83,1.7603800000000001,1.3544400000000001]
[553,"Warren Co.","Hardwick Twp.",null,1.6,1.5948100000000001,1.2568999999999999]
[554,"Warren Co.","Harmony Twp.",null,1.5,1.51488,1.24369]
[555,"Warren Co.","Hope Twp.",null,1.5,1.6137999999999999,1.2810600000000001]
[556,"Warren Co.","Independence Twp.",null,1.77,1.6976,1.3168899999999999]
[557,"Warren Co.","Knowlton Twp.",null,1.5,1.5942400000000001,1.2990900000000001]
[558,"Warren Co.","Liberty Twp.",null,1.5,1.6434200000000001,1.30457]
[559,"Warren Co.","Lopatcong Twp.",null,1.5,1.49265,1.20526]
[560,"Warren Co.","Mansfield Twp.",null,1.74,1.7000299999999999,1.3535900000000001]
[561,"Warren Co.","Oxford Twp.",null,1.5,1.61215,1.31409]
[562,"Warren Co.","Pahaquarry Twp.",null,1.55,1.6005499999999999,1.2838000000000001]
[563,"Warren Co.","Phillipsburg Town",null,1.5,1.4779,1.1809400000000001]
[564,"Warren Co.","Pohatcong Twp.",null,1.5,1.4712400000000001,1.1596]
[565,"Warren Co.","Washington Boro.",null,1.5,1.6259399999999999,1.33735]
[566,"Warren Co.","Washington Twp.",null,1.53,1.6226,1.33592]
[567,"Warren Co.","White Twp.",null,1.5,1.57006,1.2898700000000001]

{"sheet":"Soil Codes","index":5,"n_rows":333,"n_cols":34,"rows_kept":333,"cut":false,"hidden":false,"merged":[[2,18,2,31],[2,0,2,1],[2,3,2,16]]}
[]
[]
["Soil Codes Data Window",null,null,"Recharge Factors by Soil Code",null,null,null,null,null,null,null,null,null,null,null,null,null,null,"Recharge Constants by Soil Code"]
["code","Soil",null,0,1,2,3,4,5,6,7,8,9,10,11,12,13,null,0,1,2,3,4,5,6,7,8,9,10,11,12,13,null,"wet/urban?"]
[1,"Abbottstown",null,14.7,5.14,9.85,11.32,12.2,2.2000000000000002,0,6.68,12.15,16.37,10.130000000000001,15.19,17.75,15.68,null,9.3800000000000008,3.28,6.28,7.22,7.79,1.41,0,4.53,7.65,11,6.18,9.85,12.37,10.32,null,{"$f":"IF(SUM(D5:AF5)=0,0,1)","v":1}]
[2,"Adelphia",null,20.73,7.26,13.89,15.96,17.21,3.11,0,10.53,18.260000000000002,23.14,16.399999999999999,21.06,22.56,23.43,null,16.52,5.78,11.07,12.72,13.71,2.48,0,6.8,14.65,19.64,13.19,16.829999999999998,18.239999999999998,20.350000000000001,null,{"$f":"IF(SUM(D6:AF6)=0,0,1)","v":1}]
[3,"Adelphia Variant",null,20.97,7.34,14.05,16.149999999999999,17.399999999999999,3.15,0,9.9700000000000006,18.170000000000002,23.57,16.059999999999999,21.35,23.03,23.84,null,16.96,5.94,11.36,13.06,14.08,2.54,0,6.23,14.64,20.309999999999999,12.86,17.32,18.97,20.97,null,{"$f":"IF(SUM(D7:AF7)=0,0,1)","v":1}]
[4,"Adrian",null,0,0,0,0,0,0,0,0,0,0,0,0,0,0,null,0,0,0,0,0,0,0,0,0,0,0,0,0,0,null,{"$f":"IF(SUM(D8:AF8)=0,0,1)","v":0}]
[5,"Albia",null,15.96,5.59,10.69,12.29,13.25,2.39,0,5.15,12.25,18.399999999999999,9.3000000000000007,16.66,20.48,17.36,null,11.65,4.08,7.81,8.9700000000000006,9.67,1.75,0,0.94,7.54,14.72,4.2300000000000004,12.52,17.399999999999999,13.38,null,{"$f":"IF(SUM(D9:AF9)=0,0,1)","v":1}]
[6,"Alden",null,0,0,0,0,0,0,0,0,0,0,0,0,0,0,null,0,0,0,0,0,0,0,0,0,0,0,0,0,0,null,0]
[7,"Alloway",null,13.81,4.83,9.25,10.63,11.46,2.0699999999999998,0,6.48,12.05,16.649999999999999,10.09,14.98,17.09,16.43,null,7.72,2.7,5.18,5.95,6.41,1.1599999999999999,0,2.39,7.37,11.62,5.93,9.52,11.28,11.78,null,1]
[8,"Alluvial Land",null,0,0,0,0,0,0,0,0,0,0,0,0,0,0,null,0,0,0,0,0,0,0,0,0,0,0,0,0,0,null,{"$f":"IF(SUM(D12:AF12)=0,0,1)","v":0}]
[9,"Alluvial Land-Wet",null,0,0,0,0,0,0,0,0,0,0,0,0,0,0,null,0,0,0,0,0,0,0,0,0,0,0,0,0,0,null,{"$f":"IF(SUM(D13:AF13)=0,0,1)","v":0}]
[10,"Amwell",null,13.3,4.6500000000000004,8.91,10.24,11.04,1.99,0,6.05,11,14.83,9.17,13.75,16.11,14.2,null,6.93,2.4300000000000002,4.6399999999999997,5.34,5.75,1.04,0,3.1,5.53,8.34,4.33,7.34,9.5500000000000007,7.74,null,{"$f":"IF(SUM(D14:AF14)=0,0,1)","v":1}]
[11,"Annandale",null,14.16,4.96,9.49,10.91,11.76,2.12,0,5.0999999999999996,11.53,15.89,9.43,14.67,17.329999999999998,15.17,null,8.86,3.1,5.93,6.82,7.35,1.33,0,0.92,7.05,10.52,5.52,9.33,11.95,9.81,null,{"$f":"IF(SUM(D15:AF15)=0,0,1)","v":1}]
[12,"Appoquinimink-Broadkill",null,0,0,0,0,0,0,0,0,0,0,0,0,0,0,null,0,0,0,0,0,0,0,0,0,0,0,0,0,0,null,0]
[13,"Appoquinimink-Transquaking-Mispillion",null,0,0,0,0,0,0,0,0,0,0,0,0,0,0,null,0,0,0,0,0,0,0,0,0,0,0,0,0,0,null,0]
[14,"Aquents",null,0,0,0,0,0,0,0,0,0,0,0,0,0,0,null,0,0,0,0,0,0,0,0,0,0,0,0,0,0,null,{"$f":"IF(SUM(D18:AF18)=0,0,1)","v":0}]
[15,"Arendtsville",null,19.45,6.81,13.03,14.97,16.14,2.92,0,9.76,17.059999999999999,21.31,14.96,20.2,21.52,21.21,null,14.46,5.0599999999999996,9.69,11.14,12.01,2.17,0,5.27,12.61,16.91,10.63,15.58,16.739999999999998,16.989999999999998,null,{"$f":"IF(SUM(D19:AF19)=0,0,1)","v":1}]
[16,"Arnot-Lordstown",null,13.32,4.66,8.92,10.26,11.05,2,0,5.17,10.63,15.51,8.42,13.94,17.38,14.57,null,6.73,2.36,4.51,5.18,5.59,1.01,0,0.24,4.26,9.42,2.11,7.48,11.77,8.24,null,1]
[17,"Arnot-Lordstown rock outcrop",null,13.24,4.63,8.8699999999999992,10.19,10.99,1.99,0,4.76,10.34,15.24,8.0299999999999994,13.81,16.96,14.38,null,7.32,2.56,4.8899999999999997,5.63,6.07,1.1000000000000001,0,-1.1599999999999999,4.07,9.89,1.43,8.0299999999999994,12.15,8.76,null,1]
[18,"Atherton",null,0,0,0,0,0,0,0,0,0,0,0,0,0,0,null,0,0,0,0,0,0,0,0,0,0,0,0,0,0,null,{"$f":"IF(SUM(D22:AF22)=0,0,1)","v":0}]
[19,"Athol",null,20.74,7.26,13.89,15.97,17.21,3.11,0,10.83,18.62,22.33,16.75,21.41,22.66,22.17,null,16.850000000000001,5.9,11.29,12.97,13.99,2.5299999999999998,0,7.83,15.51,18.82,13.98,17.809999999999999,18.91,18.77,null,1]
[20,"Atsion",null,0,0,0,0,0,0,0,0,0,0,0,0,0,0,null,0,0,0,0,0,0,0,0,0,0,0,0,0,0,null,0]
[21,"Aura",null,19.61,6.86,13.14,15.1,16.27,2.94,0,10.74,17.399999999999999,21.94,15.72,19.91,21.26,22.29,null,14.6,5.1100000000000003,9.7799999999999994,11.24,12.12,2.19,0,6.41,12.96,17.7,11.69,14.87,16.13,18.489999999999998,null,1]
[22,"Barclay",null,16.66,5.83,11.16,12.82,13.82,2.5,0,7.42,13.78,19.29,11.54,17.13,19.55,19.16,null,13.06,4.57,8.75,10.06,10.84,1.96,0,5.67,11.21,16.149999999999999,9.73,13.44,15.44,16.5,null,1]
[23,"Bartley",null,14.54,5.09,9.74,11.19,12.07,2.1800000000000002,0,5.65,12,16.260000000000002,9.9600000000000009,15.05,17.7,15.55,null,9.48,3.32,6.35,7.3,7.86,1.42,0,1.98,7.82,11.14,6.41,9.9499999999999993,12.56,10.43,null,1]
[24,"Bath",null,15.08,5.28,10.1,11.61,12.52,2.2599999999999998,0,5.48,11.95,17.2,9.4499999999999993,15.7,18.98,16.309999999999999,null,10.33,3.62,6.92,7.95,8.57,1.55,0,2.13,7.5,12.77,5.14,11.02,14.87,11.72,null,1]
[25,"Bayboro",null,0,0,0,0,0,0,0,0,0,0,0,0,0,0,null,0,0,0,0,0,0,0,0,0,0,0,0,0,0,null,0]
[26,"Bedington",null,20.3,7.11,13.6,15.63,16.850000000000001,3.05,0,10.31,18.100000000000001,21.92,16.14,21.03,22.34,21.7,null,16.059999999999999,5.62,10.76,12.36,13.33,2.41,0,6.64,14.53,18.059999999999999,12.8,17.12,18.34,17.93,null,1]
[27,"Berks",null,14.59,5.1100000000000003,9.77,11.23,12.11,2.19,0,6.28,11.99,16.23,9.93,15.08,17.559999999999999,15.56,null,9,3.15,6.03,6.93,7.47,1.35,0,2.85,7.13,10.62,5.56,9.48,11.95,9.9499999999999993,null,1]
[28,"Berryland",null,0,0,0,0,0,0,0,0,0,0,0,0,0,0,null,0,0,0,0,0,0,0,0,0,0,0,0,0,0,null,0]
[29,"Berryland Variant",null,0,0,0,0,0,0,0,0,0,0,0,0,0,0,null,0,0,0,0,0,0,0,0,0,0,0,0,0,0,null,0]
[30,"Bertie",null,21,7.35,14.07,16.170000000000002,17.43,3.15,0,12.87,19.32,22.88,18,21.29,22.74,22.95,null,16.54,5.79,11.08,12.74,13.73,2.48,0,8.7200000000000006,15.54,19.05,14.69,16.809999999999999,18.28,19.43,null,1]
[31,"Bibb",null,0,0,0,0,0,0,0,0,0,0,0,0,0,0,null,0,0,0,0,0,0,0,0,0,0,0,0,0,0,null,0]
[32,"Biddeford",null,0,0,0,0,0,0,0,0,0,0,0,0,0,0,null,0,0,0,0,0,0,0,0,0,0,0,0,0,0,null,0]
[33,"Bigapple",null,16.62,5.82,11.14,12.8,13.8,2.4900000000000002,0,11.22,15.43,18.57,14.21,17.27,17.39,19.149999999999999,null,7.77,2.72,5.21,5.99,6.45,1.17,0,2.2799999999999998,6.78,11.23,5.34,8.93,9.09,12.3,null,1]
[34,"Bigapple-urban land",null,0,0,0,0,0,0,0,0,0,0,0,0,0,0,null,0,0,0,0,0,0,0,0,0,0,0,0,0,0,null,0]
[35,"Birdsboro",null,19.41,6.8,13.01,14.95,16.11,2.91,0,9.69,17.18,21.33,15.21,20.14,21.53,21.22,null,14.63,5.12,9.8000000000000007,11.26,12.14,2.19,0,5.86,13.1,17.07,11.41,15.64,16.920000000000002,17.14,null,{"$f":"IF(SUM(D39:AF39)=0,0,1)","v":1}]
[36,"Boonton",null,13.43,4.7,9,10.34,11.15,2.0099999999999998,0,6.09,11.17,14.93,9.3699999999999992,13.87,16.18,14.31,null,7.48,2.62,5.01,5.76,6.21,1.1200000000000001,0,3.32,6.16,8.81,5.03,7.86,9.9499999999999993,8.24,null,{"$f":"IF(SUM(D40:AF40)=0,0,1)","v":1}]
[37,"Boonton-Rock Outcrop",null,10.66,3.73,7.14,8.1999999999999993,8.84,1.6,0,4.74,8.8000000000000007,11.82,7.33,10.99,12.8,11.33,null,3.75,1.31,2.5,2.89,3.11,0.56000000000000005,0,0.52,2.67,4.7,1.77,4.01,5.55,4.28,null,{"$f":"IF(SUM(D41:AF41)=0,0,1)","v":1}]
[38,"Bowmansville",null,0,0,0,0,0,0,0,0,0,0,0,0,0,0,null,0,0,0,0,0,0,0,0,0,0,0,0,0,0,null,{"$f":"IF(SUM(D42:AF42)=0,0,1)","v":0}]
[39,"Braceville",null,14.22,4.9800000000000004,9.5299999999999994,10.95,11.8,2.13,0,6.22,11.44,16.010000000000002,9.25,14.73,17.55,15.25,null,8.5399999999999991,2.99,5.72,6.57,7.09,1.28,0,2.72,6.1,10.44,4.13,9.0500000000000007,12.14,9.59,null,{"$f":"IF(SUM(D43:AF43)=0,0,1)","v":1}]
[40,"Broadkill",null,0,0,0,0,0,0,0,0,0,0,0,0,0,0,null,0,0,0,0,0,0,0,0,0,0,0,0,0,0,null,0]
[41,"Bucks",null,20.29,7.1,13.59,15.62,16.84,3.04,0,10.71,17.920000000000002,21.67,15.94,20.87,22.28,21.37,null,16.05,5.62,10.75,12.36,13.32,2.41,0,7.76,14.31,17.579999999999998,12.62,16.84,18.14,17.3,null,{"$f":"IF(SUM(D45:AF45)=0,0,1)","v":1}]
[42,"Buddtown",null,20.34,7.12,13.63,15.66,16.89,3.05,0,9.85,17.91,22.78,15.67,21.26,22.93,22.7,null,16.010000000000002,5.6,10.72,12.33,13.29,2.4,0,6.67,14.29,19.079999999999998,12.31,17.260000000000002,18.87,19.190000000000001,null,1]
[43,"Buddtown-Deptford",null,20.34,7.12,13.63,15.66,16.89,3.05,0,9.85,17.91,22.78,15.67,21.26,22.93,22.7,null,16.010000000000002,5.6,10.72,12.33,13.29,2.4,0,6.67,14.29,19.079999999999998,12.31,17.260000000000002,18.87,19.190000000000001,null,1]
[44,"Buddtown-urban land",null,0,0,0,0,0,0,0,0,0,0,0,0,0,0,null,0,0,0,0,0,0,0,0,0,0,0,0,0,0,null,0]
[45,"Califon",null,14.2,4.97,9.52,10.94,11.79,2.13,0,5.55,11.65,15.91,9.61,14.7,17.32,15.2,null,8.8699999999999992,3.11,5.94,6.83,7.36,1.33,0,1.99,7.17,10.5,5.72,9.34,11.9,9.8000000000000007,null,{"$f":"IF(SUM(D49:AF49)=0,0,1)","v":1}]
[46,"Carlisle",null,0,0,0,0,0,0,0,0,0,0,0,0,0,0,null,0,0,0,0,0,0,0,0,0,0,0,0,0,0,null,{"$f":"IF(SUM(D50:AF50)=0,0,1)","v":0}]
[47,"Catden",null,0,0,0,0,0,0,0,0,0,0,0,0,0,0,null,0,0,0,0,0,0,0,0,0,0,0,0,0,0,null,0]
[48,"Catden-Natchaug",null,0,0,0,0,0,0,0,0,0,0,0,0,0,0,null,0,0,0,0,0,0,0,0,0,0,0,0,0,0,null,0]
[49,"Chalfont",null,13.83,4.84,9.27,10.65,11.48,2.0699999999999998,0,6.3,11.42,15.36,9.5,14.28,16.63,14.73,null,7.9,2.77,5.29,6.08,6.56,1.19,0,3.71,6.34,9.31,5.03,8.3000000000000007,10.5,8.7100000000000009,null,{"$f":"IF(SUM(D53:AF53)=0,0,1)","v":1}]
[50,"Charlton-rock outcrop",null,10.77,3.77,7.22,8.3000000000000007,8.94,1.62,0,3.55,8.3000000000000007,12.41,6.33,11.24,13.81,11.71,null,5.68,1.99,3.79,4.38,4.72,0.85,0,-1.63,2.94,7.75,0.72,6.26,9.5500000000000007,6.85,null,1]
[51,"Chatfield-Hollis-Rock outcrop",null,10.77,3.77,7.22,8.3000000000000007,8.94,1.62,0,3.55,8.3000000000000007,12.41,6.33,11.24,13.81,11.71,null,5.68,1.99,3.79,4.38,4.72,0.85,0,-1.63,2.94,7.75,0.72,6.26,9.5500000000000007,6.85,null,1]
[52,"Chenango",null,22.62,7.92,15.16,17.420000000000002,18.78,3.39,0,14.23,20.67,23.16,19.190000000000001,22.89,23.02,23.22,null,18.61,6.51,12.47,14.33,15.45,2.79,0,8.8699999999999992,16.38,19.43,14.61,19.02,19.18,19.55,null,{"$f":"IF(SUM(D56:AF56)=0,0,1)","v":1}]
[53,"Chicone",null,0,0,0,0,0,0,0,0,0,0,0,0,0,0,null,0,0,0,0,0,0,0,0,0,0,0,0,0,0,null,0]
[54,"Chillum",null,22.64,7.93,15.17,17.440000000000001,18.79,3.4,0,11.61,19.96,24.92,17.61,23.49,25.05,24.86,null,19.27,6.74,12.91,14.83,15.99,2.89,0,9.43,17.29,22.03,15.24,20.37,21.8,22.14,null,{"$f":"IF(SUM(D58:AF58)=0,0,1)","v":1}]
[55,"Chippewa",null,0,0,0,0,0,0,0,0,0,0,0,0,0,0,null,0,0,0,0,0,0,0,0,0,0,0,0,0,0,null,0]
[56,"Clay Pits",null,13.22,4.63,8.86,10.18,10.97,1.98,0,6.61,11.49,15.88,9.67,14.22,16.21,15.71,null,6.69,2.34,4.4800000000000004,5.15,5.55,1,0,2.36,6.33,10.38,5.05,8.26,9.9,10.62,null,1]
[57,"Clayey Land",null,14.81,5.18,9.92,11.4,12.29,2.2200000000000002,0,8.5500000000000007,12.97,17.41,11.13,15.72,17.78,17.23,null,8.84,3.09,5.92,6.81,7.34,1.33,0,5.03,8.36,12.45,7.07,10.3,12,12.68,null,1]
[58,"Coastal Beach",null,19.61,6.87,13.14,15.1,16.28,2.94,0,15.08,18.66,20.11,17.97,19.7,19.75,20.29,null,11.25,3.94,7.54,8.67,9.34,1.69,0,7.25,10.53,12.53,9.86,11.55,11.6,13,null,1]
[59,"Cokesbury",null,0,0,0,0,0,0,0,0,0,0,0,0,0,0,null,0,0,0,0,0,0,0,0,0,0,0,0,0,0,null,0]
[60,"Colemantown",null,0,0,0,0,0,0,0,0,0,0,0,0,0,0,null,0,0,0,0,0,0,0,0,0,0,0,0,0,0,null,0]
[61,"Collington",null,20.38,7.13,13.65,15.69,16.91,3.06,0,10.19,17.91,22.76,16.04,20.71,22.21,23.04,null,15.99,5.6,10.71,12.31,13.27,2.4,0,6.15,14.09,19.07,12.62,16.3,17.71,19.75,null,1]
[62,"Colonie",null,26.87,9.41,18.010000000000002,20.69,22.31,4.03,0,14.97,23.95,27.81,21.68,27.35,27.62,27.91,null,26.21,9.17,17.559999999999999,20.18,21.75,3.93,0,9.83,22.21,27.77,19.010000000000002,27,27.4,27.96,null,1]
[63,"Colts Neck",null,21.43,7.5,14.36,16.5,17.79,3.21,0,11.18,18.760000000000002,24.17,16.77,21.75,23.22,24.64,null,17.45,6.11,11.69,13.43,14.48,2.62,0,7.55,15.33,21.04,13.72,17.73,19.100000000000001,22.01,null,1]
[64,"Croton",null,0,0,0,0,0,0,0,0,0,0,0,0,0,0,null,0,0,0,0,0,0,0,0,0,0,0,0,0,0,null,0]
[65,"Cut And Fill Land*",null,0,0,0,0,0,0,0,0,0,0,0,0,0,0,null,0,0,0,0,0,0,0,0,0,0,0,0,0,0,null,0]
[66,"Delaware",null,17.670000000000002,6.19,11.84,13.61,14.67,2.65,0,8.43,15.21,19.3,13.37,17.97,19.36,19.27,null,11.71,4.0999999999999996,7.84,9.02,9.7200000000000006,1.76,0,2.8,9.59,13.73,7.99,11.99,13.37,13.92,null,1]
[67,"Dennisville",null,16.97,5.94,11.37,13.07,14.08,2.5499999999999998,0,10.16,15.46,20.149999999999999,13.84,17.899999999999999,19.29,20.58,null,10.08,3.53,6.76,7.76,8.3699999999999992,1.51,0,4.96,9.41,14.78,8.01,11.51,12.89,15.73,null,1]
[68,"Donlonton",null,16.690000000000001,5.84,11.18,12.85,13.85,2.5,0,6.77,14.38,20.07,11.73,18.350000000000001,20.84,19.690000000000001,null,13.17,4.6100000000000003,8.82,10.14,10.93,1.98,0,4.17,12.43,17.57,10.27,15.67,17.690000000000001,17.5,null,{"$f":"IF(SUM(D72:AF72)=0,0,1)","v":1}]
[69,"Downer",null,16.97,5.94,11.37,13.07,14.08,2.5499999999999998,0,10.16,15.46,20.149999999999999,13.84,17.899999999999999,19.29,20.58,null,10.08,3.53,6.76,7.76,8.3699999999999992,1.51,0,4.96,9.41,14.78,8.01,11.51,12.89,15.73,null,1]
[70,"Doylestown",null,0,0,0,0,0,0,0,0,0,0,0,0,0,0,null,0,0,0,0,0,0,0,0,0,0,0,0,0,0,null,0]
[71,"Dragston",null,15.8,5.53,10.59,12.17,13.12,2.37,0,8.83,13.62,18.12,11.95,16.13,17.829999999999998,18.27,null,11.14,3.9,7.46,8.58,9.24,1.67,0,6.29,10.01,14.06,9.1199999999999992,11.35,12.52,14.83,null,1]
[72,"Duffield",null,20.100000000000001,7.03,13.47,15.48,16.68,3.01,0,9.4600000000000009,17.95,21.96,15.93,20.99,22.31,21.78,null,15.68,5.49,10.51,12.08,13.02,2.35,0,4.6500000000000004,14.25,18.14,12.39,17.05,18.28,18.07,null,1]
[73,"Dune Land",null,18.22,6.38,12.21,14.03,15.12,2.73,0,13.96,17.260000000000002,18.87,16.53,18.34,18.420000000000002,19.09,null,9.6199999999999992,3.37,6.44,7.41,7.98,1.44,0,5.9,8.8699999999999992,11.08,8.14,9.9600000000000009,10.039999999999999,11.6,null,1]
[74,"Dunellen",null,18.670000000000002,6.53,12.51,14.38,15.5,2.8,0,8.8800000000000008,16.16,20.46,14.29,18.98,20.399999999999999,20.49,null,13.3,4.6500000000000004,8.91,10.24,11.04,1.99,0,3.83,11.25,15.55,9.7100000000000009,13.58,14.91,15.87,null,1]
[75,"Dunellen Variant",null,18.78,6.57,12.58,14.46,15.58,2.82,0,8.99,16.28,20.61,14.41,19.07,20.420000000000002,20.71,null,13.42,4.7,8.99,10.33,11.14,2.0099999999999998,0,3.91,11.34,15.76,9.7799999999999994,13.68,14.93,16.18,null,1]
[76,"Edneyville",null,18.899999999999999,6.61,12.66,14.55,15.69,2.83,0,8.41,16.100000000000001,20.34,14.01,19.239999999999998,20.86,20.079999999999998,null,13.8,4.83,9.25,10.63,11.46,2.0699999999999998,0,2.94,11.24,15.42,9.31,14.14,15.81,15.23,null,1]
[77,"Edneyville Material",null,19.8,6.93,13.27,15.25,16.440000000000001,2.97,0,9.1,17.2,21.17,15.25,20.12,21.56,20.98,null,15.14,5.3,10.15,11.66,12.57,2.27,0,3.71,12.84,16.71,11.09,15.45,16.920000000000002,16.600000000000001,null,1]
[78,"Edneyville-Parker-Rock Outcrop",null,18.27,6.39,12.24,14.07,15.16,2.74,0,8.3000000000000007,15.51,19.59,13.45,18.600000000000001,20.149999999999999,19.309999999999999,null,14.58,5.0999999999999996,9.76,11.23,12.11,2.19,0,3.25,11.62,16.23,9.3800000000000008,14.97,16.84,15.93,null,1]
[79,"Elkton",null,0,0,0,0,0,0,0,0,0,0,0,0,0,0,null,0,0,0,0,0,0,0,0,0,0,0,0,0,0,null,0]
[80,"Ellington  (Middlesex)",null,17.63,6.17,11.81,13.58,14.63,2.64,0,7.23,15.32,18.84,13.55,17.97,19.52,18.5,null,12.01,4.2,8.0399999999999991,9.25,9.9700000000000006,1.8,0,1.77,10.28,13.16,8.92,12.33,13.82,12.83,null,1]
[81,"Ellington (Morris)",null,19.68,6.89,13.18,15.15,16.329999999999998,2.95,0,9.2799999999999994,17.100000000000001,21.24,15.19,19.97,21.28,21.23,null,15.21,5.32,10.19,11.71,12.62,2.2799999999999998,0,4.76,13.1,17.079999999999998,11.53,15.46,16.579999999999998,17.329999999999998,null,1]
[82,"Evesboro",null,18.05,6.32,12.1,13.9,14.98,2.71,0,13.09,17.309999999999999,21.32,16.07,19.170000000000002,19.28,22.33,null,10.39,3.64,6.96,8,8.6199999999999992,1.56,0,5.47,10.130000000000001,15.77,8.6999999999999993,12.28,12.4,17.45,null,1]
[83,"Fallsington",null,0,0,0,0,0,0,0,0,0,0,0,0,0,0,null,0,0,0,0,0,0,0,0,0,0,0,0,0,0,null,0]
[84,"Fallsington  Variant",null,0,0,0,0,0,0,0,0,0,0,0,0,0,0,null,0,0,0,0,0,0,0,0,0,0,0,0,0,0,null,0]
[85,"Farmington-rock outcrop",null,17.809999999999999,6.23,11.95,13.71,14.78,2.67,0,8.0500000000000007,14.78,19.29,12.48,18.22,20.149999999999999,18.86,null,13.4,4.6900000000000004,8.9600000000000009,10.32,11.12,2.0099999999999998,0,1.89,9.66,15.4,6.8,13.95,16.579999999999998,14.81,null,1]
[86,"Farmington-Wassaic-rock outcrop",null,17.809999999999999,6.23,11.95,13.71,14.78,2.67,0,8.0500000000000007,14.78,19.29,12.48,18.22,20.149999999999999,18.86,null,13.4,4.6900000000000004,8.9600000000000009,10.32,11.12,2.0099999999999998,0,1.89,9.66,15.4,6.8,13.95,16.579999999999998,14.81,null,1]
[87,"Fill Land *",null,0,0,0,0,0,0,0,0,0,0,0,0,0,0,null,0,0,0,0,0,0,0,0,0,0,0,0,0,0,null,{"$f":"IF(SUM(D91:AF91)=0,0,1)","v":0}]
[88,"Fluvaquents",null,0,0,0,0,0,0,0,0,0,0,0,0,0,0,null,0,0,0,0,0,0,0,0,0,0,0,0,0,0,null,0]
[89,"Fort Mott",null,18.89,6.61,12.66,14.55,15.68,2.83,0,13.47,18.559999999999999,22.43,17.11,20.74,20.85,23.22,null,11.8,4.13,7.91,9.09,9.7899999999999991,1.77,0,6.08,12.26,17.59,10.52,14.88,14.99,18.89,null,1]
[90,"Fredon",null,0,0,0,0,0,0,0,0,0,0,0,0,0,0,null,0,0,0,0,0,0,0,0,0,0,0,0,0,0,null,0]
[91,"Freehold",null,20.43,7.15,13.69,15.73,16.95,3.06,0,10.11,17.96,22.88,16.09,20.76,22.26,23.19,null,16.07,5.62,10.77,12.37,13.34,2.41,0,5.9,14.18,19.27,12.71,16.38,17.79,20,null,1]
[92,"Fresh Water Marsh",null,0,0,0,0,0,0,0,0,0,0,0,0,0,0,null,0,0,0,0,0,0,0,0,0,0,0,0,0,0,null,0]
[93,"Fripp",null,18.37,6.43,12.31,14.14,15.25,2.76,0,13.91,17.3,19.190000000000001,16.47,18.55,18.63,19.48,null,10.02,4.18,7.38,8.26,8.75,1.86,0,7.15,9.3699999999999992,10.25,8.9600000000000009,9.93,9.9700000000000006,10.36,null,1]
[94,"Galestown",null,18.940000000000001,6.63,12.69,14.58,15.72,2.84,0,13.48,18.05,21.64,16.77,19.96,20.07,22.42,null,11.81,4.13,7.91,9.1,9.8000000000000007,1.77,0,6.18,11.31,16.22,9.84,13.52,13.64,17.52,null,1]
[95,"Galloway",null,16.649999999999999,5.83,11.15,12.82,13.82,2.5,0,10.119999999999999,15.33,20.68,13.69,17.79,19.170000000000002,21.44,null,9.48,3.32,6.35,7.3,7.87,1.42,0,4.59,9.11,15.65,7.64,11.31,12.69,17.14,null,1]
[96,"Galloway variant",null,16.649999999999999,5.83,11.15,12.82,13.82,2.5,0,10.119999999999999,15.33,20.68,13.69,17.79,19.170000000000002,21.44,null,9.48,3.32,6.35,7.3,7.87,1.42,0,4.59,9.11,15.65,7.64,11.31,12.69,17.14,null,1]
[97,"Galway",null,20.71,7.25,13.88,15.95,17.190000000000001,3.11,0,9.16,17.09,22.39,14.37,21.18,23.37,21.91,null,17.07,5.98,11.44,13.15,14.17,2.56,0,4.6399999999999997,12.93,19.18,9.7799999999999994,17.649999999999999,20.440000000000001,18.55,null,1]
[98,"Gladstone",null,19.079999999999998,6.68,12.78,14.69,15.83,2.86,0,8.9600000000000009,16.57,20.89,14.42,19.8,21.35,20.66,null,14.13,4.95,9.4700000000000006,10.88,11.73,2.12,0,4.3899999999999997,12.14,16.43,10.119999999999999,15.17,16.7,16.29,null,{"$f":"IF(SUM(D102:AF102)=0,0,1)","v":1}]
[99,"Glassboro and Woodstown",null,15.8,5.53,10.59,12.17,13.12,2.37,0,8.83,13.62,18.12,11.95,16.13,17.829999999999998,18.27,null,11.14,3.9,7.46,8.58,9.24,1.67,0,6.29,10.01,14.06,9.1199999999999992,11.35,12.52,14.83,null,1]
[100,"Gravel Pits",null,15.96,5.59,10.69,12.29,13.25,2.39,0,11.19,14.69,16.88,13.68,16.22,16.34,17.149999999999999,null,6.33,2.21,4.24,4.87,5.25,0.95,0,1.89,5.13,8.07,4.01,6.82,6.96,8.6199999999999992,null,{"$f":"IF(SUM(D104:AF104)=0,0,1)","v":1}]
[101,"Great Piece",null,0,0,0,0,0,0,0,0,0,0,0,0,0,0,null,0,0,0,0,0,0,0,0,0,0,0,0,0,0,null,0]
[102,"Haledon",null,14.28,5,9.57,11,11.85,2.14,0,6.42,11.92,15.75,10.06,14.72,16.96,15.14,null,9.11,3.19,6.1,7.01,7.56,1.37,0,4.4000000000000004,7.75,10.34,6.6,9.4600000000000009,11.4,9.81,null,{"$f":"IF(SUM(D106:AF106)=0,0,1)","v":1}]
[103,"Haledon-Wet Variant",null,0,0,0,0,0,0,0,0,0,0,0,0,0,0,null,0,0,0,0,0,0,0,0,0,0,0,0,0,0,null,0]
[104,"Halsey",null,0,0,0,0,0,0,0,0,0,0,0,0,0,0,null,0,0,0,0,0,0,0,0,0,0,0,0,0,0,null,0]
[105,"Hammonton",null,17.59,6.16,11.79,13.55,14.6,2.64,0,9.73,16.010000000000002,21.43,14.12,18.84,20.309999999999999,21.98,null,11.27,3.94,7.55,8.68,9.35,1.69,0,4.49,10.61,16.91,8.89,13.19,14.62,18.05,null,1]
[106,"Hasbrouck",null,0,0,0,0,0,0,0,0,0,0,0,0,0,0,null,0,0,0,0,0,0,0,0,0,0,0,0,0,0,null,0]
[107,"Hazen",null,20.72,7.25,13.88,15.96,17.2,3.11,0,8.76,17.100000000000001,22.68,14.38,21.19,23.37,22.34,null,17.09,5.98,11.45,13.16,14.18,2.56,0,3.51,12.94,19.72,9.8000000000000007,17.66,20.46,19.350000000000001,null,1]
[108,"Hazleton",null,18.68,6.54,12.51,14.38,15.5,2.8,0,8.92,16.23,20.47,14.04,19.510000000000002,21.04,20.190000000000001,null,13.08,4.58,8.76,10.07,10.85,1.96,0,3.25,10.97,15.44,8.7200000000000006,14.34,15.97,15.17,null,1]
[109,"Hero",null,20.93,7.33,14.03,16.12,17.38,3.14,0,9.0399999999999991,17.37,22.77,14.69,21.39,23.55,22.37,null,17.48,6.12,11.71,13.46,14.51,2.62,0,4.3099999999999996,13.47,19.87,10.42,18.04,20.78,19.420000000000002,null,1]
[110,"Hibernia",null,13.33,4.67,8.93,10.27,11.07,2,0,6.22,11.13,14.92,9.36,13.8,16.260000000000002,14.25,null,7.12,2.4900000000000002,4.7699999999999996,5.48,5.91,1.07,0,2.92,5.8,8.6300000000000008,4.63,7.55,9.9499999999999993,7.97,null,1]
[111,"Hinckley",null,15.89,5.56,10.64,12.23,13.18,2.38,0,10.01,14.46,17.05,13.25,16.28,16.420000000000002,17.37,null,6.57,2.2999999999999998,4.4000000000000004,5.0599999999999996,5.45,0.99,0,0.62,5.17,8.57,3.8,7.23,7.39,9.16,null,1]
[112,"Hinckley-urban land",null,0,0,0,0,0,0,0,0,0,0,0,0,0,0,null,0,0,0,0,0,0,0,0,0,0,0,0,0,0,null,0]
[113,"Hollis-rock outcrop-Chatfield",null,10.77,3.77,7.22,8.3000000000000007,8.94,1.62,0,3.55,8.3000000000000007,12.41,6.33,11.24,13.81,11.71,null,5.68,1.99,3.79,4.38,4.72,0.85,0,-1.63,2.94,7.75,0.72,6.26,9.5500000000000007,6.85,null,1]
[114,"Holmdel",null,16.34,5.72,10.95,12.58,13.56,2.4500000000000002,0,7.16,13.75,18.850000000000001,11.76,16.75,18.86,18.84,null,12.54,4.3899999999999997,8.4,9.66,10.41,1.88,0,4.67,11.04,15.6,9.84,12.83,14.45,16.18,null,{"$f":"IF(SUM(D118:AF118)=0,0,1)","v":1}]
[115,"Holyoke",null,12.23,4.28,8.19,9.41,10.15,1.83,0,5.4,10.01,13.73,8.24,12.66,15,13.1,null,5.23,1.83,3.5,4.03,4.34,0.78,0,1.85,3.87,6.61,2.71,5.62,7.81,6.01,null,1]
[116,"Holyoke-Rock Outcrop (Morris)",null,7.75,2.71,5.2,5.96,6.43,1.1599999999999999,0,3.82,6.47,8.61,5.45,8,9.34,8.25,null,-7.0000000000000007E-2,-0.02,-0.08,-0.05,-0.06,-0.01,0,-2.02,-0.85,0.72,-1.52,0.15,1.41,0.38,null,1]
[117,"Holyoke-Rock Outcrop (Passaic)",null,9.85,3.45,6.6,7.58,8.17,1.48,0,4.9800000000000004,8.1300000000000008,10.92,6.79,10.14,11.87,10.44,null,2.2400000000000002,0.78,1.48,1.72,1.86,0.34,0,0.52,1.22,3.11,0.41,2.44,3.98,2.67,null,1]
[118,"Hooksan",null,22.59,7.91,15.14,17.39,18.75,3.39,0,16.27,21.07,23.5,19.88,22.85,22.96,23.76,null,16.489999999999998,5.77,11.05,12.7,13.69,2.4700000000000002,0,9.6199999999999992,14.92,18.27,13.52,17.02,17.149999999999999,18.84,null,1]
[119,"Hooksan Variant",null,0,0,0,0,0,0,0,0,0,0,0,0,0,0,null,0,0,0,0,0,0,0,0,0,0,0,0,0,0,null,0]
[120,"Hoosic",null,26.83,9.39,17.98,20.66,22.27,4.0199999999999996,0,14.88,23.76,27.53,21.53,27.1,27.37,27.61,null,26.12,9.14,17.5,20.11,21.68,3.92,0,9.6300000000000008,21.84,27.24,18.72,26.53,26.93,27.39,null,1]
[121,"Horseneck",null,17.670000000000002,6.19,11.84,13.61,14.67,2.65,0,8.43,15.21,19.3,13.37,17.97,19.36,19.27,null,11.71,4.0999999999999996,7.84,9.02,9.7200000000000006,1.76,0,2.8,9.59,13.73,7.99,11.99,13.37,13.92,null,1]
[122,"Horseneck-urban land",null,17.670000000000002,6.19,11.84,13.61,14.67,2.65,0,8.43,15.21,19.3,13.37,17.97,19.36,19.27,null,11.71,4.0999999999999996,7.84,9.02,9.7200000000000006,1.76,0,2.8,9.59,13.73,7.99,11.99,13.37,13.92,null,1]
[123,"Howell",null,14.69,5.14,9.84,11.31,12.19,2.2000000000000002,0,7.24,12.63,17.96,10.42,15.95,18.27,17.809999999999999,null,9.36,3.28,6.27,7.21,7.77,1.4,0,3.92,8.6999999999999993,13.82,6.97,11.28,13.24,14.11,null,{"$f":"IF(SUM(D127:AF127)=0,0,1)","v":1}]
[124,"Humaquepts",null,0,0,0,0,0,0,0,0,0,0,0,0,0,0,null,0,0,0,0,0,0,0,0,0,0,0,0,0,0,null,{"$f":"IF(SUM(D128:AF128)=0,0,1)","v":0}]
[125,"Ingleside",null,20.010000000000002,7,13.41,15.41,16.61,3,0,10.47,17.78,22.21,16.09,20.32,21.72,22.45,null,15.4,5.39,10.31,11.85,12.78,2.31,0,6.22,13.81,18.2,12.57,15.67,16.96,18.829999999999998,null,1]
[126,"Jade Run",null,0,0,0,0,0,0,0,0,0,0,0,0,0,0,null,0,0,0,0,0,0,0,0,0,0,0,0,0,0,null,0]
[127,"Jade Run-urban land",null,0,0,0,0,0,0,0,0,0,0,0,0,0,0,null,0,0,0,0,0,0,0,0,0,0,0,0,0,0,null,0]
[128,"Jade Run-Weeksville-urban land",null,0,0,0,0,0,0,0,0,0,0,0,0,0,0,null,0,0,0,0,0,0,0,0,0,0,0,0,0,0,null,0]
[129,"Keansburg",null,0,0,0,0,0,0,0,0,0,0,0,0,0,0,null,0,0,0,0,0,0,0,0,0,0,0,0,0,0,null,{"$f":"IF(SUM(D133:AF133)=0,0,1)","v":0}]
[130,"Keyport",null,13.81,4.83,9.25,10.63,11.46,2.0699999999999998,0,6.48,12.05,16.649999999999999,10.09,14.98,17.09,16.43,null,7.72,2.7,5.18,5.95,6.41,1.1599999999999999,0,2.39,7.37,11.62,5.93,9.52,11.28,11.78,null,{"$f":"IF(SUM(D134:AF134)=0,0,1)","v":1}]
[131,"Keyport Soils",null,15.34,5.37,10.28,11.81,12.73,2.2999999999999998,0,8.56,13.4,18.12,11.42,16.37,18.54,17.91,null,10.039999999999999,3.51,6.73,7.73,8.33,1.51,0,5.6,9.48,13.78,8.0500000000000007,11.62,13.41,13.96,null,{"$f":"IF(SUM(D135:AF135)=0,0,1)","v":1}]
[132,"Klej",null,16.649999999999999,5.83,11.15,12.82,13.82,2.5,0,10.119999999999999,15.33,20.68,13.69,17.79,19.170000000000002,21.44,null,9.48,3.32,6.35,7.3,7.87,1.42,0,4.59,9.11,15.65,7.64,11.31,12.69,17.14,null,{"$f":"IF(SUM(D136:AF136)=0,0,1)","v":1}]
[133,"Klinesville",null,10.54,3.69,7.06,8.1199999999999992,8.75,1.58,0,5.17,8.94,11.97,7.6,10.94,13.21,11.35,null,1.41,0.49,0.95,1.0900000000000001,1.17,0.21,0,-0.23,0.81,2.8,0.16,1.78,4.07,2.16,null,{"$f":"IF(SUM(D137:AF137)=0,0,1)","v":1}]
[134,"Knickerbocker",null,17.670000000000002,6.19,11.84,13.61,14.67,2.65,0,8.43,15.21,19.3,13.37,17.97,19.36,19.27,null,11.71,4.0999999999999996,7.84,9.02,9.7200000000000006,1.76,0,2.8,9.59,13.73,7.99,11.99,13.37,13.92,null,1]
[135,"Kresson",null,15.16,5.31,10.16,11.67,12.58,2.27,0,6.87,12.95,18.100000000000001,10.71,16.329999999999998,18.48,17.899999999999999,null,10.09,3.53,6.76,7.77,8.3699999999999992,1.51,0,3.44,9.2100000000000009,14.05,7.44,11.87,13.61,14.26,null,{"$f":"IF(SUM(D139:AF139)=0,0,1)","v":1}]
[136,"Lackawanna",null,16.3,5.71,10.92,12.55,13.53,2.4500000000000002,0,5.15,12.49,18.73,9.48,17,20.78,17.7,null,12.4,4.34,8.31,9.5500000000000007,10.29,1.86,0,0.91,8.26,15.4,4.9400000000000004,13.24,18,14.09,null,1]
[137,"Lakehurst",null,17.41,6.09,11.66,13.4,14.45,2.61,0,11.99,16.510000000000002,20.72,15.1,18.63,18.77,21.69,null,9.52,3.33,6.38,7.33,7.9,1.43,0,3.97,9.0500000000000007,14.92,7.38,11.55,11.71,16.53,null,1]
[138,"Lakeland",null,16.309999999999999,5.71,10.93,12.56,13.54,2.4500000000000002,0,11.16,15.8,20.329999999999998,14.52,17.73,17.850000000000001,21.57,null,8.34,2.92,5.59,6.42,6.92,1.25,0,3.13,8.3699999999999992,14.58,6.89,10.59,10.72,16.510000000000002,null,1]
[139,"Lakewood",null,18.23,6.38,12.22,14.04,15.13,2.74,0,12.76,17.350000000000001,21.36,16,19.38,19.510000000000002,22.28,null,10.73,3.76,7.19,8.26,8.91,1.61,0,5.0999999999999996,10.28,15.84,8.6999999999999993,12.65,12.79,17.37,null,1]
[140,"Lamington",null,0,0,0,0,0,0,0,0,0,0,0,0,0,0,null,0,0,0,0,0,0,0,0,0,0,0,0,0,0,null,0]
[141,"Lansdale",null,20.09,7.03,13.46,15.47,16.670000000000002,3.01,0,10.33,17.850000000000001,21.66,15.92,20.76,22.04,21.48,null,15.65,5.48,10.49,12.05,12.99,2.35,0,6.47,14.04,17.600000000000001,12.32,16.61,17.79,17.510000000000002,null,1]
[142,"Lansdowne",null,14.24,4.99,9.5399999999999991,10.97,11.82,2.14,0,5.84,12.2,17.12,10.039999999999999,15.45,17.72,16.82,null,8.6999999999999993,3.04,5.83,6.7,7.22,1.3,0,1.79,7.95,12.56,6.25,10.51,12.5,12.59,null,1]
[143,"Lansdowne Variant",null,15,5.25,10.050000000000001,11.55,12.45,2.25,0,5.09,12.05,16.29,9.83,15.38,17.350000000000001,15.76,null,10.36,3.63,6.94,7.98,8.6,1.55,0,1.72,8.2899999999999991,11.3,6.72,10.63,12.1,10.9,null,1]
[144,"Lawrenceville",null,15.11,5.29,10.119999999999999,11.63,12.54,2.27,0,6.91,12.52,16.75,10.47,15.6,18.100000000000001,16.079999999999998,null,10.17,3.56,6.82,7.83,8.4499999999999993,1.53,0,5.26,8.44,11.73,6.99,10.63,13.03,11.07,null,1]
[145,"Legore",null,20.11,7.04,13.48,15.49,16.690000000000001,3.02,0,10.61,17.88,21.49,15.95,20.77,22.05,21.2,null,15.7,5.49,10.52,12.09,13.03,2.35,0,7.13,14.08,17.28,12.38,16.63,17.809999999999999,17.010000000000002,null,1]
[146,"Lehigh",null,16.3,5.71,10.92,12.55,13.53,2.4500000000000002,0,6.87,13.98,18.27,11.8,17.239999999999998,19.48,17.670000000000002,null,12.48,4.37,8.36,9.61,10.35,1.87,0,5.14,11.48,14.59,9.9700000000000006,13.75,15.58,14.1,null,1]
[147,"Lenni",null,0,0,0,0,0,0,0,0,0,0,0,0,0,0,null,0,0,0,0,0,0,0,0,0,0,0,0,0,0,null,0]
[148,"Lenoir",null,0,0,0,0,0,0,0,0,0,0,0,0,0,0,null,0,0,0,0,0,0,0,0,0,0,0,0,0,0,null,{"$f":"IF(SUM(D152:AF152)=0,0,1)","v":0}]
[149,"Leon",null,0,0,0,0,0,0,0,0,0,0,0,0,0,0,null,0,0,0,0,0,0,0,0,0,0,0,0,0,0,null,{"$f":"IF(SUM(D153:AF153)=0,0,1)","v":0}]
[150,"Livingston",null,0,0,0,0,0,0,0,0,0,0,0,0,0,0,null,0,0,0,0,0,0,0,0,0,0,0,0,0,0,null,{"$f":"IF(SUM(D154:AF154)=0,0,1)","v":0}]
[151,"Loamy Alluvial Land",null,0,0,0,0,0,0,0,0,0,0,0,0,0,0,null,0,0,0,0,0,0,0,0,0,0,0,0,0,0,null,{"$f":"IF(SUM(D155:AF155)=0,0,1)","v":0}]
[152,"Lordstown-Wallpack",null,15.39,5.39,10.31,11.85,12.77,2.31,0,6.21,12.44,17.399999999999999,10.08,15.99,19.04,16.579999999999998,null,10.61,3.71,7.11,8.17,8.81,1.59,0,2.48,8.01,12.9,5.82,11.29,14.81,11.95,null,1]
[153,"Lyons",null,0,0,0,0,0,0,0,0,0,0,0,0,0,0,null,0,0,0,0,0,0,0,0,0,0,0,0,0,0,null,{"$f":"IF(SUM(D157:AF157)=0,0,1)","v":0}]
[154,"Made Land*",null,0,0,0,0,0,0,0,0,0,0,0,0,0,0,null,0,0,0,0,0,0,0,0,0,0,0,0,0,0,null,{"$f":"IF(SUM(D158:AF158)=0,0,1)","v":0}]
[155,"Manahawkin",null,0,0,0,0,0,0,0,0,0,0,0,0,0,0,null,0,0,0,0,0,0,0,0,0,0,0,0,0,0,null,{"$f":"IF(SUM(D159:AF159)=0,0,1)","v":0}]
[156,"Manlius-Nassau",null,13.32,4.66,8.92,10.26,11.05,2,0,5.17,10.63,15.51,8.42,13.94,17.38,14.57,null,6.73,2.36,4.51,5.18,5.59,1.01,0,0.24,4.26,9.42,2.11,7.48,11.77,8.24,null,1]
[157,"Mannington-Nanticoke",null,0,0,0,0,0,0,0,0,0,0,0,0,0,0,null,0,0,0,0,0,0,0,0,0,0,0,0,0,0,null,0]
[158,"Mannington-Nanticoke-Udorthents",null,0,0,0,0,0,0,0,0,0,0,0,0,0,0,null,0,0,0,0,0,0,0,0,0,0,0,0,0,0,null,0]
[159,"Marlton",null,14.37,5.03,9.6300000000000008,11.06,11.93,2.16,0,6.99,12.3,16.96,10.29,15.32,17.309999999999999,16.78,null,8.4499999999999993,2.96,5.66,6.51,7.02,1.27,0,3.19,7.65,11.98,6.12,9.93,11.54,12.2,null,{"$f":"IF(SUM(D163:AF163)=0,0,1)","v":1}]
[160,"Marsh",null,0,0,0,0,0,0,0,0,0,0,0,0,0,0,null,0,0,0,0,0,0,0,0,0,0,0,0,0,0,null,0]
[161,"Matapeake",null,20.190000000000001,7.07,13.53,15.54,16.760000000000002,3.03,0,11.5,18.690000000000001,22.48,17.059999999999999,21.14,22.41,22.52,null,15.95,5.58,10.69,12.28,13.24,2.39,0,9.16,15.6,18.88,14.47,17.28,18.309999999999999,19.16,null,1]
[162,"Matawan",null,15.92,5.57,10.67,12.26,13.22,2.39,0,7.53,13.93,19.43,11.43,17.670000000000002,20.149999999999999,19.07,null,11.4,3.99,7.64,8.7799999999999994,9.4600000000000009,1.71,0,4.25,11.05,16.2,8.9600000000000009,14.19,16.260000000000002,16.170000000000002,null,1]
[163,"Matlock",null,0,0,0,0,0,0,0,0,0,0,0,0,0,0,null,0,0,0,0,0,0,0,0,0,0,0,0,0,0,null,0]
[164,"Mattapex",null,17.61,6.16,11.8,13.56,14.62,2.64,0,8.36,15.67,20.12,13.64,18.72,20.34,20.02,null,14.74,5.16,9.8800000000000008,11.35,12.24,2.21,0,8.1300000000000008,14.5,17.72,13.34,16.25,17.04,18.059999999999999,null,1]
[165,"Meckesville",null,15.51,5.43,10.39,11.94,12.87,2.33,0,6.71,12.89,17.12,10.83,15.99,18.440000000000001,16.46,null,10.95,3.83,7.34,8.43,9.09,1.64,0,4.6500000000000004,9.24,12.43,7.82,11.38,13.66,11.81,null,1]
[166,"Middlebury",null,21.08,7.38,14.13,16.23,17.5,3.16,0,8.99,17.559999999999999,22.94,14.91,21.54,23.67,22.57,null,17.760000000000002,6.22,11.9,13.68,14.74,2.66,0,4.1500000000000004,13.85,20.190000000000001,10.87,18.309999999999999,21.01,19.78,null,1]
[167,"Minoa",null,15.97,5.59,10.7,12.29,13.25,2.39,0,6.33,13.42,18.309999999999999,11.43,16.420000000000002,18.739999999999998,18.09,null,12.19,4.26,8.16,9.3800000000000008,10.11,1.83,0,3.75,10.72,15,9.5,12.55,14.51,15.25,null,1]
[168,"Mispillion-Transquaking-Appoquinimink",null,0,0,0,0,0,0,0,0,0,0,0,0,0,0,null,0,0,0,0,0,0,0,0,0,0,0,0,0,0,null,0]
[169,"Moderately Wet Land",null,0,0,0,0,0,0,0,0,0,0,0,0,0,0,null,0,0,0,0,0,0,0,0,0,0,0,0,0,0,null,{"$f":"IF(SUM(D173:AF173)=0,0,1)","v":0}]
[170,"Mount Lucas",null,15.71,5.5,10.52,12.09,13.04,2.36,0,6.35,13.42,17.98,11.26,16.670000000000002,18.809999999999999,17.57,null,11.47,4.01,7.68,8.83,9.52,1.72,0,4.09,10.51,14.15,8.99,12.78,14.47,13.99,null,1]
[171,"Muck",null,0,0,0,0,0,0,0,0,0,0,0,0,0,0,null,0,0,0,0,0,0,0,0,0,0,0,0,0,0,null,0]
[172,"Muck, Shallow, Over Clay",null,0,0,0,0,0,0,0,0,0,0,0,0,0,0,null,0,0,0,0,0,0,0,0,0,0,0,0,0,0,null,0]
[173,"Muck, Shallow, Over Loam",null,0,0,0,0,0,0,0,0,0,0,0,0,0,0,null,0,0,0,0,0,0,0,0,0,0,0,0,0,0,null,0]
[174,"Mullica",null,0,0,0,0,0,0,0,0,0,0,0,0,0,0,null,0,0,0,0,0,0,0,0,0,0,0,0,0,0,null,0]
[175,"Muttontown",null,15.94,5.58,10.68,12.27,13.23,2.39,0,7.83,13.46,18.809999999999999,11.56,16.3,18.2,19.12,null,11.5,4.0199999999999996,7.7,8.85,9.5399999999999991,1.72,0,5.0599999999999996,10.039999999999999,15.3,8.9,11.75,13.15,16.37,null,1]
[176,"Nassau",null,13.32,4.66,8.92,10.26,11.05,2,0,5.17,10.63,15.51,8.42,13.94,17.38,14.57,null,6.73,2.36,4.51,5.18,5.59,1.01,0,0.24,4.26,9.42,2.11,7.48,11.77,8.24,null,{"$f":"IF(SUM(D180:AF180)=0,0,1)","v":1}]
[177,"Nassau-Rock Outcrop (Sussex)",null,13.24,4.63,8.8699999999999992,10.19,10.99,1.99,0,4.76,10.34,15.24,8.0299999999999994,13.81,16.96,14.38,null,7.32,2.56,4.8899999999999997,5.63,6.07,1.1000000000000001,0,-1.1599999999999999,4.07,9.89,1.43,8.0299999999999994,12.15,8.76,null,{"$f":"IF(SUM(D181:AF181)=0,0,1)","v":1}]
[178,"Nassau-Rock Outcrop (Warren)",null,12.1,4.2300000000000004,8.11,9.31,10.039999999999999,1.81,0,5.65,9.98,13.84,8.23,12.61,15.28,13.12,null,5.04,1.76,3.37,3.88,4.18,0.76,0,0.34,3.23,7.14,1.61,5.65,8.91,6.25,null,{"$f":"IF(SUM(D182:AF182)=0,0,1)","v":1}]
[179,"Natchaug",null,0,0,0,0,0,0,0,0,0,0,0,0,0,0,null,0,0,0,0,0,0,0,0,0,0,0,0,0,0,null,0]
[180,"Neshaminy",null,17.739999999999998,6.21,11.88,13.66,14.72,2.66,0,7.79,15.53,20.03,13.31,18.86,20.37,19.86,null,11.78,4.12,7.89,9.07,9.77,1.77,0,1.6,10.23,14.95,8.0299999999999994,13.54,15.03,14.91,null,{"$f":"IF(SUM(D184:AF184)=0,0,1)","v":1}]
[181,"Neshaminy Variant",null,15.73,5.51,10.54,12.12,13.06,2.36,0,6.59,13.48,17.71,11.39,16.62,18.96,17.079999999999998,null,11.33,3.97,7.59,8.7200000000000006,9.4,1.7,0,3.62,10.31,13.47,8.84,12.53,14.58,12.92,null,1]
[182,"Netcong",null,19.329999999999998,6.77,12.95,14.89,16.05,2.9,0,8.8000000000000007,16.62,20.96,14.6,19.64,21.05,20.92,null,14.6,5.1100000000000003,9.7799999999999994,11.24,12.12,2.19,0,3.51,12.17,16.61,10.35,14.89,16.22,16.8,null,1]
[183,"Nixon",null,15.5,5.42,10.38,11.93,12.86,2.3199999999999998,0,6.63,14.22,18.72,12.17,17.29,18.86,18.66,null,8.48,2.97,5.68,6.53,7.04,1.27,0,-0.01,8.3000000000000007,12.96,6.36,11.21,12.75,13.07,null,1]
[184,"Nixon Variant",null,15.5,5.42,10.38,11.93,12.86,2.3199999999999998,0,6.63,14.22,18.72,12.17,17.29,18.86,18.66,null,8.48,2.97,5.68,6.53,7.04,1.27,0,-0.01,8.3000000000000007,12.96,6.36,11.21,12.75,13.07,null,1]
[185,"Nixonton",null,20.34,7.12,13.63,15.66,16.89,3.05,0,9.85,17.91,22.78,15.67,21.26,22.93,22.7,null,16.010000000000002,5.6,10.72,12.33,13.29,2.4,0,6.67,14.29,19.079999999999998,12.31,17.260000000000002,18.87,19.190000000000001,null,1]
[186,"Norton",null,14.37,5.03,9.6300000000000008,11.06,11.93,2.16,0,6.04,12.23,17.170000000000002,10.06,15.5,18.02,16.75,null,8.74,3.06,5.86,6.73,7.26,1.31,0,1.87,7.77,12.52,5.99,10.44,12.88,12.33,null,1]
[187,"Norwich",null,0,0,0,0,0,0,0,0,0,0,0,0,0,0,null,0,0,0,0,0,0,0,0,0,0,0,0,0,0,null,0]
[188,"Ochrepts",null,19.239999999999998,6.73,12.89,14.81,15.97,2.89,0,9.4,16.5,20.73,14.47,19.54,20.93,20.63,null,14.08,4.93,9.43,10.84,11.68,2.11,0,4.3099999999999996,11.54,15.84,9.68,14.35,15.67,15.92,null,1]
[189,"Oquaga",null,14.04,4.91,9.41,10.81,11.65,2.11,0,5.21,11.12,16.23,8.75,14.67,18.09,15.3,null,8.23,2.88,5.51,6.34,6.83,1.23,0,0.62,5.51,10.87,3.2,8.9700000000000006,13.15,9.7200000000000006,null,1]
[190,"Oquaga-Rock Outcrop",null,14,4.9000000000000004,9.3800000000000008,10.78,11.62,2.1,0,4.83,10.86,16.079999999999998,8.36,14.6,17.850000000000001,15.19,null,8.74,3.06,5.85,6.73,7.26,1.31,0,-0.66,5.26,11.36,2.44,9.48,13.65,10.220000000000001,null,1]
[191,"Oquaga-Swartswood Rock Outcrop",null,12.85,4.5,8.61,9.89,10.66,1.93,0,5.7,10.5,14.6,8.58,13.37,16.03,13.88,null,6.54,2.29,4.37,5.04,5.43,0.98,0,0.68,4.45,8.6,2.66,7.15,10.32,7.74,null,1]
[192,"Othello",null,0,0,0,0,0,0,0,0,0,0,0,0,0,0,null,0,0,0,0,0,0,0,0,0,0,0,0,0,0,null,0]
[193,"Otisville",null,15.89,5.56,10.64,12.23,13.18,2.38,0,10.01,14.46,17.05,13.25,16.28,16.420000000000002,17.37,null,6.57,2.2999999999999998,4.4000000000000004,5.0599999999999996,5.45,0.99,0,0.62,5.17,8.57,3.8,7.23,7.39,9.16,null,1]
[194,"Palms",null,0,0,0,0,0,0,0,0,0,0,0,0,0,0,null,0,0,0,0,0,0,0,0,0,0,0,0,0,0,null,0]
[195,"Palmyra",null,20.440000000000001,7.16,13.7,15.74,16.97,3.07,0,8.7100000000000009,16.77,22.28,14,20.91,23.14,21.85,null,16.57,5.8,11.1,12.76,13.75,2.48,0,3.36,12.28,18.97,9.0299999999999994,17.149999999999999,20.02,18.440000000000001,null,{"$f":"IF(SUM(D199:AF199)=0,0,1)","v":1}]
[196,"Parker",null,18.27,6.39,12.24,14.06,15.16,2.74,0,8.1300000000000008,15.37,19.739999999999998,13.19,18.62,20.309999999999999,19.46,null,12.62,4.42,8.4499999999999993,9.7100000000000009,10.47,1.89,0,2.14,9.8000000000000007,14.32,7.68,12.99,14.8,14.08,null,1]
[197,"Parker-Rock Outcrop",null,14.6,5.1100000000000003,9.7799999999999994,11.24,12.12,2.19,0,6.89,12.43,15.62,10.81,14.85,15.98,15.44,null,9.1199999999999992,3.19,6.1,7.02,7.57,1.37,0,1.22,7.07,10.23,5.54,9.36,10.46,10.11,null,1]
[198,"Parsippany",null,0,0,0,0,0,0,0,0,0,0,0,0,0,0,null,0,0,0,0,0,0,0,0,0,0,0,0,0,0,null,0]
[199,"Parsippany Variant",null,0,0,0,0,0,0,0,0,0,0,0,0,0,0,null,0,0,0,0,0,0,0,0,0,0,0,0,0,0,null,0]
[200,"Pascack",null,13.7,4.79,9.18,10.55,11.37,2.0499999999999998,0,5.2,11.27,16.05,9.3699999999999992,14.12,16.350000000000001,15.9,null,8.09,2.83,5.42,6.23,6.71,1.21,0,1.52,6.68,10.94,5.53,8.4,10.210000000000001,11.31,null,1]
[201,"Pasquotank",null,0,0,0,0,0,0,0,0,0,0,0,0,0,0,null,0,0,0,0,0,0,0,0,0,0,0,0,0,0,null,0]
[202,"Passaic",null,0,0,0,0,0,0,0,0,0,0,0,0,0,0,null,0,0,0,0,0,0,0,0,0,0,0,0,0,0,null,0]
[203,"Pattenburg",null,19.21,6.72,12.87,14.79,15.95,2.88,0,9.24,16.71,20.91,14.59,19.89,21.42,20.66,null,14.38,5.03,9.64,11.07,11.94,2.16,0,5.07,12.41,16.48,10.45,15.34,16.84,16.29,null,1]
[204,"Pawcatuck-Transquaking",null,0,0,0,0,0,0,0,0,0,0,0,0,0,0,null,0,0,0,0,0,0,0,0,0,0,0,0,0,0,null,0]
[205,"Paxton",null,11.94,4.18,8,9.1999999999999993,9.91,1.79,0,5.42,9.8699999999999992,13.46,8.1999999999999993,12.38,14.74,12.82,null,4.62,1.62,3.09,3.55,3.83,0.69,0,1.28,3.42,6.04,2.36,5.01,7.29,5.41,null,1]
[206,"Peat",null,0,0,0,0,0,0,0,0,0,0,0,0,0,0,null,0,0,0,0,0,0,0,0,0,0,0,0,0,0,null,{"$f":"IF(SUM(D210:AF210)=0,0,1)","v":0}]
[207,"Peckmantown",null,13.43,4.7,9,10.34,11.15,2.0099999999999998,0,6.09,11.17,14.93,9.3699999999999992,13.87,16.18,14.31,null,7.48,2.62,5.01,5.76,6.21,1.1200000000000001,0,3.32,6.16,8.81,5.03,7.86,9.9499999999999993,8.24,null,1]
[208,"Peckmantown-urban land",null,0,0,0,0,0,0,0,0,0,0,0,0,0,0,null,0,0,0,0,0,0,0,0,0,0,0,0,0,0,null,0]
[209,"Pedricktown, Askecksy, and Mullica",null,0,0,0,0,0,0,0,0,0,0,0,0,0,0,null,0,0,0,0,0,0,0,0,0,0,0,0,0,0,null,0]
[210,"Pemberton",null,18.64,6.52,12.49,14.35,15.47,2.8,0,9.7200000000000006,16.36,21.62,14.62,18.97,20.48,22.18,null,13.04,4.5599999999999996,8.74,10.039999999999999,10.82,1.96,0,3.92,11.24,17.21,9.83,13.36,14.86,18.38,null,{"$f":"IF(SUM(D214:AF214)=0,0,1)","v":1}]
[211,"Penn",null,13.62,4.7699999999999996,9.1300000000000008,10.49,11.31,2.04,0,5.78,11.16,15.22,9.2100000000000009,14.09,16.559999999999999,14.56,null,7.85,2.75,5.26,6.04,6.52,1.18,0,3.12,6.27,9.33,4.9400000000000004,8.27,10.6,8.69,null,1]
[212,"Phalanx",null,17.239999999999998,6.03,11.55,13.27,14.31,2.59,0,9.2899999999999991,15.08,19.61,13.43,17.559999999999999,19.02,19.91,null,10.57,3.7,7.08,8.14,8.7799999999999994,1.59,0,3.18,8.85,13.84,7.48,10.89,12.38,14.57,null,1]
[213,"Pits, Muck",null,0,0,0,0,0,0,0,0,0,0,0,0,0,0,null,0,0,0,0,0,0,0,0,0,0,0,0,0,0,null,0]
[214,"Plummer",null,0,0,0,0,0,0,0,0,0,0,0,0,0,0,null,0,0,0,0,0,0,0,0,0,0,0,0,0,0,null,0]
[215,"Pocomoke",null,0,0,0,0,0,0,0,0,0,0,0,0,0,0,null,0,0,0,0,0,0,0,0,0,0,0,0,0,0,null,0]
[216,"Pompton",null,19.39,6.79,12.99,14.93,16.100000000000001,2.91,0,9.09,16.690000000000001,20.93,14.69,19.7,21.09,20.85,null,14.71,5.15,9.86,11.33,12.21,2.21,0,4.26,12.31,16.559999999999999,10.52,15,16.309999999999999,16.68,null,1]
[217,"Pope",null,19.059999999999999,6.67,12.77,14.68,15.82,2.86,0,8.77,16.5,20.92,14.59,19.37,20.78,20.99,null,14.08,4.93,9.43,10.84,11.69,2.11,0,3.08,11.75,16.57,10,14.39,15.86,16.920000000000002,null,1]
[218,"Portsmouth",null,0,0,0,0,0,0,0,0,0,0,0,0,0,0,null,0,0,0,0,0,0,0,0,0,0,0,0,0,0,null,0]
[219,"Preakness",null,0,0,0,0,0,0,0,0,0,0,0,0,0,0,null,0,0,0,0,0,0,0,0,0,0,0,0,0,0,null,0]
[220,"Psamments*",null,0,0,0,0,0,0,0,0,0,0,0,0,0,0,null,0,0,0,0,0,0,0,0,0,0,0,0,0,0,null,0]
[221,"Quakertown",null,16.649999999999999,5.83,11.15,12.82,13.82,2.5,0,7.13,14.39,18.8,12.22,17.66,19.82,18.29,null,13.14,4.5999999999999996,8.8000000000000007,10.11,10.9,1.97,0,5.93,12.34,15.58,10.87,14.55,16.21,15.26,null,1]
[222,"Quarry*",null,0,0,0,0,0,0,0,0,0,0,0,0,0,0,null,0,0,0,0,0,0,0,0,0,0,0,0,0,0,null,0]
[223,"Raritan",null,14.38,5.03,9.6300000000000008,11.07,11.93,2.16,0,6.44,11.86,15.91,9.8699999999999992,14.83,17.18,15.28,null,9.0299999999999994,3.16,6.05,6.95,7.49,1.35,0,4.55,7.4,10.39,6.06,9.42,11.56,9.81,null,1]
[224,"Raynhamn",null,0,0,0,0,0,0,0,0,0,0,0,0,0,0,null,0,0,0,0,0,0,0,0,0,0,0,0,0,0,null,0]
[225,"Readington",null,15.63,5.47,10.47,12.03,12.97,2.34,0,6.99,13.01,17.23,10.95,16.11,18.54,16.579999999999998,null,11.18,3.91,7.49,8.61,9.2799999999999994,1.68,0,5.51,9.49,12.63,8.08,11.61,13.85,12.03,null,1]
[226,"Reaville",null,13.61,4.76,9.1199999999999992,10.48,11.3,2.04,0,5.91,11.16,15.21,9.1999999999999993,14.08,16.55,14.55,null,7.83,2.74,5.25,6.03,6.5,1.17,0,3.54,6.25,9.31,4.92,8.25,10.58,8.67,null,1]
[227,"Reaville Variant",null,0,0,0,0,0,0,0,0,0,0,0,0,0,0,null,0,0,0,0,0,0,0,0,0,0,0,0,0,0,null,0]
[228,"Ridgebury",null,0,0,0,0,0,0,0,0,0,0,0,0,0,0,null,0,0,0,0,0,0,0,0,0,0,0,0,0,0,null,0]
[229,"Riker",null,15.89,5.56,10.64,12.23,13.18,2.38,0,10.01,14.46,17.05,13.25,16.28,16.420000000000002,17.37,null,6.57,2.2999999999999998,4.4000000000000004,5.0599999999999996,5.45,0.99,0,0.62,5.17,8.57,3.8,7.23,7.39,9.16,null,1]
[230,"Riverhead",null,17.670000000000002,6.19,11.84,13.61,14.67,2.65,0,8.43,15.21,19.3,13.37,17.97,19.36,19.27,null,11.71,4.0999999999999996,7.84,9.02,9.7200000000000006,1.76,0,2.8,9.59,13.73,7.99,11.99,13.37,13.92,null,{"$f":"IF(SUM(D234:AF234)=0,0,1)","v":1}]
[231,"Riverhead Variant",null,18.45,6.46,12.36,14.21,15.32,2.77,0,8.6300000000000008,15.6,19.98,13.48,18.78,20.27,19.84,null,12.92,4.5199999999999996,8.65,9.9499999999999993,10.72,1.94,0,3.03,10.18,14.74,8.14,13.24,14.72,14.75,null,{"$f":"IF(SUM(D235:AF235)=0,0,1)","v":1}]
[232,"Rock Land Edneyville Mat.",null,8.06,2.82,5.42,6.2,6.69,1.21,0,4.84,7.28,8.4700000000000006,6.69,8.15,8.58,8.41,null,-0.78,-0.27,-0.57999999999999996,-0.6,-0.65,-0.12,0,-4.21,-1.47,-0.31,-2,-0.69,-0.25,-0.34,null,{"$f":"IF(SUM(D236:AF236)=0,0,1)","v":1}]
[233,"Rock outcrop - Arnot-rubble land",null,9.93,3.47,6.67,7.64,8.24,1.49,0,4.24,7.99,11.27,6.44,10.31,12.42,10.69,null,2.57,0.9,1.69,1.98,2.14,0.39,0,-3.12,0.4,4.3,-1.38,3.06,5.82,3.54,null,1]
[234,"Rock Outcrop (Greenpond Cong.)",null,1.08,0.38,0.73,0.83,0.89,0.16,0,1.08,1.08,1.08,1.08,1.08,1.08,1.08,null,-4.7699999999999996,-1.67,-3.24,-3.67,-3.96,-0.72,0,-4.7699999999999996,-4.7699999999999996,-4.7699999999999996,-4.7699999999999996,-4.7699999999999996,-4.7699999999999996,-4.7699999999999996,null,{"$f":"IF(SUM(D238:AF238)=0,0,1)","v":1}]
[235,"Rock outcrop-Farmington-Galway",null,15.06,5.27,10.1,11.6,12.5,2.2599999999999998,0,7.45,12.74,16.07,11.01,15.35,16.649999999999999,15.78,null,10.82,3.79,7.24,8.33,8.98,1.62,0,2.88,8.26,12.04,6.33,11.15,12.75,11.68,null,1]
[236,"Rock Outcrop-Holyoke",null,7.62,2.67,5.1100000000000003,5.86,6.32,1.1399999999999999,0,3.97,6.33,8.42,5.32,7.83,9.14,8.06,null,-0.49,-0.17,-0.36,-0.38,-0.41,-7.0000000000000007E-2,0,-1.77,-1.25,0.16,-1.86,-0.34,0.82,-0.17,null,{"$f":"IF(SUM(D240:AF240)=0,0,1)","v":1}]
[237,"Rock Outcrop-Nassau",null,9.93,3.47,6.67,7.64,8.24,1.49,0,4.24,7.99,11.27,6.44,10.31,12.42,10.69,null,2.57,0.9,1.69,1.98,2.14,0.39,0,-3.12,0.4,4.3,-1.38,3.06,5.82,3.54,null,1]
[238,"Rock Outcrop-Oquaga (Sussex)",null,8.1300000000000008,2.85,5.45,6.26,6.75,1.22,0,2.74,6.28,9.35,4.8099999999999996,8.48,10.39,8.83,null,2.67,0.93,1.76,2.06,2.2200000000000002,0.4,0,-2.86,0.62,4.21,-1.03,3.1,5.56,3.54,null,1]
[239,"Rock Outcrop-Oquaga (Warren)",null,13.42,4.7,8.99,10.33,11.14,2.0099999999999998,0,5.85,10.93,15.27,8.9,13.97,16.79,14.51,null,7.36,2.58,4.92,5.67,6.11,1.1000000000000001,0,1.1499999999999999,5.15,9.5399999999999991,3.24,8,11.36,8.6300000000000008,null,1]
[240,"Rock Outcrop-Parker-Edneyville",null,14.92,5.22,10,11.49,12.39,2.2400000000000002,0,6.87,12.57,16.05,10.82,15.21,16.54,15.8,null,10.56,3.7,7.06,8.1300000000000008,8.77,1.58,0,1.33,7.93,11.99,5.95,10.9,12.54,11.71,null,1]
[241,"Rock Outcrop-Rockaway (Morris)",null,4.66,1.63,3.13,3.59,3.87,0.7,0,2.54,3.99,5.19,3.43,4.8099999999999996,5.64,4.97,null,-1.42,-0.5,-0.98,-1.0900000000000001,-1.18,-0.21,0,-2.66,-1.86,-0.86,-2.25,-1.26,-0.38,-1.1100000000000001,null,1]
[242,"Rock Outcrop-Rockaway (Passaic)",null,7.15,2.5,4.79,5.51,5.94,1.07,0,3.66,5.93,7.95,4.97,7.37,8.68,7.59,null,0.04,0.02,0.01,0.03,0.04,0.01,0,-1.23,-0.66,0.71,-1.22,0.19,1.39,0.37,null,1]
[243,"Rock Outcrop-Rockaway (Sussex)",null,3.46,1.21,2.3199999999999998,2.66,2.87,0.52,0,1.31,2.72,3.95,2.13,3.6,4.37,3.74,null,-2.65,-0.93,-1.82,-2.04,-2.2000000000000002,-0.4,0,-4.83,-3.47,-2.0299999999999998,-4.13,-2.48,-1.49,-2.2999999999999998,null,1]
[244,"Rock Outcrop-Rockaway-Parker",null,11.9,4.17,7.98,9.16,9.8800000000000008,1.79,0,5.19,9.69,13.55,7.89,12.39,14.9,12.87,null,6.27,2.19,4.1900000000000004,4.83,5.2,0.94,0,0.9,4.3,8.1999999999999993,2.61,6.84,9.82,7.39,null,1]
[245,"Rock Outcrop-Swartswood",null,7.62,2.67,5.1100000000000003,5.87,6.33,1.1399999999999999,0,3.73,6.3,8.4499999999999993,5.27,7.85,9.1999999999999993,8.08,null,0.73,0.26,0.47,0.56999999999999995,0.61,0.11,0,-1.31,-0.04,1.41,-0.66,0.89,2.1,1.07,null,1]
[246,"Rock Outcrop-Wassaic",null,15.06,5.27,10.1,11.6,12.5,2.2599999999999998,0,7.45,12.74,16.07,11.01,15.35,16.649999999999999,15.78,null,10.82,3.79,7.24,8.33,8.98,1.62,0,2.88,8.26,12.04,6.33,11.15,12.75,11.68,null,1]
[247,"Rockaway",null,11.94,4.18,8,9.1999999999999993,9.91,1.79,0,5.42,9.8699999999999992,13.46,8.1999999999999993,12.38,14.74,12.82,null,4.62,1.62,3.09,3.55,3.83,0.69,0,1.28,3.42,6.04,2.36,5.01,7.29,5.41,null,1]
[248,"Rockaway-Rock Outcrop (Bergen)",null,9,3.15,6.03,6.93,7.47,1.35,0,4.1100000000000003,7.44,10.07,6.21,9.3000000000000007,10.98,9.61,null,1.8,0.63,1.19,1.38,1.49,0.27,0,-0.48,0.96,2.69,0.25,2.04,3.51,2.29,null,1]
[249,"Rockaway-Rock Outcrop (Morris)",null,8.5,2.98,5.7,6.55,7.06,1.28,0,3.9,7.02,9.56,5.83,8.81,10.45,9.11,null,1.47,0.51,0.97,1.1299999999999999,1.22,0.22,0,-0.87,0.6,2.44,-0.16,1.74,3.3,2.0099999999999998,null,1]
[250,"Rockaway-Rock Outcrop (Passaic)",null,9.0399999999999991,3.16,6.06,6.96,7.5,1.36,0,4.5599999999999996,7.46,10.07,6.23,9.31,11,9.6,null,1.72,0.6,1.1399999999999999,1.33,1.43,0.26,0,0.09,0.83,2.58,0.1,1.92,3.45,2.15,null,1]
[251,"Rockaway-Rock Outcrop (Sussex)",null,10.77,3.77,7.22,8.3000000000000007,8.94,1.62,0,3.55,8.3000000000000007,12.41,6.33,11.24,13.81,11.71,null,5.68,1.99,3.79,4.38,4.72,0.85,0,-1.63,2.94,7.75,0.72,6.26,9.5500000000000007,6.85,null,1]
[252,"Rough Broken Land - Sale",null,9.82,3.44,6.58,7.56,8.15,1.47,0,5.39,8.4700000000000006,11.01,7.33,10.17,12.01,10.51,null,0.7,0.25,0.46,0.54,0.57999999999999996,0.11,0,-0.92,0.08,1.94,-0.56999999999999995,1.06,3.02,1.41,null,1]
[253,"Rowland",null,15.99,5.6,10.71,12.31,13.27,2.4,0,6.51,13.75,18.36,11.59,17.010000000000002,19.11,17.989999999999998,null,11.99,4.1900000000000004,8.0299999999999994,9.23,9.9499999999999993,1.8,0,4.3899999999999997,11.15,14.83,9.64,13.4,15.01,14.74,null,1]
[254,"Royce",null,15.65,5.48,10.49,12.05,12.99,2.35,0,6.49,13.51,18.03,11.37,16.72,19.05,17.52,null,11.17,3.91,7.48,8.6,9.27,1.67,0,3.23,10.37,14.09,8.8000000000000007,12.73,14.74,13.76,null,1]
[255,"Sand Pits",null,18.29,6.4,12.26,14.08,15.18,2.74,0,13.96,17.39,19.8,16.600000000000001,18.59,18.68,20.36,null,9.9700000000000006,3.49,6.68,7.68,8.2799999999999994,1.5,0,6.03,9.39,12.85,8.5299999999999994,10.67,10.77,13.89,null,1]
[256,"Sandy Alluvial Land",null,0,0,0,0,0,0,0,0,0,0,0,0,0,0,null,0,0,0,0,0,0,0,0,0,0,0,0,0,0,null,0]
[257,"Sandy And Clayey Land",null,18.29,6.4,12.25,14.08,15.18,2.74,0,10.77,16.03,20.440000000000001,14.34,18.559999999999999,19.809999999999999,20.75,null,12.01,4.2,8.0500000000000007,9.25,9.9700000000000006,1.8,0,5.28,10.18,14.97,8.7899999999999991,12.27,13.48,15.72,null,1]
[258,"Sandy And Silty Land",null,19.989999999999998,7,13.4,15.39,16.59,3,0,12.78,18.489999999999998,21.79,17.3,20.28,21.71,21.83,null,14.58,5.0999999999999996,9.77,11.23,12.1,2.19,0,7.89,13.69,17.05,12.91,14.86,16.38,17.38,null,1]
[259,"Sandy Land (Burlington)",null,17.05,5.97,11.42,13.13,14.15,2.56,0,9.44,14.85,18.23,13.16,17.38,18.88,17.899999999999999,null,10.11,3.54,6.77,7.78,8.39,1.52,0,4.0599999999999996,8.27,11.33,6.81,10.45,12.03,10.98,null,1]
[260,"Sandy Land (Salem)",null,18.010000000000002,6.3,12.07,13.87,14.95,2.7,0,10.81,16.12,21.07,14.3,18.850000000000001,20.13,21.54,null,11.48,4.0199999999999996,7.69,8.84,9.5299999999999994,1.72,0,5.87,10.31,16.02,8.66,12.79,14.03,17.010000000000002,null,1]
[261,"Sandy Pits",null,16.62,5.82,11.14,12.8,13.8,2.4900000000000002,0,11.22,15.43,18.57,14.21,17.27,17.39,19.149999999999999,null,7.77,2.72,5.21,5.99,6.45,1.17,0,2.2799999999999998,6.78,11.23,5.34,8.93,9.09,12.3,null,1]
[262,"Sassafras",null,20.010000000000002,7,13.41,15.41,16.61,3,0,10.47,17.78,22.21,16.09,20.32,21.72,22.45,null,15.4,5.39,10.31,11.85,12.78,2.31,0,6.22,13.81,18.2,12.57,15.67,16.96,18.829999999999998,null,1]
[263,"Scio",null,23.33,8.17,15.63,17.97,19.37,3.5,0,9.61,19.28,25.41,16.170000000000002,23.93,26.52,24.86,null,21.78,7.62,14.59,16.77,18.079999999999998,3.27,0,5.82,16.98,24.58,13.25,22.58,26.06,23.84,null,1]
[264,"Sharptown",null,17.61,6.16,11.8,13.56,14.62,2.64,0,8.36,15.67,20.12,13.64,18.72,20.34,20.02,null,14.74,5.16,9.8800000000000008,11.35,12.24,2.21,0,8.1300000000000008,14.5,17.72,13.34,16.25,17.04,18.059999999999999,null,1]
[265,"Shrewsbury",null,0,0,0,0,0,0,0,0,0,0,0,0,0,0,null,0,0,0,0,0,0,0,0,0,0,0,0,0,0,null,{"$f":"IF(SUM(D269:AF269)=0,0,1)","v":0}]
[266,"Shrewsbury Variant",null,0,0,0,0,0,0,0,0,0,0,0,0,0,0,null,0,0,0,0,0,0,0,0,0,0,0,0,0,0,null,0]
[267,"Sloan",null,0,0,0,0,0,0,0,0,0,0,0,0,0,0,null,0,0,0,0,0,0,0,0,0,0,0,0,0,0,null,0]
[268,"St. Johns",null,0,0,0,0,0,0,0,0,0,0,0,0,0,0,null,0,0,0,0,0,0,0,0,0,0,0,0,0,0,null,0]
[269,"Steep Stony Land",null,18.309999999999999,6.41,12.27,14.1,15.2,2.75,0,8.64,15.52,19.829999999999998,13.43,18.66,20.29,19.600000000000001,null,12.4,4.34,8.31,9.5500000000000007,10.29,1.86,0,2.42,9.6199999999999992,14.26,7.51,12.78,14.6,14.09,null,1]
[270,"Steinsburg",null,15.39,5.39,10.31,11.85,12.77,2.31,0,6.21,12.44,17.399999999999999,10.08,15.99,19.04,16.579999999999998,null,10.61,3.71,7.11,8.17,8.81,1.59,0,2.48,8.01,12.9,5.82,11.29,14.81,11.95,null,1]
[271,"Sulfahemists",null,0,0,0,0,0,0,0,0,0,0,0,0,0,0,null,0,0,0,0,0,0,0,0,0,0,0,0,0,0,null,0]
[272,"Sulfaquents",null,0,0,0,0,0,0,0,0,0,0,0,0,0,0,null,0,0,0,0,0,0,0,0,0,0,0,0,0,0,null,0]
[273,"Swamp",null,0,0,0,0,0,0,0,0,0,0,0,0,0,0,null,0,0,0,0,0,0,0,0,0,0,0,0,0,0,null,0]
[274,"Swartswood",null,13.87,4.8600000000000003,9.3000000000000007,10.68,11.52,2.08,0,5.64,11.17,15.8,9,14.43,17.43,14.99,null,7.99,2.8,5.35,6.15,6.63,1.2,0,1.28,5.74,10.119999999999999,3.85,8.58,11.98,9.19,null,1]
[275,"Swartswood-Rock Outcrop",null,9.35,3.27,6.26,7.2,7.76,1.4,0,4.51,7.71,10.38,6.43,9.6300000000000008,11.3,9.92,null,2.34,0.82,1.55,1.8,1.94,0.35,0,-0.2,1.37,3.18,0.6,2.5299999999999998,4.03,2.76,null,1]
[276,"Swedesboro",null,16.97,5.94,11.37,13.07,14.08,2.5499999999999998,0,10.16,15.46,20.149999999999999,13.84,17.899999999999999,19.29,20.58,null,10.08,3.53,6.76,7.76,8.3699999999999992,1.51,0,4.96,9.41,14.78,8.01,11.51,12.89,15.73,null,1]
[277,"Tidal Marsh",null,0,0,0,0,0,0,0,0,0,0,0,0,0,0,null,0,0,0,0,0,0,0,0,0,0,0,0,0,0,null,{"$f":"IF(SUM(D281:AF281)=0,0,1)","v":0}]
[278,"Timakawa",null,0,0,0,0,0,0,0,0,0,0,0,0,0,0,null,0,0,0,0,0,0,0,0,0,0,0,0,0,0,null,0]
[279,"Tinton",null,19.12,6.69,12.81,14.72,15.87,2.87,0,13.44,18.72,22.99,17.170000000000002,21.04,21.16,23.9,null,12.13,4.25,8.1300000000000008,9.34,10.07,1.82,0,6.09,12.5,18.46,10.61,15.34,15.46,19.96,null,{"$f":"IF(SUM(D283:AF283)=0,0,1)","v":1}]
[280,"Tioga",null,21.52,7.53,14.42,16.57,17.86,3.23,0,13.14,19.77,23.32,18.41,21.81,23.24,23.36,null,17.5,6.13,11.73,13.48,14.53,2.63,0,9.9700000000000006,16.5,19.850000000000001,15.65,17.77,19.18,20.18,null,{"$f":"IF(SUM(D284:AF284)=0,0,1)","v":1}]
[281,"Transquaking",null,0,0,0,0,0,0,0,0,0,0,0,0,0,0,null,0,0,0,0,0,0,0,0,0,0,0,0,0,0,null,0]
[282,"Tunkhannock",null,17.98,6.29,12.04,13.84,14.92,2.7,0,10.44,16.260000000000002,19.34,15,18.14,18.309999999999999,19.850000000000001,null,10.25,3.59,6.87,7.89,8.51,1.54,0,1.85,8.5500000000000007,12.41,7.29,10.43,10.62,13.31,null,{"$f":"IF(SUM(D286:AF286)=0,0,1)","v":1}]
[283,"Turbotville",null,14.36,5.03,9.6199999999999992,11.06,11.92,2.15,0,5.89,11.71,16.07,9.6,14.86,17.489999999999998,15.36,null,9.23,3.23,6.19,7.11,7.66,1.38,0,3.79,7.44,10.86,5.93,9.6999999999999993,12.25,10.16,null,{"$f":"IF(SUM(D287:AF287)=0,0,1)","v":1}]
[284,"Udifluvents",null,15.72,5.5,10.54,12.11,13.05,2.36,0,6.37,13.55,18.100000000000001,11.43,16.739999999999998,18.850000000000001,17.72,null,11.58,4.05,7.76,8.92,9.61,1.74,0,4.1900000000000004,10.85,14.42,9.42,13,14.58,14.34,null,{"$f":"IF(SUM(D288:AF288)=0,0,1)","v":1}]
[285,"Udorthents",null,0,0,0,0,0,0,0,0,0,0,0,0,0,0,null,0,0,0,0,0,0,0,0,0,0,0,0,0,0,null,0]
[286,"Udorthents*",null,0,0,0,0,0,0,0,0,0,0,0,0,0,0,null,0,0,0,0,0,0,0,0,0,0,0,0,0,0,null,{"$f":"IF(SUM(D290:AF290)=0,0,1)","v":0}]
[287,"Udorthents-Horseneck",null,0,0,0,0,0,0,0,0,0,0,0,0,0,0,null,0,0,0,0,0,0,0,0,0,0,0,0,0,0,null,0]
[288,"Udorthents-Peckmantown",null,0,0,0,0,0,0,0,0,0,0,0,0,0,0,null,0,0,0,0,0,0,0,0,0,0,0,0,0,0,null,0]
[289,"Unadilla",null,23.33,8.17,15.63,17.97,19.37,3.5,0,9.61,19.28,25.41,16.170000000000002,23.93,26.52,24.86,null,21.78,7.62,14.59,16.77,18.079999999999998,3.27,0,5.82,16.98,24.58,13.25,22.58,26.06,23.84,null,{"$f":"IF(SUM(D293:AF293)=0,0,1)","v":1}]
[290,"Urban Land Wet",null,0,0,0,0,0,0,0,0,0,0,0,0,0,0,null,0,0,0,0,0,0,0,0,0,0,0,0,0,0,null,{"$f":"IF(SUM(D294:AF294)=0,0,1)","v":0}]
[291,"Urban Land*",null,0,0,0,0,0,0,0,0,0,0,0,0,0,0,null,0,0,0,0,0,0,0,0,0,0,0,0,0,0,null,{"$f":"IF(SUM(D295:AF295)=0,0,1)","v":0}]
[292,"Urban land-Bigapple",null,0,0,0,0,0,0,0,0,0,0,0,0,0,0,null,0,0,0,0,0,0,0,0,0,0,0,0,0,0,null,0]
[293,"Urban land-Chatfield-Rock Outcrop",null,0,0,0,0,0,0,0,0,0,0,0,0,0,0,null,0,0,0,0,0,0,0,0,0,0,0,0,0,0,null,0]
[294,"Urban land-Farmington-rock outcrop",null,0,0,0,0,0,0,0,0,0,0,0,0,0,0,null,0,0,0,0,0,0,0,0,0,0,0,0,0,0,null,0]
[295,"Urban land-Farmington-Wassaic",null,0,0,0,0,0,0,0,0,0,0,0,0,0,0,null,0,0,0,0,0,0,0,0,0,0,0,0,0,0,null,0]
[296,"Urban land-Horseneck",null,0,0,0,0,0,0,0,0,0,0,0,0,0,0,null,0,0,0,0,0,0,0,0,0,0,0,0,0,0,null,0]
[297,"Urban land-Knickerbocker",null,0,0,0,0,0,0,0,0,0,0,0,0,0,0,null,0,0,0,0,0,0,0,0,0,0,0,0,0,0,null,0]
[298,"Urban land-Peckmantown",null,0,0,0,0,0,0,0,0,0,0,0,0,0,0,null,0,0,0,0,0,0,0,0,0,0,0,0,0,0,null,0]
[299,"Urban land-Yalesvile-rock outcrop",null,0,0,0,0,0,0,0,0,0,0,0,0,0,0,null,0,0,0,0,0,0,0,0,0,0,0,0,0,0,null,0]
[300,"Valois",null,22.92,8.02,15.35,17.649999999999999,19.02,3.44,0,9.17,18.8,25.2,15.58,23.64,26.29,24.66,null,20.96,7.34,14.04,16.14,17.399999999999999,3.14,0,4.1900000000000004,15.96,24.17,11.93,22.01,25.62,23.45,null,{"$f":"IF(SUM(D304:AF304)=0,0,1)","v":1}]
[301,"Venango",null,15.39,5.39,10.31,11.85,12.78,2.31,0,6.48,12.45,17.399999999999999,10.08,16,19.04,16.579999999999998,null,10.62,3.72,7.12,8.18,8.81,1.59,0,3.71,8.02,12.91,5.83,11.3,14.81,11.96,null,1]
[302,"Very Stony Land Mt. Lucas",null,7.37,2.58,4.95,5.67,6.12,1.1100000000000001,0,4.67,6.61,7.83,5.98,7.55,8.0299999999999994,7.73,null,0.39,0.14000000000000001,0.22,0.3,0.32,0.06,0,-1.67,-0.01,0.87,-0.44,0.63,0.9,0.86,null,1]
[303,"Very Stony Land Neshaminy",null,7.88,2.76,5.3,6.07,6.54,1.18,0,5.48,7.49,8.49,7.04,8.17,8.59,8.44,null,0.35,0.12,0.19,0.27,0.28999999999999998,0.05,0,-1.88,0.27,1.18,-0.08,0.8,1.22,1.1599999999999999,null,1]
[304,"Very Stony Land Watchung",null,0,0,0,0,0,0,0,0,0,0,0,0,0,0,null,0,0,0,0,0,0,0,0,0,0,0,0,0,0,null,0]
[305,"Wallkill",null,0,0,0,0,0,0,0,0,0,0,0,0,0,0,null,0,0,0,0,0,0,0,0,0,0,0,0,0,0,null,0]
[306,"Wallpack",null,15.77,5.52,10.57,12.14,13.09,2.37,0,5.74,12.59,17.82,10.06,16.37,19.52,16.96,null,11.69,4.09,7.84,9,9.7100000000000009,1.75,0,3.19,8.94,13.95,6.68,12.34,15.89,12.98,null,1]
[307,"Washington",null,18.93,6.62,12.68,14.57,15.71,2.84,0,8.15,16.54,20.95,14.32,19.86,21.4,20.72,null,13.93,4.87,9.33,10.72,11.56,2.09,0,2.57,12.12,16.62,9.9600000000000009,15.35,16.899999999999999,16.48,null,{"$f":"IF(SUM(D311:AF311)=0,0,1)","v":1}]
[308,"Wassaic",null,20.71,7.25,13.88,15.95,17.190000000000001,3.11,0,9.16,17.09,22.39,14.37,21.18,23.37,21.91,null,17.07,5.98,11.44,13.15,14.17,2.56,0,4.6399999999999997,12.93,19.18,9.7799999999999994,17.649999999999999,20.440000000000001,18.55,null,1]
[309,"Wassaic-Rock Outcrop (Sussex)",null,17.809999999999999,6.23,11.95,13.71,14.78,2.67,0,8.0500000000000007,14.78,19.29,12.48,18.22,20.149999999999999,18.86,null,13.4,4.6900000000000004,8.9600000000000009,10.32,11.12,2.0099999999999998,0,1.89,9.66,15.4,6.8,13.95,16.579999999999998,14.81,null,1]
[310,"Wassaic-Rock Outcrop (Warren)",null,16.21,5.67,10.87,12.48,13.45,2.4300000000000002,0,8.3800000000000008,13.82,17.25,12.04,16.5,17.84,16.95,null,10.45,3.66,6.98,8.0500000000000007,8.68,1.57,0,2.29,7.82,11.7,5.84,10.79,12.44,11.33,null,1]
[311,"Watchung",null,0,0,0,0,0,0,0,0,0,0,0,0,0,0,null,0,0,0,0,0,0,0,0,0,0,0,0,0,0,null,0]
[312,"Wayland",null,0,0,0,0,0,0,0,0,0,0,0,0,0,0,null,0,0,0,0,0,0,0,0,0,0,0,0,0,0,null,0]
[313,"Weeksville",null,0,0,0,0,0,0,0,0,0,0,0,0,0,0,null,0,0,0,0,0,0,0,0,0,0,0,0,0,0,null,0]
[314,"Wellsboro",null,13.55,4.74,9.08,10.44,11.25,2.0299999999999998,0,5.72,10.93,15.49,8.81,14.11,17.14,14.67,null,7.34,2.57,4.92,5.65,6.09,1.1000000000000001,0,1.85,5.17,9.51,3.32,7.94,11.41,8.56,null,1]
[315,"Westphalia",null,20.440000000000001,7.16,13.7,15.74,16.97,3.07,0,9.35,17.68,23.17,15.59,20.82,22.5,23.5,null,16.170000000000002,5.66,10.84,12.45,13.42,2.4300000000000002,0,5.37,13.92,19.71,12.18,16.54,18.18,20.48,null,{"$f":"IF(SUM(D319:AF319)=0,0,1)","v":1}]
[316,"Wethersfield",null,14.05,4.92,9.41,10.82,11.66,2.11,0,5.63,11.94,16.62,9.86,15.05,17.21,16.32,null,8.77,3.07,5.88,6.75,7.28,1.32,0,3.08,8.0500000000000007,12,6.63,10.18,11.82,12.09,null,{"$f":"IF(SUM(D320:AF320)=0,0,1)","v":1}]
[317,"Wethersfield Rock Outcrop",null,11.06,3.87,7.42,8.52,9.18,1.66,0,4.75,9.48,12.99,7.92,11.81,13.44,12.76,null,4.95,1.73,3.3,3.81,4.1100000000000003,0.74,0,0.69,4.41,7.38,3.35,6.01,7.24,7.44,null,{"$f":"IF(SUM(D321:AF321)=0,0,1)","v":1}]
[318,"Whippany",null,13.07,4.57,8.76,10.06,10.85,1.96,0,5.29,11.18,15.98,9.1300000000000008,14.26,16.59,15.67,null,6.82,2.39,4.57,5.25,5.66,1.02,0,0.76,6.24,10.77,4.6500000000000004,8.6199999999999992,10.72,10.8,null,{"$f":"IF(SUM(D322:AF322)=0,0,1)","v":1}]
[319,"Whitman",null,0,0,0,0,0,0,0,0,0,0,0,0,0,0,null,0,0,0,0,0,0,0,0,0,0,0,0,0,0,null,{"$f":"IF(SUM(D323:AF323)=0,0,1)","v":0}]
[320,"Willette",null,0,0,0,0,0,0,0,0,0,0,0,0,0,0,null,0,0,0,0,0,0,0,0,0,0,0,0,0,0,null,0]
[321,"Woodmansie",null,18.350000000000001,6.42,12.29,14.13,15.23,2.75,0,10.34,16.7,22.37,14.69,19.73,21.21,22.94,null,12.23,4.28,8.19,9.41,10.15,1.83,0,5.14,11.5,18.309999999999999,9.52,14.46,15.94,19.5,null,{"$f":"IF(SUM(D325:AF325)=0,0,1)","v":1}]
[322,"Woodstown",null,15.94,5.58,10.68,12.27,13.23,2.39,0,7.83,13.46,18.809999999999999,11.56,16.3,18.2,19.12,null,11.5,4.0199999999999996,7.7,8.85,9.5399999999999991,1.72,0,5.0599999999999996,10.039999999999999,15.3,8.9,11.75,13.15,16.37,null,{"$f":"IF(SUM(D326:AF326)=0,0,1)","v":1}]
[323,"Wooster",null,15.77,5.52,10.57,12.14,13.09,2.37,0,5.74,12.59,17.82,10.06,16.37,19.52,16.96,null,11.69,4.09,7.84,9,9.7100000000000009,1.75,0,3.19,8.94,13.95,6.68,12.34,15.89,12.98,null,{"$f":"IF(SUM(D327:AF327)=0,0,1)","v":1}]
[324,"Wurtsboro",null,13.55,4.74,9.08,10.44,11.25,2.0299999999999998,0,5.72,10.93,15.49,8.81,14.11,17.14,14.67,null,7.34,2.57,4.92,5.65,6.09,1.1000000000000001,0,1.85,5.17,9.51,3.32,7.94,11.41,8.56,null,{"$f":"IF(SUM(D328:AF328)=0,0,1)","v":1}]
[325,"Yalesville",null,15.39,5.39,10.31,11.85,12.77,2.31,0,6.21,12.44,17.399999999999999,10.08,15.99,19.04,16.579999999999998,null,10.61,3.71,7.11,8.17,8.81,1.59,0,2.48,8.01,12.9,5.82,11.29,14.81,11.95,null,1]
[326,"Yalesville-Boonton-Holyoke",null,15.39,5.39,10.31,11.85,12.77,2.31,0,6.21,12.44,17.399999999999999,10.08,15.99,19.04,16.579999999999998,null,10.61,3.71,7.11,8.17,8.81,1.59,0,2.48,8.01,12.9,5.82,11.29,14.81,11.95,null,1]
[327,"Yalesville-Holyoke",null,15.39,5.39,10.31,11.85,12.77,2.31,0,6.21,12.44,17.399999999999999,10.08,15.99,19.04,16.579999999999998,null,10.61,3.71,7.11,8.17,8.81,1.59,0,2.48,8.01,12.9,5.82,11.29,14.81,11.95,null,1]
[328,"Yalesville-rock outcrop",null,15.39,5.39,10.31,11.85,12.77,2.31,0,6.21,12.44,17.399999999999999,10.08,15.99,19.04,16.579999999999998,null,10.61,3.71,7.11,8.17,8.81,1.59,0,2.48,8.01,12.9,5.82,11.29,14.81,11.95,null,1]
[329,"Yalesville-urban land",null,0,0,0,0,0,0,0,0,0,0,0,0,0,0,null,0,0,0,0,0,0,0,0,0,0,0,0,0,0,null,0]

{"sheet":"New Soil-Old Soil","index":6,"n_rows":78,"n_cols":3,"rows_kept":78,"cut":false,"hidden":false,"merged":[]}
["SSURGO soil series name","Counties","Assumed equivalent soil from county soil series "]
["Alden","Warren, Sussex, Passaic, Morris","Whitman"]
["Alloway","Salem","Keyport"]
["Appoquinimink-Broadkill","Salem","tidal marsh"]
["Appoquinimink-Transquaking-Mispillion","Ocean, Monmouth, Cumberland, Cape May, Atlantic","sulfaquents and sulfihemists, tidal marshes"]
["Arnot-Lordstown","Warren, Sussex","Nassau-Manlius"]
["Arnot-Lordstown rock outcrop","Sussex, Sussex","Nassau-Manlius rock outcrop"]
["Bigapple","Essex","sand pit"]
["Bigapple-urban land","Essex","urban land"]
["Broadkill","Cumberland","tidal marsh"]
["Buddtown","Burlington","Nixonton"]
["Buddtown-Deptford","Gloucester, Camden, Burlington","Nixonton-Barclay"]
["Buddtown-urban land","Gloucester","urban land"]
["Catden","Warren, Sussex, Passaic, Morris, Essex","Carlisle"]
["Catden-Natchaug","Essex","Carlisle-Palms"]
["Charlton-rock outcrop","Passaic","Rockaway rock outcrop (Warren/Sussex Co.)"]
["Chatfield-Hollis-Rock outcrop","Warren, Sussex, Passaic, Morris","Rockaway rock outcrop (Warren/Sussex Co.)"]
["Chicone","Salem, Gloucester, Cumberland","swamp"]
["Delaware","Warren, Sussex","Riverhead"]
["Dennisville","Cape May","Downer"]
["Farmington-rock outcrop","Warren, Sussex","Wassaic-rock outcrop"]
["Farmington-Wassaic-rock outcrop","Warren, Sussex","Wassaic-rock outcrop"]
["Galloway","Salem, Ocean, Middlesex, Cumberland, Cape May, Camden, Atlantic, Burlington","Klej"]
["Galloway variant","Mercer","Klej"]
["Galway","Sussex","Wassaic"]
["Glassboro and Woodstown","Mercer","Dragston and Woodstown"]
["Great Piece","Essex","Passaic"]
["Hinckley","Warren, Sussex, Essex","Otisville"]
["Hinckley-urban land","Essex","urban land"]
["Hollis-rock outcrop-Chatfield","Warren, Sussex, Passaic, Morris","Rockaway rock outcrop (Warren/Sussex Co.)"]
["Horseneck","Essex","Riverhead"]
["Horseneck-urban land","Essex","urban land"]
["Ingleside","Cape May","Sassafras"]
["Jade Run","Gloucester, Camden, Burlington","Pasquotank"]
["Jade Run-urban land","Gloucester","urban land"]
["Jade Run-Weeksville-urban land","Camden","urban land"]
["Knickerbocker","Essex","Riverhead"]
["Lenni","Gloucester","Bayboro, Elkton"]
["Lordstown-Wallpack","Sussex","Stiensburg-Wooster"]
["Manlius-Nassau","Sussex","Nassau-Manlius"]
["Mannington-Nanticoke","Salem, Gloucester, Burlington","fresh water marsh"]
["Mannington-Nanticoke-Udorthents","Gloucester, Camden, Burlington","fresh water marsh"]
["Mispillion-Transquaking-Appoquinimink","Cumberland, Cape May","tidal marsh"]
["Muttontown","Salem","Woodstown"]
["Natchaug","Essex","Palms"]
["Palms","Somerset, Morris","muck"]
["Pawcatuck-Transquaking","Middlesex, Cumberland, Cape May","tidal marsh"]
["Paxton","Passaic","Rockaway"]
["Peckmantown","Essex","Boonton"]
["Peckmantown-urban land","Essex","Boonton-urban land"]
["Pedricktown, Askecksy, and Mullica","Gloucester, Salem","Pokomoke"]
["Riker","Essex","Otisville"]
["Rock outcrop - Arnot-rubble land","Warren, Sussex","Rock outcrop-Nassau"]
["Rock outcrop-Farmington-Galway","Warren, Sussex","Rock outcrop-Wassaic"]
["Scio","Warren, Sussex","Unadilla"]
["Sharptown","Salem","Mattapex"]
["Timakawa","Warren","Adrian"]
["Transquaking","Salem, Union, Middlesex, Cumberland, Cape May, Burlington, Bergen, Atlantic","sulfaquents and sulfihemists, tidal marshes"]
["Udorthents","Essex","Udorthents*"]
["Udorthents-Horseneck","Essex","Udorthents*"]
["Udorthents-Peckmantown","Union, Essex","Udorthents*"]
["Urban land-Bigapple","Union","urban land"]
["Urban land-Chatfield-Rock Outcrop","Warren, Sussex","urban land"]
["Urban land-Farmington-rock outcrop","Warren, Sussex","urban land"]
["Urban land-Farmington-Wassaic","Sussex","urban land"]
["Urban land-Horseneck","Essex","urban land"]
["Urban land-Knickerbocker","Essex","urban land"]
["Urban land-Peckmantown","Essex","urban land"]
["Urban land-Yalesvile-rock outcrop","Essex","urban land"]
["Wallpack","Sussex","Wooster"]
["Wellsboro","Warren, Sussex","Wurtsboro"]
["Willette","Morris","muck"]
["Yalesville","Essex","Steinsburg"]
["Yalesville-Boonton-Holyoke","Essex","Steinsburg-Boonton-Holyoke"]
["Yalesville-Holyoke","Essex","Steinsburg-Holyoke"]
["Yalesville-rock outcrop","Essex","Steinsburg-rock outcropt"]
["Yalesville-urban land","Essex","urban land"]
["Swedesboro",null,"Downer"]